Workbook

Sheet Introduction
B2: Bonjour à vous qui allez lire ces tableaux de distribution des sièges dans les communes de Wallonie
B4: De quoi s'agit-il ?
B6: Il s'agit de trois tableaux par page :
B8: Le premier est l'application de la clé de répartition Impériali ne tenant compte que des votes valables (c'est-à-dire hors votes blancs et nuls ainsi que les bulletins non-déposés).
B11: Le deuxième tableau tient compte de tous les votes. (votes blancs et nuls, et bulletins non-déposés)
B13: Le troisième tableau regroupe les votes non-valables.
B15: Pourquoi ces tableaux ?
B17: Ces tableaux permettent de voir commune par commune à quelle(s) liste(s) profite(nt)
B18: les votes considérés comme non-valables par la loi électorale.
B20: Bonne lecture

Sheet RÉSULTATS
B1: Résultats Elections communales | C1: Inscrits | D1: Bulletins déposés | E1: % Bulletins déposés | F1: Blancs et nuls | G1: % Votes Blancs et nuls | H1: Votes valables | I1: % Votes Valables | J1: Nbre Sièges | K1: Bulletins Non-déposés | L1: % Bulletins Non-déposés | M1: Votes non-valables | N1: % Votes Non-valables | O1: Nbr Listes | P1: Nbr Liste unique Majorité Absolue Sièges | Q1: % Voix Majorités Absolues Sièges | R1: Nbr Liste unique Majorité Absolue Voix | S1: Nbr Coalitions | T1: % Voix Coalition | U1: Nbr Colation Majorité Absolue Voix | V1: Nbr Sièges Votes Blancs et nuls | W1: Nbr Communes impactées Post Distribution Sièges | X1: Nbr Sièges Bulletins Non-déposés | Y1: Nbr Communes impactées Post Distribution Sièges | Z1: Nbr Majorités Absolues Post Distribution Sièges | AA1: Nbr Sièges Votes non-valable & Absentéisme électoral | AB1: Nbr Communes impactées Post Distribution Sièges | AC1: Nbr Majorités Absolues Post Distribution Sièges
B2: AMAY | C2: =Inscrits(B2) -> 10911 | D2: =BDEPOSES(B2) -> 9697 | E2: =100/C2*D2 -> 88.87361378 | F2: =BBN(B2) -> 756 | G2: =100/C2*F2 -> 6.928787462 | H2: =VOTESV(B2) -> 8941 | I2: =100/C2*H2 -> 81.94482632 | J2: =SIEGES(B2) -> 23 | K2: =C2-D2 -> 1214 | L2: =100/C2*K2 -> 11.12638622 | M2: =C2-H2 -> 1970 | N2: =(100/C2)*M2 -> 18.05517368 | O2: =NBL(B2) -> 3 | P2: =Maj_abs_tab1(B2) -> 1 | Q2: =pc_Vx_LUMA(B2) -> 44.60636055 | R2: =IF(Q2>50,1,0) -> 0 | S2: =Nbr_Coal(B2) -> 0 | T2: =pc_Vx_Coal(B2) -> 0 | U2: =IF(T2>50,1,0) -> 0 | V2: =SBN(B2) -> 1 | W2: =IF(V2>0,1,0) -> 1 | X2: =SND(B2) -> 2 | Y2: =IF(X2>0,1,0) -> 1 | Z2: =Maj_abs_tab2(B2) -> 1 | AA2: =SNV(B2) -> 4 | AB2: =IF(AA2>0,1,0) -> 1 | AC2: =Maj_abs_tab3(B2) -> 1
B3: AMBLEVE | C3: 4198 | D3: 3731 | E3: 88.87565507 | F3: 354 | G3: 8.432586946 | H3: 3377 | I3: 80.44306813 | J3: 17 | K3: 467 | L3: 11.12434493 | M3: 821 | N3: 19.55693187 | O3: 2 | P3: 1 | Q3: 61.62458313 | R3: 1 | S3: 0 | T3: 0 | U3: 0 | V3: 0 | W3: 0 | X3: 1 | Y3: 1 | Z3: 1 | AA3: 3 | AB3: 1 | AC3: 1
B4: ANDENNE | C4: 20504 | D4: 18152 | E4: 88.5290675 | F4: 1712 | G4: 8.349590324 | H4: 16440 | I4: 80.17947718 | J4: 29 | K4: 2352 | L4: 11.4709325 | M4: 4064 | N4: 19.82052282 | O4: 5 | P4: 1 | Q4: 42.10885681 | R4: 0 | S4: 1 | T4: 51.75087788 | U4: 1 | V4: 2 | W4: 1 | X4: 3 | Y4: 1 | Z4: 0 | AA4: 6 | AB4: 1 | AC4: 0
B5: ANDERLUES | C5: 9114 | D5: 8003 | E5: 87.80996269 | F5: 681 | G5: 7.472021066 | H5: 7322 | I5: 80.33794163 | J5: 23 | K5: 1111 | L5: 12.19003731 | M5: 1792 | N5: 19.66205837 | O5: 5 | P5: 1 | Q5: 41.96840026 | R5: 0 | S5: 0 | T5: 0 | U5: 0 | V5: 1 | W5: 1 | X5: 2 | Y5: 1 | Z5: 1 | AA5: 5 | AB5: 1 | AC5: 0
B6: ANHÉE | C6: 5474 | D6: 5029 | E6: 91.87066131 | F6: 355 | G6: 6.485202777 | H6: 4674 | I6: 85.38545853 | J6: 19 | K6: 445 | L6: 8.129338692 | M6: 800 | N6: 14.61454147 | O6: 2 | P6: 1 | Q6: 66.78845451 | R6: 1 | S6: 0 | T6: 0 | U6: 0 | V6: 0 | W6: 0 | X6: 1 | Y6: 1 | Z6: 1 | AA6: 2 | AB6: 1 | AC6: 1
B7: ANS | C7: 20381 | D7: 17777 | E7: 87.22339434 | F7: 1360 | G7: 6.672881605 | H7: 16417 | I7: 80.55051273 | J7: 29 | K7: 2604 | L7: 12.77660566 | M7: 3964 | N7: 19.44948727 | O7: 8 | P7: 1 | Q7: 36.50458761 | R7: 0 | S7: 1 | T7: 52.45081203 | U7: =IF(T7>50,1,0) -> 1 | V7: 1 | W7: 1 | X7: 4 | Y7: 1 | Z7: 0 | AA7: 6 | AB7: 1 | AC7: 0
B8: ANTHISNES | C8: 3269 | D8: 3058 | E8: 93.54542674 | F8: 126 | G8: 3.854389722 | H8: 2932 | I8: 89.69103701 | J8: 15 | K8: 211 | L8: 6.454573264 | M8: 337 | N8: 10.30896299 | O8: 4 | P8: 1 | Q8: 58.5194249 | R8: 1 | S8: 0 | T8: 0 | U8: 0 | V8: 0 | W8: 0 | X8: 0 | Y8: 0 | Z8: 1 | AA8: 1 | AB8: 1 | AC8: 1
B9: ANTOING | C9: 5773 | D9: 5247 | E9: 90.88861944 | F9: 424 | G9: 7.344534904 | H9: 4823 | I9: 83.54408453 | J9: 19 | K9: 526 | L9: 9.111380565 | M9: 950 | N9: 16.45591547 | O9: 3 | P9: 1 | Q9: 45.97263121 | R9: 0 | S9: 0 | T9: 0 | U9: 0 | V9: 0 | W9: 0 | X9: 1 | Y9: 1 | Z9: 1 | AA9: 3 | AB9: 1 | AC9: 1
B10: ATTERT | C10: 3923 | D10: 3642 | E10: 92.83711445 | F10: 239 | G10: 6.092276319 | H10: 3403 | I10: 86.74483813 | J10: 22 | K10: 281 | L10: 7.162885547 | M10: 520 | N10: 13.25516187 | O10: 1 | P10: 1 | Q10: 86.74483813 | R10: 1 | S10: 0 | T10: 0 | U10: 0 | V10: 0 | W10: 0 | X10: 0 | Y10: 0 | Z10: 1 | AA10: 51 | AB10: 1 | AC10: 11
B11: AUBEL | C11: 3272 | D11: 2993 | E11: 91.47310513 | F11: 150 | G11: 4.584352078 | H11: 2843 | I11: 86.88875306 | J11: 15 | K11: 279 | L11: 8.526894866 | M11: 429 | N11: 13.11124694 | O11: 2 | P11: 1 | Q11: 54.12591687 | R11: 1 | S11: 0 | T11: 0 | U11: 0 | V11: 0 | W11: 0 | X11: 0 | Y11: 0 | Z11: 1 | AA11: 1 | AB11: 1 | AC11: 1
B12: AYWAILLE | C12: 9599 | D12: 8440 | E12: 87.92582561 | F12: 489 | G12: 5.094280654 | H12: 7951 | I12: 82.83154495 | J12: 23 | K12: 1159 | L12: 12.07417439 | M12: 1648 | N12: 17.16845505 | O12: 5 | P12: 1 | Q12: 35.222419 | R12: 0 | S12: 1 | T12: 45.45265132 | U12: 0 | V12: 0 | W12: 0 | X12: 3 | Y12: 1 | Z12: 0 | AA12: 4 | AB12: 1 | AC12: 0
B13: BAELEN | C13: 3307 | D13: 2990 | E13: 90.41427275 | F13: 192 | G13: 5.805866344 | H13: 2798 | I13: 84.60840641 | J13: 15 | K13: 317 | L13: 9.585727245 | M13: 509 | N13: 15.39159359 | O13: 4 | P13: 1 | Q13: 41.79014212 | R13: 0 | S13: 0 | T13: 0 | U13: 0 | V13: 0 | W13: 0 | X13: 1 | Y13: 1 | Z13: 1 | AA13: 2 | AB13: 1 | AC13: 1
B14: BASSENGE | C14: 6741 | D14: 5948 | E14: 88.23616674 | F14: 326 | G14: 4.836077733 | H14: 5622 | I14: 83.40008901 | J14: 19 | K14: 793 | L14: 11.76383326 | M14: 1119 | N14: 16.59991099 | O14: 3 | P14: 1 | Q14: 49.25085299 | R14: 0 | S14: 0 | T14: 0 | U14: 0 | V14: 0 | W14: 0 | X14: 2 | Y14: 1 | Z14: 1 | AA14: 3 | AB14: 1 | AC14: 1
B15: BASTOGNE | C15: 11679 | D15: 10835 | E15: 92.77335388 | F15: 633 | G15: 5.419984588 | H15: 10202 | I15: 87.3533693 | J15: 25 | K15: 844 | L15: 7.226646117 | M15: 1477 | N15: 12.6466307 | O15: 4 | P15: 1 | Q15: 55.90375888 | R15: 1 | S15: 0 | T15: 0 | U15: 0 | V15: 0 | W15: 0 | X15: 1 | Y15: 1 | Z15: 1 | AA15: 2 | AB15: 1 | AC15: 1
B16: BEAUMONT | C16: 5454 | D16: 5018 | E16: 92.00586725 | F16: 249 | G16: 4.565456546 | H16: 4769 | I16: 87.44041071 | J16: 19 | K16: 436 | L16: 7.994132747 | M16: 685 | N16: 12.55958929 | O16: 4 | P16: 1 | Q16: 57.26072607 | R16: 1 | S16: 0 | T16: 0 | U16: 0 | V16: 0 | W16: 0 | X16: 1 | Y16: 1 | Z16: 1 | AA16: 2 | AB16: 1 | AC16: 1
B17: BEAURAING | C17: 6987 | D17: 6491 | E17: 92.90110205 | F17: 394 | G17: 5.639043939 | H17: 6097 | I17: 87.26205811 | J17: 21 | K17: 496 | L17: 7.098897953 | M17: 890 | N17: 12.73794189 | O17: 3 | P17: 1 | Q17: 61.6001145 | R17: 1 | S17: 0 | T17: 0 | U17: 0 | V17: 0 | W17: 0 | X17: 1 | Y17: 1 | Z17: 1 | AA17: 2 | AB17: 1 | AC17: 1
B18: BEAUVECHAIN | C18: 5398 | D18: 5030 | E18: 93.18266024 | F18: 218 | G18: 4.03853279 | H18: 4812 | I18: 89.14412745 | J18: 19 | K18: 368 | L18: 6.817339755 | M18: 586 | N18: 10.85587255 | O18: 4 | P18: 1 | Q18: 53.66802519 | R18: 1 | S18: 0 | T18: 0 | U18: 0 | V18: 0 | W18: 0 | X18: 0 | Y18: 0 | Z18: 1 | AA18: 1 | AB18: 1 | AC18: 1
B19: BERLOZ | C19: 2335 | D19: 2179 | E19: 93.31905782 | F19: 151 | G19: 6.466809422 | H19: 2028 | I19: 86.85224839 | J19: 13 | K19: 156 | L19: 6.680942184 | M19: 307 | N19: 13.14775161 | O19: 3 | P19: 1 | Q19: 44.96788009 | R19: 0 | S19: 0 | T19: 0 | U19: 0 | V19: 0 | W19: 0 | X19: 0 | Y19: 0 | Z19: 1 | AA19: 1 | AB19: 1 | AC19: 1
B20: BERNISSART | C20: 8751 | D20: 7923 | E20: 90.5382242 | F20: 754 | G20: 8.616158153 | H20: 7169 | I20: 81.92206605 | J20: 21 | K20: 828 | L20: 9.461775797 | M20: 1582 | N20: 18.07793395 | O20: 4 | P20: 1 | Q20: 38.22420295 | R20: 0 | S20: 1 | T20: 48.21163296 | U20: 0 | V20: 1 | W20: 1 | X20: 1 | Y20: 1 | Z20: 0 | AA20: 4 | AB20: 1 | AC20: 0
B21: BERTOGNE | C21: 2640 | D21: 2498 | E21: 94.62121212 | F21: 156 | G21: 5.909090909 | H21: 2342 | I21: 88.71212121 | J21: 13 | K21: 142 | L21: 5.378787879 | M21: 298 | N21: 11.28787879 | O21: 2 | P21: 1 | Q21: 46.89393939 | R21: 0 | S21: 0 | T21: 0 | U21: 0 | V21: 0 | W21: 0 | X21: 0 | Y21: 0 | Z21: 1 | AA21: 0 | AB21: 0 | AC21: 1
B22: BERTRIX | C22: 6532 | D22: 6056 | E22: 92.71279853 | F22: 392 | G22: 6.00122474 | H22: 5664 | I22: 86.71157379 | J22: 19 | K22: 476 | L22: 7.28720147 | M22: 868 | N22: 13.28842621 | O22: 3 | P22: 1 | Q22: 46.9228414 | R22: 0 | S22: 0 | T22: 0 | U22: 0 | V22: 0 | W22: 0 | X22: 0 | Y22: 0 | Z22: 1 | AA22: 2 | AB22: 1 | AC22: 1
B23: BEYNE-HEUSAY | C23: 8608 | D23: 7555 | E23: 87.76719331 | F23: 710 | G23: 8.248141264 | H23: 6845 | I23: 79.51905204 | J23: 23 | K23: 1053 | L23: 12.23280669 | M23: 1763 | N23: 20.48094796 | O23: 3 | P23: 1 | Q23: 39.34711896 | R23: 0 | S23: 0 | T23: 0 | U23: 0 | V23: 1 | W23: 1 | X23: 2 | Y23: 1 | Z23: 0 | AA23: 4 | AB23: 1 | AC23: 0
B24: BIÈVRE | C24: 2546 | D24: 2387 | E24: 93.75490966 | F24: 115 | G24: 4.516889238 | H24: 2272 | I24: 89.23802042 | J24: 17 | K24: 159 | L24: 6.245090338 | M24: 274 | N24: 10.76197958 | O24: 1 | P24: 1 | Q24: 89.23802042 | R24: 1 | S24: 0 | T24: 0 | U24: 0 | V24: 0 | W24: 0 | X24: 0 | Y24: 0 | Z24: 1 | AA24: 1 | AB24: 1 | AC24: 1
B25: BINCHE | C25: 25150 | D25: 22192 | E25: 88.23856859 | F25: 1900 | G25: 7.554671968 | H25: 20292 | I25: 80.68389662 | J25: 31 | K25: 2958 | L25: 11.76143141 | M25: 4858 | N25: 19.31610338 | O25: 6 | P25: 1 | Q25: 45.98807157 | R25: 0 | S25: 0 | T25: 0 | U25: 0 | V25: 2 | W25: 1 | X25: 3 | Y25: 1 | Z25: 1 | AA25: 6 | AB25: 1 | AC25: 1
B26: BLEGNY | C26: 10359 | D26: 9254 | E26: 89.3329472 | F26: 467 | G26: 4.508157158 | H26: 8787 | I26: 84.82479004 | J26: 23 | K26: 1105 | L26: 10.6670528 | M26: 1572 | N26: 15.17520996 | O26: 3 | P26: 1 | Q26: 49.65730283 | R26: 0 | S26: 0 | T26: 0 | U26: 0 | V26: 0 | W26: 0 | X26: 2 | Y26: 1 | Z26: 1 | AA26: 3 | AB26: 1 | AC26: 1
B27: BOUILLON | C27: 4239 | D27: 3772 | E27: 88.98325077 | F27: 258 | G27: 6.086341118 | H27: 3514 | I27: 82.89690965 | J27: 17 | K27: 467 | L27: 11.01674923 | M27: 725 | N27: 17.10309035 | O27: 3 | P27: 1 | Q27: 50.0353857 | R27: 1 | S27: 0 | T27: 0 | U27: 0 | V27: 0 | W27: 0 | X27: 1 | Y27: 1 | Z27: 1 | AA27: 2 | AB27: 1 | AC27: 1
B28: BOUSSU | C28: 14167 | D28: 12149 | E28: 85.75562928 | F28: 1484 | G28: 10.47504765 | H28: 10665 | I28: 75.28058163 | J28: 25 | K28: 2018 | L28: 14.24437072 | M28: 3502 | N28: 24.71941837 | O28: 8 | P28: 1 | Q28: 36.07679819 | R28: 0 | S28: 0 | T28: 0 | U28: 0 | V28: 2 | W28: 1 | X28: 4 | Y28: 1 | Z28: 0 | AA28: 7 | AB28: 1 | AC28: 0
B29: BRAINE-L_ALLEUD | C29: 28844 | D29: 25741 | E29: 89.24213008 | F29: 1405 | G29: 4.87103037 | H29: 24336 | I29: 84.37109971 | J29: 33 | K29: 3103 | L29: 10.75786992 | M29: 4508 | N29: 15.62890029 | O29: 7 | P29: 1 | Q29: 38.65275274 | R29: 0 | S29: 0 | T29: 0 | U29: 0 | V29: 1 | W29: 1 | X29: 3 | Y29: 1 | Z29: 0 | AA29: 5 | AB29: 1 | AC29: 0
B30: BRAINE-LE-CHÂTEAU | C30: 7708 | D30: 6953 | E30: 90.20498184 | F30: 592 | G30: 7.680332122 | H30: 6361 | I30: 82.52464971 | J30: 21 | K30: 755 | L30: 9.795018163 | M30: 1347 | N30: 17.47535029 | O30: 2 | P30: 1 | Q30: 53.00985989 | R30: 1 | S30: 0 | T30: 0 | U30: 0 | V30: 1 | W30: 1 | X30: 1 | Y30: 1 | Z30: 1 | AA30: 3 | AB30: 1 | AC30: 1
B31: BRAIVES | C31: 4796 | D31: 4441 | E31: 92.59799833 | F31: 203 | G31: 4.232693912 | H31: 4238 | I31: 88.36530442 | J31: 17 | K31: 355 | L31: 7.402001668 | M31: 558 | N31: 11.63469558 | O31: 5 | P31: 1 | Q31: 44.47456214 | R31: 0 | S31: 0 | T31: 0 | U31: 0 | V31: 0 | W31: 0 | X31: 0 | Y31: 0 | Z31: 1 | AA31: 1 | AB31: 1 | AC31: 1
B32: BRUGELETTE | C32: 2668 | D32: 2492 | E32: 93.40329835 | F32: 142 | G32: 5.322338831 | H32: 2350 | I32: 88.08095952 | J32: 13 | K32: 176 | L32: 6.596701649 | M32: 318 | N32: 11.91904048 | O32: 6 | P32: 1 | Q32: 35.90704648 | R32: 0 | S32: 0 | T32: 0 | U32: 0 | V32: 0 | W32: 0 | X32: 0 | Y32: 0 | Z32: 1 | AA32: 1 | AB32: 1 | AC32: 0
B33: BRUNEHAUT | C33: 5954 | D33: 5450 | E33: 91.53510245 | F33: 456 | G33: 7.658716829 | H33: 4994 | I33: 83.87638562 | J33: 19 | K33: 504 | L33: 8.464897548 | M33: 960 | N33: 16.12361438 | O33: 3 | P33: 1 | Q33: 51.0077259 | R33: 1 | S33: 0 | T33: 0 | U33: 0 | V33: 0 | W33: 0 | X33: 1 | Y33: 1 | Z33: 1 | AA33: 3 | AB33: 1 | AC33: 1
B34: BULLINGEN | C34: 4081 | D34: 3514 | E34: 86.10634648 | F34: 481 | G34: 11.78632688 | H34: 3033 | I34: 74.3200196 | J34: 17 | K34: 567 | L34: 13.89365352 | M34: 1048 | N34: 25.6799804 | O34: 1 | P34: 1 | Q34: 74.3200196 | R34: 1 | S34: 0 | T34: 0 | U34: 0 | V34: 1 | W34: 1 | X34: 1 | Y34: 1 | Z34: 1 | AA34: 4 | AB34: 1 | AC34: 1
B35: BURDINNE | C35: 2489 | D35: 2310 | E35: 92.80835677 | F35: 100 | G35: 4.017677782 | H35: 2210 | I35: 88.79067899 | J35: 13 | K35: 179 | L35: 7.19164323 | M35: 279 | N35: 11.20932101 | O35: 3 | P35: 1 | Q35: 62.47488951 | R35: 1 | S35: 0 | T35: 0 | U35: 0 | V35: 0 | W35: 0 | X35: 0 | Y35: 0 | Z35: 1 | AA35: 1 | AB35: 1 | AC35: 1
B36: BURG-REULAND | C36: 2875 | D36: 2426 | E36: 84.3826087 | F36: 585 | G36: 20.34782609 | H36: 1841 | I36: 64.03478261 | J36: 13 | K36: 449 | L36: 15.6173913 | M36: 1034 | N36: 35.96521739 | O36: 1 | P36: 1 | Q36: 64.03478261 | R36: 1 | S36: 0 | T36: 0 | U36: 0 | V36: 2 | W36: 1 | X36: 1 | Y36: 1 | Z36: 1 | AA36: 4 | AB36: 1 | AC36: 1
B37: BUTGENBACH | C37: 4368 | D37: 3790 | E37: 86.76739927 | F37: 366 | G37: 8.379120879 | H37: 3424 | I37: 78.38827839 | J37: 17 | K37: 578 | L37: 13.23260073 | M37: 944 | N37: 21.61172161 | O37: 3 | P37: 1 | Q37: 37.40842491 | R37: 0 | S37: 1 | T37: 54.25824176 | U37: 1 | V37: 1 | W37: 1 | X37: 2 | Y37: 1 | Z37: 0 | AA37: 4 | AB37: 1 | AC37: 0
B38: CELLES (LEZ-TOURNAI) | C38: 4338 | D38: 4064 | E38: 93.68372522 | F38: 248 | G38: 5.71692024 | H38: 3816 | I38: 87.96680498 | J38: 17 | K38: 274 | L38: 6.316274781 | M38: 522 | N38: 12.03319502 | O38: 3 | P38: 1 | Q38: 45.04379899 | R38: 0 | S38: 0 | T38: 0 | U38: 0 | V38: 0 | W38: 0 | X38: 0 | Y38: 0 | Z38: 1 | AA38: 1 | AB38: 1 | AC38: 1
B39: CERFONTAINE | C39: 3844 | D39: 3635 | E39: 94.56295525 | F39: 203 | G39: 5.280957336 | H39: 3432 | I39: 89.28199792 | J39: 15 | K39: 209 | L39: 5.437044745 | M39: 412 | N39: 10.71800208 | O39: 2 | P39: 1 | Q39: 68.91259105 | R39: 1 | S39: 0 | T39: 0 | U39: 0 | V39: 0 | W39: 0 | X39: 0 | Y39: 0 | Z39: 1 | AA39: 1 | AB39: 1 | AC39: 1
B40: CHAPELLE-LEZ-HERLAIMONT | C40: 10340 | D40: 9232 | E40: 89.28433269 | F40: 852 | G40: 8.239845261 | H40: 8380 | I40: 81.04448743 | J40: 23 | K40: 1108 | L40: 10.71566731 | M40: 1960 | N40: 18.95551257 | O40: 4 | P40: 1 | Q40: 53.74274662 | R40: 1 | S40: 0 | T40: 0 | U40: 0 | V40: 1 | W40: 1 | X40: 2 | Y40: 1 | Z40: 1 | AA40: 4 | AB40: 1 | AC40: 1
B41: CHARLEROI | C41: 134522 | D41: 112512 | E41: 83.63836399 | F41: 13487 | G41: 10.02586937 | H41: 99025 | I41: 73.61249461 | J41: 51 | K41: 22010 | L41: 16.36163601 | M41: 35497 | N41: 26.38750539 | O41: 12 | P41: 1 | Q41: 30.39205483 | R41: 0 | S41: 1 | T41: 35.83131384 | U41: 0 | V41: 5 | W41: 1 | X41: 10 | Y41: 1 | Z41: 0 | AA41: 16 | AB41: 1 | AC41: 0
B42: CHÂTELET | C42: 24673 | D42: 21073 | E42: 85.4091517 | F42: 2533 | G42: 10.26628298 | H42: 18540 | I42: 75.14286872 | J42: 33 | K42: 3600 | L42: 14.5908483 | M42: 6133 | N42: 24.85713128 | O42: 9 | P42: 1 | Q42: 36.56628703 | R42: 0 | S42: 0 | T42: 0 | U42: 0 | V42: 3 | W42: 1 | X42: 6 | Y42: 1 | Z42: 0 | AA42: 10 | AB42: 1 | AC42: 0
B43: CHAUDFONTAINE | C43: 16521 | D43: 14290 | E43: 86.49597482 | F43: 765 | G43: 4.630470311 | H43: 13525 | I43: 81.86550451 | J43: 27 | K43: 2231 | L43: 13.50402518 | M43: 2996 | N43: 18.13449549 | O43: 4 | P43: 1 | Q43: 45.07596392 | R43: 0 | S43: 0 | T43: 0 | U43: 0 | V43: 0 | W43: 0 | X43: 3 | Y43: 1 | Z43: 1 | AA43: 5 | AB43: 1 | AC43: 0
B44: CHIMAY | C44: 7587 | D44: 7057 | E44: 93.01436668 | F44: 363 | G44: 4.784499802 | H44: 6694 | I44: 88.22986688 | J44: 21 | K44: 530 | L44: 6.98563332 | M44: 893 | N44: 11.77013312 | O44: 4 | P44: 1 | Q44: 43.75906155 | R44: 0 | S44: 0 | T44: 0 | U44: 0 | V44: 0 | W44: 0 | X44: 0 | Y44: 0 | Z44: 1 | AA44: 2 | AB44: 1 | AC44: 0
B45: CHINY | C45: 3979 | D45: 3657 | E45: 91.90751445 | F45: 339 | G45: 8.519728575 | H45: 3318 | I45: 83.38778588 | J45: 22 | K45: 322 | L45: 8.092485549 | M45: 661 | N45: 16.61221412 | O45: 1 | P45: 1 | Q45: 83.38778588 | R45: 1 | S45: 0 | T45: 0 | U45: 0 | V45: 1 | W45: 1 | X45: 1 | Y45: 1 | Z45: 1 | AA45: 3 | AB45: 1 | AC45: 1
B46: CINEY | C46: 12900 | D46: 11594 | E46: 89.87596899 | F46: 548 | G46: 4.248062016 | H46: 11046 | I46: 85.62790698 | J46: 25 | K46: 1306 | L46: 10.12403101 | M46: 1854 | N46: 14.37209302 | O46: 4 | P46: 1 | Q46: 46.17054264 | R46: 0 | S46: 0 | T46: 0 | U46: 0 | V46: 0 | W46: 0 | X46: 2 | Y46: 1 | Z46: 1 | AA46: 3 | AB46: 1 | AC46: 1
B47: CLAVIER | C47: 3505 | D47: 3281 | E47: 93.60912981 | F47: 148 | G47: 4.22253923 | H47: 3133 | I47: 89.38659058 | J47: 15 | K47: 224 | L47: 6.390870185 | M47: 372 | N47: 10.61340942 | O47: 2 | P47: 1 | Q47: 54.0085592 | R47: 1 | S47: 0 | T47: 0 | U47: 0 | V47: 0 | W47: 0 | X47: 0 | Y47: 0 | Z47: 1 | AA47: 1 | AB47: 1 | AC47: 1
B48: COLFONTAINE | C48: 14720 | D48: 12853 | E48: 87.31657609 | F48: 1602 | G48: 10.88315217 | H48: 11251 | I48: 76.43342391 | J48: 27 | K48: 1867 | L48: 12.68342391 | M48: 3469 | N48: 23.56657609 | O48: 6 | P48: 1 | Q48: 41.12092391 | R48: 0 | S48: 0 | T48: 0 | U48: 0 | V48: 3 | W48: 1 | X48: 3 | Y48: 1 | Z48: 1 | AA48: 7 | AB48: 1 | AC48: 1
B49: COMBLAIN-AU-PONT | C49: 4020 | D49: 3436 | E49: 85.47263682 | F49: 245 | G49: 6.094527363 | H49: 3191 | I49: 79.37810945 | J49: 17 | K49: 584 | L49: 14.52736318 | M49: 829 | N49: 20.62189055 | O49: 3 | P49: 1 | Q49: 41.86567164 | R49: 0 | S49: 0 | T49: 0 | U49: 0 | V49: 0 | W49: 0 | X49: 2 | Y49: 1 | Z49: 1 | AA49: 3 | AB49: 1 | AC49: 1
B50: COURCELLES | C50: 22016 | D50: 19378 | E50: 88.01780523 | F50: 1920 | G50: 8.720930233 | H50: 17458 | I50: 79.296875 | J50: 31 | K50: 2638 | L50: 11.98219477 | M50: 4558 | N50: 20.703125 | O50: 5 | P50: 1 | Q50: 40.08448401 | R50: 0 | S50: 1 | T50: 55.57776163 | U50: 1 | V50: 2 | W50: 1 | X50: 4 | Y50: 1 | Z50: 0 | AA50: 7 | AB50: 1 | AC50: 0
B51: COURT-SAINT-ETIENNE | C51: 7674 | D51: 6980 | E51: 90.95647641 | F51: 420 | G51: 5.473025801 | H51: 6560 | I51: 85.48345061 | J51: 21 | K51: 694 | L51: 9.043523586 | M51: 1114 | N51: 14.51654939 | O51: 6 | P51: 1 | Q51: 38.41542872 | R51: 0 | S51: 0 | T51: 0 | U51: 0 | V51: 0 | W51: 0 | X51: 1 | Y51: 1 | Z51: 1 | AA51: 3 | AB51: 1 | AC51: 0
B52: CRISNÉE | C52: 2654 | D52: 2408 | E52: 90.73097212 | F52: 106 | G52: 3.993971364 | H52: 2302 | I52: 86.73700075 | J52: 13 | K52: 246 | L52: 9.269027882 | M52: 352 | N52: 13.26299925 | O52: 3 | P52: 1 | Q52: 60.85154484 | R52: 1 | S52: 0 | T52: 0 | U52: 0 | V52: 0 | W52: 0 | X52: 0 | Y52: 0 | Z52: 1 | AA52: 1 | AB52: 1 | AC52: 1
B53: DALHEM | C53: 5579 | D53: 5185 | E53: 92.93780247 | F53: 205 | G53: 3.674493637 | H53: 4980 | I53: 89.26330884 | J53: 19 | K53: 394 | L53: 7.062197526 | M53: 599 | N53: 10.73669116 | O53: 3 | P53: 1 | Q53: 56.92776483 | R53: 1 | S53: 0 | T53: 0 | U53: 0 | V53: 0 | W53: 0 | X53: 0 | Y53: 0 | Z53: 1 | AA53: 1 | AB53: 1 | AC53: 1
B54: DAVERDISSE | C54: 1064 | D54: 1020 | E54: 95.86466165 | F54: 52 | G54: 4.887218045 | H54: 968 | I54: 90.97744361 | J54: 9 | K54: 44 | L54: 4.135338346 | M54: 96 | N54: 9.022556391 | O54: 2 | P54: 1 | Q54: 61.27819549 | R54: 1 | S54: 0 | T54: 0 | U54: 0 | V54: 0 | W54: 0 | X54: 0 | Y54: 0 | Z54: 1 | AA54: 0 | AB54: 0 | AC54: 1
B55: DISON | C55: 9965 | D55: 8458 | E55: 84.87706974 | F55: 836 | G55: 8.38936277 | H55: 7622 | I55: 76.48770697 | J55: 25 | K55: 1507 | L55: 15.12293026 | M55: 2343 | N55: 23.51229303 | O55: 7 | P55: 1 | Q55: 40.80280983 | R55: 0 | S55: 0 | T55: 0 | U55: 0 | V55: 2 | W55: 1 | X55: 4 | Y55: 1 | Z55: 1 | AA55: 7 | AB55: 1 | AC55: 0
B56: DOISCHE | C56: 2335 | D56: 2200 | E56: 94.21841542 | F56: 97 | G56: 4.154175589 | H56: 2103 | I56: 90.06423983 | J56: 11 | K56: 135 | L56: 5.781584582 | M56: 232 | N56: 9.935760171 | O56: 3 | P56: 1 | Q56: 51.64882227 | R56: 1 | S56: 0 | T56: 0 | U56: 0 | V56: 0 | W56: 0 | X56: 0 | Y56: 0 | Z56: 1 | AA56: 0 | AB56: 0 | AC56: 1
B57: DONCEEL | C57: 2432 | D57: 2341 | E57: 96.25822368 | F57: 93 | G57: 3.824013158 | H57: 2248 | I57: 92.43421053 | J57: 13 | K57: 91 | L57: 3.741776316 | M57: 184 | N57: 7.565789474 | O57: 2 | P57: 1 | Q57: 70.18914474 | R57: 1 | S57: 0 | T57: 0 | U57: 0 | V57: 0 | W57: 0 | X57: 0 | Y57: 0 | Z57: 1 | AA57: 0 | AB57: 0 | AC57: 1
B58: DOUR | C58: 12476 | D58: 11010 | E58: 88.24943892 | F58: 1055 | G58: 8.456235973 | H58: 9955 | I58: 79.79320295 | J58: 25 | K58: 1466 | L58: 11.75056108 | M58: 2521 | N58: 20.20679705 | O58: 6 | P58: 1 | Q58: 39.12311638 | R58: 0 | S58: 0 | T58: 0 | U58: 0 | V58: 1 | W58: 1 | X58: 3 | Y58: 1 | Z58: 0 | AA58: 5 | AB58: 1 | AC58: 0
B59: DURBUY | C59: 8898 | D59: 7998 | E59: 89.8853675 | F59: 425 | G59: 4.776354237 | H59: 7573 | I59: 85.10901326 | J59: 21 | K59: 900 | L59: 10.1146325 | M59: 1325 | N59: 14.89098674 | O59: 4 | P59: 1 | Q59: 52.97819735 | R59: 1 | S59: 0 | T59: 0 | U59: 0 | V59: 0 | W59: 0 | X59: 2 | Y59: 1 | Z59: 1 | AA59: 3 | AB59: 1 | AC59: 1
B60: EGHEZÉE | C60: 12356 | D60: 11282 | E60: 91.30786662 | F60: 727 | G60: 5.883781159 | H60: 10555 | I60: 85.42408546 | J60: 25 | K60: 1074 | L60: 8.692133376 | M60: 1801 | N60: 14.57591454 | O60: 5 | P60: 1 | Q60: 38.23243768 | R60: 0 | S60: 0 | T60: 0 | U60: 0 | V60: 1 | W60: 1 | X60: 2 | Y60: 1 | Z60: 0 | AA60: 3 | AB60: 1 | AC60: 0
B61: ENGIS | C61: 4545 | D61: 4052 | E61: 89.15291529 | F61: 438 | G61: 9.636963696 | H61: 3614 | I61: 79.5159516 | J61: 17 | K61: 493 | L61: 10.84708471 | M61: 931 | N61: 20.4840484 | O61: 5 | P61: 1 | Q61: 37.95379538 | R61: 0 | S61: 1 | T61: 51.92519252 | U61: 1 | V61: 1 | W61: 1 | X61: 2 | Y61: 1 | Z61: 1 | AA61: 4 | AB61: 1 | AC61: 0
B62: EREZÉE | C62: 2569 | D62: 2427 | E62: 94.47255742 | F62: 119 | G62: 4.632152589 | H62: 2308 | I62: 89.84040483 | J62: 13 | K62: 142 | L62: 5.527442585 | M62: 261 | N62: 10.15959517 | O62: 2 | P62: 1 | Q62: 47.17789023 | R62: 0 | S62: 0 | T62: 0 | U62: 0 | V62: 0 | W62: 0 | X62: 0 | Y62: 0 | Z62: 1 | AA62: 0 | AB62: 0 | AC62: 1
B63: ERQUELINNES | C63: 7377 | D63: 6586 | E63: 89.27748407 | F63: 598 | G63: 8.106276264 | H63: 5988 | I63: 81.17120781 | J63: 21 | K63: 791 | L63: 10.72251593 | M63: 1389 | N63: 18.82879219 | O63: 3 | P63: 1 | Q63: 50.63033754 | R63: 1 | S63: 0 | T63: 0 | U63: 0 | V63: 1 | W63: 1 | X63: 1 | Y63: 1 | Z63: 1 | AA63: 3 | AB63: 1 | AC63: 1
B64: ESTAIMPUIS | C64: 6299 | D64: 5815 | E64: 92.31624067 | F64: 423 | G64: 6.715351643 | H64: 5392 | I64: 85.60088903 | J64: 21 | K64: 484 | L64: 7.683759327 | M64: 907 | N64: 14.39911097 | O64: 4 | P64: 1 | Q64: 51.73837117 | R64: 1 | S64: 0 | T64: 0 | U64: 0 | V64: 0 | W64: 0 | X64: 1 | Y64: 1 | Z64: 1 | AA64: 2 | AB64: 1 | AC64: 1
B65: ESTINNES | C65: 5854 | D65: 5410 | E65: 92.41544243 | F65: 445 | G65: 7.601639904 | H65: 4965 | I65: 84.81380253 | J65: 19 | K65: 444 | L65: 7.584557567 | M65: 889 | N65: 15.18619747 | O65: 3 | P65: 1 | Q65: 39.3406218 | R65: 0 | S65: 1 | T65: 53.50187906 | U65: 1 | V65: 1 | W65: 1 | X65: 0 | Y65: 0 | Z65: 0 | AA65: 2 | AB65: 1 | AC65: 0
B66: ETALLE | C66: =Inscrits(B66) -> 4305 | D66: =BDEPOSES(B66) -> 4029 | E66: =100/C66*D66 -> 93.58885017 | F66: =BBN(B66) -> 260 | G66: =100/C66*F66 -> 6.039488966 | H66: =VOTESV(B66) -> 3769 | I66: =100/C66*H66 -> 87.54936121 | J66: =SIEGES(B66) -> 17 | K66: =C66-D66 -> 276 | L66: =100/C66*K66 -> 6.411149826 | M66: =C66-H66 -> 536 | N66: =(100/C66)*M66 -> 12.45063879 | O66: =NBL(B66) -> 2 | P66: =Maj_abs_tab1(B66) -> 1 | Q66: =pc_Vx_LUMA(B66) -> 63.64692218 | R66: =IF(Q66>50,1,0) -> 1 | S66: =Nbr_Coal(B66) -> 0 | T66: =pc_Vx_Coal(B66) -> 0 | U66: =IF(T66>50,1,0) -> 0 | V66: =SBN(B66) -> 0 | W66: =IF(V66>0,1,0) -> 0 | X66: =SND(B66) -> 0 | Y66: =IF(X66>0,1,0) -> 0 | Z66: =Maj_abs_tab2(B66) -> 1 | AA66: =SNV(B66) -> 1 | AB66: =IF(AA66>0,1,0) -> 1 | AC66: =Maj_abs_tab3(B66) -> 1
B67: FAIMES | C67: 2956 | D67: 2754 | E67: 93.16644114 | F67: 165 | G67: 5.581867388 | H67: 2589 | I67: 87.58457375 | J67: 13 | K67: 202 | L67: 6.833558863 | M67: 367 | N67: 12.41542625 | O67: 3 | P67: 1 | Q67: 65.89986468 | R67: 1 | S67: 0 | T67: 0 | U67: 0 | V67: 0 | W67: 0 | X67: 0 | Y67: 0 | Z67: 1 | AA67: 1 | AB67: 1 | AC67: 1
B68: FARCIENNES | C68: 7163 | D68: 6237 | E68: 87.07245567 | F68: 594 | G68: 8.292614826 | H68: 5643 | I68: 78.77984085 | J68: 21 | K68: 926 | L68: 12.92754433 | M68: 1520 | N68: 21.22015915 | O68: 4 | P68: 1 | Q68: 54.16724836 | R68: 1 | S68: 0 | T68: 0 | U68: 0 | V68: 1 | W68: 1 | X68: 2 | Y68: 1 | Z68: 1 | AA68: 4 | AB68: 1 | AC68: 1
B69: FAUVILLERS | C69: 1650 | D69: 1578 | E69: 95.63636364 | F69: 57 | G69: 3.454545455 | H69: 1521 | I69: 92.18181818 | J69: 11 | K69: 72 | L69: 4.363636364 | M69: 129 | N69: 7.818181818 | O69: 3 | P69: 1 | Q69: 56.42424242 | R69: 1 | S69: 0 | T69: 0 | U69: 0 | V69: 0 | W69: 0 | X69: 0 | Y69: 0 | Z69: 1 | AA69: 0 | AB69: 0 | AC69: 1
B70: FERNELMONT | C70: 6045 | D70: 5629 | E70: 93.11827957 | F70: 288 | G70: 4.76426799 | H70: 5341 | I70: 88.35401158 | J70: 19 | K70: 416 | L70: 6.88172043 | M70: 704 | N70: 11.64598842 | O70: 4 | P70: 1 | Q70: 47.6261373 | R70: 0 | S70: 0 | T70: 0 | U70: 0 | V70: 0 | W70: 0 | X70: 0 | Y70: 0 | Z70: 1 | AA70: 1 | AB70: 1 | AC70: 1
B71: FERRIÈRES | C71: 3830 | D71: 3504 | E71: 91.48825065 | F71: 147 | G71: 3.838120104 | H71: 3357 | I71: 87.65013055 | J71: 15 | K71: 326 | L71: 8.511749347 | M71: 473 | N71: 12.34986945 | O71: 3 | P71: 1 | Q71: 49.76501305 | R71: 0 | S71: 0 | T71: 0 | U71: 0 | V71: 0 | W71: 0 | X71: 0 | Y71: 0 | Z71: 1 | AA71: 1 | AB71: 1 | AC71: 1
B72: FEXHE-LE-HAUT-CLOCHER | C72: 2513 | D72: 2313 | E72: 92.0413848 | F72: 143 | G72: 5.690409869 | H72: 2170 | I72: 86.35097493 | J72: 13 | K72: 200 | L72: 7.958615201 | M72: 343 | N72: 13.64902507 | O72: 2 | P72: 1 | Q72: 63.03223239 | R72: 1 | S72: 0 | T72: 0 | U72: 0 | V72: 0 | W72: 0 | X72: 0 | Y72: 0 | Z72: 1 | AA72: 1 | AB72: 1 | AC72: 1
B73: FLÉMALLE | C73: 19382 | D73: 16696 | E73: 86.14178103 | F73: 1192 | G73: 6.150036116 | H73: 15504 | I73: 79.99174492 | J73: 29 | K73: 2686 | L73: 13.85821897 | M73: 3878 | N73: 20.00825508 | O73: 8 | P73: 1 | Q73: 36.68868022 | R73: 0 | S73: 0 | T73: 0 | U73: 0 | V73: 1 | W73: 1 | X73: 4 | Y73: 1 | Z73: 0 | AA73: 7 | AB73: 1 | AC73: 0
B74: FLÉRON | C74: 12282 | D74: 10517 | E74: 85.62937632 | F74: 817 | G74: 6.652011073 | H74: 9700 | I74: 78.97736525 | J74: 25 | K74: 1765 | L74: 14.37062368 | M74: 2582 | N74: 21.02263475 | O74: 6 | P74: 1 | Q74: 35.95505618 | R74: 0 | S74: 0 | T74: 0 | U74: 0 | V74: 1 | W74: 1 | X74: 4 | Y74: 1 | Z74: 0 | AA74: 6 | AB74: 1 | AC74: 0
B75: FLOBECQ | C75: 2713 | D75: 2479 | E75: 91.37486178 | F75: 140 | G75: 5.160339108 | H75: 2339 | I75: 86.21452267 | J75: 13 | K75: 234 | L75: 8.625138223 | M75: 374 | N75: 13.78547733 | O75: 4 | P75: 1 | Q75: 44.78437154 | R75: 0 | S75: 0 | T75: 0 | U75: 0 | V75: 0 | W75: 0 | X75: 0 | Y75: 0 | Z75: 1 | AA75: 1 | AB75: 1 | AC75: 1
B76: FLORENNES | C76: 8866 | D76: 8016 | E76: 90.41281299 | F76: 692 | G76: 7.805098128 | H76: 7324 | I76: 82.60771487 | J76: 21 | K76: 850 | L76: 9.587187007 | M76: 1542 | N76: 17.39228513 | O76: 4 | P76: 1 | Q76: 37.18700654 | R76: 0 | S76: 1 | T76: 61.52718249 | U76: 1 | V76: 1 | W76: 1 | X76: 1 | Y76: 1 | Z76: 0 | AA76: 4 | AB76: 1 | AC76: 0
B77: FOSSES-LA-VILLE | C77: 7976 | D77: 7186 | E77: 90.09528586 | F77: 574 | G77: 7.196589769 | H77: 6612 | I77: 82.89869609 | J77: 21 | K77: 790 | L77: 9.904714142 | M77: 1364 | N77: 17.10130391 | O77: 3 | P77: 1 | Q77: 53.52306921 | R77: 1 | S77: 0 | T77: 0 | U77: 0 | V77: 1 | W77: 1 | X77: 1 | Y77: 1 | Z77: 1 | AA77: 3 | AB77: 1 | AC77: 1
B78: FRASNES-LEZ-ANVAING | C78: 9060 | D78: 8233 | E78: 90.87196468 | F78: 432 | G78: 4.768211921 | H78: 7801 | I78: 86.10375276 | J78: 21 | K78: 827 | L78: 9.12803532 | M78: 1259 | N78: 13.89624724 | O78: 4 | P78: 1 | Q78: 48.31125828 | R78: 0 | S78: 0 | T78: 0 | U78: 0 | V78: 0 | W78: 0 | X78: 1 | Y78: 1 | Z78: 1 | AA78: 3 | AB78: 1 | AC78: 1
B79: FROIDCHAPELLE | C79: 3105 | D79: 2813 | E79: 90.5958132 | F79: 296 | G79: 9.533011272 | H79: 2517 | I79: 81.06280193 | J79: 13 | K79: 292 | L79: 9.404186795 | M79: 588 | N79: 18.93719807 | O79: 3 | P79: 1 | Q79: 57.6489533 | R79: 1 | S79: 0 | T79: 0 | U79: 0 | V79: 0 | W79: 0 | X79: 0 | Y79: 0 | Z79: 1 | AA79: 2 | AB79: 1 | AC79: 1
B80: GEDINNE | C80: 3564 | D80: 3386 | E80: 95.00561167 | F80: 132 | G80: 3.703703704 | H80: 3254 | I80: 91.30190797 | J80: 15 | K80: 178 | L80: 4.994388328 | M80: 310 | N80: 8.698092031 | O80: 4 | P80: 1 | Q80: 46.26823793 | R80: 0 | S80: 0 | T80: 0 | U80: 0 | V80: 0 | W80: 0 | X80: 0 | Y80: 0 | Z80: 1 | AA80: 0 | AB80: 0 | AC80: 1
B81: GEER | C81: 2568 | D81: 2428 | E81: 94.5482866 | F81: 155 | G81: 6.035825545 | H81: 2273 | I81: 88.51246106 | J81: 13 | K81: 140 | L81: 5.451713396 | M81: 295 | N81: 11.48753894 | O81: 2 | P81: 1 | Q81: 64.09657321 | R81: 1 | S81: 0 | T81: 0 | U81: 0 | V81: 0 | W81: 0 | X81: 0 | Y81: 0 | Z81: 1 | AA81: 0 | AB81: 0 | AC81: 1
B82: GENAPPE | C82: 11492 | D82: 10381 | E82: 90.33240515 | F82: 732 | G82: 6.369648451 | H82: 9649 | I82: 83.9627567 | J82: 25 | K82: 1111 | L82: 9.667594849 | M82: 1843 | N82: 16.0372433 | O82: 5 | P82: 1 | Q82: 51.18343195 | R82: 1 | S82: 0 | T82: 0 | U82: 0 | V82: 1 | W82: 1 | X82: 2 | Y82: 1 | Z82: 1 | AA82: 4 | AB82: 1 | AC82: 1
B83: GERPINNES | C83: 10083 | D83: 9123 | E83: 90.4790241 | F83: 659 | G83: 6.535753248 | H83: 8464 | I83: 83.94327085 | J83: 23 | K83: 960 | L83: 9.5209759 | M83: 1619 | N83: 16.05672915 | O83: 3 | P83: 1 | Q83: 43.77665377 | R83: 0 | S83: 0 | T83: 0 | U83: 0 | V83: 1 | W83: 1 | X83: 1 | Y83: 1 | Z83: 1 | AA83: 3 | AB83: 1 | AC83: 0
B84: GOUVY | C84: 3873 | D84: 3567 | E84: 92.09914795 | F84: 225 | G84: 5.809450039 | H84: 3342 | I84: 86.28969791 | J84: 17 | K84: 306 | L84: 7.900852053 | M84: 531 | N84: 13.71030209 | O84: 4 | P84: 1 | Q84: 40.92434805 | R84: 0 | S84: 0 | T84: 0 | U84: 0 | V84: 0 | W84: 0 | X84: 1 | Y84: 1 | Z84: 1 | AA84: 2 | AB84: 1 | AC84: 0
B85: GRÂCE-HOLLOGNE | C85: 15749 | D85: 13528 | E85: 85.8975173 | F85: 1066 | G85: 6.768683726 | H85: 12462 | I85: 79.12883358 | J85: 27 | K85: 2221 | L85: 14.1024827 | M85: 3287 | N85: 20.87116642 | O85: 7 | P85: 1 | Q85: 33.32275065 | R85: 0 | S85: 1 | T85: 42.53603403 | U85: 0 | V85: 1 | W85: 1 | X85: 4 | Y85: 1 | Z85: 0 | AA85: 7 | AB85: 1 | AC85: 0
B86: HABAY | C86: 6064 | D86: 5559 | E86: 91.67216359 | F86: 415 | G86: 6.843667546 | H86: 5144 | I86: 84.82849604 | J86: 19 | K86: 505 | L86: 8.327836412 | M86: 920 | N86: 15.17150396 | O86: 4 | P86: 1 | Q86: 43.45316623 | R86: 0 | S86: 0 | T86: 0 | U86: 0 | V86: 0 | W86: 0 | X86: 1 | Y86: 1 | Z86: 1 | AA86: 2 | AB86: 1 | AC86: 1
B87: HAMOIR | C87: 3071 | D87: 2775 | E87: 90.36144578 | F87: 201 | G87: 6.545099316 | H87: 2574 | I87: 83.81634647 | J87: 13 | K87: 296 | L87: 9.638554217 | M87: 497 | N87: 16.18365353 | O87: 2 | P87: 1 | Q87: 64.31129925 | R87: 1 | S87: 0 | T87: 0 | U87: 0 | V87: 0 | W87: 0 | X87: 0 | Y87: 0 | Z87: 1 | AA87: 1 | AB87: 1 | AC87: 1
B88: HAMOIS | C88: 5513 | D88: 5052 | E88: 91.63794667 | F88: 273 | G88: 4.951931798 | H88: 4779 | I88: 86.68601487 | J88: 19 | K88: 461 | L88: 8.362053328 | M88: 734 | N88: 13.31398513 | O88: 3 | P88: 1 | Q88: 64.7560312 | R88: 1 | S88: 0 | T88: 0 | U88: 0 | V88: 0 | W88: 0 | X88: 1 | Y88: 1 | Z88: 1 | AA88: 2 | AB88: 1 | AC88: 1
B89: HAM-SUR-HEURE-NALINNES | C89: 10864 | D89: 9938 | E89: 91.47643594 | F89: 423 | G89: 3.89359352 | H89: 9515 | I89: 87.58284242 | J89: 23 | K89: 926 | L89: 8.523564065 | M89: 1349 | N89: 12.41715758 | O89: 5 | P89: 1 | Q89: 61.07326951 | R89: 1 | S89: 1 | T89: 70.45287187 | U89: 1 | V89: 0 | W89: 0 | X89: 1 | Y89: 1 | Z89: 1 | AA89: 2 | AB89: 1 | AC89: 1
B90: HANNUT | C90: 12576 | D90: 11463 | E90: 91.14980916 | F90: 692 | G90: 5.502544529 | H90: 10771 | I90: 85.64726463 | J90: 25 | K90: 1113 | L90: 8.85019084 | M90: 1805 | N90: 14.35273537 | O90: 5 | P90: 1 | Q90: 45.09382952 | R90: 0 | S90: 0 | T90: 0 | U90: 0 | V90: 0 | W90: 0 | X90: 2 | Y90: 1 | Z90: 1 | AA90: 3 | AB90: 1 | AC90: 1
B91: HASTIÈRE | C91: 4785 | D91: 4280 | E91: 89.446186 | F91: 370 | G91: 7.732497388 | H91: 3910 | I91: 81.71368861 | J91: 17 | K91: 505 | L91: 10.553814 | M91: 875 | N91: 18.28631139 | O91: 4 | P91: 1 | Q91: 50.09404389 | R91: 1 | S91: 0 | T91: 0 | U91: 0 | V91: 0 | W91: 0 | X91: 1 | Y91: 1 | Z91: 1 | AA91: 3 | AB91: 1 | AC91: 1
B92: HÉLÉCINE | C92: 2602 | D92: 2445 | E92: 93.96617986 | F92: 136 | G92: 5.226748655 | H92: 2309 | I92: 88.73943121 | J92: 13 | K92: 157 | L92: 6.033820138 | M92: 293 | N92: 11.26056879 | O92: 3 | P92: 1 | Q92: 53.92006149 | R92: 1 | S92: 0 | T92: 0 | U92: 0 | V92: 0 | W92: 0 | X92: 0 | Y92: 0 | Z92: 1 | AA92: 1 | AB92: 1 | AC92: 1
B93: HENSIES | C93: 5194 | D93: 4726 | E93: 90.98960339 | F93: 432 | G93: 8.31728918 | H93: 4294 | I93: 82.67231421 | J93: 17 | K93: 468 | L93: 9.010396611 | M93: 900 | N93: 17.32768579 | O93: 3 | P93: 1 | Q93: 62.01386215 | R93: 1 | S93: 0 | T93: 0 | U93: 0 | V93: 0 | W93: 0 | X93: 1 | Y93: 1 | Z93: 1 | AA93: 2 | AB93: 1 | AC93: 1
B94: HERBEUMONT | C94: 1250 | D94: 1175 | E94: 94 | F94: 63 | G94: 5.04 | H94: 1112 | I94: 88.96 | J94: 9 | K94: 75 | L94: 6 | M94: 138 | N94: 11.04 | O94: 2 | P94: 1 | Q94: 71.52 | R94: 1 | S94: 0 | T94: 0 | U94: 0 | V94: 0 | W94: 0 | X94: 0 | Y94: 0 | Z94: 1 | AA94: 0 | AB94: 0 | AC94: 1
B95: HÉRON | C95: 3904 | D95: 3627 | E95: 92.90471311 | F95: 201 | G95: 5.148565574 | H95: 3426 | I95: 87.75614754 | J95: 17 | K95: 277 | L95: 7.095286885 | M95: 478 | N95: 12.24385246 | O95: 4 | P95: 1 | Q95: 39.70286885 | R95: 0 | S95: 1 | T95: 53.17622951 | U95: 1 | V95: 0 | W95: 0 | X95: 0 | Y95: 0 | Z95: 1 | AA95: 2 | AB95: 1 | AC95: 0
B96: HERSTAL | C96: 26656 | D96: 22476 | E96: 84.31872749 | F96: 1670 | G96: 6.265006002 | H96: 20806 | I96: 78.05372149 | J96: 33 | K96: 4180 | L96: 15.68127251 | M96: 5850 | N96: 21.94627851 | O96: 6 | P96: 1 | Q96: 38.25405162 | R96: 0 | S96: 0 | T96: 0 | U96: 0 | V96: 1 | W96: 1 | X96: 5 | Y96: 1 | Z96: 0 | AA96: 8 | AB96: 1 | AC96: 0
B97: HERVE | C97: 13553 | D97: 12316 | E97: 90.87286948 | F97: 932 | G97: 6.876706264 | H97: 11384 | I97: 83.99616321 | J97: 25 | K97: 1237 | L97: 9.127130525 | M97: 2169 | N97: 16.00383679 | O97: 3 | P97: 1 | Q97: 43.99026046 | R97: 0 | S97: 0 | T97: 0 | U97: 0 | V97: 1 | W97: 1 | X97: 1 | Y97: 1 | Z97: 1 | AA97: 3 | AB97: 1 | AC97: 0
B98: HONNELLES | C98: 4011 | D98: 3773 | E98: 94.06631763 | F98: 257 | G98: 6.407379706 | H98: 3516 | I98: 87.65893792 | J98: 17 | K98: 238 | L98: 5.933682373 | M98: 495 | N98: 12.34106208 | O98: 3 | P98: 1 | Q98: 41.785091 | R98: 0 | S98: 0 | T98: 0 | U98: 0 | V98: 0 | W98: 0 | X98: 0 | Y98: 0 | Z98: 1 | AA98: 1 | AB98: 1 | AC98: 0
B99: HOUFFALIZE | C99: 3947 | D99: 3692 | E99: 93.53939701 | F99: 181 | G99: 4.585761338 | H99: 3511 | I99: 88.95363567 | J99: 17 | K99: 255 | L99: 6.46060299 | M99: 436 | N99: 11.04636433 | O99: 4 | P99: 1 | Q99: 42.41195845 | R99: 0 | S99: 0 | T99: 0 | U99: 0 | V99: 0 | W99: 0 | X99: 0 | Y99: 0 | Z99: 1 | AA99: 1 | AB99: 1 | AC99: 0
B100: INCOURT | C100: 4009 | D100: 3718 | E100: 92.741332 | F100: 149 | G100: 3.716637565 | H100: 3569 | I100: 89.02469444 | J100: 17 | K100: 291 | L100: 7.258667997 | M100: 440 | N100: 10.97530556 | O100: 2 | P100: 1 | Q100: 69.76802195 | R100: 1 | S100: 0 | T100: 0 | U100: 0 | V100: 0 | W100: 0 | X100: 0 | Y100: 0 | Z100: 1 | AA100: 1 | AB100: 1 | AC100: 1
B101: JALHAY | C101: 6787 | D101: 6147 | E101: 90.57020775 | F101: 320 | G101: 4.714896125 | H101: 5827 | I101: 85.85531163 | J101: 19 | K101: 640 | L101: 9.42979225 | M101: 960 | N101: 14.14468837 | O101: 4 | P101: 1 | Q101: 47.35523795 | R101: 0 | S101: 0 | T101: 0 | U101: 0 | V101: 0 | W101: 0 | X101: 1 | Y101: 1 | Z101: 1 | AA101: 2 | AB101: 1 | AC101: 1
B102: JEMEPPE-SUR-SAMBRE | C102: 14600 | D102: 13097 | E102: 89.70547945 | F102: 1140 | G102: 7.808219178 | H102: 11957 | I102: 81.89726027 | J102: 25 | K102: 1503 | L102: 10.29452055 | M102: 2643 | N102: 18.10273973 | O102: 4 | P102: 1 | Q102: 44.63013699 | R102: 0 | S102: 0 | T102: 0 | U102: 0 | V102: 1 | W102: 1 | X102: 2 | Y102: 1 | Z102: 1 | AA102: 4 | AB102: 1 | AC102: 1
B103: JODOIGNE | C103: 10525 | D103: 9521 | E103: 90.4608076 | F103: 680 | G103: 6.460807601 | H103: 8841 | I103: 84 | J103: 23 | K103: 1004 | L103: 9.539192399 | M103: 1684 | N103: 16 | O103: 3 | P103: 1 | Q103: 48.47505938 | R103: 0 | S103: 0 | T103: 0 | U103: 0 | V103: 0 | W103: 0 | X103: 1 | Y103: 1 | Z103: 1 | AA103: 3 | AB103: 1 | AC103: 1
B104: JUPRELLE | C104: 7060 | D104: 6372 | E104: 90.25495751 | F104: 453 | G104: 6.416430595 | H104: 5919 | I104: 83.83852691 | J104: 21 | K104: 688 | L104: 9.745042493 | M104: 1141 | N104: 16.16147309 | O104: 2 | P104: 1 | Q104: 52.28045326 | R104: 1 | S104: 0 | T104: 0 | U104: 0 | V104: 0 | W104: 0 | X104: 1 | Y104: 1 | Z104: 1 | AA104: 3 | AB104: 1 | AC104: 1
B105: JURBISE | C105: 7501 | D105: 7065 | E105: 94.18744167 | F105: 284 | G105: 3.786161845 | H105: 6781 | I105: 90.40127983 | J105: 21 | K105: 436 | L105: 5.812558326 | M105: 720 | N105: 9.598720171 | O105: 3 | P105: 1 | Q105: 67.35101986 | R105: 1 | S105: 0 | T105: 0 | U105: 0 | V105: 0 | W105: 0 | X105: 0 | Y105: 0 | Z105: 1 | AA105: 1 | AB105: 1 | AC105: 1
B106: LA HULPE | C106: 5136 | D106: 4413 | E106: 85.9228972 | F106: 196 | G106: 3.816199377 | H106: 4217 | I106: 82.10669782 | J106: 19 | K106: 723 | L106: 14.0771028 | M106: 919 | N106: 17.89330218 | O106: 4 | P106: 1 | Q106: 48.75389408 | R106: 0 | S106: 0 | T106: 0 | U106: 0 | V106: 0 | W106: 0 | X106: 2 | Y106: 1 | Z106: 1 | AA106: 3 | AB106: 1 | AC106: 1
B107: LA LOUVIÈRE | C107: 55091 | D107: 48422 | E107: 87.89457443 | F107: 5226 | G107: 9.48612296 | H107: 43196 | I107: 78.40845147 | J107: 43 | K107: 6669 | L107: 12.10542557 | M107: 11895 | N107: 21.59154853 | O107: 11 | P107: 1 | Q107: 34.0345973 | R107: 0 | S107: 1 | T107: 39.4438293 | U107: 0 | V107: 4 | W107: 1 | X107: 6 | Y107: 1 | Z107: 0 | AA107: 11 | AB107: 1 | AC107: 0
B108: LA ROCHE-EN-ARDENNE | C108: 3366 | D108: 3162 | E108: 93.93939394 | F108: 166 | G108: 4.931669638 | H108: 2996 | I108: 89.0077243 | J108: 15 | K108: 204 | L108: 6.060606061 | M108: 370 | N108: 10.9922757 | O108: 2 | P108: 1 | Q108: 52.61437908 | R108: 1 | S108: 0 | T108: 0 | U108: 0 | V108: 0 | W108: 0 | X108: 0 | Y108: 0 | Z108: 1 | AA108: 1 | AB108: 1 | AC108: 1
B109: LASNE | C109: 10366 | D109: 9151 | E109: 88.278989 | F109: 229 | G109: 2.209145283 | H109: 8922 | I109: 86.06984372 | J109: 23 | K109: 1215 | L109: 11.721011 | M109: 1444 | N109: 13.93015628 | O109: 4 | P109: 1 | Q109: 54.32182134 | R109: 1 | S109: 0 | T109: 0 | U109: 0 | V109: 0 | W109: 0 | X109: 2 | Y109: 1 | Z109: 1 | AA109: 3 | AB109: 1 | AC109: 1
B110: LE ROEULX | C110: 6539 | D110: 5957 | E110: 91.09955651 | F110: 395 | G110: 6.040679003 | H110: 5562 | I110: 85.0588775 | J110: 19 | K110: 582 | L110: 8.900443493 | M110: 977 | N110: 14.9411225 | O110: 3 | P110: 1 | Q110: 58.46459703 | R110: 1 | S110: 0 | T110: 0 | U110: 0 | V110: 0 | W110: 0 | X110: 1 | Y110: 1 | Z110: 1 | AA110: 2 | AB110: 1 | AC110: 1
B111: LÉGLISE | C111: 3759 | D111: 3547 | E111: 94.36020218 | F111: 207 | G111: 5.506783719 | H111: 3340 | I111: 88.85341846 | J111: 17 | K111: 212 | L111: 5.639797819 | M111: 419 | N111: 11.14658154 | O111: 2 | P111: 1 | Q111: 59.93615323 | R111: 1 | S111: 0 | T111: 0 | U111: 0 | V111: 0 | W111: 0 | X111: 0 | Y111: 0 | Z111: 1 | AA111: 1 | AB111: 1 | AC111: 1
B112: LENS | C112: 3305 | D112: 3155 | E112: 95.46142209 | F112: 97 | G112: 2.93494705 | H112: 3058 | I112: 92.52647504 | J112: 15 | K112: 150 | L112: 4.538577912 | M112: 247 | N112: 7.473524962 | O112: 5 | P112: 1 | Q112: 38.30559758 | R112: 0 | S112: 0 | T112: 0 | U112: 0 | V112: 0 | W112: 0 | X112: 0 | Y112: 0 | Z112: 1 | AA112: 0 | AB112: 0 | AC112: 1
B113: LES BONS VILLERS | C113: 7228 | D113: 6640 | E113: 91.86496956 | F113: 335 | G113: 4.634753735 | H113: 6305 | I113: 87.23021583 | J113: 21 | K113: 588 | L113: 8.135030437 | M113: 923 | N113: 12.76978417 | O113: 4 | P113: 1 | Q113: 39.9833979 | R113: 0 | S113: 0 | T113: 0 | U113: 0 | V113: 0 | W113: 0 | X113: 1 | Y113: 1 | Z113: 0 | AA113: 2 | AB113: 1 | AC113: 0
B114: LIBIN | C114: 3885 | D114: 3641 | E114: 93.71943372 | F114: 191 | G114: 4.916344916 | H114: 3450 | I114: 88.8030888 | J114: 17 | K114: 244 | L114: 6.280566281 | M114: 435 | N114: 11.1969112 | O114: 2 | P114: 1 | Q114: 69.13770914 | R114: 1 | S114: 0 | T114: 0 | U114: 0 | V114: 0 | W114: 0 | X114: 0 | Y114: 0 | Z114: 1 | AA114: 1 | AB114: 1 | AC114: 1
B115: LIERNEUX | C115: 2766 | D115: 2496 | E115: 90.23861171 | F115: 116 | G115: 4.193781634 | H115: 2380 | I115: 86.04483008 | J115: 13 | K115: 270 | L115: 9.761388286 | M115: 386 | N115: 13.95516992 | O115: 3 | P115: 1 | Q115: 39.29862617 | R115: 0 | S115: 0 | T115: 0 | U115: 0 | V115: 0 | W115: 0 | X115: 1 | Y115: 1 | Z115: 1 | AA115: 1 | AB115: 1 | AC115: 1
B116: LIMBOURG | C116: 4487 | D116: 4062 | E116: 90.52819256 | F116: 233 | G116: 5.19277914 | H116: 3829 | I116: 85.33541342 | J116: 17 | K116: 425 | L116: 9.471807444 | M116: 658 | N116: 14.66458658 | O116: 3 | P116: 1 | Q116: 49.34254513 | R116: 0 | S116: 0 | T116: 0 | U116: 0 | V116: 0 | W116: 0 | X116: 1 | Y116: 1 | Z116: 1 | AA116: 2 | AB116: 1 | AC116: 1
B117: LINCENT | C117: 2546 | D117: 2409 | E117: 94.61901021 | F117: 105 | G117: 4.124116261 | H117: 2304 | I117: 90.49489395 | J117: 13 | K117: 137 | L117: 5.380989788 | M117: 242 | N117: 9.505106049 | O117: 2 | P117: 1 | Q117: 55.30243519 | R117: 1 | S117: 0 | T117: 0 | U117: 0 | V117: 0 | W117: 0 | X117: 0 | Y117: 0 | Z117: 1 | AA117: 0 | AB117: 0 | AC117: 1
B118: MALMEDY | C118: 9849 | D118: 8709 | E118: 88.42522083 | F118: 634 | G118: 6.437201746 | H118: 8075 | I118: 81.98801909 | J118: 23 | K118: 1140 | L118: 11.57477917 | M118: 1774 | N118: 18.01198091 | O118: 3 | P118: 1 | Q118: 40.73510001 | R118: 0 | S118: 1 | T118: 49.20296477 | U118: 0 | V118: 0 | W118: 0 | X118: 2 | Y118: 1 | Z118: 0 | AA118: 4 | AB118: 1 | AC118: 0
B119: MANAGE | C119: 16223 | D119: 14294 | E119: 88.1094742 | F119: 1328 | G119: 8.185908895 | H119: 12966 | I119: 79.92356531 | J119: 27 | K119: 1929 | L119: 11.8905258 | M119: 3257 | N119: 20.07643469 | O119: 7 | P119: 1 | Q119: 50.54552179 | R119: 1 | S119: 0 | T119: 0 | U119: 0 | V119: 2 | W119: 1 | X119: 3 | Y119: 1 | Z119: 1 | AA119: 6 | AB119: 1 | AC119: 1
B120: MANHAY | C120: 2707 | D120: 2580 | E120: 95.30845955 | F120: 89 | G120: 3.287772442 | H120: 2491 | I120: 92.02068711 | J120: 13 | K120: 127 | L120: 4.691540451 | M120: 216 | N120: 7.979312893 | O120: 2 | P120: 1 | Q120: 50.83117843 | R120: 1 | S120: 0 | T120: 0 | U120: 0 | V120: 0 | W120: 0 | X120: 0 | Y120: 0 | Z120: 1 | AA120: 0 | AB120: 0 | AC120: 1
B121: MARCHE-EN-FAMENNE | C121: 13431 | D121: 12123 | E121: 90.26133572 | F121: 769 | G121: 5.725560271 | H121: 11354 | I121: 84.53577544 | J121: 25 | K121: 1308 | L121: 9.738664284 | M121: 2077 | N121: 15.46422456 | O121: 5 | P121: 1 | Q121: 40.13848559 | R121: 0 | S121: 1 | T121: 55.03685504 | U121: 1 | V121: 0 | W121: 0 | X121: 2 | Y121: 1 | Z121: 1 | AA121: 4 | AB121: 1 | AC121: 0
B122: MARCHIN | C122: 4149 | D122: 3755 | E122: 90.50373584 | F122: 271 | G122: 6.531694384 | H122: 3484 | I122: 83.97204146 | J122: 17 | K122: 394 | L122: 9.49626416 | M122: 665 | N122: 16.02795854 | O122: 4 | P122: 1 | Q122: 39.04555315 | R122: 0 | S122: 0 | T122: 0 | U122: 0 | V122: 0 | W122: 0 | X122: 1 | Y122: 1 | Z122: 1 | AA122: 2 | AB122: 1 | AC122: 0
B123: MARTELANGE | C123: 1234 | D123: 1177 | E123: 95.3808752 | F123: 62 | G123: 5.024311183 | H123: 1115 | I123: 90.35656402 | J123: 9 | K123: 57 | L123: 4.619124797 | M123: 119 | N123: 9.643435981 | O123: 2 | P123: 1 | Q123: 47.24473258 | R123: 0 | S123: 0 | T123: 0 | U123: 0 | V123: 0 | W123: 0 | X123: 0 | Y123: 0 | Z123: 1 | AA123: 0 | AB123: 0 | AC123: 1
B124: MEIX-DEVANT-VIRTON | C124: 2135 | D124: 2032 | E124: 95.17564403 | F124: 102 | G124: 4.777517564 | H124: 1930 | I124: 90.39812646 | J124: 11 | K124: 103 | L124: 4.824355972 | M124: 205 | N124: 9.601873536 | O124: 2 | P124: 1 | Q124: 53.34894614 | R124: 1 | S124: 0 | T124: 0 | U124: 0 | V124: 0 | W124: 0 | X124: 0 | Y124: 0 | Z124: 1 | AA124: 0 | AB124: 0 | AC124: 1
B125: MERBES-LE-CHÂTEAU | C125: 3230 | D125: 2999 | E125: 92.84829721 | F125: 269 | G125: 8.328173375 | H125: 2730 | I125: 84.52012384 | J125: 15 | K125: 231 | L125: 7.151702786 | M125: 500 | N125: 15.47987616 | O125: 2 | P125: 1 | Q125: 58.85448916 | R125: 1 | S125: 0 | T125: 0 | U125: 0 | V125: 0 | W125: 0 | X125: 0 | Y125: 0 | Z125: 1 | AA125: 2 | AB125: 1 | AC125: 1
B126: MESSANCY | C126: 5696 | D126: 5201 | E126: 91.30969101 | F126: 463 | G126: 8.128511236 | H126: 4738 | I126: 83.18117978 | J126: 19 | K126: 495 | L126: 8.690308989 | M126: 958 | N126: 16.81882022 | O126: 3 | P126: 1 | Q126: 46.50632022 | R126: 0 | S126: 0 | T126: 0 | U126: 0 | V126: 1 | W126: 1 | X126: 1 | Y126: 1 | Z126: 1 | AA126: 3 | AB126: 1 | AC126: 1
B127: MODAVE | C127: 3194 | D127: 2979 | E127: 93.26862868 | F127: 149 | G127: 4.664996869 | H127: 2830 | I127: 88.60363181 | J127: 15 | K127: 215 | L127: 6.731371321 | M127: 364 | N127: 11.39636819 | O127: 3 | P127: 1 | Q127: 41.45272386 | R127: 0 | S127: 0 | T127: 0 | U127: 0 | V127: 0 | W127: 0 | X127: 0 | Y127: 0 | Z127: 1 | AA127: 1 | AB127: 1 | AC127: 0
B128: MOMIGNIES | C128: 3982 | D128: 3627 | E128: 91.08488197 | F128: 247 | G128: 6.202913109 | H128: 3380 | I128: 84.88196886 | J128: 17 | K128: 355 | L128: 8.915118031 | M128: 602 | N128: 15.11803114 | O128: 4 | P128: 1 | Q128: 41.36112506 | R128: 0 | S128: 0 | T128: 0 | U128: 0 | V128: 0 | W128: 0 | X128: 1 | Y128: 1 | Z128: 1 | AA128: 2 | AB128: 1 | AC128: 0
B129: MONS | C129: 66145 | D129: 55955 | E129: 84.59445158 | F129: 4579 | G129: 6.922669892 | H129: 51376 | I129: 77.67178169 | J129: 45 | K129: 10190 | L129: 15.40554842 | M129: 14769 | N129: 22.32821831 | O129: 9 | P129: 1 | Q129: 34.37145665 | R129: 0 | S129: 1 | T129: 44.29813289 | U129: 0 | V129: 3 | W129: 1 | X129: 8 | Y129: 1 | Z129: 0 | AA129: 11 | AB129: 1 | AC129: 0
B130: MONT-DE-L_ENCLUS | C130: =Inscrits(B130) -> 2874 | D130: =BDEPOSES(B130) -> 2702 | E130: =100/C130*D130 -> 94.01530967 | F130: =BBN(B130) -> 165 | G130: =100/C130*F130 -> 5.741127349 | H130: =VOTESV(B130) -> 2537 | I130: =100/C130*H130 -> 88.27418232 | J130: =SIEGES(B130) -> 13 | K130: =C130-D130 -> 172 | L130: =100/C130*K130 -> 5.984690327 | M130: =C130-H130 -> 337 | N130: =(100/C130)*M130 -> 11.72581768 | O130: =NBL(B130) -> 2 | P130: =Maj_abs_tab1(B130) -> 1 | Q130: =pc_Vx_LUMA(B130) -> 62.97842728 | R130: =IF(Q130>50,1,0) -> 1 | S130: =Nbr_Coal(B130) -> 0 | T130: =pc_Vx_Coal(B130) -> 0 | U130: =IF(T130>50,1,0) -> 0 | V130: =SBN(B130) -> 0 | W130: =IF(V130>0,1,0) -> 0 | X130: =SND(B130) -> 0 | Y130: =IF(X130>0,1,0) -> 0 | Z130: =Maj_abs_tab2(B130) -> 1 | AA130: =SNV(B130) -> 1 | AB130: =IF(AA130>0,1,0) -> 1 | AC130: =Maj_abs_tab3(B130) -> 1
B131: MONTIGNY-LE-TILLEUL | C131: 7951 | D131: 7140 | E131: 89.80002515 | F131: 418 | G131: 5.257200352 | H131: 6722 | I131: 84.5428248 | J131: 21 | K131: 811 | L131: 10.19997485 | M131: 1229 | N131: 15.4571752 | O131: 5 | P131: 1 | Q131: 40.03270029 | R131: 0 | S131: 1 | T131: 52.66004276 | U131: 1 | V131: 0 | W131: 0 | X131: 2 | Y131: 1 | Z131: 1 | AA131: 3 | AB131: 1 | AC131: 1
B132: MONT-SAINT-GUIBERT | C132: 5686 | D132: 5120 | E132: 90.04572635 | F132: 274 | G132: 4.818853324 | H132: 4846 | I132: 85.22687302 | J132: 19 | K132: 566 | L132: 9.954273655 | M132: 840 | N132: 14.77312698 | O132: 5 | P132: 1 | Q132: 40.46781569 | R132: 0 | S132: 0 | T132: 0 | U132: 0 | V132: 0 | W132: 0 | X132: 1 | Y132: 1 | Z132: 1 | AA132: 3 | AB132: 1 | AC132: 1
B133: MORLANWELZ | C133: 13711 | D133: 12048 | E133: 87.87105244 | F133: 1337 | G133: 9.751294581 | H133: 10711 | I133: 78.11975786 | J133: 25 | K133: 1663 | L133: 12.12894756 | M133: 3000 | N133: 21.88024214 | O133: 5 | P133: 1 | Q133: 40.51491503 | R133: 0 | S133: 0 | T133: 0 | U133: 0 | V133: 2 | W133: 1 | X133: 3 | Y133: 1 | Z133: 1 | AA133: 6 | AB133: 1 | AC133: 0
B134: MOUSCRON | C134: 35585 | D134: 32079 | E134: 90.14753407 | F134: 3158 | G134: 8.874525783 | H134: 28921 | I134: 81.27300829 | J134: 37 | K134: 3506 | L134: 9.852465927 | M134: 6664 | N134: 18.72699171 | O134: 5 | P134: 1 | Q134: 38.56400169 | R134: 0 | S134: 1 | T134: 49.60517072 | U134: 0 | V134: 3 | W134: 1 | X134: 3 | Y134: 1 | Z134: 0 | AA134: 7 | AB134: 1 | AC134: 0
B135: NASSOGNE | C135: 4125 | D135: 3793 | E135: 91.95151515 | F135: 270 | G135: 6.545454545 | H135: 3523 | I135: 85.40606061 | J135: 17 | K135: 332 | L135: 8.048484848 | M135: 602 | N135: 14.59393939 | O135: 3 | P135: 1 | Q135: 44.72727273 | R135: 0 | S135: 0 | T135: 0 | U135: 0 | V135: 0 | W135: 0 | X135: 0 | Y135: 0 | Z135: 1 | AA135: 2 | AB135: 1 | AC135: 1
B136: OHEY | C136: 3888 | D136: 3646 | E136: 93.77572016 | F136: 200 | G136: 5.144032922 | H136: 3446 | I136: 88.63168724 | J136: 17 | K136: 242 | L136: 6.224279835 | M136: 442 | N136: 11.36831276 | O136: 4 | P136: 1 | Q136: 52.49485597 | R136: 1 | S136: 0 | T136: 0 | U136: 0 | V136: 0 | W136: 0 | X136: 0 | Y136: 0 | Z136: 1 | AA136: 1 | AB136: 1 | AC136: 1
B137: OLNE | C137: 3202 | D137: 2936 | E137: 91.69269207 | F137: 123 | G137: 3.841349157 | H137: 2813 | I137: 87.85134291 | J137: 15 | K137: 266 | L137: 8.307307933 | M137: 389 | N137: 12.14865709 | O137: 4 | P137: 1 | Q137: 44.87820112 | R137: 0 | S137: 0 | T137: 0 | U137: 0 | V137: 0 | W137: 0 | X137: 1 | Y137: 1 | Z137: 1 | AA137: 1 | AB137: 1 | AC137: 1
B138: ONHAYE | C138: 2489 | D138: 2346 | E138: 94.25472077 | F138: 111 | G138: 4.459622338 | H138: 2235 | I138: 89.79509843 | J138: 13 | K138: 143 | L138: 5.745279229 | M138: 254 | N138: 10.20490157 | O138: 2 | P138: 1 | Q138: 66.05062274 | R138: 1 | S138: 0 | T138: 0 | U138: 0 | V138: 0 | W138: 0 | X138: 0 | Y138: 0 | Z138: 1 | AA138: 0 | AB138: 0 | AC138: 1
B139: OREYE | C139: 3007 | D139: 2760 | E139: 91.78583306 | F139: 148 | G139: 4.921849019 | H139: 2612 | I139: 86.86398404 | J139: 13 | K139: 247 | L139: 8.214166944 | M139: 395 | N139: 13.13601596 | O139: 3 | P139: 1 | Q139: 41.43664782 | R139: 0 | S139: 0 | T139: 0 | U139: 0 | V139: 0 | W139: 0 | X139: 0 | Y139: 0 | Z139: 1 | AA139: 1 | AB139: 1 | AC139: 0
B140: ORP-JAUCHE | C140: 6680 | D140: 6214 | E140: 93.0239521 | F140: 325 | G140: 4.865269461 | H140: 5889 | I140: 88.15868263 | J140: 19 | K140: 466 | L140: 6.976047904 | M140: 791 | N140: 11.84131737 | O140: 3 | P140: 1 | Q140: 66.52694611 | R140: 1 | S140: 0 | T140: 0 | U140: 0 | V140: 0 | W140: 0 | X140: 0 | Y140: 0 | Z140: 1 | AA140: 1 | AB140: 1 | AC140: 1
B141: OUFFET | C141: 2148 | D141: 2003 | E141: 93.24953445 | F141: 105 | G141: 4.888268156 | H141: 1898 | I141: 88.36126629 | J141: 11 | K141: 145 | L141: 6.750465549 | M141: 250 | N141: 11.63873371 | O141: 2 | P141: 1 | Q141: 59.07821229 | R141: 1 | S141: 0 | T141: 0 | U141: 0 | V141: 0 | W141: 0 | X141: 0 | Y141: 0 | Z141: 1 | AA141: 0 | AB141: 0 | AC141: 1
B142: PEPINSTER | C142: 7398 | D142: 6531 | E142: 88.28061638 | F142: 591 | G142: 7.98864558 | H142: 5940 | I142: 80.2919708 | J142: 21 | K142: 867 | L142: 11.71938362 | M142: 1458 | N142: 19.7080292 | O142: 3 | P142: 1 | Q142: 53.7037037 | R142: 1 | S142: 0 | T142: 0 | U142: 0 | V142: 1 | W142: 1 | X142: 2 | Y142: 1 | Z142: 1 | AA142: 4 | AB142: 1 | AC142: 1
B143: PÉRUWELZ | C143: 12417 | D143: 11225 | E143: 90.40025771 | F143: 1000 | G143: 8.053475074 | H143: 10225 | I143: 82.34678264 | J143: 25 | K143: 1192 | L143: 9.599742289 | M143: 2192 | N143: 17.65321736 | O143: 6 | P143: 1 | Q143: 35.65273415 | R143: 0 | S143: 1 | T143: 44.64041234 | U143: 0 | V143: 1 | W143: 1 | X143: 2 | Y143: 1 | Z143: 0 | AA143: 5 | AB143: 1 | AC143: 0
B144: PERWEZ | C144: 6919 | D144: 6410 | E144: 92.64344558 | F144: 355 | G144: 5.130799248 | H144: 6055 | I144: 87.51264634 | J144: 21 | K144: 509 | L144: 7.356554415 | M144: 864 | N144: 12.48735366 | O144: 2 | P144: 1 | Q144: 45.3100159 | R144: 0 | S144: 0 | T144: 0 | U144: 0 | V144: 0 | W144: 0 | X144: 0 | Y144: 0 | Z144: 1 | AA144: 2 | AB144: 1 | AC144: 0
B145: QUAREGNON | C145: 12920 | D145: 11409 | E145: 88.30495356 | F145: 1403 | G145: 10.85913313 | H145: 10006 | I145: 77.44582043 | J145: 25 | K145: 1511 | L145: 11.69504644 | M145: 2914 | N145: 22.55417957 | O145: 4 | P145: 1 | Q145: 49.44272446 | R145: 0 | S145: 0 | T145: 0 | U145: 0 | V145: 2 | W145: 1 | X145: 3 | Y145: 1 | Z145: 1 | AA145: 6 | AB145: 1 | AC145: 1
B146: QUIÉVRAIN | C146: 4930 | D146: 4453 | E146: 90.32454361 | F146: 353 | G146: 7.160243408 | H146: 4100 | I146: 83.1643002 | J146: 17 | K146: 477 | L146: 9.675456389 | M146: 830 | N146: 16.8356998 | O146: 4 | P146: 1 | Q146: 48.84381339 | R146: 0 | S146: 0 | T146: 0 | U146: 0 | V146: 0 | W146: 0 | X146: 1 | Y146: 1 | Z146: 1 | AA146: 3 | AB146: 1 | AC146: 1
B147: REBECQ | C147: 7899 | D147: 7255 | E147: 91.84706925 | F147: 532 | G147: 6.735029751 | H147: 6723 | I147: 85.1120395 | J147: 21 | K147: 644 | L147: 8.152930751 | M147: 1176 | N147: 14.8879605 | O147: 4 | P147: 1 | Q147: 43.19534118 | R147: 0 | S147: 0 | T147: 0 | U147: 0 | V147: 0 | W147: 0 | X147: 1 | Y147: 1 | Z147: 1 | AA147: 3 | AB147: 1 | AC147: 1
B148: RENDEUX | C148: 1993 | D148: 1868 | E148: 93.72804817 | F148: 90 | G148: 4.515805319 | H148: 1778 | I148: 89.21224285 | J148: 11 | K148: 125 | L148: 6.271951831 | M148: 215 | N148: 10.78775715 | O148: 2 | P148: 1 | Q148: 49.27245359 | R148: 0 | S148: 0 | T148: 0 | U148: 0 | V148: 0 | W148: 0 | X148: 0 | Y148: 0 | Z148: 1 | AA148: 0 | AB148: 0 | AC148: 1
B149: RIXENSART | C149: 16250 | D149: 14439 | E149: 88.85538462 | F149: 608 | G149: 3.741538462 | H149: 13831 | I149: 85.11384615 | J149: 27 | K149: 1811 | L149: 11.14461538 | M149: 2419 | N149: 14.88615385 | O149: 5 | P149: 1 | Q149: 38.14769231 | R149: 0 | S149: 1 | T149: 49.13846154 | U149: 0 | V149: 0 | W149: 0 | X149: 3 | Y149: 1 | Z149: 0 | AA149: 4 | AB149: 1 | AC149: 0
B150: ROCHEFORT | C150: 9756 | D150: 8681 | E150: 88.98113981 | F150: 615 | G150: 6.303813038 | H150: 8066 | I150: 82.67732677 | J150: 23 | K150: 1075 | L150: 11.01886019 | M150: 1690 | N150: 17.32267323 | O150: 3 | P150: 1 | Q150: 54.67404674 | R150: 1 | S150: 0 | T150: 0 | U150: 0 | V150: 0 | W150: 0 | X150: 2 | Y150: 1 | Z150: 1 | AA150: 4 | AB150: 1 | AC150: 1
B151: ROUVROY | C151: 1542 | D151: 1417 | E151: 91.89364462 | F151: 102 | G151: 6.614785992 | H151: 1315 | I151: 85.27885863 | J151: 14 | K151: 125 | L151: 8.106355383 | M151: 227 | N151: 14.72114137 | O151: 1 | P151: 1 | Q151: 85.27885863 | R151: 1 | S151: 0 | T151: 0 | U151: 0 | V151: 0 | W151: 0 | X151: 0 | Y151: 0 | Z151: 1 | AA151: 1 | AB151: 1 | AC151: 1
B152: RUMES | C152: 3950 | D152: 3776 | E152: 95.59493671 | F152: 226 | G152: 5.721518987 | H152: 3550 | I152: 89.87341772 | J152: 17 | K152: 174 | L152: 4.405063291 | M152: 400 | N152: 10.12658228 | O152: 2 | P152: 1 | Q152: 67.13924051 | R152: 1 | S152: 0 | T152: 0 | U152: 0 | V152: 0 | W152: 0 | X152: 0 | Y152: 0 | Z152: 1 | AA152: 1 | AB152: 1 | AC152: 1
B153: SAINTE-ODE | C153: 1886 | D153: 1762 | E153: 93.4252386 | F153: 118 | G153: 6.256627784 | H153: 1644 | I153: 87.16861082 | J153: 11 | K153: 124 | L153: 6.5747614 | M153: 242 | N153: 12.83138918 | O153: 2 | P153: 1 | Q153: 63.25556734 | R153: 1 | S153: 0 | T153: 0 | U153: 0 | V153: 0 | W153: 0 | X153: 0 | Y153: 0 | Z153: 1 | AA153: 1 | AB153: 1 | AC153: 1
B154: SAINT-GEORGES-SUR-MEUSE | C154: 5227 | D154: 4684 | E154: 89.61163191 | F154: 297 | G154: 5.682035584 | H154: 4387 | I154: 83.92959633 | J154: 17 | K154: 543 | L154: 10.38836809 | M154: 840 | N154: 16.07040367 | O154: 4 | P154: 1 | Q154: 44.65276449 | R154: 0 | S154: 0 | T154: 0 | U154: 0 | V154: 0 | W154: 0 | X154: 1 | Y154: 1 | Z154: 1 | AA154: 3 | AB154: 1 | AC154: 1
B155: SAINT-GHISLAIN | C155: 17378 | D155: 15049 | E155: 86.59799747 | F155: 1257 | G155: 7.233283462 | H155: 13792 | I155: 79.36471401 | J155: 27 | K155: 2329 | L155: 13.40200253 | M155: 3586 | N155: 20.63528599 | O155: 4 | P155: 1 | Q155: 38.70410864 | R155: 0 | S155: 1 | T155: 46.60490275 | U155: 0 | V155: 1 | W155: 1 | X155: 3 | Y155: 1 | Z155: 0 | AA155: 5 | AB155: 1 | AC155: 0
B156: SAINT-HUBERT | C156: 4268 | D156: 3951 | E156: 92.57263355 | F156: 165 | G156: 3.865979381 | H156: 3786 | I156: 88.70665417 | J156: 17 | K156: 317 | L156: 7.427366448 | M156: 482 | N156: 11.29334583 | O156: 5 | P156: 1 | Q156: 40.79194002 | R156: 0 | S156: 0 | T156: 0 | U156: 0 | V156: 0 | W156: 0 | X156: 0 | Y156: 0 | Z156: 1 | AA156: 1 | AB156: 1 | AC156: 0
B157: SAINT-LÉGER | C157: 2597 | D157: 2464 | E157: 94.8787062 | F157: 143 | G157: 5.506353485 | H157: 2321 | I157: 89.37235271 | J157: 13 | K157: 133 | L157: 5.121293801 | M157: 276 | N157: 10.62764729 | O157: 2 | P157: 1 | Q157: 59.33769734 | R157: 1 | S157: 0 | T157: 0 | U157: 0 | V157: 0 | W157: 0 | X157: 0 | Y157: 0 | Z157: 1 | AA157: 0 | AB157: 0 | AC157: 1
B158: SAINT-NICOLAS (LIEGE) | C158: 15684 | D158: 13420 | E158: 85.56490691 | F158: 1435 | G158: 9.14945167 | H158: 11985 | I158: 76.41545524 | J158: 27 | K158: 2264 | L158: 14.43509309 | M158: 3699 | N158: 23.58454476 | O158: 6 | P158: 1 | Q158: 38.17903596 | R158: 0 | S158: 0 | T158: 0 | U158: 0 | V158: 2 | W158: 1 | X158: 4 | Y158: 1 | Z158: 1 | AA158: 7 | AB158: 1 | AC158: 0
B159: SAINT-VITH | C159: 7362 | D159: 6499 | E159: 88.27764195 | F159: 465 | G159: 6.316218419 | H159: 6034 | I159: 81.96142353 | J159: 21 | K159: 863 | L159: 11.72235805 | M159: 1328 | N159: 18.03857647 | O159: 5 | P159: 1 | Q159: 45.17794078 | R159: 0 | S159: 0 | T159: 0 | U159: 0 | V159: 0 | W159: 0 | X159: 2 | Y159: 1 | Z159: 1 | AA159: 4 | AB159: 1 | AC159: 1
B160: SAMBREVILLE | C160: 21040 | D160: 18391 | E160: 87.40969582 | F160: 1522 | G160: 7.233840304 | H160: 16869 | I160: 80.17585551 | J160: 29 | K160: 2649 | L160: 12.59030418 | M160: 4171 | N160: 19.82414449 | O160: 7 | P160: 1 | Q160: 43.72148289 | R160: 0 | S160: 0 | T160: 0 | U160: 0 | V160: 1 | W160: 1 | X160: 4 | Y160: 1 | Z160: 1 | AA160: 6 | AB160: 1 | AC160: 1
B161: SENEFFE | C161: 8514 | D161: 7732 | E161: 90.81512802 | F161: 496 | G161: 5.825698849 | H161: 7236 | I161: 84.98942918 | J161: 21 | K161: 782 | L161: 9.184871976 | M161: 1278 | N161: 15.01057082 | O161: 4 | P161: 1 | Q161: 40.32182288 | R161: 0 | S161: 1 | T161: 53.42964529 | U161: 1 | V161: 0 | W161: 0 | X161: 1 | Y161: 1 | Z161: 1 | AA161: 3 | AB161: 1 | AC161: 0
B162: SERAING | C162: 43333 | D162: 36399 | E162: 83.99833845 | F162: 2655 | G162: 6.126970207 | H162: 33744 | I162: 77.87136824 | J162: 39 | K162: 6934 | L162: 16.00166155 | M162: 9589 | N162: 22.12863176 | O162: 10 | P162: 1 | Q162: 33.30487158 | R162: 0 | S162: 0 | T162: 0 | U162: 0 | V162: 2 | W162: 1 | X162: 7 | Y162: 1 | Z162: 0 | AA162: 10 | AB162: 1 | AC162: 0
B163: SILLY | C163: 6392 | D163: 5924 | E163: 92.67834793 | F163: 325 | G163: 5.084480601 | H163: 5599 | I163: 87.59386733 | J163: 19 | K163: 468 | L163: 7.321652065 | M163: 793 | N163: 12.40613267 | O163: 5 | P163: 1 | Q163: 47.13704631 | R163: 0 | S163: 1 | T163: 64.12703379 | U163: 1 | V163: 0 | W163: 0 | X163: 1 | Y163: 1 | Z163: 1 | AA163: 2 | AB163: 1 | AC163: 1
B164: SIVRY-RANCE | C164: 3733 | D164: 3499 | E164: 93.73158318 | F164: 170 | G164: 4.553978034 | H164: 3329 | I164: 89.17760514 | J164: 15 | K164: 234 | L164: 6.268416823 | M164: 404 | N164: 10.82239486 | O164: 4 | P164: 1 | Q164: 52.79935709 | R164: 1 | S164: 0 | T164: 0 | U164: 0 | V164: 0 | W164: 0 | X164: 0 | Y164: 0 | Z164: 1 | AA164: 1 | AB164: 1 | AC164: 1
B165: SOMBREFFE | C165: 6310 | D165: 5763 | E165: 91.33122029 | F165: 410 | G165: 6.497622821 | H165: 5353 | I165: 84.83359746 | J165: 19 | K165: 547 | L165: 8.668779715 | M165: 957 | N165: 15.16640254 | O165: 4 | P165: 1 | Q165: 39.09667195 | R165: 0 | S165: 0 | T165: 0 | U165: 0 | V165: 0 | W165: 0 | X165: 1 | Y165: 1 | Z165: 1 | AA165: 2 | AB165: 1 | AC165: 0
B166: SOMME-LEUZE | C166: 4314 | D166: 3990 | E166: 92.48956885 | F166: 267 | G166: 6.189151599 | H166: 3723 | I166: 86.30041725 | J166: 17 | K166: 324 | L166: 7.510431154 | M166: 591 | N166: 13.69958275 | O166: 2 | P166: 1 | Q166: 61.1961057 | R166: 1 | S166: 0 | T166: 0 | U166: 0 | V166: 0 | W166: 0 | X166: 0 | Y166: 0 | Z166: 1 | AA166: 1 | AB166: 1 | AC166: 1
B167: SPA | C167: 8155 | D167: 6670 | E167: 81.79031269 | F167: 479 | G167: 5.873697118 | H167: 6191 | I167: 75.91661557 | J167: 21 | K167: 1485 | L167: 18.20968731 | M167: 1964 | N167: 24.08338443 | O167: 6 | P167: 1 | Q167: 33.24340895 | R167: 0 | S167: 1 | T167: 41.10361741 | U167: 0 | V167: 0 | W167: 0 | X167: 4 | Y167: 1 | Z167: 0 | AA167: 6 | AB167: 1 | AC167: 0
B168: STAVELOT | C168: 5460 | D168: 4872 | E168: 89.23076923 | F168: 369 | G168: 6.758241758 | H168: 4503 | I168: 82.47252747 | J168: 19 | K168: 588 | L168: 10.76923077 | M168: 957 | N168: 17.52747253 | O168: 2 | P168: 1 | Q168: 45.2014652 | R168: 0 | S168: 0 | T168: 0 | U168: 0 | V168: 0 | W168: 0 | X168: 1 | Y168: 1 | Z168: 1 | AA168: 3 | AB168: 1 | AC168: 0
B169: STOUMONT | C169: 2443 | D169: 2238 | E169: 91.60867786 | F169: 99 | G169: 4.052394597 | H169: 2139 | I169: 87.55628326 | J169: 13 | K169: 205 | L169: 8.391322145 | M169: 304 | N169: 12.44371674 | O169: 2 | P169: 1 | Q169: 53.25419566 | R169: 1 | S169: 0 | T169: 0 | U169: 0 | V169: 0 | W169: 0 | X169: 0 | Y169: 0 | Z169: 1 | AA169: 1 | AB169: 1 | AC169: 1
B170: TELLIN | C170: 1855 | D170: 1763 | E170: 95.04043127 | F170: 76 | G170: 4.09703504 | H170: 1687 | I170: 90.94339623 | J170: 11 | K170: 92 | L170: 4.959568733 | M170: 168 | N170: 9.056603774 | O170: 3 | P170: 1 | Q170: 45.98382749 | R170: 0 | S170: 0 | T170: 0 | U170: 0 | V170: 0 | W170: 0 | X170: 0 | Y170: 0 | Z170: 1 | AA170: 0 | AB170: 0 | AC170: 1
B171: TENNEVILLE | C171: 2174 | D171: 2057 | E171: 94.61821527 | F171: 106 | G171: 4.875804968 | H171: 1951 | I171: 89.7424103 | J171: 11 | K171: 117 | L171: 5.381784729 | M171: 223 | N171: 10.2575897 | O171: 2 | P171: 1 | Q171: 50.64397424 | R171: 1 | S171: 0 | T171: 0 | U171: 0 | V171: 0 | W171: 0 | X171: 0 | Y171: 0 | Z171: 1 | AA171: 0 | AB171: 0 | AC171: 1
B172: THEUX | C172: 9417 | D172: 8364 | E172: 88.81809493 | F172: 520 | G172: 5.521928427 | H172: 7844 | I172: 83.29616651 | J172: 23 | K172: 1053 | L172: 11.18190507 | M172: 1573 | N172: 16.70383349 | O172: 4 | P172: 1 | Q172: 37.57035149 | R172: 0 | S172: 1 | T172: 54.4122332 | U172: 1 | V172: 0 | W172: 0 | X172: 2 | Y172: 1 | Z172: 0 | AA172: 3 | AB172: 1 | AC172: 0
B173: THIMISTER-CLERMONT | C173: 4373 | D173: 3991 | E173: 91.26457809 | F173: 296 | G173: 6.768808598 | H173: 3695 | I173: 84.49576949 | J173: 17 | K173: 382 | L173: 8.735421907 | M173: 678 | N173: 15.50423051 | O173: 2 | P173: 1 | Q173: 62.68008232 | R173: 1 | S173: 0 | T173: 0 | U173: 0 | V173: 0 | W173: 0 | X173: 1 | Y173: 1 | Z173: 1 | AA173: 2 | AB173: 1 | AC173: 1
B174: THUIN | C174: 11563 | D174: 10212 | E174: 88.31618092 | F174: 642 | G174: 5.552192338 | H174: 9570 | I174: 82.76398858 | J174: 23 | K174: 1351 | L174: 11.68381908 | M174: 1993 | N174: 17.23601142 | O174: 6 | P174: 1 | Q174: 34.66228487 | R174: 0 | S174: 1 | T174: 50.45403442 | U174: 1 | V174: 0 | W174: 0 | X174: 3 | Y174: 1 | Z174: 0 | AA174: 4 | AB174: 1 | AC174: 0
B175: TINLOT | C175: 2086 | D175: 1863 | E175: 89.3096836 | F175: 106 | G175: 5.081495686 | H175: 1757 | I175: 84.22818792 | J175: 11 | K175: 223 | L175: 10.6903164 | M175: 329 | N175: 15.77181208 | O175: 2 | P175: 1 | Q175: 57.90987536 | R175: 1 | S175: 0 | T175: 0 | U175: 0 | V175: 0 | W175: 0 | X175: 0 | Y175: 0 | Z175: 1 | AA175: 1 | AB175: 1 | AC175: 1
B176: TINTIGNY | C176: 3136 | D176: 2985 | E176: 95.18494898 | F176: 156 | G176: 4.974489796 | H176: 2829 | I176: 90.21045918 | J176: 15 | K176: 151 | L176: 4.81505102 | M176: 307 | N176: 9.789540816 | O176: 2 | P176: 1 | Q176: 50.44642857 | R176: 1 | S176: 0 | T176: 0 | U176: 0 | V176: 0 | W176: 0 | X176: 0 | Y176: 0 | Z176: 1 | AA176: 0 | AB176: 0 | AC176: 1
B177: TROIS-PONTS | C177: 1956 | D177: 1792 | E177: 91.61554192 | F177: 134 | G177: 6.850715746 | H177: 1658 | I177: 84.76482618 | J177: 11 | K177: 164 | L177: 8.384458078 | M177: 298 | N177: 15.23517382 | O177: 3 | P177: 1 | Q177: 48.46625767 | R177: 0 | S177: 0 | T177: 0 | U177: 0 | V177: 0 | W177: 0 | X177: 0 | Y177: 0 | Z177: 1 | AA177: 1 | AB177: 1 | AC177: 1
B178: TROOZ | C178: 6233 | D178: 5449 | E178: 87.42178726 | F178: 335 | G178: 5.374618964 | H178: 5114 | I178: 82.0471683 | J178: 19 | K178: 784 | L178: 12.57821274 | M178: 1119 | N178: 17.9528317 | O178: 4 | P178: 1 | Q178: 40.55831863 | R178: 0 | S178: 1 | T178: 46.89555591 | U178: 0 | V178: 0 | W178: 0 | X178: 2 | Y178: 1 | Z178: 1 | AA178: 3 | AB178: 1 | AC178: 1
B179: VAUX-SUR-SÛRE | C179: 4123 | D179: 3878 | E179: 94.05772496 | F179: 236 | G179: 5.723987388 | H179: 3642 | I179: 88.33373757 | J179: 22 | K179: 245 | L179: 5.942275042 | M179: 481 | N179: 11.66626243 | O179: 1 | P179: 1 | Q179: 88.33373757 | R179: 1 | S179: 0 | T179: 0 | U179: 0 | V179: 0 | W179: 0 | X179: 0 | Y179: 0 | Z179: 1 | AA179: 1 | AB179: 1 | AC179: 1
B180: VERLAINE | C180: 3208 | D180: 2955 | E180: 92.11346633 | F180: 194 | G180: 6.047381546 | H180: 2761 | I180: 86.06608479 | J180: 19 | K180: 253 | L180: 7.886533666 | M180: 447 | N180: 13.93391521 | O180: 1 | P180: 1 | Q180: 86.06608479 | R180: 1 | S180: 0 | T180: 0 | U180: 0 | V180: 0 | W180: 0 | X180: 0 | Y180: 0 | Z180: 1 | AA180: 2 | AB180: 1 | AC180: 1
B181: VIELSALM | C181: 5905 | D181: 5282 | E181: 89.44961897 | F181: 427 | G181: 7.231160034 | H181: 4855 | I181: 82.21845893 | J181: 19 | K181: 623 | L181: 10.55038103 | M181: 1050 | N181: 17.78154107 | O181: 3 | P181: 1 | Q181: 45.09737511 | R181: 0 | S181: 0 | T181: 0 | U181: 0 | V181: 0 | W181: 0 | X181: 1 | Y181: 1 | Z181: 1 | AA181: 3 | AB181: 1 | AC181: 1
B182: VILLERS-LA-VILLE | C182: 8010 | D182: 7381 | E182: 92.14731586 | F182: 339 | G182: 4.232209738 | H182: 7042 | I182: 87.91510612 | J182: 21 | K182: 629 | L182: 7.852684145 | M182: 968 | N182: 12.08489388 | O182: 3 | P182: 1 | Q182: 53.04619226 | R182: 1 | S182: 0 | T182: 0 | U182: 0 | V182: 0 | W182: 0 | X182: 1 | Y182: 1 | Z182: 1 | AA182: 2 | AB182: 1 | AC182: 1
B183: VRESSE-SUR-SEMOIS | C183: 2074 | D183: 1876 | E183: 90.45323047 | F183: 96 | G183: 4.628736741 | H183: 1780 | I183: 85.82449373 | J183: 11 | K183: 198 | L183: 9.546769527 | M183: 294 | N183: 14.17550627 | O183: 2 | P183: 1 | Q183: 49.51783992 | R183: 0 | S183: 0 | T183: 0 | U183: 0 | V183: 0 | W183: 0 | X183: 0 | Y183: 0 | Z183: 1 | AA183: 1 | AB183: 1 | AC183: 1
B184: WAIMES | C184: 5669 | D184: 5039 | E184: 88.88692891 | F184: 352 | G184: 6.209207973 | H184: 4687 | I184: 82.67772094 | J184: 19 | K184: 630 | L184: 11.11307109 | M184: 982 | N184: 17.32227906 | O184: 2 | P184: 1 | Q184: 52.19615452 | R184: 1 | S184: 0 | T184: 0 | U184: 0 | V184: 0 | W184: 0 | X184: 1 | Y184: 1 | Z184: 1 | AA184: 2 | AB184: 1 | AC184: 1
B185: WANZE | C185: 10523 | D185: 9333 | E185: 88.6914378 | F185: 556 | G185: 5.283664354 | H185: 8777 | I185: 83.40777345 | J185: 23 | K185: 1190 | L185: 11.3085622 | M185: 1746 | N185: 16.59222655 | O185: 5 | P185: 1 | Q185: 44.46450632 | R185: 0 | S185: 0 | T185: 0 | U185: 0 | V185: 0 | W185: 0 | X185: 2 | Y185: 1 | Z185: 1 | AA185: 4 | AB185: 1 | AC185: 1
B186: WAREMME | C186: 11931 | D186: 10504 | E186: 88.03956081 | F186: 830 | G186: 6.956667505 | H186: 9674 | I186: 81.0828933 | J186: 25 | K186: 1427 | L186: 11.96043919 | M186: 2257 | N186: 18.9171067 | O186: 4 | P186: 1 | Q186: 40.68393261 | R186: 0 | S186: 0 | T186: 0 | U186: 0 | V186: 1 | W186: 1 | X186: 2 | Y186: 1 | Z186: 0 | AA186: 5 | AB186: 1 | AC186: 0
B187: WASSEIGES | C187: 2212 | D187: 2070 | E187: 93.58047016 | F187: 82 | G187: 3.707052441 | H187: 1988 | I187: 89.87341772 | J187: 11 | K187: 142 | L187: 6.419529837 | M187: 224 | N187: 10.12658228 | O187: 3 | P187: 1 | Q187: 48.14647378 | R187: 0 | S187: 0 | T187: 0 | U187: 0 | V187: 0 | W187: 0 | X187: 0 | Y187: 0 | Z187: 1 | AA187: 0 | AB187: 0 | AC187: 1
B188: WATERLOO | C188: 20711 | D188: 18024 | E188: 87.02621795 | F188: 644 | G188: 3.109458742 | H188: 17380 | I188: 83.91675921 | J188: 31 | K188: 2687 | L188: 12.97378205 | M188: 3331 | N188: 16.08324079 | O188: 5 | P188: 1 | Q188: 54.95147506 | R188: 1 | S188: 0 | T188: 0 | U188: 0 | V188: 0 | W188: 0 | X188: 4 | Y188: 1 | Z188: 1 | AA188: 5 | AB188: 1 | AC188: 1
B189: WAVRE | C189: 25078 | D189: 21711 | E189: 86.57388946 | F189: 1434 | G189: 5.718159343 | H189: 20277 | I189: 80.85573012 | J189: 31 | K189: 3367 | L189: 13.42611054 | M189: 4801 | N189: 19.14426988 | O189: 9 | P189: 1 | Q189: 32.85349709 | R189: 0 | S189: 1 | T189: 41.80157907 | U189: 0 | V189: 1 | W189: 1 | X189: 5 | Y189: 1 | Z189: 0 | AA189: 7 | AB189: 1 | AC189: 0
B190: WELLIN | C190: 2409 | D190: 2196 | E190: 91.15815691 | F190: 84 | G190: 3.486924035 | H190: 2112 | I190: 87.67123288 | J190: 13 | K190: 213 | L190: 8.841843088 | M190: 297 | N190: 12.32876712 | O190: 3 | P190: 1 | Q190: 51.22457451 | R190: 1 | S190: 0 | T190: 0 | U190: 0 | V190: 0 | W190: 0 | X190: 0 | Y190: 0 | Z190: 1 | AA190: 1 | AB190: 1 | AC190: 1
B191: AISEAU-PRESLES | C191: 7907 | D191: 7235 | E191: 91.50120147 | F191: 632 | G191: 7.992917668 | H191: 6603 | I191: 83.5082838 | J191: 21 | K191: 672 | L191: 8.498798533 | M191: 1304 | N191: 16.4917162 | O191: 5 | P191: 0 | Q191: 0 | R191: 0 | S191: 1 | T191: 41.73517137 | U191: 0 | V191: 1 | W191: 1 | X191: 1 | Y191: 1 | Z191: 0 | AA191: 3 | AB191: 1 | AC191: 0
B192: ARLON | C192: 20346 | D192: 18144 | E192: 89.17723385 | F192: 1681 | G192: 8.262066254 | H192: 16463 | I192: 80.9151676 | J192: 29 | K192: 2202 | L192: 10.82276615 | M192: 3883 | N192: 19.0848324 | O192: 4 | P192: 0 | Q192: 0 | R192: 0 | S192: 1 | T192: 49.78374128 | U192: 0 | V192: 2 | W192: 1 | X192: 3 | Y192: 1 | Z192: 0 | AA192: 6 | AB192: 1 | AC192: 0
B193: ASSESSE | C193: 5253 | D193: 4872 | E193: 92.74700171 | F193: 254 | G193: 4.835332191 | H193: 4618 | I193: 87.91166952 | J193: 17 | K193: 381 | L193: 7.252998287 | M193: 635 | N193: 12.08833048 | O193: 7 | P193: 0 | Q193: 0 | R193: 0 | S193: 1 | T193: 40.56729488 | U193: 0 | V193: 0 | W193: 0 | X193: 1 | Y193: 1 | Z193: 0 | AA193: 2 | AB193: 1 | AC193: 0
B194: ATH | C194: =Inscrits(B194) -> 22730 | D194: =BDEPOSES(B194) -> 20717 | E194: =100/C194*D194 -> 91.14386274 | F194: =BBN(B194) -> 1246 | G194: =100/C194*F194 -> 5.481742191 | H194: =VOTESV(B194) -> 19471 | I194: =100/C194*H194 -> 85.66212055 | J194: =SIEGES(B194) -> 29 | K194: =C194-D194 -> 2013 | L194: =100/C194*K194 -> 8.856137264 | M194: =C194-H194 -> 3259 | N194: =(100/C194)*M194 -> 14.33787945 | O194: =NBL(B194) -> 6 | P194: =Maj_abs_tab1(B194) -> 0 | Q194: =pc_Vx_LUMA(B194) -> 0 | R194: =IF(Q194>50,1,0) -> 0 | S194: =Nbr_Coal(B194) -> 1 | T194: =pc_Vx_Coal(B194) -> 54.49186098 | U194: =IF(T194>50,1,0) -> 1 | V194: =SBN(B194) -> 1 | W194: =IF(V194>0,1,0) -> 1 | X194: =SND(B194) -> 2 | Y194: =IF(X194>0,1,0) -> 1 | Z194: =Maj_abs_tab2(B194) -> 0 | AA194: =SNV(B194) -> 4 | AB194: =IF(AA194>0,1,0) -> 1 | AC194: =Maj_abs_tab3(B194) -> 0
B195: AUBANGE | C195: 9964 | D195: 8862 | E195: 88.94018466 | F195: 1055 | G195: 10.58811722 | H195: 7807 | I195: 78.35206744 | J195: 25 | K195: 1102 | L195: 11.05981534 | M195: 2157 | N195: 21.64793256 | O195: 3 | P195: 0 | Q195: 0 | R195: 0 | S195: 1 | T195: 52.61942995 | U195: 1 | V195: 2 | W195: 1 | X195: 2 | Y195: 1 | Z195: 0 | AA195: 5 | AB195: 1 | AC195: 0
B196: AWANS | C196: 7242 | D196: 6414 | E196: 88.56669428 | F196: 388 | G196: 5.357636012 | H196: 6026 | I196: 83.20905827 | J196: 21 | K196: 828 | L196: 11.43330572 | M196: 1216 | N196: 16.79094173 | O196: 6 | P196: 0 | Q196: 0 | R196: 0 | S196: 1 | T196: 44.43523888 | U196: 0 | V196: 0 | W196: 0 | X196: 2 | Y196: 1 | Z196: 0 | AA196: 3 | AB196: 1 | AC196: 0
B197: BELOEIL | C197: 10520 | D197: 9620 | E197: 91.44486692 | F197: 877 | G197: 8.336501901 | H197: 8743 | I197: 83.10836502 | J197: 23 | K197: 900 | L197: 8.55513308 | M197: 1777 | N197: 16.89163498 | O197: 6 | P197: 0 | Q197: 0 | R197: 0 | S197: 1 | T197: 47.52851711 | U197: 0 | V197: 1 | W197: 1 | X197: 1 | Y197: 1 | Z197: 0 | AA197: 4 | AB197: 1 | AC197: 0
B198: BRAINE-LE-COMTE | C198: 15856 | D198: 14144 | E198: 89.20282543 | F198: 1083 | G198: 6.830221998 | H198: 13061 | I198: 82.37260343 | J198: 27 | K198: 1712 | L198: 10.79717457 | M198: 2795 | N198: 17.62739657 | O198: 4 | P198: 0 | Q198: 0 | R198: 0 | S198: 1 | T198: 52.47225025 | U198: 1 | V198: 1 | W198: 1 | X198: 2 | Y198: 1 | Z198: 0 | AA198: 5 | AB198: 1 | AC198: 0
B199: CHASTRE | C199: 5649 | D199: 5246 | E199: 92.86599398 | F199: 208 | G199: 3.682067623 | H199: 5038 | I199: 89.18392636 | J199: 19 | K199: 403 | L199: 7.134006019 | M199: 611 | N199: 10.81607364 | O199: 3 | P199: 0 | Q199: 0 | R199: 0 | S199: 1 | T199: 58.59444149 | U199: 1 | V199: 0 | W199: 0 | X199: 0 | Y199: 0 | Z199: 0 | AA199: 1 | AB199: 1 | AC199: 0
B200: CHAUMONT-GISTOUX | C200: 8976 | D200: 8133 | E200: 90.60828877 | F200: 366 | G200: 4.077540107 | H200: 7767 | I200: 86.53074866 | J200: 21 | K200: 843 | L200: 9.39171123 | M200: 1209 | N200: 13.46925134 | O200: 3 | P200: 0 | Q200: 0 | R200: 0 | S200: 1 | T200: 55.34759358 | U200: 1 | V200: 0 | W200: 0 | X200: 1 | Y200: 1 | Z200: 0 | AA200: 2 | AB200: 1 | AC200: 0
... 65 more rows

Sheet Tableaux
A2: % Inscrits | C2: % Votes Blancs et nuls | E2: % Votes Blancs Selon Opening the opaque blank box 1/3 | G2: % Bulletins Absentéisme électoral | I2: % Votes Non-valables & Absentéisme électoral
A3: =100/RÉSULTATS!$C$265*SUM(RÉSULTATS!C2:C6) -> 1.911121669 | B3: >40 sièges 18,04% / Inscrits | C3: =100/SUM(RÉSULTATS!C2:C6)*SUM(RÉSULTATS!F2:F6) -> 7.685105874 | E3: =C3/3 -> 2.561701958 | G3: =100/SUM(RÉSULTATS!C2:C6)*SUM(RÉSULTATS!K2:K6) -> 11.13324436 | I3: =100/SUM(RÉSULTATS!C2:C6)*SUM(RÉSULTATS!M2:M6) -> 18.81835023
A4: =100/RÉSULTATS!$C$265*SUM(RÉSULTATS!C7:C18) -> 3.265706861 | B4: >30 sièges <40 14,18% / Inscrits | C4: =100/SUM(RÉSULTATS!C7:C18)*SUM(RÉSULTATS!F7:F18) -> 5.595514263 | E4: =C4/3 -> 1.865171421 | G4: =100/SUM(RÉSULTATS!C7:C18)*SUM(RÉSULTATS!K7:K18) -> 9.691896996 | I4: =100/SUM(RÉSULTATS!C7:C18)*SUM(RÉSULTATS!M7:M18) -> 15.28741126
A5: =100/RÉSULTATS!$C$265*SUM(RÉSULTATS!C19:C65) -> 19.19276133 | B5: >24 sièges <30 26,97% / Inscrits | C5: =100/SUM(RÉSULTATS!C19:C65)*SUM(RÉSULTATS!F19:F65) -> 7.935900284 | E5: =C5/3 -> 2.645300095 | G5: =100/SUM(RÉSULTATS!C19:C65)*SUM(RÉSULTATS!K19:K65) -> 12.26534855 | I5: =100/SUM(RÉSULTATS!C19:C65)*SUM(RÉSULTATS!M19:M65) -> 20.20124883
A6: =100/RÉSULTATS!$C$265*SUM(RÉSULTATS!C66:C127) -> 17.66301886 | B6: >20 sièges <24 20,05% / Inscrits | C6: =100/SUM(RÉSULTATS!C66:C127)*SUM(RÉSULTATS!F66:F127) -> 6.394823792 | E6: =C6/3 -> 2.131607931 | G6: =100/SUM(RÉSULTATS!C66:C127)*SUM(RÉSULTATS!K66:K127) -> 10.2271919 | I6: =100/SUM(RÉSULTATS!C66:C127)*SUM(RÉSULTATS!M66:M127) -> 16.6220157
A7: =100/RÉSULTATS!$C$265*SUM(RÉSULTATS!C128:C263) -> 57.96739128 | B7: >0 sièges <20 19,95% / Inscrits | C7: =100/SUM(RÉSULTATS!C129:C263)*SUM(RÉSULTATS!F128:F263) -> 6.486687584 | E7: =C7/3 -> 2.162229195 | G7: =100/SUM(RÉSULTATS!C128:C263)*SUM(RÉSULTATS!K128:K263) -> 12.05646371 | I7: =100/SUM(RÉSULTATS!C128:C263)*SUM(RÉSULTATS!M128:M263) -> 18.52618776
A8: =SUM(A3:A7) -> 100

Sheet AISEAU-PRESLES
B2: Impériali | AY2: D'Hondt | CV2: Proportionnelle pure
B4: Coalition | C4: x | D4: x
B5: =COUNTA(C5:P5) -> 5 | C5: PS | D5: MR | E5: ECOLO | F5: ACAP6250 | G5: ENSEMBLE | R5: Blancs & Nuls | S5: Non-déposés | T5: =C5 -> PS | U5: MR | V5: ECOLO | W5: ACAP6250 | X5: ENSEMBLE | Y5: =H5 -> 0 | Z5: =I5 -> 0 | AA5: 0 | AB5: 0 | AC5: 0 | AD5: 0 | AE5: 0 | AF5: 0 | AG5: 0 | AI5: Non-valables | AJ5: =C5 -> PS | AK5: MR | AL5: ECOLO | AM5: ACAP6250 | AN5: ENSEMBLE | AO5: =H5 -> 0 | AP5: =I5 -> 0 | AQ5: 0 | AR5: 0 | AS5: 0 | AT5: 0 | AU5: 0 | AV5: 0 | AW5: 0 | AY5: =COUNTA(AZ5:BM5) -> 14 | AZ5: =C5 -> PS | BA5: MR | BB5: ECOLO | BC5: ACAP6250 | BD5: ENSEMBLE | BE5: 0 | BF5: 0 | BG5: 0 | BH5: 0 | BI5: 0 | BJ5: 0 | BK5: 0 | BL5: 0 | BM5: 0 | BO5: Blancs & Nuls | BP5: Non-déposés | BQ5: =C5 -> PS | BR5: MR | BS5: ECOLO | BT5: ACAP6250 | BU5: ENSEMBLE | BV5: 0 | BW5: 0 | BX5: 0 | BY5: 0 | BZ5: 0 | CA5: 0 | CB5: 0 | CC5: 0 | CD5: 0 | CF5: Non-valables | CG5: =AZ5 -> PS | CH5: =BA5 -> MR | CI5: =BB5 -> ECOLO | CJ5: =BC5 -> ACAP6250 | CK5: =BD5 -> ENSEMBLE | CL5: =BE5 -> 0 | CM5: =BF5 -> 0 | CN5: 0 | CO5: 0 | CP5: 0 | CQ5: 0 | CR5: 0 | CS5: 0 | CT5: 0 | CV5: New Key | CW5: Blancs & Nuls | CX5: Non-déposés | CY5: =C5 -> PS | CZ5: MR | DA5: ECOLO | DB5: ACAP6250 | DC5: ENSEMBLE | DD5: 0 | DE5: 0 | DF5: 0 | DG5: 0 | DH5: 0 | DI5: 0 | DJ5: 0 | DK5: 0 | DL5: 0
B6: Chiffres électoraux | C6: 2751 | D6: 549 | E6: 479 | F6: 579 | G6: 2245 | R6: =C67 -> 632 | S6: =C65-C66 -> 672 | T6: 2751 | U6: 549 | V6: 479 | W6: 579 | X6: 2245 | Y6: =H6 -> 0 | Z6: 0 | AA6: 0 | AB6: 0 | AC6: 0 | AD6: 0 | AE6: 0 | AF6: 0 | AG6: 0 | AI6: =R6+S6 -> 1304 | AJ6: 2751 | AK6: 549 | AL6: 479 | AM6: 579 | AN6: 2245 | AO6: =H6 -> 0 | AP6: 0 | AQ6: 0 | AR6: 0 | AS6: 0 | AT6: 0 | AU6: 0 | AV6: 0 | AW6: 0 | AY6: Chiffres électoraux | AZ6: 2751 | BA6: 549 | BB6: 479 | BC6: 579 | BD6: 2245 | BE6: 0 | BF6: 0 | BG6: 0 | BH6: 0 | BI6: 0 | BJ6: 0 | BK6: 0 | BL6: 0 | BM6: 0 | BO6: =C67 -> 632 | BP6: =C65-C66 -> 672 | BQ6: 2751 | BR6: 549 | BS6: 479 | BT6: 579 | BU6: 2245 | BV6: 0 | BW6: 0 | BX6: 0 | BY6: 0 | BZ6: 0 | CA6: 0 | CB6: 0 | CC6: 0 | CD6: 0 | CF6: =BO6+BP6 -> 1304 | CG6: 2751 | CH6: 549 | CI6: 479 | CJ6: 579 | CK6: 2245 | CL6: =BE6 -> 0 | CM6: 0 | CN6: 0 | CO6: 0 | CP6: 0 | CQ6: 0 | CR6: 0 | CS6: 0 | CT6: 0 | CW6: =C67 -> 632 | CX6: =C65-C66 -> 672 | CY6: 2751 | CZ6: 549 | DA6: 479 | DB6: 579 | DC6: 2245 | DD6: 0 | DE6: 0 | DF6: 0 | DG6: 0 | DH6: 0 | DI6: 0 | DJ6: 0 | DK6: 0 | DL6: 0
B7: Sièges | C7: 10 | D7: 1 | E7: 1 | F7: 1 | G7: 8 | H7: 0 | I7: 0 | J7: 0 | K7: 0 | L7: 0 | M7: 0 | N7: 0 | O7: 0 | P7: 0 | R7: 1 | S7: 1 | T7: 10 | U7: 1 | V7: 0 | W7: 1 | X7: 7 | Y7: 0 | Z7: 0 | AA7: 0 | AB7: 0 | AC7: 0 | AD7: 0 | AE7: 0 | AF7: 0 | AG7: 0 | AI7: 3 | AJ7: 9 | AK7: 1 | AL7: 0 | AM7: 1 | AN7: 7 | AO7: 0 | AP7: 0 | AQ7: 0 | AR7: 0 | AS7: 0 | AT7: 0 | AU7: 0 | AV7: 0 | AW7: 0 | AY7: 0 | AZ7: 9 | BA7: 1 | BB7: 1 | BC7: 2 | BD7: 8 | BE7: 0 | BF7: 0 | BG7: 0 | BH7: 0 | BI7: 0 | BJ7: 0 | BK7: 0 | BL7: 0 | BM7: 0 | BO7: 1 | BP7: 2 | BQ7: 8 | BR7: 1 | BS7: 1 | BT7: 1 | BU7: 7 | BV7: 0 | BW7: 0 | BX7: 0 | BY7: 0 | BZ7: 0 | CA7: 0 | CB7: 0 | CC7: 0 | CD7: 0 | CF7: 4 | CG7: 8 | CH7: 1 | CI7: 1 | CJ7: 1 | CK7: 6 | CL7: 0 | CM7: 0 | CN7: 0 | CO7: 0 | CP7: 0 | CQ7: 0 | CR7: 0 | CS7: 0 | CT7: 0 | CV7: =C65/C64 -> 376.5238095 | CW7: =CW6/$CV$7 -> 1.67851271 | CX7: 1.784747692 | CY7: 7.306310864 | CZ7: 1.458075123 | DA7: 1.272163905 | DB7: 1.53775136 | DC7: 5.962438346 | DD7: 0 | DE7: 0 | DF7: 0 | DG7: 0 | DH7: 0 | DI7: 0 | DJ7: 0 | DK7: 0 | DL7: 0
B8: 2 | C8: =$C$6/B8 -> 1375.5 | D8: =$D$6/B8 -> 274.5 | E8: =$E$6/B8 -> 239.5 | F8: =$F$6/B8 -> 289.5 | G8: =$G$6/B8 -> 1122.5 | H8: =$H$6/B8 -> 0 | I8: =$I$6/B8 -> 0 | J8: =$J$6/B8 -> 0 | K8: =$K$6/B8 -> 0 | L8: =$L$6/B8 -> 0 | M8: =$M$6/B8 -> 0 | N8: =$N$6/B8 -> 0 | O8: =$O$6/B8 -> 0 | P8: =$P$6/B8 -> 0 | R8: =$R$6/B8 -> 316 | S8: =$S$6/B8 -> 336 | T8: =C8 -> 1375.5 | U8: =D8 -> 274.5 | V8: =E8 -> 239.5 | W8: =F8 -> 289.5 | X8: =G8 -> 1122.5 | Y8: =H8 -> 0 | Z8: =I8 -> 0 | AA8: =J8 -> 0 | AB8: =K8 -> 0 | AC8: =L8 -> 0 | AD8: =M8 -> 0 | AE8: 0 | AF8: =O8 -> 0 | AG8: =P8 -> 0 | AI8: =$AI$6/B8 -> 652 | AJ8: =C8 -> 1375.5 | AK8: =D8 -> 274.5 | AL8: =E8 -> 239.5 | AM8: =F8 -> 289.5 | AN8: =G8 -> 1122.5 | AO8: =H8 -> 0 | AP8: =I8 -> 0 | AQ8: =J8 -> 0 | AR8: =K8 -> 0 | AS8: =L8 -> 0 | AT8: =M8 -> 0 | AU8: 0 | AV8: =O8 -> 0 | AW8: =P8 -> 0 | AY8: 1 | AZ8: =$AZ$6/AY8 -> 2751 | BA8: =$BA$6/AY8 -> 549 | BB8: =$BB$6/AY8 -> 479 | BC8: =$BC$6/AY8 -> 579 | BD8: =$BD$6/AY8 -> 2245 | BE8: =$BE$6/AY8 -> 0 | BF8: =$BF$6/AY8 -> 0 | BG8: =$BG$6/AY8 -> 0 | BH8: =$BH$6/AY8 -> 0 | BI8: =$BI$6/AY8 -> 0 | BJ8: =$BJ$6/AY8 -> 0 | BK8: =$BK$6/AY8 -> 0 | BL8: =$BL$6/AY8 -> 0 | BM8: =$BM$6/AY8 -> 0 | BO8: =$BO$6/AY8 -> 632 | BP8: =$BP$6/AY8 -> 672 | BQ8: =AZ8 -> 2751 | BR8: =BA8 -> 549 | BS8: 479 | BT8: 579 | BU8: 2245 | BV8: 0 | BW8: 0 | BX8: 0 | BY8: 0 | BZ8: 0 | CA8: 0 | CB8: 0 | CC8: 0 | CD8: 0 | CF8: =$CF$6/AY8 -> 1304 | CG8: =AZ8 -> 2751 | CH8: =BA8 -> 549 | CI8: =BB8 -> 479 | CJ8: =BC8 -> 579 | CK8: =BD8 -> 2245 | CL8: =BE8 -> 0 | CM8: =BF8 -> 0 | CN8: =BG8 -> 0 | CO8: =BH8 -> 0 | CP8: =BI8 -> 0 | CQ8: =BJ8 -> 0 | CR8: =BK8 -> 0 | CS8: =BL8 -> 0 | CT8: =BM8 -> 0
B9: 3 | C9: =$C$6/B9 -> 917 | D9: 183 | E9: =$E$6/B9 -> 159.6666667 | F9: 193 | G9: 748.3333333 | H9: =$H$6/B9 -> 0 | I9: =$I$6/B9 -> 0 | J9: =$J$6/B9 -> 0 | K9: =$K$6/B9 -> 0 | L9: =$L$6/B9 -> 0 | M9: 0 | N9: =$N$6/B9 -> 0 | O9: =$O$6/B9 -> 0 | P9: =$P$6/B9 -> 0 | R9: =$R$6/B9 -> 210.6666667 | S9: =$S$6/B9 -> 224 | T9: 917 | U9: 183 | V9: 159.6666667 | W9: 193 | X9: 748.3333333 | Y9: 0 | Z9: 0 | AA9: 0 | AB9: 0 | AC9: 0 | AD9: 0 | AE9: 0 | AF9: 0 | AG9: 0 | AI9: =$AI$6/B9 -> 434.6666667 | AJ9: 917 | AK9: 183 | AL9: 159.6666667 | AM9: 193 | AN9: 748.3333333 | AO9: 0 | AP9: 0 | AQ9: 0 | AR9: 0 | AS9: 0 | AT9: 0 | AU9: 0 | AV9: 0 | AW9: 0 | AY9: 2 | AZ9: =$AZ$6/AY9 -> 1375.5 | BA9: =$BA$6/AY9 -> 274.5 | BB9: =$BB$6/AY9 -> 239.5 | BC9: =$BC$6/AY9 -> 289.5 | BD9: =$BD$6/AY9 -> 1122.5 | BE9: =$BE$6/AY9 -> 0 | BF9: =$BF$6/AY9 -> 0 | BG9: =$BG$6/AY9 -> 0 | BH9: =$BH$6/AY9 -> 0 | BI9: =$BI$6/AY9 -> 0 | BJ9: =$BJ$6/AY9 -> 0 | BK9: =$BK$6/AY9 -> 0 | BL9: =$BL$6/AY9 -> 0 | BM9: =$BM$6/AY9 -> 0 | BO9: =$BO$6/AY9 -> 316 | BP9: =$BP$6/AY9 -> 336 | BQ9: =AZ9 -> 1375.5 | BR9: 274.5 | BS9: 239.5 | BT9: 289.5 | BU9: 1122.5 | BV9: 0 | BW9: 0 | BX9: 0 | BY9: 0 | BZ9: 0 | CA9: 0 | CB9: 0 | CC9: 0 | CD9: 0 | CF9: =$CF$6/AY9 -> 652 | CG9: 1375.5 | CH9: 274.5 | CI9: 239.5 | CJ9: 289.5 | CK9: 1122.5 | CL9: 0 | CM9: 0 | CN9: 0 | CO9: 0 | CP9: 0 | CQ9: 0 | CR9: 0 | CS9: 0 | CT9: 0
B10: 4 | C10: 687.75 | D10: 137.25 | E10: 119.75 | F10: 144.75 | G10: 561.25 | H10: 0 | I10: 0 | J10: 0 | K10: 0 | L10: 0 | M10: 0 | N10: 0 | O10: 0 | P10: 0 | R10: 158 | S10: 168 | T10: 687.75 | U10: 137.25 | V10: 119.75 | W10: 144.75 | X10: 561.25 | Y10: 0 | Z10: 0 | AA10: 0 | AB10: 0 | AC10: 0 | AD10: 0 | AE10: 0 | AF10: 0 | AG10: 0 | AI10: 326 | AJ10: 687.75 | AK10: 137.25 | AL10: 119.75 | AM10: 144.75 | AN10: 561.25 | AO10: 0 | AP10: 0 | AQ10: 0 | AR10: 0 | AS10: 0 | AT10: 0 | AU10: 0 | AV10: 0 | AW10: 0 | AY10: 3 | AZ10: 917 | BA10: 183 | BB10: 159.6666667 | BC10: 193 | BD10: 748.3333333 | BE10: 0 | BF10: 0 | BG10: 0 | BH10: 0 | BI10: 0 | BJ10: 0 | BK10: 0 | BL10: 0 | BM10: 0 | BO10: 210.6666667 | BP10: 224 | BQ10: 917 | BR10: 183 | BS10: 159.6666667 | BT10: 193 | BU10: 748.3333333 | BV10: 0 | BW10: 0 | BX10: 0 | BY10: 0 | BZ10: 0 | CA10: 0 | CB10: 0 | CC10: 0 | CD10: 0 | CF10: 434.6666667 | CG10: 917 | CH10: 183 | CI10: 159.6666667 | CJ10: 193 | CK10: 748.3333333 | CL10: 0 | CM10: 0 | CN10: 0 | CO10: 0 | CP10: 0 | CQ10: 0 | CR10: 0 | CS10: 0 | CT10: 0
B11: 5 | C11: 550.2 | D11: 109.8 | E11: 95.8 | F11: 115.8 | G11: 449 | H11: 0 | I11: 0 | J11: 0 | K11: 0 | L11: 0 | M11: 0 | N11: 0 | O11: 0 | P11: 0 | R11: 126.4 | S11: 134.4 | T11: 550.2 | U11: 109.8 | V11: 95.8 | W11: 115.8 | X11: 449 | Y11: 0 | Z11: 0 | AA11: 0 | AB11: 0 | AC11: 0 | AD11: 0 | AE11: 0 | AF11: 0 | AG11: 0 | AI11: 260.8 | AJ11: 550.2 | AK11: 109.8 | AL11: 95.8 | AM11: 115.8 | AN11: 449 | AO11: 0 | AP11: 0 | AQ11: 0 | AR11: 0 | AS11: 0 | AT11: 0 | AU11: 0 | AV11: 0 | AW11: 0 | AY11: 4 | AZ11: 687.75 | BA11: 137.25 | BB11: 119.75 | BC11: 144.75 | BD11: 561.25 | BE11: 0 | BF11: 0 | BG11: 0 | BH11: 0 | BI11: 0 | BJ11: 0 | BK11: 0 | BL11: 0 | BM11: 0 | BO11: 158 | BP11: 168 | BQ11: 687.75 | BR11: 137.25 | BS11: 119.75 | BT11: 144.75 | BU11: 561.25 | BV11: 0 | BW11: 0 | BX11: 0 | BY11: 0 | BZ11: 0 | CA11: 0 | CB11: 0 | CC11: 0 | CD11: 0 | CF11: 326 | CG11: 687.75 | CH11: 137.25 | CI11: 119.75 | CJ11: 144.75 | CK11: 561.25 | CL11: 0 | CM11: 0 | CN11: 0 | CO11: 0 | CP11: 0 | CQ11: 0 | CR11: 0 | CS11: 0 | CT11: 0
B12: 6 | C12: 458.5 | D12: 91.5 | E12: 79.83333333 | F12: 96.5 | G12: 374.1666667 | H12: 0 | I12: 0 | J12: 0 | K12: 0 | L12: 0 | M12: 0 | N12: 0 | O12: 0 | P12: 0 | R12: 105.3333333 | S12: 112 | T12: 458.5 | U12: 91.5 | V12: 79.83333333 | W12: 96.5 | X12: 374.1666667 | Y12: 0 | Z12: 0 | AA12: 0 | AB12: 0 | AC12: 0 | AD12: 0 | AE12: 0 | AF12: 0 | AG12: 0 | AI12: 217.3333333 | AJ12: 458.5 | AK12: 91.5 | AL12: 79.83333333 | AM12: 96.5 | AN12: 374.1666667 | AO12: 0 | AP12: 0 | AQ12: 0 | AR12: 0 | AS12: 0 | AT12: 0 | AU12: 0 | AV12: 0 | AW12: 0 | AY12: 5 | AZ12: 550.2 | BA12: 109.8 | BB12: 95.8 | BC12: 115.8 | BD12: 449 | BE12: 0 | BF12: 0 | BG12: 0 | BH12: 0 | BI12: 0 | BJ12: 0 | BK12: 0 | BL12: 0 | BM12: 0 | BO12: 126.4 | BP12: 134.4 | BQ12: 550.2 | BR12: 109.8 | BS12: 95.8 | BT12: 115.8 | BU12: 449 | BV12: 0 | BW12: 0 | BX12: 0 | BY12: 0 | BZ12: 0 | CA12: 0 | CB12: 0 | CC12: 0 | CD12: 0 | CF12: 260.8 | CG12: 550.2 | CH12: 109.8 | CI12: 95.8 | CJ12: 115.8 | CK12: 449 | CL12: 0 | CM12: 0 | CN12: 0 | CO12: 0 | CP12: 0 | CQ12: 0 | CR12: 0 | CS12: 0 | CT12: 0
B13: 7 | C13: 393 | D13: 78.42857143 | E13: 68.42857143 | F13: 82.71428571 | G13: 320.7142857 | H13: 0 | I13: 0 | J13: 0 | K13: 0 | L13: 0 | M13: 0 | N13: 0 | O13: 0 | P13: 0 | R13: 90.28571429 | S13: 96 | T13: 393 | U13: 78.42857143 | V13: 68.42857143 | W13: 82.71428571 | X13: 320.7142857 | Y13: 0 | Z13: 0 | AA13: 0 | AB13: 0 | AC13: 0 | AD13: 0 | AE13: 0 | AF13: 0 | AG13: 0 | AI13: 186.2857143 | AJ13: 393 | AK13: 78.42857143 | AL13: 68.42857143 | AM13: 82.71428571 | AN13: 320.7142857 | AO13: 0 | AP13: 0 | AQ13: 0 | AR13: 0 | AS13: 0 | AT13: 0 | AU13: 0 | AV13: 0 | AW13: 0 | AY13: 6 | AZ13: 458.5 | BA13: 91.5 | BB13: 79.83333333 | BC13: 96.5 | BD13: 374.1666667 | BE13: 0 | BF13: 0 | BG13: 0 | BH13: 0 | BI13: 0 | BJ13: 0 | BK13: 0 | BL13: 0 | BM13: 0 | BO13: 105.3333333 | BP13: 112 | BQ13: 458.5 | BR13: 91.5 | BS13: 79.83333333 | BT13: 96.5 | BU13: 374.1666667 | BV13: 0 | BW13: 0 | BX13: 0 | BY13: 0 | BZ13: 0 | CA13: 0 | CB13: 0 | CC13: 0 | CD13: 0 | CF13: 217.3333333 | CG13: 458.5 | CH13: 91.5 | CI13: 79.83333333 | CJ13: 96.5 | CK13: 374.1666667 | CL13: 0 | CM13: 0 | CN13: 0 | CO13: 0 | CP13: 0 | CQ13: 0 | CR13: 0 | CS13: 0 | CT13: 0
B14: 8 | C14: 343.875 | D14: 68.625 | E14: 59.875 | F14: 72.375 | G14: 280.625 | H14: 0 | I14: 0 | J14: 0 | K14: 0 | L14: 0 | M14: 0 | N14: 0 | O14: 0 | P14: 0 | R14: 79 | S14: 84 | T14: 343.875 | U14: 68.625 | V14: 59.875 | W14: 72.375 | X14: 280.625 | Y14: 0 | Z14: 0 | AA14: 0 | AB14: 0 | AC14: 0 | AD14: 0 | AE14: 0 | AF14: 0 | AG14: 0 | AI14: 163 | AJ14: 343.875 | AK14: 68.625 | AL14: 59.875 | AM14: 72.375 | AN14: 280.625 | AO14: 0 | AP14: 0 | AQ14: 0 | AR14: 0 | AS14: 0 | AT14: 0 | AU14: 0 | AV14: 0 | AW14: 0 | AY14: 7 | AZ14: 393 | BA14: 78.42857143 | BB14: 68.42857143 | BC14: 82.71428571 | BD14: 320.7142857 | BE14: 0 | BF14: 0 | BG14: 0 | BH14: 0 | BI14: 0 | BJ14: 0 | BK14: 0 | BL14: 0 | BM14: 0 | BO14: 90.28571429 | BP14: 96 | BQ14: 393 | BR14: 78.42857143 | BS14: 68.42857143 | BT14: 82.71428571 | BU14: 320.7142857 | BV14: 0 | BW14: 0 | BX14: 0 | BY14: 0 | BZ14: 0 | CA14: 0 | CB14: 0 | CC14: 0 | CD14: 0 | CF14: 186.2857143 | CG14: 393 | CH14: 78.42857143 | CI14: 68.42857143 | CJ14: 82.71428571 | CK14: 320.7142857 | CL14: 0 | CM14: 0 | CN14: 0 | CO14: 0 | CP14: 0 | CQ14: 0 | CR14: 0 | CS14: 0 | CT14: 0
B15: 9 | C15: 305.6666667 | D15: 61 | E15: 53.22222222 | F15: 64.33333333 | G15: 249.4444444 | H15: 0 | I15: 0 | J15: 0 | K15: 0 | L15: 0 | M15: 0 | N15: 0 | O15: 0 | P15: 0 | R15: 70.22222222 | S15: 74.66666667 | T15: 305.6666667 | U15: 61 | V15: 53.22222222 | W15: 64.33333333 | X15: 249.4444444 | Y15: 0 | Z15: 0 | AA15: 0 | AB15: 0 | AC15: 0 | AD15: 0 | AE15: 0 | AF15: 0 | AG15: 0 | AI15: 144.8888889 | AJ15: 305.6666667 | AK15: 61 | AL15: 53.22222222 | AM15: 64.33333333 | AN15: 249.4444444 | AO15: 0 | AP15: 0 | AQ15: 0 | AR15: 0 | AS15: 0 | AT15: 0 | AU15: 0 | AV15: 0 | AW15: 0 | AY15: 8 | AZ15: 343.875 | BA15: 68.625 | BB15: 59.875 | BC15: 72.375 | BD15: 280.625 | BE15: 0 | BF15: 0 | BG15: 0 | BH15: 0 | BI15: 0 | BJ15: 0 | BK15: 0 | BL15: 0 | BM15: 0 | BO15: 79 | BP15: 84 | BQ15: 343.875 | BR15: 68.625 | BS15: 59.875 | BT15: 72.375 | BU15: 280.625 | BV15: 0 | BW15: 0 | BX15: 0 | BY15: 0 | BZ15: 0 | CA15: 0 | CB15: 0 | CC15: 0 | CD15: 0 | CF15: 163 | CG15: 343.875 | CH15: 68.625 | CI15: 59.875 | CJ15: 72.375 | CK15: 280.625 | CL15: 0 | CM15: 0 | CN15: 0 | CO15: 0 | CP15: 0 | CQ15: 0 | CR15: 0 | CS15: 0 | CT15: 0
B16: 10 | C16: 275.1 | D16: 54.9 | E16: 47.9 | F16: 57.9 | G16: 224.5 | H16: 0 | I16: 0 | J16: 0 | K16: 0 | L16: 0 | M16: 0 | N16: 0 | O16: 0 | P16: 0 | R16: 63.2 | S16: 67.2 | T16: 275.1 | U16: 54.9 | V16: 47.9 | W16: 57.9 | X16: 224.5 | Y16: 0 | Z16: 0 | AA16: 0 | AB16: 0 | AC16: 0 | AD16: 0 | AE16: 0 | AF16: 0 | AG16: 0 | AI16: 130.4 | AJ16: 275.1 | AK16: 54.9 | AL16: 47.9 | AM16: 57.9 | AN16: 224.5 | AO16: 0 | AP16: 0 | AQ16: 0 | AR16: 0 | AS16: 0 | AT16: 0 | AU16: 0 | AV16: 0 | AW16: 0 | AY16: 9 | AZ16: 305.6666667 | BA16: 61 | BB16: 53.22222222 | BC16: 64.33333333 | BD16: 249.4444444 | BE16: 0 | BF16: 0 | BG16: 0 | BH16: 0 | BI16: 0 | BJ16: 0 | BK16: 0 | BL16: 0 | BM16: 0 | BO16: 70.22222222 | BP16: 74.66666667 | BQ16: 305.6666667 | BR16: 61 | BS16: 53.22222222 | BT16: 64.33333333 | BU16: 249.4444444 | BV16: 0 | BW16: 0 | BX16: 0 | BY16: 0 | BZ16: 0 | CA16: 0 | CB16: 0 | CC16: 0 | CD16: 0 | CF16: 144.8888889 | CG16: 305.6666667 | CH16: 61 | CI16: 53.22222222 | CJ16: 64.33333333 | CK16: 249.4444444 | CL16: 0 | CM16: 0 | CN16: 0 | CO16: 0 | CP16: 0 | CQ16: 0 | CR16: 0 | CS16: 0 | CT16: 0
B17: 11 | C17: 250.0909091 | D17: 49.90909091 | E17: 43.54545455 | F17: 52.63636364 | G17: 204.0909091 | H17: 0 | I17: 0 | J17: 0 | K17: 0 | L17: 0 | M17: 0 | N17: 0 | O17: 0 | P17: 0 | R17: 57.45454545 | S17: 61.09090909 | T17: 250.0909091 | U17: 49.90909091 | V17: 43.54545455 | W17: 52.63636364 | X17: 204.0909091 | Y17: 0 | Z17: 0 | AA17: 0 | AB17: 0 | AC17: 0 | AD17: 0 | AE17: 0 | AF17: 0 | AG17: 0 | AI17: 118.5454545 | AJ17: 250.0909091 | AK17: 49.90909091 | AL17: 43.54545455 | AM17: 52.63636364 | AN17: 204.0909091 | AO17: 0 | AP17: 0 | AQ17: 0 | AR17: 0 | AS17: 0 | AT17: 0 | AU17: 0 | AV17: 0 | AW17: 0 | AY17: 10 | AZ17: 275.1 | BA17: 54.9 | BB17: 47.9 | BC17: 57.9 | BD17: 224.5 | BE17: 0 | BF17: 0 | BG17: 0 | BH17: 0 | BI17: 0 | BJ17: 0 | BK17: 0 | BL17: 0 | BM17: 0 | BO17: 63.2 | BP17: 67.2 | BQ17: 275.1 | BR17: 54.9 | BS17: 47.9 | BT17: 57.9 | BU17: 224.5 | BV17: 0 | BW17: 0 | BX17: 0 | BY17: 0 | BZ17: 0 | CA17: 0 | CB17: 0 | CC17: 0 | CD17: 0 | CF17: 130.4 | CG17: 275.1 | CH17: 54.9 | CI17: 47.9 | CJ17: 57.9 | CK17: 224.5 | CL17: 0 | CM17: 0 | CN17: 0 | CO17: 0 | CP17: 0 | CQ17: 0 | CR17: 0 | CS17: 0 | CT17: 0
B18: 12 | C18: 229.25 | D18: 45.75 | E18: 39.91666667 | F18: 48.25 | G18: 187.0833333 | H18: 0 | I18: 0 | J18: 0 | K18: 0 | L18: 0 | M18: 0 | N18: 0 | O18: 0 | P18: 0 | R18: 52.66666667 | S18: 56 | T18: 229.25 | U18: 45.75 | V18: 39.91666667 | W18: 48.25 | X18: 187.0833333 | Y18: 0 | Z18: 0 | AA18: 0 | AB18: 0 | AC18: 0 | AD18: 0 | AE18: 0 | AF18: 0 | AG18: 0 | AI18: 108.6666667 | AJ18: 229.25 | AK18: 45.75 | AL18: 39.91666667 | AM18: 48.25 | AN18: 187.0833333 | AO18: 0 | AP18: 0 | AQ18: 0 | AR18: 0 | AS18: 0 | AT18: 0 | AU18: 0 | AV18: 0 | AW18: 0 | AY18: 11 | AZ18: 250.0909091 | BA18: 49.90909091 | BB18: 43.54545455 | BC18: 52.63636364 | BD18: 204.0909091 | BE18: 0 | BF18: 0 | BG18: 0 | BH18: 0 | BI18: 0 | BJ18: 0 | BK18: 0 | BL18: 0 | BM18: 0 | BO18: 57.45454545 | BP18: 61.09090909 | BQ18: 250.0909091 | BR18: 49.90909091 | BS18: 43.54545455 | BT18: 52.63636364 | BU18: 204.0909091 | BV18: 0 | BW18: 0 | BX18: 0 | BY18: 0 | BZ18: 0 | CA18: 0 | CB18: 0 | CC18: 0 | CD18: 0 | CF18: 118.5454545 | CG18: 250.0909091 | CH18: 49.90909091 | CI18: 43.54545455 | CJ18: 52.63636364 | CK18: 204.0909091 | CL18: 0 | CM18: 0 | CN18: 0 | CO18: 0 | CP18: 0 | CQ18: 0 | CR18: 0 | CS18: 0 | CT18: 0
B19: 13 | C19: 211.6153846 | D19: 42.23076923 | E19: 36.84615385 | F19: 44.53846154 | G19: 172.6923077 | H19: 0 | I19: 0 | J19: 0 | K19: 0 | L19: 0 | M19: 0 | N19: 0 | O19: 0 | P19: 0 | R19: 48.61538462 | S19: 51.69230769 | T19: 211.6153846 | U19: 42.23076923 | V19: 36.84615385 | W19: 44.53846154 | X19: 172.6923077 | Y19: 0 | Z19: 0 | AA19: 0 | AB19: 0 | AC19: 0 | AD19: 0 | AE19: 0 | AF19: 0 | AG19: 0 | AI19: 100.3076923 | AJ19: 211.6153846 | AK19: 42.23076923 | AL19: 36.84615385 | AM19: 44.53846154 | AN19: 172.6923077 | AO19: 0 | AP19: 0 | AQ19: 0 | AR19: 0 | AS19: 0 | AT19: 0 | AU19: 0 | AV19: 0 | AW19: 0 | AY19: 12 | AZ19: 229.25 | BA19: 45.75 | BB19: 39.91666667 | BC19: 48.25 | BD19: 187.0833333 | BE19: 0 | BF19: 0 | BG19: 0 | BH19: 0 | BI19: 0 | BJ19: 0 | BK19: 0 | BL19: 0 | BM19: 0 | BO19: 52.66666667 | BP19: 56 | BQ19: 229.25 | BR19: 45.75 | BS19: 39.91666667 | BT19: 48.25 | BU19: 187.0833333 | BV19: 0 | BW19: 0 | BX19: 0 | BY19: 0 | BZ19: 0 | CA19: 0 | CB19: 0 | CC19: 0 | CD19: 0 | CF19: 108.6666667 | CG19: 229.25 | CH19: 45.75 | CI19: 39.91666667 | CJ19: 48.25 | CK19: 187.0833333 | CL19: 0 | CM19: 0 | CN19: 0 | CO19: 0 | CP19: 0 | CQ19: 0 | CR19: 0 | CS19: 0 | CT19: 0
B20: 14 | C20: 196.5 | D20: 39.21428571 | E20: 34.21428571 | F20: 41.35714286 | G20: 160.3571429 | H20: 0 | I20: 0 | J20: 0 | K20: 0 | L20: 0 | M20: 0 | N20: 0 | O20: 0 | P20: 0 | R20: 45.14285714 | S20: 48 | T20: 196.5 | U20: 39.21428571 | V20: 34.21428571 | W20: 41.35714286 | X20: 160.3571429 | Y20: 0 | Z20: 0 | AA20: 0 | AB20: 0 | AC20: 0 | AD20: 0 | AE20: 0 | AF20: 0 | AG20: 0 | AI20: 93.14285714 | AJ20: 196.5 | AK20: 39.21428571 | AL20: 34.21428571 | AM20: 41.35714286 | AN20: 160.3571429 | AO20: 0 | AP20: 0 | AQ20: 0 | AR20: 0 | AS20: 0 | AT20: 0 | AU20: 0 | AV20: 0 | AW20: 0 | AY20: 13 | AZ20: 211.6153846 | BA20: 42.23076923 | BB20: 36.84615385 | BC20: 44.53846154 | BD20: 172.6923077 | BE20: 0 | BF20: 0 | BG20: 0 | BH20: 0 | BI20: 0 | BJ20: 0 | BK20: 0 | BL20: 0 | BM20: 0 | BO20: 48.61538462 | BP20: 51.69230769 | BQ20: 211.6153846 | BR20: 42.23076923 | BS20: 36.84615385 | BT20: 44.53846154 | BU20: 172.6923077 | BV20: 0 | BW20: 0 | BX20: 0 | BY20: 0 | BZ20: 0 | CA20: 0 | CB20: 0 | CC20: 0 | CD20: 0 | CF20: 100.3076923 | CG20: 211.6153846 | CH20: 42.23076923 | CI20: 36.84615385 | CJ20: 44.53846154 | CK20: 172.6923077 | CL20: 0 | CM20: 0 | CN20: 0 | CO20: 0 | CP20: 0 | CQ20: 0 | CR20: 0 | CS20: 0 | CT20: 0
B21: 15 | C21: 183.4 | D21: 36.6 | E21: 31.93333333 | F21: 38.6 | G21: 149.6666667 | H21: 0 | I21: 0 | J21: 0 | K21: 0 | L21: 0 | M21: 0 | N21: 0 | O21: 0 | P21: 0 | R21: 42.13333333 | S21: 44.8 | T21: 183.4 | U21: 36.6 | V21: 31.93333333 | W21: 38.6 | X21: 149.6666667 | Y21: 0 | Z21: 0 | AA21: 0 | AB21: 0 | AC21: 0 | AD21: 0 | AE21: 0 | AF21: 0 | AG21: 0 | AI21: 86.93333333 | AJ21: 183.4 | AK21: 36.6 | AL21: 31.93333333 | AM21: 38.6 | AN21: 149.6666667 | AO21: 0 | AP21: 0 | AQ21: 0 | AR21: 0 | AS21: 0 | AT21: 0 | AU21: 0 | AV21: 0 | AW21: 0 | AY21: 14 | AZ21: 196.5 | BA21: 39.21428571 | BB21: 34.21428571 | BC21: 41.35714286 | BD21: 160.3571429 | BE21: 0 | BF21: 0 | BG21: 0 | BH21: 0 | BI21: 0 | BJ21: 0 | BK21: 0 | BL21: 0 | BM21: 0 | BO21: 45.14285714 | BP21: 48 | BQ21: 196.5 | BR21: 39.21428571 | BS21: 34.21428571 | BT21: 41.35714286 | BU21: 160.3571429 | BV21: 0 | BW21: 0 | BX21: 0 | BY21: 0 | BZ21: 0 | CA21: 0 | CB21: 0 | CC21: 0 | CD21: 0 | CF21: 93.14285714 | CG21: 196.5 | CH21: 39.21428571 | CI21: 34.21428571 | CJ21: 41.35714286 | CK21: 160.3571429 | CL21: 0 | CM21: 0 | CN21: 0 | CO21: 0 | CP21: 0 | CQ21: 0 | CR21: 0 | CS21: 0 | CT21: 0
B22: 16 | C22: 171.9375 | D22: 34.3125 | E22: 29.9375 | F22: 36.1875 | G22: 140.3125 | H22: 0 | I22: 0 | J22: 0 | K22: 0 | L22: 0 | M22: 0 | N22: 0 | O22: 0 | P22: 0 | R22: 39.5 | S22: 42 | T22: 171.9375 | U22: 34.3125 | V22: 29.9375 | W22: 36.1875 | X22: 140.3125 | Y22: 0 | Z22: 0 | AA22: 0 | AB22: 0 | AC22: 0 | AD22: 0 | AE22: 0 | AF22: 0 | AG22: 0 | AI22: 81.5 | AJ22: 171.9375 | AK22: 34.3125 | AL22: 29.9375 | AM22: 36.1875 | AN22: 140.3125 | AO22: 0 | AP22: 0 | AQ22: 0 | AR22: 0 | AS22: 0 | AT22: 0 | AU22: 0 | AV22: 0 | AW22: 0 | AY22: 15 | AZ22: 183.4 | BA22: 36.6 | BB22: 31.93333333 | BC22: 38.6 | BD22: 149.6666667 | BE22: 0 | BF22: 0 | BG22: 0 | BH22: 0 | BI22: 0 | BJ22: 0 | BK22: 0 | BL22: 0 | BM22: 0 | BO22: 42.13333333 | BP22: 44.8 | BQ22: 183.4 | BR22: 36.6 | BS22: 31.93333333 | BT22: 38.6 | BU22: 149.6666667 | BV22: 0 | BW22: 0 | BX22: 0 | BY22: 0 | BZ22: 0 | CA22: 0 | CB22: 0 | CC22: 0 | CD22: 0 | CF22: 86.93333333 | CG22: 183.4 | CH22: 36.6 | CI22: 31.93333333 | CJ22: 38.6 | CK22: 149.6666667 | CL22: 0 | CM22: 0 | CN22: 0 | CO22: 0 | CP22: 0 | CQ22: 0 | CR22: 0 | CS22: 0 | CT22: 0
B23: 17 | C23: 161.8235294 | D23: 32.29411765 | E23: 28.17647059 | F23: 34.05882353 | G23: 132.0588235 | H23: 0 | I23: 0 | J23: 0 | K23: 0 | L23: 0 | M23: 0 | N23: 0 | O23: 0 | P23: 0 | R23: 37.17647059 | S23: 39.52941176 | T23: 161.8235294 | U23: 32.29411765 | V23: 28.17647059 | W23: 34.05882353 | X23: 132.0588235 | Y23: 0 | Z23: 0 | AA23: 0 | AB23: 0 | AC23: 0 | AD23: 0 | AE23: 0 | AF23: 0 | AG23: 0 | AI23: 76.70588235 | AJ23: 161.8235294 | AK23: 32.29411765 | AL23: 28.17647059 | AM23: 34.05882353 | AN23: 132.0588235 | AO23: 0 | AP23: 0 | AQ23: 0 | AR23: 0 | AS23: 0 | AT23: 0 | AU23: 0 | AV23: 0 | AW23: 0 | AY23: 16 | AZ23: 171.9375 | BA23: 34.3125 | BB23: 29.9375 | BC23: 36.1875 | BD23: 140.3125 | BE23: 0 | BF23: 0 | BG23: 0 | BH23: 0 | BI23: 0 | BJ23: 0 | BK23: 0 | BL23: 0 | BM23: 0 | BO23: 39.5 | BP23: 42 | BQ23: 171.9375 | BR23: 34.3125 | BS23: 29.9375 | BT23: 36.1875 | BU23: 140.3125 | BV23: 0 | BW23: 0 | BX23: 0 | BY23: 0 | BZ23: 0 | CA23: 0 | CB23: 0 | CC23: 0 | CD23: 0 | CF23: 81.5 | CG23: 171.9375 | CH23: 34.3125 | CI23: 29.9375 | CJ23: 36.1875 | CK23: 140.3125 | CL23: 0 | CM23: 0 | CN23: 0 | CO23: 0 | CP23: 0 | CQ23: 0 | CR23: 0 | CS23: 0 | CT23: 0
B24: 18 | C24: 152.8333333 | D24: 30.5 | E24: 26.61111111 | F24: 32.16666667 | G24: 124.7222222 | H24: 0 | I24: 0 | J24: 0 | K24: 0 | L24: 0 | M24: 0 | N24: 0 | O24: 0 | P24: 0 | R24: 35.11111111 | S24: 37.33333333 | T24: 152.8333333 | U24: 30.5 | V24: 26.61111111 | W24: 32.16666667 | X24: 124.7222222 | Y24: 0 | Z24: 0 | AA24: 0 | AB24: 0 | AC24: 0 | AD24: =M24 -> 0 | AE24: 0 | AF24: 0 | AG24: 0 | AI24: 72.44444444 | AJ24: 152.8333333 | AK24: 30.5 | AL24: 26.61111111 | AM24: 32.16666667 | AN24: 124.7222222 | AO24: 0 | AP24: 0 | AQ24: 0 | AR24: 0 | AS24: 0 | AT24: =M24 -> 0 | AU24: 0 | AV24: 0 | AW24: 0 | AY24: 17 | AZ24: 161.8235294 | BA24: 32.29411765 | BB24: 28.17647059 | BC24: 34.05882353 | BD24: 132.0588235 | BE24: 0 | BF24: 0 | BG24: 0 | BH24: 0 | BI24: 0 | BJ24: 0 | BK24: 0 | BL24: 0 | BM24: 0 | BO24: 37.17647059 | BP24: 39.52941176 | BQ24: 161.8235294 | BR24: 32.29411765 | BS24: 28.17647059 | BT24: 34.05882353 | BU24: 132.0588235 | BV24: 0 | BW24: 0 | BX24: 0 | BY24: 0 | BZ24: 0 | CA24: 0 | CB24: 0 | CC24: 0 | CD24: 0 | CF24: 76.70588235 | CG24: 161.8235294 | CH24: 32.29411765 | CI24: 28.17647059 | CJ24: 34.05882353 | CK24: 132.0588235 | CL24: 0 | CM24: 0 | CN24: 0 | CO24: 0 | CP24: 0 | CQ24: 0 | CR24: 0 | CS24: 0 | CT24: 0
B25: 19 | C25: 144.7894737 | D25: 28.89473684 | E25: 25.21052632 | F25: 30.47368421 | G25: 118.1578947 | H25: 0 | I25: 0 | J25: 0 | K25: 0 | L25: 0 | M25: 0 | N25: 0 | O25: 0 | P25: 0 | R25: 33.26315789 | S25: 35.36842105 | T25: 144.7894737 | U25: 28.89473684 | V25: 25.21052632 | W25: 30.47368421 | X25: 118.1578947 | Y25: 0 | Z25: 0 | AA25: 0 | AB25: 0 | AC25: 0 | AD25: 0 | AE25: 0 | AF25: 0 | AG25: 0 | AI25: 68.63157895 | AJ25: 144.7894737 | AK25: 28.89473684 | AL25: 25.21052632 | AM25: 30.47368421 | AN25: 118.1578947 | AO25: 0 | AP25: 0 | AQ25: 0 | AR25: 0 | AS25: 0 | AT25: 0 | AU25: 0 | AV25: 0 | AW25: 0 | AY25: 18 | AZ25: 152.8333333 | BA25: 30.5 | BB25: 26.61111111 | BC25: 32.16666667 | BD25: 124.7222222 | BE25: 0 | BF25: 0 | BG25: 0 | BH25: 0 | BI25: 0 | BJ25: 0 | BK25: 0 | BL25: 0 | BM25: 0 | BO25: 35.11111111 | BP25: 37.33333333 | BQ25: 152.8333333 | BR25: 30.5 | BS25: 26.61111111 | BT25: 32.16666667 | BU25: 124.7222222 | BV25: 0 | BW25: 0 | BX25: 0 | BY25: 0 | BZ25: 0 | CA25: 0 | CB25: 0 | CC25: 0 | CD25: 0 | CF25: 72.44444444 | CG25: 152.8333333 | CH25: 30.5 | CI25: 26.61111111 | CJ25: 32.16666667 | CK25: 124.7222222 | CL25: 0 | CM25: 0 | CN25: 0 | CO25: 0 | CP25: 0 | CQ25: 0 | CR25: 0 | CS25: 0 | CT25: 0
B26: 20 | C26: 137.55 | D26: 27.45 | E26: 23.95 | F26: 28.95 | G26: 112.25 | H26: 0 | I26: 0 | J26: 0 | K26: 0 | L26: 0 | M26: 0 | N26: 0 | O26: 0 | P26: 0 | R26: 31.6 | S26: 33.6 | T26: 137.55 | U26: 27.45 | V26: 23.95 | W26: 28.95 | X26: 112.25 | Y26: 0 | Z26: 0 | AA26: 0 | AB26: 0 | AC26: 0 | AD26: 0 | AE26: 0 | AF26: 0 | AG26: 0 | AI26: 65.2 | AJ26: 137.55 | AK26: 27.45 | AL26: 23.95 | AM26: 28.95 | AN26: 112.25 | AO26: 0 | AP26: 0 | AQ26: 0 | AR26: 0 | AS26: 0 | AT26: 0 | AU26: 0 | AV26: 0 | AW26: 0 | AY26: 19 | AZ26: 144.7894737 | BA26: 28.89473684 | BB26: 25.21052632 | BC26: 30.47368421 | BD26: 118.1578947 | BE26: 0 | BF26: 0 | BG26: 0 | BH26: 0 | BI26: 0 | BJ26: 0 | BK26: 0 | BL26: 0 | BM26: 0 | BO26: 33.26315789 | BP26: 35.36842105 | BQ26: 144.7894737 | BR26: 28.89473684 | BS26: 25.21052632 | BT26: 30.47368421 | BU26: 118.1578947 | BV26: 0 | BW26: 0 | BX26: 0 | BY26: 0 | BZ26: 0 | CA26: 0 | CB26: 0 | CC26: 0 | CD26: 0 | CF26: 68.63157895 | CG26: 144.7894737 | CH26: 28.89473684 | CI26: 25.21052632 | CJ26: 30.47368421 | CK26: 118.1578947 | CL26: 0 | CM26: 0 | CN26: 0 | CO26: 0 | CP26: 0 | CQ26: 0 | CR26: 0 | CS26: 0 | CT26: 0
B27: 21 | C27: 131 | D27: 26.14285714 | E27: 22.80952381 | F27: 27.57142857 | G27: 106.9047619 | H27: 0 | I27: 0 | J27: 0 | K27: 0 | L27: 0 | M27: 0 | N27: 0 | O27: 0 | P27: 0 | R27: 30.0952381 | S27: 32 | T27: 131 | U27: 26.14285714 | V27: 22.80952381 | W27: 27.57142857 | X27: 106.9047619 | Y27: 0 | Z27: 0 | AA27: 0 | AB27: 0 | AC27: 0 | AD27: 0 | AE27: 0 | AF27: 0 | AG27: 0 | AI27: 62.0952381 | AJ27: 131 | AK27: 26.14285714 | AL27: 22.80952381 | AM27: 27.57142857 | AN27: 106.9047619 | AO27: 0 | AP27: 0 | AQ27: 0 | AR27: 0 | AS27: 0 | AT27: 0 | AU27: 0 | AV27: 0 | AW27: 0 | AY27: 20 | AZ27: 137.55 | BA27: 27.45 | BB27: 23.95 | BC27: 28.95 | BD27: 112.25 | BE27: 0 | BF27: 0 | BG27: 0 | BH27: 0 | BI27: 0 | BJ27: 0 | BK27: 0 | BL27: 0 | BM27: 0 | BO27: 31.6 | BP27: 33.6 | BQ27: 137.55 | BR27: 27.45 | BS27: 23.95 | BT27: 28.95 | BU27: 112.25 | BV27: 0 | BW27: 0 | BX27: 0 | BY27: 0 | BZ27: 0 | CA27: 0 | CB27: 0 | CC27: 0 | CD27: 0 | CF27: 65.2 | CG27: 137.55 | CH27: 27.45 | CI27: 23.95 | CJ27: 28.95 | CK27: 112.25 | CL27: 0 | CM27: 0 | CN27: 0 | CO27: 0 | CP27: 0 | CQ27: 0 | CR27: 0 | CS27: 0 | CT27: 0
B28: 22 | C28: 125.0454545 | D28: 24.95454545 | E28: 21.77272727 | F28: 26.31818182 | G28: 102.0454545 | H28: 0 | I28: 0 | J28: 0 | K28: 0 | L28: 0 | M28: 0 | N28: 0 | O28: 0 | P28: 0 | R28: 28.72727273 | S28: 30.54545455 | T28: 125.0454545 | U28: 24.95454545 | V28: 21.77272727 | W28: 26.31818182 | X28: 102.0454545 | Y28: 0 | Z28: 0 | AA28: 0 | AB28: 0 | AC28: 0 | AD28: 0 | AE28: 0 | AF28: 0 | AG28: 0 | AI28: 59.27272727 | AJ28: 125.0454545 | AK28: 24.95454545 | AL28: 21.77272727 | AM28: 26.31818182 | AN28: 102.0454545 | AO28: 0 | AP28: 0 | AQ28: 0 | AR28: 0 | AS28: 0 | AT28: 0 | AU28: 0 | AV28: 0 | AW28: 0 | AY28: 21 | AZ28: 131 | BA28: 26.14285714 | BB28: 22.80952381 | BC28: 27.57142857 | BD28: 106.9047619 | BE28: 0 | BF28: 0 | BG28: 0 | BH28: 0 | BI28: 0 | BJ28: 0 | BK28: 0 | BL28: 0 | BM28: 0 | BO28: 30.0952381 | BP28: 32 | BQ28: 131 | BR28: 26.14285714 | BS28: 22.80952381 | BT28: 27.57142857 | BU28: 106.9047619 | BV28: 0 | BW28: 0 | BX28: 0 | BY28: 0 | BZ28: 0 | CA28: 0 | CB28: 0 | CC28: 0 | CD28: 0 | CF28: 62.0952381 | CG28: 131 | CH28: 26.14285714 | CI28: 22.80952381 | CJ28: 27.57142857 | CK28: 106.9047619 | CL28: 0 | CM28: 0 | CN28: 0 | CO28: 0 | CP28: 0 | CQ28: 0 | CR28: 0 | CS28: 0 | CT28: 0
B29: 23 | C29: 119.6086957 | D29: 23.86956522 | E29: 20.82608696 | F29: 25.17391304 | G29: 97.60869565 | H29: 0 | I29: 0 | J29: 0 | K29: 0 | L29: 0 | M29: 0 | N29: 0 | O29: 0 | P29: 0 | R29: 27.47826087 | S29: 29.2173913 | T29: 119.6086957 | U29: 23.86956522 | V29: 20.82608696 | W29: 25.17391304 | X29: 97.60869565 | Y29: 0 | Z29: 0 | AA29: 0 | AB29: 0 | AC29: 0 | AD29: 0 | AE29: 0 | AF29: 0 | AG29: 0 | AI29: 56.69565217 | AJ29: 119.6086957 | AK29: 23.86956522 | AL29: 20.82608696 | AM29: 25.17391304 | AN29: 97.60869565 | AO29: 0 | AP29: 0 | AQ29: 0 | AR29: 0 | AS29: 0 | AT29: 0 | AU29: 0 | AV29: 0 | AW29: 0 | AY29: 22 | AZ29: 125.0454545 | BA29: 24.95454545 | BB29: 21.77272727 | BC29: 26.31818182 | BD29: 102.0454545 | BE29: 0 | BF29: 0 | BG29: 0 | BH29: 0 | BI29: 0 | BJ29: 0 | BK29: 0 | BL29: 0 | BM29: 0 | BO29: 28.72727273 | BP29: 30.54545455 | BQ29: 125.0454545 | BR29: 24.95454545 | BS29: 21.77272727 | BT29: 26.31818182 | BU29: 102.0454545 | BV29: 0 | BW29: 0 | BX29: 0 | BY29: 0 | BZ29: 0 | CA29: 0 | CB29: 0 | CC29: 0 | CD29: 0 | CF29: 59.27272727 | CG29: 125.0454545 | CH29: 24.95454545 | CI29: 21.77272727 | CJ29: 26.31818182 | CK29: 102.0454545 | CL29: 0 | CM29: 0 | CN29: 0 | CO29: 0 | CP29: 0 | CQ29: 0 | CR29: 0 | CS29: 0 | CT29: 0
B30: 24 | C30: 114.625 | D30: 22.875 | E30: 19.95833333 | F30: 24.125 | G30: 93.54166667 | H30: 0 | I30: 0 | J30: 0 | K30: 0 | L30: 0 | M30: 0 | N30: 0 | O30: 0 | P30: 0 | R30: 26.33333333 | S30: 28 | T30: 114.625 | U30: 22.875 | V30: 19.95833333 | W30: 24.125 | X30: 93.54166667 | Y30: 0 | Z30: 0 | AA30: 0 | AB30: 0 | AC30: 0 | AD30: 0 | AE30: 0 | AF30: 0 | AG30: 0 | AI30: 54.33333333 | AJ30: 114.625 | AK30: 22.875 | AL30: 19.95833333 | AM30: 24.125 | AN30: 93.54166667 | AO30: 0 | AP30: 0 | AQ30: 0 | AR30: 0 | AS30: 0 | AT30: 0 | AU30: 0 | AV30: 0 | AW30: 0 | AY30: 23 | AZ30: 119.6086957 | BA30: 23.86956522 | BB30: 20.82608696 | BC30: 25.17391304 | BD30: 97.60869565 | BE30: 0 | BF30: 0 | BG30: 0 | BH30: 0 | BI30: 0 | BJ30: 0 | BK30: 0 | BL30: 0 | BM30: 0 | BO30: 27.47826087 | BP30: 29.2173913 | BQ30: 119.6086957 | BR30: 23.86956522 | BS30: 20.82608696 | BT30: 25.17391304 | BU30: 97.60869565 | BV30: 0 | BW30: 0 | BX30: 0 | BY30: 0 | BZ30: 0 | CA30: 0 | CB30: 0 | CC30: 0 | CD30: 0 | CF30: 56.69565217 | CG30: 119.6086957 | CH30: 23.86956522 | CI30: 20.82608696 | CJ30: 25.17391304 | CK30: 97.60869565 | CL30: 0 | CM30: 0 | CN30: 0 | CO30: 0 | CP30: 0 | CQ30: 0 | CR30: 0 | CS30: 0 | CT30: 0
B31: 25 | C31: 110.04 | D31: 21.96 | E31: 19.16 | F31: 23.16 | G31: 89.8 | H31: 0 | I31: 0 | J31: 0 | K31: 0 | L31: 0 | M31: 0 | N31: 0 | O31: 0 | P31: 0 | R31: 25.28 | S31: 26.88 | T31: 110.04 | U31: 21.96 | V31: 19.16 | W31: 23.16 | X31: 89.8 | Y31: 0 | Z31: 0 | AA31: 0 | AB31: 0 | AC31: 0 | AD31: 0 | AE31: 0 | AF31: 0 | AG31: 0 | AI31: 52.16 | AJ31: 110.04 | AK31: 21.96 | AL31: 19.16 | AM31: 23.16 | AN31: 89.8 | AO31: 0 | AP31: 0 | AQ31: 0 | AR31: 0 | AS31: 0 | AT31: 0 | AU31: 0 | AV31: 0 | AW31: 0 | AY31: 24 | AZ31: 114.625 | BA31: 22.875 | BB31: 19.95833333 | BC31: 24.125 | BD31: 93.54166667 | BE31: 0 | BF31: 0 | BG31: 0 | BH31: 0 | BI31: 0 | BJ31: 0 | BK31: 0 | BL31: 0 | BM31: 0 | BO31: 26.33333333 | BP31: 28 | BQ31: 114.625 | BR31: 22.875 | BS31: 19.95833333 | BT31: 24.125 | BU31: 93.54166667 | BV31: 0 | BW31: 0 | BX31: 0 | BY31: 0 | BZ31: 0 | CA31: 0 | CB31: 0 | CC31: 0 | CD31: 0 | CF31: 54.33333333 | CG31: 114.625 | CH31: 22.875 | CI31: 19.95833333 | CJ31: 24.125 | CK31: 93.54166667 | CL31: 0 | CM31: 0 | CN31: 0 | CO31: 0 | CP31: 0 | CQ31: 0 | CR31: 0 | CS31: 0 | CT31: 0
B32: 26 | C32: 105.8076923 | D32: 21.11538462 | E32: 18.42307692 | F32: 22.26923077 | G32: 86.34615385 | H32: 0 | I32: 0 | J32: 0 | K32: 0 | L32: 0 | M32: 0 | N32: 0 | O32: 0 | P32: 0 | R32: 24.30769231 | S32: 25.84615385 | T32: 105.8076923 | U32: 21.11538462 | V32: 18.42307692 | W32: 22.26923077 | X32: 86.34615385 | Y32: 0 | Z32: 0 | AA32: 0 | AB32: 0 | AC32: 0 | AD32: 0 | AE32: 0 | AF32: 0 | AG32: 0 | AI32: 50.15384615 | AJ32: 105.8076923 | AK32: 21.11538462 | AL32: 18.42307692 | AM32: 22.26923077 | AN32: 86.34615385 | AO32: 0 | AP32: 0 | AQ32: 0 | AR32: 0 | AS32: 0 | AT32: 0 | AU32: 0 | AV32: 0 | AW32: 0 | AY32: 25 | AZ32: 110.04 | BA32: 21.96 | BB32: 19.16 | BC32: 23.16 | BD32: 89.8 | BE32: 0 | BF32: 0 | BG32: 0 | BH32: 0 | BI32: 0 | BJ32: 0 | BK32: 0 | BL32: 0 | BM32: 0 | BO32: 25.28 | BP32: 26.88 | BQ32: 110.04 | BR32: 21.96 | BS32: 19.16 | BT32: 23.16 | BU32: 89.8 | BV32: 0 | BW32: 0 | BX32: 0 | BY32: 0 | BZ32: 0 | CA32: 0 | CB32: 0 | CC32: 0 | CD32: 0 | CF32: 52.16 | CG32: 110.04 | CH32: 21.96 | CI32: 19.16 | CJ32: 23.16 | CK32: 89.8 | CL32: 0 | CM32: 0 | CN32: 0 | CO32: 0 | CP32: 0 | CQ32: 0 | CR32: 0 | CS32: 0 | CT32: 0
B33: 27 | C33: 101.8888889 | D33: 20.33333333 | E33: 17.74074074 | F33: 21.44444444 | G33: 83.14814815 | H33: 0 | I33: 0 | J33: 0 | K33: 0 | L33: 0 | M33: 0 | N33: 0 | O33: 0 | P33: 0 | R33: 23.40740741 | S33: 24.88888889 | T33: 101.8888889 | U33: 20.33333333 | V33: 17.74074074 | W33: 21.44444444 | X33: 83.14814815 | Y33: 0 | Z33: 0 | AA33: 0 | AB33: 0 | AC33: 0 | AD33: 0 | AE33: 0 | AF33: 0 | AG33: 0 | AI33: 48.2962963 | AJ33: 101.8888889 | AK33: 20.33333333 | AL33: 17.74074074 | AM33: 21.44444444 | AN33: 83.14814815 | AO33: 0 | AP33: 0 | AQ33: 0 | AR33: 0 | AS33: 0 | AT33: 0 | AU33: 0 | AV33: 0 | AW33: 0 | AY33: 26 | AZ33: 105.8076923 | BA33: 21.11538462 | BB33: 18.42307692 | BC33: 22.26923077 | BD33: 86.34615385 | BE33: 0 | BF33: 0 | BG33: 0 | BH33: 0 | BI33: 0 | BJ33: 0 | BK33: 0 | BL33: 0 | BM33: 0 | BO33: 24.30769231 | BP33: 25.84615385 | BQ33: 105.8076923 | BR33: 21.11538462 | BS33: 18.42307692 | BT33: 22.26923077 | BU33: 86.34615385 | BV33: 0 | BW33: 0 | BX33: 0 | BY33: 0 | BZ33: 0 | CA33: 0 | CB33: 0 | CC33: 0 | CD33: 0 | CF33: 50.15384615 | CG33: 105.8076923 | CH33: 21.11538462 | CI33: 18.42307692 | CJ33: 22.26923077 | CK33: 86.34615385 | CL33: 0 | CM33: 0 | CN33: 0 | CO33: 0 | CP33: 0 | CQ33: 0 | CR33: 0 | CS33: 0 | CT33: 0
B34: 28 | C34: 98.25 | D34: 19.60714286 | E34: 17.10714286 | F34: 20.67857143 | G34: 80.17857143 | H34: 0 | I34: 0 | J34: 0 | K34: 0 | L34: 0 | M34: 0 | N34: 0 | O34: 0 | P34: 0 | R34: 22.57142857 | S34: 24 | T34: 98.25 | U34: 19.60714286 | V34: 17.10714286 | W34: 20.67857143 | X34: 80.17857143 | Y34: 0 | Z34: 0 | AA34: 0 | AB34: 0 | AC34: 0 | AD34: 0 | AE34: 0 | AF34: 0 | AG34: 0 | AI34: 46.57142857 | AJ34: 98.25 | AK34: 19.60714286 | AL34: 17.10714286 | AM34: 20.67857143 | AN34: 80.17857143 | AO34: 0 | AP34: 0 | AQ34: 0 | AR34: 0 | AS34: 0 | AT34: 0 | AU34: 0 | AV34: 0 | AW34: 0 | AY34: 27 | AZ34: 101.8888889 | BA34: 20.33333333 | BB34: 17.74074074 | BC34: 21.44444444 | BD34: 83.14814815 | BE34: 0 | BF34: 0 | BG34: 0 | BH34: 0 | BI34: 0 | BJ34: 0 | BK34: 0 | BL34: 0 | BM34: 0 | BO34: 23.40740741 | BP34: 24.88888889 | BQ34: 101.8888889 | BR34: 20.33333333 | BS34: 17.74074074 | BT34: 21.44444444 | BU34: 83.14814815 | BV34: 0 | BW34: 0 | BX34: 0 | BY34: 0 | BZ34: 0 | CA34: 0 | CB34: 0 | CC34: 0 | CD34: 0 | CF34: 48.2962963 | CG34: 101.8888889 | CH34: 20.33333333 | CI34: 17.74074074 | CJ34: 21.44444444 | CK34: 83.14814815 | CL34: 0 | CM34: 0 | CN34: 0 | CO34: 0 | CP34: 0 | CQ34: 0 | CR34: 0 | CS34: 0 | CT34: 0
B35: 29 | C35: 94.86206897 | D35: 18.93103448 | E35: 16.51724138 | F35: 19.96551724 | G35: 77.4137931 | H35: 0 | I35: 0 | J35: 0 | K35: 0 | L35: 0 | M35: 0 | N35: 0 | O35: 0 | P35: 0 | R35: 21.79310345 | S35: 23.17241379 | T35: 94.86206897 | U35: 18.93103448 | V35: 16.51724138 | W35: 19.96551724 | X35: 77.4137931 | Y35: 0 | Z35: 0 | AA35: 0 | AB35: 0 | AC35: 0 | AD35: 0 | AE35: 0 | AF35: 0 | AG35: 0 | AI35: 44.96551724 | AJ35: 94.86206897 | AK35: 18.93103448 | AL35: 16.51724138 | AM35: 19.96551724 | AN35: 77.4137931 | AO35: 0 | AP35: 0 | AQ35: 0 | AR35: 0 | AS35: 0 | AT35: 0 | AU35: 0 | AV35: 0 | AW35: 0 | AY35: 28 | AZ35: 98.25 | BA35: 19.60714286 | BB35: 17.10714286 | BC35: 20.67857143 | BD35: 80.17857143 | BE35: 0 | BF35: 0 | BG35: 0 | BH35: 0 | BI35: 0 | BJ35: 0 | BK35: 0 | BL35: 0 | BM35: 0 | BO35: 22.57142857 | BP35: 24 | BQ35: 98.25 | BR35: 19.60714286 | BS35: 17.10714286 | BT35: 20.67857143 | BU35: 80.17857143 | BV35: 0 | BW35: 0 | BX35: 0 | BY35: 0 | BZ35: 0 | CA35: 0 | CB35: 0 | CC35: 0 | CD35: 0 | CF35: 46.57142857 | CG35: 98.25 | CH35: 19.60714286 | CI35: 17.10714286 | CJ35: 20.67857143 | CK35: 80.17857143 | CL35: 0 | CM35: 0 | CN35: 0 | CO35: 0 | CP35: 0 | CQ35: 0 | CR35: 0 | CS35: 0 | CT35: 0
B36: 30 | C36: 91.7 | D36: 18.3 | E36: 15.96666667 | F36: 19.3 | G36: 74.83333333 | H36: 0 | I36: 0 | J36: 0 | K36: 0 | L36: 0 | M36: 0 | N36: 0 | O36: 0 | P36: 0 | R36: 21.06666667 | S36: 22.4 | T36: 91.7 | U36: 18.3 | V36: 15.96666667 | W36: 19.3 | X36: 74.83333333 | Y36: 0 | Z36: 0 | AA36: 0 | AB36: 0 | AC36: 0 | AD36: 0 | AE36: 0 | AF36: 0 | AG36: 0 | AI36: 43.46666667 | AJ36: 91.7 | AK36: 18.3 | AL36: 15.96666667 | AM36: 19.3 | AN36: 74.83333333 | AO36: 0 | AP36: 0 | AQ36: 0 | AR36: 0 | AS36: 0 | AT36: 0 | AU36: 0 | AV36: 0 | AW36: 0 | AY36: 29 | AZ36: 94.86206897 | BA36: 18.93103448 | BB36: 16.51724138 | BC36: 19.96551724 | BD36: 77.4137931 | BE36: 0 | BF36: 0 | BG36: 0 | BH36: 0 | BI36: 0 | BJ36: 0 | BK36: 0 | BL36: 0 | BM36: 0 | BO36: 21.79310345 | BP36: 23.17241379 | BQ36: 94.86206897 | BR36: 18.93103448 | BS36: 16.51724138 | BT36: 19.96551724 | BU36: 77.4137931 | BV36: 0 | BW36: 0 | BX36: 0 | BY36: 0 | BZ36: 0 | CA36: 0 | CB36: 0 | CC36: 0 | CD36: 0 | CF36: 44.96551724 | CG36: 94.86206897 | CH36: 18.93103448 | CI36: 16.51724138 | CJ36: 19.96551724 | CK36: 77.4137931 | CL36: 0 | CM36: 0 | CN36: 0 | CO36: 0 | CP36: 0 | CQ36: 0 | CR36: 0 | CS36: 0 | CT36: 0
B37: 31 | C37: 88.74193548 | D37: 17.70967742 | E37: 15.4516129 | F37: 18.67741935 | G37: 72.41935484 | H37: 0 | I37: 0 | J37: 0 | K37: 0 | L37: 0 | M37: 0 | N37: 0 | O37: 0 | P37: 0 | R37: 20.38709677 | S37: 21.67741935 | T37: 88.74193548 | U37: 17.70967742 | V37: 15.4516129 | W37: 18.67741935 | X37: 72.41935484 | Y37: 0 | Z37: 0 | AA37: 0 | AB37: 0 | AC37: 0 | AD37: 0 | AE37: 0 | AF37: 0 | AG37: 0 | AI37: 42.06451613 | AJ37: 88.74193548 | AK37: 17.70967742 | AL37: 15.4516129 | AM37: 18.67741935 | AN37: 72.41935484 | AO37: 0 | AP37: 0 | AQ37: 0 | AR37: 0 | AS37: 0 | AT37: 0 | AU37: 0 | AV37: 0 | AW37: 0 | AY37: 30 | AZ37: 91.7 | BA37: 18.3 | BB37: 15.96666667 | BC37: 19.3 | BD37: 74.83333333 | BE37: 0 | BF37: 0 | BG37: 0 | BH37: 0 | BI37: 0 | BJ37: 0 | BK37: 0 | BL37: 0 | BM37: 0 | BO37: 21.06666667 | BP37: 22.4 | BQ37: 91.7 | BR37: 18.3 | BS37: 15.96666667 | BT37: 19.3 | BU37: 74.83333333 | BV37: 0 | BW37: 0 | BX37: 0 | BY37: 0 | BZ37: 0 | CA37: 0 | CB37: 0 | CC37: 0 | CD37: 0 | CF37: 43.46666667 | CG37: 91.7 | CH37: 18.3 | CI37: 15.96666667 | CJ37: 19.3 | CK37: 74.83333333 | CL37: 0 | CM37: 0 | CN37: 0 | CO37: 0 | CP37: 0 | CQ37: 0 | CR37: 0 | CS37: 0 | CT37: 0
B38: 32 | C38: 85.96875 | D38: 17.15625 | E38: 14.96875 | F38: 18.09375 | G38: 70.15625 | H38: 0 | I38: 0 | J38: 0 | K38: 0 | L38: 0 | M38: 0 | N38: 0 | O38: 0 | P38: 0 | R38: 19.75 | S38: 21 | T38: 85.96875 | U38: 17.15625 | V38: 14.96875 | W38: 18.09375 | X38: 70.15625 | Y38: 0 | Z38: 0 | AA38: 0 | AB38: 0 | AC38: 0 | AD38: 0 | AE38: 0 | AF38: 0 | AG38: 0 | AI38: 40.75 | AJ38: 85.96875 | AK38: 17.15625 | AL38: 14.96875 | AM38: 18.09375 | AN38: 70.15625 | AO38: 0 | AP38: 0 | AQ38: 0 | AR38: 0 | AS38: 0 | AT38: 0 | AU38: 0 | AV38: 0 | AW38: 0 | AY38: 31 | AZ38: 88.74193548 | BA38: 17.70967742 | BB38: 15.4516129 | BC38: 18.67741935 | BD38: 72.41935484 | BE38: 0 | BF38: 0 | BG38: 0 | BH38: 0 | BI38: 0 | BJ38: 0 | BK38: 0 | BL38: 0 | BM38: 0 | BO38: 20.38709677 | BP38: 21.67741935 | BQ38: 88.74193548 | BR38: 17.70967742 | BS38: 15.4516129 | BT38: 18.67741935 | BU38: 72.41935484 | BV38: 0 | BW38: 0 | BX38: 0 | BY38: 0 | BZ38: 0 | CA38: 0 | CB38: 0 | CC38: 0 | CD38: 0 | CF38: 42.06451613 | CG38: 88.74193548 | CH38: 17.70967742 | CI38: 15.4516129 | CJ38: 18.67741935 | CK38: 72.41935484 | CL38: 0 | CM38: 0 | CN38: 0 | CO38: 0 | CP38: 0 | CQ38: 0 | CR38: 0 | CS38: 0 | CT38: 0
B39: 33 | C39: 83.36363636 | D39: 16.63636364 | E39: 14.51515152 | F39: 17.54545455 | G39: 68.03030303 | H39: 0 | I39: 0 | J39: 0 | K39: 0 | L39: 0 | M39: 0 | N39: 0 | O39: 0 | P39: 0 | R39: 19.15151515 | S39: 20.36363636 | T39: 83.36363636 | U39: 16.63636364 | V39: 14.51515152 | W39: 17.54545455 | X39: 68.03030303 | Y39: 0 | Z39: 0 | AA39: 0 | AB39: 0 | AC39: 0 | AD39: 0 | AE39: 0 | AF39: 0 | AG39: 0 | AI39: 39.51515152 | AJ39: 83.36363636 | AK39: 16.63636364 | AL39: 14.51515152 | AM39: 17.54545455 | AN39: 68.03030303 | AO39: 0 | AP39: 0 | AQ39: 0 | AR39: 0 | AS39: 0 | AT39: 0 | AU39: 0 | AV39: 0 | AW39: 0 | AY39: 32 | AZ39: 85.96875 | BA39: 17.15625 | BB39: 14.96875 | BC39: 18.09375 | BD39: 70.15625 | BE39: 0 | BF39: 0 | BG39: 0 | BH39: 0 | BI39: 0 | BJ39: 0 | BK39: 0 | BL39: 0 | BM39: 0 | BO39: 19.75 | BP39: 21 | BQ39: 85.96875 | BR39: 17.15625 | BS39: 14.96875 | BT39: 18.09375 | BU39: 70.15625 | BV39: 0 | BW39: 0 | BX39: 0 | BY39: 0 | BZ39: 0 | CA39: 0 | CB39: 0 | CC39: 0 | CD39: 0 | CF39: 40.75 | CG39: 85.96875 | CH39: 17.15625 | CI39: 14.96875 | CJ39: 18.09375 | CK39: 70.15625 | CL39: 0 | CM39: 0 | CN39: 0 | CO39: 0 | CP39: 0 | CQ39: 0 | CR39: 0 | CS39: 0 | CT39: 0
B40: 34 | C40: 80.91176471 | D40: 16.14705882 | E40: 14.08823529 | F40: 17.02941176 | G40: 66.02941176 | H40: 0 | I40: 0 | J40: 0 | K40: 0 | L40: 0 | M40: 0 | N40: 0 | O40: 0 | P40: 0 | R40: 18.58823529 | S40: 19.76470588 | T40: =C40 -> 80.91176471 | U40: =D40 -> 16.14705882 | V40: =E40 -> 14.08823529 | W40: =F40 -> 17.02941176 | X40: =G40 -> 66.02941176 | Y40: =H40 -> 0 | Z40: =I40 -> 0 | AA40: =J40 -> 0 | AB40: =K40 -> 0 | AC40: =L40 -> 0 | AD40: =M40 -> 0 | AE40: 0 | AF40: =O40 -> 0 | AG40: =P40 -> 0 | AI40: 38.35294118 | AJ40: =C40 -> 80.91176471 | AK40: =D40 -> 16.14705882 | AL40: =E40 -> 14.08823529 | AM40: =F40 -> 17.02941176 | AN40: =G40 -> 66.02941176 | AO40: =H40 -> 0 | AP40: =I40 -> 0 | AQ40: =J40 -> 0 | AR40: =K40 -> 0 | AS40: =L40 -> 0 | AT40: =M40 -> 0 | AU40: 0 | AV40: =O40 -> 0 | AW40: =P40 -> 0 | AY40: 33 | AZ40: 83.36363636 | BA40: 16.63636364 | BB40: 14.51515152 | BC40: 17.54545455 | BD40: 68.03030303 | BE40: 0 | BF40: 0 | BG40: 0 | BH40: 0 | BI40: 0 | BJ40: 0 | BK40: 0 | BL40: 0 | BM40: 0 | BO40: 19.15151515 | BP40: 20.36363636 | BQ40: 83.36363636 | BR40: 16.63636364 | BS40: 14.51515152 | BT40: 17.54545455 | BU40: 68.03030303 | BV40: 0 | BW40: 0 | BX40: 0 | BY40: 0 | BZ40: 0 | CA40: 0 | CB40: 0 | CC40: 0 | CD40: 0 | CF40: 39.51515152 | CG40: 83.36363636 | CH40: 16.63636364 | CI40: 14.51515152 | CJ40: 17.54545455 | CK40: 68.03030303 | CL40: 0 | CM40: 0 | CN40: 0 | CO40: 0 | CP40: 0 | CQ40: 0 | CR40: 0 | CS40: 0 | CT40: 0
B41: 35 | C41: 78.6 | D41: 15.68571429 | E41: 13.68571429 | F41: 16.54285714 | G41: 64.14285714 | H41: 0 | I41: 0 | J41: 0 | K41: 0 | L41: 0 | M41: 0 | N41: 0 | O41: 0 | P41: 0 | R41: 18.05714286 | S41: 19.2 | T41: 78.6 | U41: 15.68571429 | V41: 13.68571429 | W41: 16.54285714 | X41: 64.14285714 | Y41: 0 | Z41: 0 | AA41: 0 | AB41: 0 | AC41: 0 | AD41: 0 | AE41: 0 | AF41: 0 | AG41: 0 | AI41: 37.25714286 | AJ41: 78.6 | AK41: 15.68571429 | AL41: 13.68571429 | AM41: 16.54285714 | AN41: 64.14285714 | AO41: 0 | AP41: 0 | AQ41: 0 | AR41: 0 | AS41: 0 | AT41: 0 | AU41: 0 | AV41: 0 | AW41: 0 | AY41: 34 | AZ41: 80.91176471 | BA41: 16.14705882 | BB41: 14.08823529 | BC41: 17.02941176 | BD41: 66.02941176 | BE41: 0 | BF41: 0 | BG41: 0 | BH41: 0 | BI41: 0 | BJ41: 0 | BK41: 0 | BL41: 0 | BM41: 0 | BO41: 18.58823529 | BP41: 19.76470588 | BQ41: 80.91176471 | BR41: 16.14705882 | BS41: =BB41 -> 14.08823529 | BT41: 17.02941176 | BU41: 66.02941176 | BV41: 0 | BW41: 0 | BX41: 0 | BY41: 0 | BZ41: 0 | CA41: 0 | CB41: 0 | CC41: 0 | CD41: 0 | CF41: 38.35294118 | CG41: 80.91176471 | CH41: 16.14705882 | CI41: 14.08823529 | CJ41: 17.02941176 | CK41: 66.02941176 | CL41: 0 | CM41: 0 | CN41: 0 | CO41: 0 | CP41: 0 | CQ41: 0 | CR41: 0 | CS41: 0 | CT41: 0
B42: 36 | C42: 76.41666667 | D42: 15.25 | E42: 13.30555556 | F42: 16.08333333 | G42: 62.36111111 | H42: 0 | I42: 0 | J42: 0 | K42: 0 | L42: 0 | M42: 0 | N42: 0 | O42: 0 | P42: 0 | R42: 17.55555556 | S42: 18.66666667 | T42: 76.41666667 | U42: 15.25 | V42: 13.30555556 | W42: 16.08333333 | X42: 62.36111111 | Y42: 0 | Z42: 0 | AA42: 0 | AB42: 0 | AC42: 0 | AD42: 0 | AE42: 0 | AF42: 0 | AG42: 0 | AI42: 36.22222222 | AJ42: 76.41666667 | AK42: 15.25 | AL42: 13.30555556 | AM42: 16.08333333 | AN42: 62.36111111 | AO42: 0 | AP42: 0 | AQ42: 0 | AR42: 0 | AS42: 0 | AT42: 0 | AU42: 0 | AV42: 0 | AW42: 0 | AY42: 35 | AZ42: 78.6 | BA42: 15.68571429 | BB42: 13.68571429 | BC42: 16.54285714 | BD42: 64.14285714 | BE42: 0 | BF42: 0 | BG42: 0 | BH42: 0 | BI42: 0 | BJ42: 0 | BK42: 0 | BL42: 0 | BM42: 0 | BO42: 18.05714286 | BP42: 19.2 | BQ42: =AZ42 -> 78.6 | BR42: 15.68571429 | BS42: 13.68571429 | BT42: 16.54285714 | BU42: 64.14285714 | BV42: 0 | BW42: 0 | BX42: 0 | BY42: 0 | BZ42: 0 | CA42: 0 | CB42: 0 | CC42: 0 | CD42: 0 | CF42: 37.25714286 | CG42: 78.6 | CH42: 15.68571429 | CI42: 13.68571429 | CJ42: 16.54285714 | CK42: 64.14285714 | CL42: 0 | CM42: 0 | CN42: 0 | CO42: 0 | CP42: 0 | CQ42: 0 | CR42: 0 | CS42: 0 | CT42: 0
B43: 37 | C43: 74.35135135 | D43: 14.83783784 | E43: 12.94594595 | F43: 15.64864865 | G43: 60.67567568 | H43: 0 | I43: 0 | J43: 0 | K43: 0 | L43: 0 | M43: 0 | N43: 0 | O43: 0 | P43: 0 | R43: 17.08108108 | S43: 18.16216216 | T43: 74.35135135 | U43: 14.83783784 | V43: 12.94594595 | W43: 15.64864865 | X43: 60.67567568 | Y43: 0 | Z43: 0 | AA43: 0 | AB43: 0 | AC43: 0 | AD43: 0 | AE43: 0 | AF43: 0 | AG43: 0 | AI43: 35.24324324 | AJ43: 74.35135135 | AK43: 14.83783784 | AL43: 12.94594595 | AM43: 15.64864865 | AN43: 60.67567568 | AO43: 0 | AP43: 0 | AQ43: 0 | AR43: 0 | AS43: 0 | AT43: 0 | AU43: 0 | AV43: 0 | AW43: 0 | AY43: 36 | AZ43: 76.41666667 | BA43: 15.25 | BB43: 13.30555556 | BC43: 16.08333333 | BD43: 62.36111111 | BE43: 0 | BF43: 0 | BG43: 0 | BH43: 0 | BI43: 0 | BJ43: 0 | BK43: 0 | BL43: 0 | BM43: 0 | BO43: 17.55555556 | BP43: 18.66666667 | BQ43: 76.41666667 | BR43: 15.25 | BS43: 13.30555556 | BT43: 16.08333333 | BU43: 62.36111111 | BV43: 0 | BW43: 0 | BX43: 0 | BY43: 0 | BZ43: 0 | CA43: 0 | CB43: 0 | CC43: 0 | CD43: 0 | CF43: 36.22222222 | CG43: 76.41666667 | CH43: 15.25 | CI43: 13.30555556 | CJ43: 16.08333333 | CK43: 62.36111111 | CL43: 0 | CM43: 0 | CN43: 0 | CO43: 0 | CP43: 0 | CQ43: 0 | CR43: 0 | CS43: 0 | CT43: 0
B44: 38 | C44: 72.39473684 | D44: 14.44736842 | E44: 12.60526316 | F44: 15.23684211 | G44: 59.07894737 | H44: 0 | I44: 0 | J44: 0 | K44: 0 | L44: 0 | M44: 0 | N44: 0 | O44: 0 | P44: 0 | R44: 16.63157895 | S44: 17.68421053 | T44: 72.39473684 | U44: 14.44736842 | V44: 12.60526316 | W44: 15.23684211 | X44: 59.07894737 | Y44: 0 | Z44: 0 | AA44: 0 | AB44: 0 | AC44: 0 | AD44: 0 | AE44: 0 | AF44: 0 | AG44: 0 | AI44: 34.31578947 | AJ44: 72.39473684 | AK44: 14.44736842 | AL44: 12.60526316 | AM44: 15.23684211 | AN44: 59.07894737 | AO44: 0 | AP44: 0 | AQ44: 0 | AR44: 0 | AS44: 0 | AT44: 0 | AU44: 0 | AV44: 0 | AW44: 0 | AY44: 37 | AZ44: 74.35135135 | BA44: 14.83783784 | BB44: 12.94594595 | BC44: 15.64864865 | BD44: 60.67567568 | BE44: 0 | BF44: 0 | BG44: 0 | BH44: 0 | BI44: 0 | BJ44: 0 | BK44: 0 | BL44: 0 | BM44: 0 | BO44: 17.08108108 | BP44: 18.16216216 | BQ44: 74.35135135 | BR44: 14.83783784 | BS44: 12.94594595 | BT44: 15.64864865 | BU44: 60.67567568 | BV44: 0 | BW44: 0 | BX44: 0 | BY44: 0 | BZ44: 0 | CA44: 0 | CB44: 0 | CC44: 0 | CD44: 0 | CF44: 35.24324324 | CG44: 74.35135135 | CH44: 14.83783784 | CI44: 12.94594595 | CJ44: 15.64864865 | CK44: 60.67567568 | CL44: 0 | CM44: 0 | CN44: 0 | CO44: 0 | CP44: 0 | CQ44: 0 | CR44: 0 | CS44: 0 | CT44: 0
B45: 39 | C45: 70.53846154 | D45: 14.07692308 | E45: 12.28205128 | F45: 14.84615385 | G45: 57.56410256 | H45: 0 | I45: 0 | J45: 0 | K45: 0 | L45: 0 | M45: 0 | N45: 0 | O45: 0 | P45: 0 | R45: 16.20512821 | S45: 17.23076923 | T45: 70.53846154 | U45: 14.07692308 | V45: 12.28205128 | W45: 14.84615385 | X45: 57.56410256 | Y45: 0 | Z45: 0 | AA45: 0 | AB45: 0 | AC45: 0 | AD45: 0 | AE45: 0 | AF45: 0 | AG45: 0 | AI45: 33.43589744 | AJ45: 70.53846154 | AK45: 14.07692308 | AL45: 12.28205128 | AM45: 14.84615385 | AN45: 57.56410256 | AO45: 0 | AP45: 0 | AQ45: 0 | AR45: 0 | AS45: 0 | AT45: 0 | AU45: 0 | AV45: 0 | AW45: 0 | AY45: 38 | AZ45: 72.39473684 | BA45: 14.44736842 | BB45: 12.60526316 | BC45: 15.23684211 | BD45: 59.07894737 | BE45: 0 | BF45: 0 | BG45: 0 | BH45: 0 | BI45: 0 | BJ45: 0 | BK45: 0 | BL45: 0 | BM45: 0 | BO45: 16.63157895 | BP45: 17.68421053 | BQ45: 72.39473684 | BR45: 14.44736842 | BS45: 12.60526316 | BT45: 15.23684211 | BU45: 59.07894737 | BV45: 0 | BW45: 0 | BX45: 0 | BY45: 0 | BZ45: 0 | CA45: 0 | CB45: 0 | CC45: 0 | CD45: 0 | CF45: 34.31578947 | CG45: 72.39473684 | CH45: 14.44736842 | CI45: 12.60526316 | CJ45: 15.23684211 | CK45: 59.07894737 | CL45: 0 | CM45: 0 | CN45: 0 | CO45: 0 | CP45: 0 | CQ45: 0 | CR45: 0 | CS45: 0 | CT45: 0
B46: 40 | C46: 68.775 | D46: 13.725 | E46: 11.975 | F46: 14.475 | G46: 56.125 | H46: 0 | I46: 0 | J46: 0 | K46: 0 | L46: 0 | M46: 0 | N46: 0 | O46: 0 | P46: 0 | R46: 15.8 | S46: 16.8 | T46: 68.775 | U46: 13.725 | V46: 11.975 | W46: 14.475 | X46: 56.125 | Y46: 0 | Z46: 0 | AA46: 0 | AB46: 0 | AC46: 0 | AD46: 0 | AE46: 0 | AF46: 0 | AG46: 0 | AI46: 32.6 | AJ46: 68.775 | AK46: 13.725 | AL46: 11.975 | AM46: 14.475 | AN46: 56.125 | AO46: 0 | AP46: 0 | AQ46: 0 | AR46: 0 | AS46: 0 | AT46: 0 | AU46: 0 | AV46: 0 | AW46: 0 | AY46: 39 | AZ46: 70.53846154 | BA46: 14.07692308 | BB46: 12.28205128 | BC46: 14.84615385 | BD46: 57.56410256 | BE46: 0 | BF46: 0 | BG46: 0 | BH46: 0 | BI46: 0 | BJ46: 0 | BK46: 0 | BL46: 0 | BM46: 0 | BO46: 16.20512821 | BP46: 17.23076923 | BQ46: 70.53846154 | BR46: 14.07692308 | BS46: 12.28205128 | BT46: 14.84615385 | BU46: 57.56410256 | BV46: 0 | BW46: 0 | BX46: 0 | BY46: 0 | BZ46: 0 | CA46: 0 | CB46: 0 | CC46: 0 | CD46: 0 | CF46: 33.43589744 | CG46: 70.53846154 | CH46: 14.07692308 | CI46: 12.28205128 | CJ46: 14.84615385 | CK46: 57.56410256 | CL46: 0 | CM46: 0 | CN46: 0 | CO46: 0 | CP46: 0 | CQ46: 0 | CR46: 0 | CS46: 0 | CT46: 0
B47: 41 | C47: 67.09756098 | D47: 13.3902439 | E47: 11.68292683 | F47: 14.12195122 | G47: 54.75609756 | H47: 0 | I47: 0 | J47: 0 | K47: 0 | L47: 0 | M47: 0 | N47: 0 | O47: 0 | P47: 0 | R47: 15.41463415 | S47: 16.3902439 | T47: 67.09756098 | U47: 13.3902439 | V47: 11.68292683 | W47: 14.12195122 | X47: 54.75609756 | Y47: 0 | Z47: 0 | AA47: 0 | AB47: 0 | AC47: 0 | AD47: 0 | AE47: 0 | AF47: 0 | AG47: 0 | AI47: 31.80487805 | AJ47: 67.09756098 | AK47: 13.3902439 | AL47: 11.68292683 | AM47: 14.12195122 | AN47: 54.75609756 | AO47: 0 | AP47: 0 | AQ47: 0 | AR47: 0 | AS47: 0 | AT47: 0 | AU47: 0 | AV47: 0 | AW47: 0 | AY47: 40 | AZ47: 68.775 | BA47: 13.725 | BB47: 11.975 | BC47: 14.475 | BD47: 56.125 | BE47: 0 | BF47: 0 | BG47: 0 | BH47: 0 | BI47: 0 | BJ47: 0 | BK47: 0 | BL47: 0 | BM47: 0 | BO47: 15.8 | BP47: 16.8 | BQ47: 68.775 | BR47: 13.725 | BS47: 11.975 | BT47: 14.475 | BU47: 56.125 | BV47: 0 | BW47: 0 | BX47: 0 | BY47: 0 | BZ47: 0 | CA47: 0 | CB47: 0 | CC47: 0 | CD47: 0 | CF47: 32.6 | CG47: 68.775 | CH47: 13.725 | CI47: 11.975 | CJ47: 14.475 | CK47: 56.125 | CL47: 0 | CM47: 0 | CN47: 0 | CO47: 0 | CP47: 0 | CQ47: 0 | CR47: 0 | CS47: 0 | CT47: 0
B48: 42 | C48: 65.5 | D48: 13.07142857 | E48: 11.4047619 | F48: 13.78571429 | G48: 53.45238095 | H48: 0 | I48: 0 | J48: 0 | K48: 0 | L48: 0 | M48: 0 | N48: 0 | O48: 0 | P48: 0 | R48: 15.04761905 | S48: 16 | T48: 65.5 | U48: 13.07142857 | V48: 11.4047619 | W48: 13.78571429 | X48: 53.45238095 | Y48: 0 | Z48: 0 | AA48: 0 | AB48: 0 | AC48: 0 | AD48: 0 | AE48: 0 | AF48: 0 | AG48: 0 | AI48: 31.04761905 | AJ48: 65.5 | AK48: 13.07142857 | AL48: 11.4047619 | AM48: 13.78571429 | AN48: 53.45238095 | AO48: 0 | AP48: 0 | AQ48: 0 | AR48: 0 | AS48: 0 | AT48: 0 | AU48: 0 | AV48: 0 | AW48: 0 | AY48: 41 | AZ48: 67.09756098 | BA48: 13.3902439 | BB48: 11.68292683 | BC48: 14.12195122 | BD48: 54.75609756 | BE48: 0 | BF48: 0 | BG48: 0 | BH48: 0 | BI48: 0 | BJ48: 0 | BK48: 0 | BL48: 0 | BM48: 0 | BO48: 15.41463415 | BP48: 16.3902439 | BQ48: 67.09756098 | BR48: 13.3902439 | BS48: 11.68292683 | BT48: 14.12195122 | BU48: 54.75609756 | BV48: 0 | BW48: 0 | BX48: 0 | BY48: 0 | BZ48: 0 | CA48: 0 | CB48: 0 | CC48: 0 | CD48: 0 | CF48: 31.80487805 | CG48: 67.09756098 | CH48: 13.3902439 | CI48: 11.68292683 | CJ48: 14.12195122 | CK48: 54.75609756 | CL48: 0 | CM48: 0 | CN48: 0 | CO48: 0 | CP48: 0 | CQ48: 0 | CR48: 0 | CS48: 0 | CT48: 0
B49: 43 | C49: 63.97674419 | D49: 12.76744186 | E49: 11.13953488 | F49: 13.46511628 | G49: 52.20930233 | H49: 0 | I49: 0 | J49: 0 | K49: 0 | L49: 0 | M49: 0 | N49: 0 | O49: 0 | P49: 0 | R49: 14.69767442 | S49: 15.62790698 | T49: 63.97674419 | U49: 12.76744186 | V49: 11.13953488 | W49: 13.46511628 | X49: 52.20930233 | Y49: 0 | Z49: 0 | AA49: 0 | AB49: 0 | AC49: 0 | AD49: 0 | AE49: 0 | AF49: 0 | AG49: 0 | AI49: 30.3255814 | AJ49: 63.97674419 | AK49: 12.76744186 | AL49: 11.13953488 | AM49: 13.46511628 | AN49: 52.20930233 | AO49: 0 | AP49: 0 | AQ49: 0 | AR49: 0 | AS49: 0 | AT49: 0 | AU49: 0 | AV49: 0 | AW49: 0 | AY49: 42 | AZ49: 65.5 | BA49: 13.07142857 | BB49: 11.4047619 | BC49: 13.78571429 | BD49: 53.45238095 | BE49: 0 | BF49: 0 | BG49: 0 | BH49: 0 | BI49: 0 | BJ49: 0 | BK49: 0 | BL49: 0 | BM49: 0 | BO49: 15.04761905 | BP49: 16 | BQ49: 65.5 | BR49: 13.07142857 | BS49: 11.4047619 | BT49: 13.78571429 | BU49: 53.45238095 | BV49: 0 | BW49: 0 | BX49: 0 | BY49: 0 | BZ49: 0 | CA49: 0 | CB49: 0 | CC49: 0 | CD49: 0 | CF49: 31.04761905 | CG49: 65.5 | CH49: 13.07142857 | CI49: 11.4047619 | CJ49: 13.78571429 | CK49: 53.45238095 | CL49: 0 | CM49: 0 | CN49: 0 | CO49: 0 | CP49: 0 | CQ49: 0 | CR49: 0 | CS49: 0 | CT49: 0
B50: 44 | C50: 62.52272727 | D50: 12.47727273 | E50: 10.88636364 | F50: 13.15909091 | G50: 51.02272727 | H50: 0 | I50: 0 | J50: 0 | K50: 0 | L50: 0 | M50: 0 | N50: 0 | O50: 0 | P50: 0 | R50: 14.36363636 | S50: 15.27272727 | T50: 62.52272727 | U50: 12.47727273 | V50: 10.88636364 | W50: 13.15909091 | X50: 51.02272727 | Y50: 0 | Z50: 0 | AA50: 0 | AB50: 0 | AC50: 0 | AD50: 0 | AE50: 0 | AF50: 0 | AG50: 0 | AI50: 29.63636364 | AJ50: 62.52272727 | AK50: 12.47727273 | AL50: 10.88636364 | AM50: 13.15909091 | AN50: 51.02272727 | AO50: 0 | AP50: 0 | AQ50: 0 | AR50: 0 | AS50: 0 | AT50: 0 | AU50: 0 | AV50: 0 | AW50: 0 | AY50: 43 | AZ50: 63.97674419 | BA50: 12.76744186 | BB50: 11.13953488 | BC50: 13.46511628 | BD50: 52.20930233 | BE50: 0 | BF50: 0 | BG50: 0 | BH50: 0 | BI50: 0 | BJ50: 0 | BK50: 0 | BL50: 0 | BM50: 0 | BO50: 14.69767442 | BP50: 15.62790698 | BQ50: 63.97674419 | BR50: 12.76744186 | BS50: 11.13953488 | BT50: 13.46511628 | BU50: 52.20930233 | BV50: 0 | BW50: 0 | BX50: 0 | BY50: 0 | BZ50: 0 | CA50: 0 | CB50: 0 | CC50: 0 | CD50: 0 | CF50: 30.3255814 | CG50: 63.97674419 | CH50: 12.76744186 | CI50: 11.13953488 | CJ50: 13.46511628 | CK50: 52.20930233 | CL50: 0 | CM50: 0 | CN50: 0 | CO50: 0 | CP50: 0 | CQ50: 0 | CR50: 0 | CS50: 0 | CT50: 0
B51: 45 | C51: 61.13333333 | D51: 12.2 | E51: 10.64444444 | F51: 12.86666667 | G51: 49.88888889 | H51: 0 | I51: 0 | J51: 0 | K51: 0 | L51: 0 | M51: 0 | N51: 0 | O51: 0 | P51: 0 | R51: 14.04444444 | S51: 14.93333333 | T51: 61.13333333 | U51: 12.2 | V51: 10.64444444 | W51: 12.86666667 | X51: 49.88888889 | Y51: 0 | Z51: 0 | AA51: 0 | AB51: 0 | AC51: 0 | AD51: 0 | AE51: 0 | AF51: 0 | AG51: 0 | AI51: 28.97777778 | AJ51: 61.13333333 | AK51: 12.2 | AL51: 10.64444444 | AM51: 12.86666667 | AN51: 49.88888889 | AO51: 0 | AP51: 0 | AQ51: 0 | AR51: 0 | AS51: 0 | AT51: 0 | AU51: 0 | AV51: 0 | AW51: 0 | AY51: 44 | AZ51: 62.52272727 | BA51: 12.47727273 | BB51: 10.88636364 | BC51: 13.15909091 | BD51: 51.02272727 | BE51: 0 | BF51: 0 | BG51: 0 | BH51: 0 | BI51: 0 | BJ51: 0 | BK51: 0 | BL51: 0 | BM51: 0 | BO51: 14.36363636 | BP51: 15.27272727 | BQ51: 62.52272727 | BR51: 12.47727273 | BS51: 10.88636364 | BT51: 13.15909091 | BU51: 51.02272727 | BV51: 0 | BW51: 0 | BX51: 0 | BY51: 0 | BZ51: 0 | CA51: 0 | CB51: 0 | CC51: 0 | CD51: 0 | CF51: 29.63636364 | CG51: 62.52272727 | CH51: 12.47727273 | CI51: 10.88636364 | CJ51: 13.15909091 | CK51: 51.02272727 | CL51: 0 | CM51: 0 | CN51: 0 | CO51: 0 | CP51: 0 | CQ51: 0 | CR51: 0 | CS51: 0 | CT51: 0
B52: 46 | C52: 59.80434783 | D52: 11.93478261 | E52: 10.41304348 | F52: 12.58695652 | G52: 48.80434783 | H52: 0 | I52: 0 | J52: 0 | K52: 0 | L52: 0 | M52: 0 | N52: 0 | O52: 0 | P52: 0 | R52: 13.73913043 | S52: 14.60869565 | T52: 59.80434783 | U52: 11.93478261 | V52: 10.41304348 | W52: 12.58695652 | X52: 48.80434783 | Y52: 0 | Z52: 0 | AA52: 0 | AB52: 0 | AC52: 0 | AD52: 0 | AE52: 0 | AF52: 0 | AG52: 0 | AI52: 28.34782609 | AJ52: 59.80434783 | AK52: 11.93478261 | AL52: 10.41304348 | AM52: 12.58695652 | AN52: 48.80434783 | AO52: 0 | AP52: 0 | AQ52: 0 | AR52: 0 | AS52: 0 | AT52: 0 | AU52: 0 | AV52: 0 | AW52: 0 | AY52: 45 | AZ52: 61.13333333 | BA52: 12.2 | BB52: 10.64444444 | BC52: 12.86666667 | BD52: 49.88888889 | BE52: 0 | BF52: 0 | BG52: 0 | BH52: 0 | BI52: 0 | BJ52: 0 | BK52: 0 | BL52: 0 | BM52: 0 | BO52: 14.04444444 | BP52: 14.93333333 | BQ52: 61.13333333 | BR52: 12.2 | BS52: 10.64444444 | BT52: 12.86666667 | BU52: 49.88888889 | BV52: 0 | BW52: 0 | BX52: 0 | BY52: 0 | BZ52: 0 | CA52: 0 | CB52: 0 | CC52: 0 | CD52: 0 | CF52: 28.97777778 | CG52: 61.13333333 | CH52: 12.2 | CI52: 10.64444444 | CJ52: 12.86666667 | CK52: 49.88888889 | CL52: 0 | CM52: 0 | CN52: 0 | CO52: 0 | CP52: 0 | CQ52: 0 | CR52: 0 | CS52: 0 | CT52: 0
B53: 47 | C53: 58.53191489 | D53: 11.68085106 | E53: 10.19148936 | F53: 12.31914894 | G53: 47.76595745 | H53: 0 | I53: 0 | J53: 0 | K53: 0 | L53: 0 | M53: 0 | N53: 0 | O53: 0 | P53: 0 | R53: 13.44680851 | S53: 14.29787234 | T53: 58.53191489 | U53: 11.68085106 | V53: 10.19148936 | W53: 12.31914894 | X53: 47.76595745 | Y53: 0 | Z53: 0 | AA53: 0 | AB53: 0 | AC53: 0 | AD53: 0 | AE53: 0 | AF53: 0 | AG53: 0 | AI53: 27.74468085 | AJ53: 58.53191489 | AK53: 11.68085106 | AL53: 10.19148936 | AM53: 12.31914894 | AN53: 47.76595745 | AO53: 0 | AP53: 0 | AQ53: 0 | AR53: 0 | AS53: 0 | AT53: 0 | AU53: 0 | AV53: 0 | AW53: 0 | AY53: 46 | AZ53: 59.80434783 | BA53: 11.93478261 | BB53: 10.41304348 | BC53: 12.58695652 | BD53: 48.80434783 | BE53: 0 | BF53: 0 | BG53: 0 | BH53: 0 | BI53: 0 | BJ53: 0 | BK53: 0 | BL53: 0 | BM53: 0 | BO53: 13.73913043 | BP53: 14.60869565 | BQ53: 59.80434783 | BR53: 11.93478261 | BS53: 10.41304348 | BT53: 12.58695652 | BU53: 48.80434783 | BV53: 0 | BW53: 0 | BX53: 0 | BY53: 0 | BZ53: 0 | CA53: 0 | CB53: 0 | CC53: 0 | CD53: 0 | CF53: 28.34782609 | CG53: 59.80434783 | CH53: 11.93478261 | CI53: 10.41304348 | CJ53: 12.58695652 | CK53: 48.80434783 | CL53: 0 | CM53: 0 | CN53: 0 | CO53: 0 | CP53: 0 | CQ53: 0 | CR53: 0 | CS53: 0 | CT53: 0
B54: 48 | C54: 57.3125 | D54: 11.4375 | E54: 9.979166667 | F54: 12.0625 | G54: 46.77083333 | H54: 0 | I54: 0 | J54: =$J$6/B54 -> 0 | K54: 0 | L54: 0 | M54: 0 | N54: 0 | O54: 0 | P54: 0 | R54: 13.16666667 | S54: 14 | T54: 57.3125 | U54: 11.4375 | V54: 9.979166667 | W54: 12.0625 | X54: 46.77083333 | Y54: 0 | Z54: 0 | AA54: 0 | AB54: 0 | AC54: 0 | AD54: 0 | AE54: 0 | AF54: 0 | AG54: 0 | AI54: 27.16666667 | AJ54: 57.3125 | AK54: 11.4375 | AL54: 9.979166667 | AM54: 12.0625 | AN54: 46.77083333 | AO54: 0 | AP54: 0 | AQ54: 0 | AR54: 0 | AS54: 0 | AT54: 0 | AU54: 0 | AV54: 0 | AW54: 0 | AY54: 47 | AZ54: 58.53191489 | BA54: 11.68085106 | BB54: 10.19148936 | BC54: 12.31914894 | BD54: 47.76595745 | BE54: 0 | BF54: 0 | BG54: 0 | BH54: 0 | BI54: 0 | BJ54: 0 | BK54: 0 | BL54: 0 | BM54: 0 | BO54: 13.44680851 | BP54: 14.29787234 | BQ54: 58.53191489 | BR54: 11.68085106 | BS54: 10.19148936 | BT54: 12.31914894 | BU54: 47.76595745 | BV54: 0 | BW54: 0 | BX54: 0 | BY54: 0 | BZ54: 0 | CA54: 0 | CB54: 0 | CC54: 0 | CD54: 0 | CF54: 27.74468085 | CG54: 58.53191489 | CH54: 11.68085106 | CI54: 10.19148936 | CJ54: 12.31914894 | CK54: 47.76595745 | CL54: 0 | CM54: 0 | CN54: 0 | CO54: 0 | CP54: 0 | CQ54: 0 | CR54: 0 | CS54: 0 | CT54: 0
B55: 49 | C55: 56.14285714 | D55: 11.20408163 | E55: 9.775510204 | F55: 11.81632653 | G55: 45.81632653 | H55: 0 | I55: 0 | J55: 0 | K55: 0 | L55: 0 | M55: 0 | N55: 0 | O55: 0 | P55: 0 | R55: 12.89795918 | S55: 13.71428571 | T55: 56.14285714 | U55: 11.20408163 | V55: 9.775510204 | W55: 11.81632653 | X55: 45.81632653 | Y55: 0 | Z55: 0 | AA55: 0 | AB55: 0 | AC55: 0 | AD55: 0 | AE55: 0 | AF55: 0 | AG55: 0 | AI55: 26.6122449 | AJ55: 56.14285714 | AK55: 11.20408163 | AL55: 9.775510204 | AM55: 11.81632653 | AN55: 45.81632653 | AO55: 0 | AP55: 0 | AQ55: 0 | AR55: 0 | AS55: 0 | AT55: 0 | AU55: 0 | AV55: 0 | AW55: 0 | AY55: 48 | AZ55: 57.3125 | BA55: 11.4375 | BB55: 9.979166667 | BC55: 12.0625 | BD55: 46.77083333 | BE55: 0 | BF55: 0 | BG55: 0 | BH55: 0 | BI55: 0 | BJ55: 0 | BK55: 0 | BL55: 0 | BM55: 0 | BO55: 13.16666667 | BP55: 14 | BQ55: 57.3125 | BR55: 11.4375 | BS55: 9.979166667 | BT55: 12.0625 | BU55: 46.77083333 | BV55: 0 | BW55: 0 | BX55: 0 | BY55: 0 | BZ55: 0 | CA55: 0 | CB55: 0 | CC55: 0 | CD55: 0 | CF55: 27.16666667 | CG55: 57.3125 | CH55: 11.4375 | CI55: 9.979166667 | CJ55: 12.0625 | CK55: 46.77083333 | CL55: 0 | CM55: 0 | CN55: 0 | CO55: 0 | CP55: 0 | CQ55: 0 | CR55: 0 | CS55: 0 | CT55: 0
B56: 50 | C56: 55.02 | D56: 10.98 | E56: 9.58 | F56: 11.58 | G56: 44.9 | H56: 0 | I56: 0 | J56: 0 | K56: 0 | L56: 0 | M56: 0 | N56: 0 | O56: 0 | P56: 0 | R56: 12.64 | S56: 13.44 | T56: 55.02 | U56: 10.98 | V56: 9.58 | W56: 11.58 | X56: 44.9 | Y56: 0 | Z56: 0 | AA56: 0 | AB56: 0 | AC56: 0 | AD56: =M56 -> 0 | AE56: 0 | AF56: 0 | AG56: 0 | AI56: 26.08 | AJ56: 55.02 | AK56: 10.98 | AL56: 9.58 | AM56: 11.58 | AN56: 44.9 | AO56: 0 | AP56: 0 | AQ56: 0 | AR56: 0 | AS56: 0 | AT56: =M56 -> 0 | AU56: 0 | AV56: 0 | AW56: 0 | AY56: 49 | AZ56: 56.14285714 | BA56: 11.20408163 | BB56: 9.775510204 | BC56: 11.81632653 | BD56: 45.81632653 | BE56: 0 | BF56: 0 | BG56: 0 | BH56: 0 | BI56: 0 | BJ56: 0 | BK56: 0 | BL56: 0 | BM56: 0 | BO56: 12.89795918 | BP56: 13.71428571 | BQ56: 56.14285714 | BR56: 11.20408163 | BS56: 9.775510204 | BT56: 11.81632653 | BU56: 45.81632653 | BV56: 0 | BW56: 0 | BX56: 0 | BY56: 0 | BZ56: 0 | CA56: 0 | CB56: 0 | CC56: 0 | CD56: 0 | CF56: 26.6122449 | CG56: 56.14285714 | CH56: 11.20408163 | CI56: 9.775510204 | CJ56: 11.81632653 | CK56: 45.81632653 | CL56: 0 | CM56: 0 | CN56: 0 | CO56: 0 | CP56: 0 | CQ56: 0 | CR56: 0 | CS56: 0 | CT56: 0
B57: 51 | C57: 53.94117647 | D57: 10.76470588 | E57: 9.392156863 | F57: 11.35294118 | G57: 44.01960784 | H57: 0 | I57: 0 | J57: 0 | K57: 0 | L57: 0 | M57: 0 | N57: 0 | O57: 0 | P57: 0 | R57: 12.39215686 | S57: 13.17647059 | T57: 53.94117647 | U57: 10.76470588 | V57: 9.392156863 | W57: 11.35294118 | X57: 44.01960784 | Y57: 0 | Z57: 0 | AA57: 0 | AB57: 0 | AC57: 0 | AD57: 0 | AE57: 0 | AF57: 0 | AG57: 0 | AI57: 25.56862745 | AJ57: 53.94117647 | AK57: 10.76470588 | AL57: 9.392156863 | AM57: 11.35294118 | AN57: 44.01960784 | AO57: 0 | AP57: 0 | AQ57: 0 | AR57: 0 | AS57: 0 | AT57: 0 | AU57: 0 | AV57: 0 | AW57: 0 | AY57: 50 | AZ57: 55.02 | BA57: 10.98 | BB57: 9.58 | BC57: 11.58 | BD57: 44.9 | BE57: 0 | BF57: 0 | BG57: 0 | BH57: 0 | BI57: 0 | BJ57: 0 | BK57: 0 | BL57: 0 | BM57: 0 | BO57: 12.64 | BP57: 13.44 | BQ57: 55.02 | BR57: 10.98 | BS57: 9.58 | BT57: 11.58 | BU57: 44.9 | BV57: 0 | BW57: 0 | BX57: 0 | BY57: 0 | BZ57: 0 | CA57: 0 | CB57: 0 | CC57: 0 | CD57: 0 | CF57: 26.08 | CG57: 55.02 | CH57: 10.98 | CI57: 9.58 | CJ57: 11.58 | CK57: 44.9 | CL57: 0 | CM57: 0 | CN57: 0 | CO57: 0 | CP57: 0 | CQ57: 0 | CR57: 0 | CS57: 0 | CT57: 0
B58: 52 | C58: 52.90384615 | D58: 10.55769231 | E58: 9.211538462 | F58: 11.13461538 | G58: 43.17307692 | H58: 0 | I58: 0 | J58: 0 | K58: 0 | L58: 0 | M58: 0 | N58: 0 | O58: 0 | P58: 0 | R58: 12.15384615 | S58: 12.92307692 | T58: 52.90384615 | U58: 10.55769231 | V58: 9.211538462 | W58: 11.13461538 | X58: 43.17307692 | Y58: 0 | Z58: 0 | AA58: 0 | AB58: 0 | AC58: 0 | AD58: 0 | AE58: 0 | AF58: 0 | AG58: 0 | AI58: 25.07692308 | AJ58: 52.90384615 | AK58: 10.55769231 | AL58: 9.211538462 | AM58: 11.13461538 | AN58: 43.17307692 | AO58: 0 | AP58: 0 | AQ58: 0 | AR58: 0 | AS58: 0 | AT58: 0 | AU58: 0 | AV58: 0 | AW58: 0 | AY58: 51 | AZ58: 53.94117647 | BA58: 10.76470588 | BB58: 9.392156863 | BC58: 11.35294118 | BD58: 44.01960784 | BE58: 0 | BF58: 0 | BG58: 0 | BH58: 0 | BI58: 0 | BJ58: 0 | BK58: 0 | BL58: 0 | BM58: 0 | BO58: 12.39215686 | BP58: 13.17647059 | BQ58: 53.94117647 | BR58: 10.76470588 | BS58: 9.392156863 | BT58: 11.35294118 | BU58: 44.01960784 | BV58: 0 | BW58: 0 | BX58: 0 | BY58: 0 | BZ58: 0 | CA58: 0 | CB58: 0 | CC58: 0 | CD58: 0 | CF58: 25.56862745 | CG58: 53.94117647 | CH58: 10.76470588 | CI58: 9.392156863 | CJ58: 11.35294118 | CK58: 44.01960784 | CL58: 0 | CM58: 0 | CN58: 0 | CO58: 0 | CP58: 0 | CQ58: 0 | CR58: 0 | CS58: 0 | CT58: 0
B59: 53 | C59: 51.90566038 | D59: =$D$6/B59 -> 10.35849057 | E59: =$E$6/B59 -> 9.037735849 | F59: =$F$6/B59 -> 10.9245283 | G59: =$G$6/B59 -> 42.35849057 | H59: =$H$6/B59 -> 0 | I59: =$I$6/B59 -> 0 | J59: 0 | K59: =$K$6/B59 -> 0 | L59: =$L$6/B59 -> 0 | M59: 0 | N59: 0 | O59: =$O$6/B59 -> 0 | P59: =$P$6/B59 -> 0 | R59: =$R$6/B59 -> 11.9245283 | S59: =$S$6/B59 -> 12.67924528 | T59: =C59 -> 51.90566038 | U59: 10.35849057 | V59: 9.037735849 | W59: 10.9245283 | X59: 42.35849057 | Y59: 0 | Z59: 0 | AA59: 0 | AB59: 0 | AC59: 0 | AD59: 0 | AE59: 0 | AF59: 0 | AG59: 0 | AI59: =$AI$6/B59 -> 24.60377358 | AJ59: =C59 -> 51.90566038 | AK59: 10.35849057 | AL59: 9.037735849 | AM59: 10.9245283 | AN59: 42.35849057 | AO59: 0 | AP59: 0 | AQ59: 0 | AR59: 0 | AS59: 0 | AT59: 0 | AU59: 0 | AV59: 0 | AW59: 0 | AY59: 52 | AZ59: 52.90384615 | BA59: 10.55769231 | BB59: 9.211538462 | BC59: 11.13461538 | BD59: 43.17307692 | BE59: 0 | BF59: 0 | BG59: 0 | BH59: 0 | BI59: 0 | BJ59: 0 | BK59: 0 | BL59: 0 | BM59: 0 | BO59: 12.15384615 | BP59: 12.92307692 | BQ59: 52.90384615 | BR59: 10.55769231 | BS59: 9.211538462 | BT59: 11.13461538 | BU59: 43.17307692 | BV59: 0 | BW59: 0 | BX59: 0 | BY59: 0 | BZ59: 0 | CA59: 0 | CB59: 0 | CC59: 0 | CD59: 0 | CF59: 25.07692308 | CG59: 52.90384615 | CH59: 10.55769231 | CI59: 9.211538462 | CJ59: 11.13461538 | CK59: 43.17307692 | CL59: 0 | CM59: 0 | CN59: 0 | CO59: 0 | CP59: 0 | CQ59: 0 | CR59: 0 | CS59: 0 | CT59: 0
B60: 54 | C60: 50.94444444 | D60: =$D$6/B60 -> 10.16666667 | E60: =$E$6/B60 -> 8.87037037 | F60: =$F$6/B60 -> 10.72222222 | G60: =$G$6/B60 -> 41.57407407 | H60: =$H$6/B60 -> 0 | I60: =$I$6/B60 -> 0 | J60: 0 | K60: =$K$6/B60 -> 0 | L60: =$L$6/B60 -> 0 | M60: =$M$6/B60 -> 0 | N60: 0 | O60: =$O$6/B60 -> 0 | P60: =$P$6/B60 -> 0 | R60: =$R$6/B60 -> 11.7037037 | S60: =$S$6/B60 -> 12.44444444 | T60: 50.94444444 | U60: 10.16666667 | V60: 8.87037037 | W60: 10.72222222 | X60: 41.57407407 | Y60: 0 | Z60: 0 | AA60: 0 | AB60: 0 | AC60: 0 | AD60: 0 | AE60: 0 | AF60: 0 | AG60: 0 | AI60: =$AI$6/B60 -> 24.14814815 | AJ60: 50.94444444 | AK60: 10.16666667 | AL60: 8.87037037 | AM60: 10.72222222 | AN60: 41.57407407 | AO60: 0 | AP60: 0 | AQ60: 0 | AR60: 0 | AS60: 0 | AT60: 0 | AU60: 0 | AV60: 0 | AW60: 0 | AY60: 53 | AZ60: 51.90566038 | BA60: 10.35849057 | BB60: 9.037735849 | BC60: 10.9245283 | BD60: 42.35849057 | BE60: 0 | BF60: 0 | BG60: 0 | BH60: 0 | BI60: 0 | BJ60: 0 | BK60: 0 | BL60: 0 | BM60: 0 | BO60: 11.9245283 | BP60: 12.67924528 | BQ60: 51.90566038 | BR60: 10.35849057 | BS60: 9.037735849 | BT60: 10.9245283 | BU60: 42.35849057 | BV60: 0 | BW60: 0 | BX60: 0 | BY60: 0 | BZ60: 0 | CA60: 0 | CB60: 0 | CC60: 0 | CD60: 0 | CF60: 24.60377358 | CG60: 51.90566038 | CH60: 10.35849057 | CI60: 9.037735849 | CJ60: 10.9245283 | CK60: 42.35849057 | CL60: 0 | CM60: 0 | CN60: 0 | CO60: 0 | CP60: 0 | CQ60: 0 | CR60: 0 | CS60: 0 | CT60: 0
B64: Nombre de sièges | C64: 21 | D64: =[1]LPO_CC_20190717!$Q$2 -> 21 | E64: =C64-D64 -> 0
B65: Nombre d'inscrits | C65: 7907 | D65: =[1]LPO_CC_20190717!$AY$2 -> 7907 | E65: =C65-D65 -> 0
B66: Bulletins déposés | C66: 7235 | D66: =[1]LPO_CC_20190717!$AZ$2 -> 7235 | E66: 0
B67: Blancs & Nuls | C67: 632 | D67: =[1]LPO_CC_20190717!$BA$2 -> 632 | E67: 0
B68: Votes valables | C68: 6603 | D68: =[1]LPO_CC_20190717!$BB$2 -> 6603 | E68: 0
B73: Liste unique Majorité absolue | C73: =SUM($C$74:$P$74) -> 0 | R73: =SUM($R$74:$AG$74) -> 0 | AI73: =SUM($AI$74:$AW$74) -> 0 | AY73: =SUM(AY74:BM74) -> 0 | BO73: =SUM(BO74:CD74) -> 0 | CF73: =SUM(CF74:CT74) -> 0 | CW73: =SUM(CW74:DL74) -> 0
C74: =IF(C7>($C$64/2),1,0) -> 0 | D74: 0 | E74: 0 | F74: 0 | G74: 0 | H74: 0 | I74: 0 | J74: 0 | K74: 0 | L74: 0 | M74: 0 | N74: 0 | O74: 0 | P74: 0 | R74: =IF(R7>($C$64/2),1,0) -> 0 | S74: 0 | T74: 0 | U74: 0 | V74: 0 | W74: 0 | X74: 0 | Y74: 0 | Z74: 0 | AA74: 0 | AB74: 0 | AC74: 0 | AD74: 0 | AE74: 0 | AF74: 0 | AG74: 0 | AI74: =IF(AI7>($C$64/2),1,0) -> 0 | AJ74: 0 | AK74: 0 | AL74: 0 | AM74: 0 | AN74: 0 | AO74: 0 | AP74: 0 | AQ74: 0 | AR74: 0 | AS74: 0 | AT74: 0 | AU74: 0 | AV74: 0 | AW74: 0 | AY74: =IF(AY7>($C$64/2),1,0) -> 0 | AZ74: 0 | BA74: 0 | BB74: 0 | BC74: 0 | BD74: 0 | BE74: 0 | BF74: 0 | BG74: 0 | BH74: 0 | BI74: 0 | BJ74: 0 | BK74: 0 | BL74: 0 | BM74: 0 | BO74: =IF(BO7>($C$64/2),1,0) -> 0 | BP74: 0 | BQ74: 0 | BR74: 0 | BS74: 0 | BT74: 0 | BU74: 0 | BV74: 0 | BW74: 0 | BX74: 0 | BY74: 0 | BZ74: 0 | CA74: 0 | CB74: 0 | CC74: 0 | CD74: 0 | CF74: =IF(CF7>($C$64/2),1,0) -> 0 | CG74: 0 | CH74: 0 | CI74: 0 | CJ74: 0 | CK74: 0 | CL74: 0 | CM74: 0 | CN74: 0 | CO74: 0 | CP74: 0 | CQ74: 0 | CR74: 0 | CS74: 0 | CT74: 0 | CW74: =IF(CW7>($C$64/2),1,0) -> 0 | CX74: 0 | CY74: 0 | CZ74: 0 | DA74: 0 | DB74: 0 | DC74: 0 | DD74: 0 | DE74: 0 | DF74: 0 | DG74: 0 | DH74: 0 | DI74: 0 | DJ74: 0 | DK74: 0 | DL74: 0
B76: Liste unique Majorité absolue Nombre de voix | C76: =SUM($C$77:$P$77) -> 0 | R76: =SUM($R$77:$AG$77) -> 0 | AI76: =SUM($AI$77:$AW$77) -> 0 | AY76: =SUM(AY77:BM77) -> 0 | BO76: =SUM(BO77:CD77) -> 0 | CF76: =SUM(CF77:CT77) -> 0 | CW76: =SUM(CW77:DL77) -> 0
C77: =IF(C74>0,C6,0) -> 0 | D77: =IF(D74>0,D6,0) -> 0 | E77: 0 | F77: 0 | G77: 0 | H77: 0 | I77: 0 | J77: 0 | K77: 0 | L77: 0 | M77: 0 | N77: 0 | O77: 0 | P77: 0 | R77: =IF(R74>0,R6,0) -> 0 | S77: =IF(S74>0,S6,0) -> 0 | T77: 0 | U77: 0 | V77: 0 | W77: 0 | X77: 0 | Y77: 0 | Z77: 0 | AA77: 0 | AB77: 0 | AC77: 0 | AD77: 0 | AE77: 0 | AF77: 0 | AG77: 0 | AI77: =IF(AI74>0,AI6,0) -> 0 | AJ77: =IF(AJ74>0,AJ6,0) -> 0 | AK77: 0 | AL77: 0 | AM77: 0 | AN77: 0 | AO77: 0 | AP77: 0 | AQ77: 0 | AR77: 0 | AS77: 0 | AT77: 0 | AU77: 0 | AV77: 0 | AW77: 0 | AY77: =IF(AY74>0,AY6,0) -> 0 | AZ77: =IF(AZ74>0,AZ6,0) -> 0 | BA77: 0 | BB77: 0 | BC77: 0 | BD77: 0 | BE77: 0 | BF77: 0 | BG77: 0 | BH77: 0 | BI77: 0 | BJ77: 0 | BK77: 0 | BL77: 0 | BM77: 0 | BO77: =IF(BO74>0,BO6,0) -> 0 | BP77: =IF(BP74>0,BP6,0) -> 0 | BQ77: 0 | BR77: 0 | BS77: 0 | BT77: 0 | BU77: 0 | BV77: 0 | BW77: 0 | BX77: 0 | BY77: 0 | BZ77: 0 | CA77: 0 | CB77: 0 | CC77: 0 | CD77: 0 | CF77: =IF(CF74>0,CF6,0) -> 0 | CG77: =IF(CG74>0,CG6,0) -> 0 | CH77: 0 | CI77: 0 | CJ77: 0 | CK77: 0 | CL77: 0 | CM77: 0 | CN77: 0 | CO77: 0 | CP77: 0 | CQ77: 0 | CR77: 0 | CS77: 0 | CT77: 0 | CW77: =IF(CW74>0,CW6,0) -> 0 | CX77: =IF(CX74>0,CX6,0) -> 0 | CY77: 0 | CZ77: 0 | DA77: 0 | DB77: 0 | DC77: 0 | DD77: 0 | DE77: 0 | DF77: 0 | DG77: 0 | DH77: 0 | DI77: 0 | DJ77: 0 | DK77: 0 | DL77: 0
B80: Nbr voix Coallition | C80: =SUMIF(C4:P4,"x",C6:P6) -> 3300
B82: % Coalition | C82: =100/C65*C80 -> 41.73517137
B83: % Majorité | C83: =100/C65*C76 -> 0
B86: Coalition | C86: =COUNTA(C4:P4) -> 2 | D86: =IF(C86>0,1,0) -> 1
F93: =R5 -> Blancs & Nuls | G93: Non-déposés | H93: PS | I93: MR | J93: ECOLO | K93: ACAP6250 | L93: ENSEMBLE | M93: 0 | N93: 0 | O93: 0 | P93: 0 | Q93: 0 | R93: 0 | S93: 0 | T93: 0 | U93: 0
E94: Chiffres électoraux | F94: 632 | G94: 672 | H94: 2751 | I94: 549 | J94: 479 | K94: 579 | L94: 2245 | M94: 0 | N94: 0 | O94: 0 | P94: 0 | Q94: 0 | R94: 0 | S94: 0 | T94: 0 | U94: 0
E95: Impériali | F95: 0 | G95: 0 | H95: =C7 -> 10 | I95: 1 | J95: 1 | K95: 1 | L95: 8 | M95: 0 | N95: 0 | O95: 0 | P95: 0 | Q95: 0 | R95: 0 | S95: 0 | T95: 0 | U95: 0
E96: Impériali + proportionnelle | F96: =R7 -> 1 | G96: 1 | H96: 10 | I96: 1 | J96: 0 | K96: 1 | L96: 7 | M96: 0 | N96: 0 | O96: 0 | P96: 0 | Q96: 0 | R96: 0 | S96: 0 | T96: 0 | U96: 0
E97: D'Hondt | F97: 0 | G97: 0 | H97: =AZ7 -> 9 | I97: 1 | J97: 1 | K97: 2 | L97: 8 | M97: 0 | N97: 0 | O97: 0 | P97: 0 | Q97: 0 | R97: 0 | S97: 0 | T97: 0 | U97: 0
E98: D'Hondt + proportionnelle | F98: =BO7 -> 1 | G98: 2 | H98: 8 | I98: 1 | J98: 1 | K98: 1 | L98: 7 | M98: 0 | N98: 0 | O98: 0 | P98: 0 | Q98: 0 | R98: 0 | S98: 0 | T98: 0 | U98: 0
E99: Proportionnelle pure | F99: =CW7 -> 1.67851271 | G99: 1.784747692 | H99: 7.306310864 | I99: 1.458075123 | J99: 1.272163905 | K99: 1.53775136 | L99: 5.962438346 | M99: 0 | N99: 0 | O99: 0 | P99: 0 | Q99: 0 | R99: 0 | S99: 0 | T99: 0 | U99: 0
E101: Nombre de sièges à distribuer : | H101: =C64 -> 21 | K101: Est-ce une liste unique en majorité absolue en termes de sièges ? | T101: =IF(C73>0,"Oui","Non") -> Non
E103: Nombre d'inscrits : | H103: =C65 -> 7907 | K103: Est-ce une liste unique en majorité absolue en termes de voix ? | T103: =IF(C76>0,"Oui","Non") -> Non
E105: Nombre de bulletins déposés : | H105: =C66 -> 7235 | K105: La majorité est-elle formée par une coalition ? | T105: =IF(D86>1,"Oui","Non") -> Non
E107: Nombre de votes valables : | H107: =C68 -> 6603 | K107: Quelle est la proportion de l'électorat représentée par la majorité ? | T107: =IF(C86>1,C82,C83) -> 41.73517137

Sheet AMAY
B2: Impériali | AY2: D'Hondt | CV2: Proportionnelle pure
B4: Coalition
B5: =COUNTA(C5:P5) -> 3 | C5: ECOLO | D5: PS | E5: AMAY.PLUS | R5: Blancs & Nuls | S5: Non-déposés | T5: =C5 -> ECOLO | U5: PS | V5: AMAY.PLUS | Y5: =H5 -> 0 | Z5: =I5 -> 0 | AA5: 0 | AB5: 0 | AC5: 0 | AD5: 0 | AE5: 0 | AF5: 0 | AG5: 0 | AI5: Non-valables | AJ5: =C5 -> ECOLO | AK5: PS | AL5: AMAY.PLUS | AO5: =H5 -> 0 | AP5: =I5 -> 0 | AQ5: 0 | AR5: 0 | AS5: 0 | AT5: 0 | AU5: 0 | AV5: 0 | AW5: 0 | AY5: =COUNTA(AZ5:BM5) -> 14 | AZ5: =C5 -> ECOLO | BA5: PS | BB5: AMAY.PLUS | BC5: 0 | BD5: 0 | BE5: 0 | BF5: 0 | BG5: 0 | BH5: 0 | BI5: 0 | BJ5: 0 | BK5: 0 | BL5: 0 | BM5: 0 | BO5: Blancs & Nuls | BP5: Non-déposés | BQ5: =C5 -> ECOLO | BR5: PS | BS5: AMAY.PLUS | BT5: 0 | BU5: 0 | BV5: 0 | BW5: 0 | BX5: 0 | BY5: 0 | BZ5: 0 | CA5: 0 | CB5: 0 | CC5: 0 | CD5: 0 | CF5: Non-valables | CG5: =AZ5 -> ECOLO | CH5: =BA5 -> PS | CI5: =BB5 -> AMAY.PLUS | CJ5: =BC5 -> 0 | CK5: =BD5 -> 0 | CL5: =BE5 -> 0 | CM5: =BF5 -> 0 | CN5: 0 | CO5: 0 | CP5: 0 | CQ5: 0 | CR5: 0 | CS5: 0 | CT5: 0 | CV5: New Key | CW5: Blancs & Nuls | CX5: Non-déposés | CY5: =C5 -> ECOLO | CZ5: PS | DA5: AMAY.PLUS | DB5: 0 | DC5: 0 | DD5: 0 | DE5: 0 | DF5: 0 | DG5: 0 | DH5: 0 | DI5: 0 | DJ5: 0 | DK5: 0 | DL5: 0
B6: Chiffres électoraux | C6: 4867 | D6: 2960 | E6: 1114 | R6: =C67 -> 756 | S6: =C65-C66 -> 1214 | T6: 4867 | U6: 2960 | V6: 1114 | Y6: =H6 -> 0 | Z6: 0 | AA6: 0 | AB6: 0 | AC6: 0 | AD6: 0 | AE6: 0 | AF6: 0 | AG6: 0 | AI6: =R6+S6 -> 1970 | AJ6: 4867 | AK6: 2960 | AL6: 1114 | AO6: =H6 -> 0 | AP6: 0 | AQ6: 0 | AR6: 0 | AS6: 0 | AT6: 0 | AU6: 0 | AV6: 0 | AW6: 0 | AY6: Chiffres électoraux | AZ6: 4867 | BA6: 2960 | BB6: 1114 | BC6: 0 | BD6: 0 | BE6: 0 | BF6: 0 | BG6: 0 | BH6: 0 | BI6: 0 | BJ6: 0 | BK6: 0 | BL6: 0 | BM6: 0 | BO6: =C67 -> 756 | BP6: =C65-C66 -> 1214 | BQ6: 4867 | BR6: 2960 | BS6: 1114 | BT6: 0 | BU6: 0 | BV6: 0 | BW6: 0 | BX6: 0 | BY6: 0 | BZ6: 0 | CA6: 0 | CB6: 0 | CC6: 0 | CD6: 0 | CF6: =BO6+BP6 -> 1970 | CG6: 4867 | CH6: 2960 | CI6: 1114 | CJ6: 0 | CK6: 0 | CL6: 0 | CM6: 0 | CN6: 0 | CO6: 0 | CP6: 0 | CQ6: 0 | CR6: 0 | CS6: 0 | CT6: 0 | CW6: =C67 -> 756 | CX6: =C65-C66 -> 1214 | CY6: 4867 | CZ6: 2960 | DA6: 1114 | DB6: 0 | DC6: 0 | DD6: 0 | DE6: 0 | DF6: 0 | DG6: 0 | DH6: 0 | DI6: 0 | DJ6: 0 | DK6: 0 | DL6: 0
B7: Sièges | C7: 13 | D7: 8 | E7: 2 | F7: 0 | G7: 0 | H7: 0 | I7: 0 | J7: 0 | K7: 0 | L7: 0 | M7: 0 | N7: 0 | O7: 0 | P7: 0 | R7: 1 | S7: 2 | T7: 12 | U7: 6 | V7: 2 | W7: 0 | X7: 0 | Y7: 0 | Z7: 0 | AA7: 0 | AB7: 0 | AC7: 0 | AD7: 0 | AE7: 0 | AF7: 0 | AG7: 0 | AI7: 4 | AJ7: 12 | AK7: 6 | AL7: 1 | AM7: 0 | AN7: 0 | AO7: 0 | AP7: 0 | AQ7: 0 | AR7: 0 | AS7: 0 | AT7: 0 | AU7: 0 | AV7: 0 | AW7: 0 | AY7: 0 | AZ7: 13 | BA7: 7 | BB7: 3 | BC7: 0 | BD7: 0 | BE7: 0 | BF7: 0 | BG7: 0 | BH7: 0 | BI7: 0 | BJ7: 0 | BK7: 0 | BL7: 0 | BM7: 0 | BO7: 1 | BP7: 2 | BQ7: 11 | BR7: 7 | BS7: 2 | BT7: 0 | BU7: 0 | BV7: 0 | BW7: 0 | BX7: 0 | BY7: 0 | BZ7: 0 | CA7: 0 | CB7: 0 | CC7: 0 | CD7: 0 | CF7: 4 | CG7: 11 | CH7: 6 | CI7: 2 | CJ7: 0 | CK7: 0 | CL7: 0 | CM7: 0 | CN7: 0 | CO7: 0 | CP7: 0 | CQ7: 0 | CR7: 0 | CS7: 0 | CT7: 0 | CV7: =C65/C64 -> 474.3913043 | CW7: =CW6/$CV$7 -> 1.593621116 | CX7: 2.55906883 | CY7: 10.25946293 | CZ7: 6.239574741 | DA7: 2.348272386 | DB7: 0 | DC7: 0 | DD7: 0 | DE7: 0 | DF7: 0 | DG7: 0 | DH7: 0 | DI7: 0 | DJ7: 0 | DK7: 0 | DL7: 0
B8: 2 | C8: =$C$6/B8 -> 2433.5 | D8: =$D$6/B8 -> 1480 | E8: =$E$6/B8 -> 557 | F8: =$F$6/B8 -> 0 | G8: =$G$6/B8 -> 0 | H8: =$H$6/B8 -> 0 | I8: =$I$6/B8 -> 0 | J8: =$J$6/B8 -> 0 | K8: =$K$6/B8 -> 0 | L8: =$L$6/B8 -> 0 | M8: =$M$6/B8 -> 0 | N8: =$N$6/B8 -> 0 | O8: =$O$6/B8 -> 0 | P8: =$P$6/B8 -> 0 | R8: =$R$6/B8 -> 378 | S8: =$S$6/B8 -> 607 | T8: =C8 -> 2433.5 | U8: =D8 -> 1480 | V8: =E8 -> 557 | W8: =F8 -> 0 | X8: =G8 -> 0 | Y8: =H8 -> 0 | Z8: =I8 -> 0 | AA8: =J8 -> 0 | AB8: =K8 -> 0 | AC8: =L8 -> 0 | AD8: =M8 -> 0 | AE8: =N8 -> 0 | AF8: =O8 -> 0 | AG8: =P8 -> 0 | AI8: =$AI$6/B8 -> 985 | AJ8: =C8 -> 2433.5 | AK8: =D8 -> 1480 | AL8: =E8 -> 557 | AM8: =F8 -> 0 | AN8: =G8 -> 0 | AO8: =H8 -> 0 | AP8: =I8 -> 0 | AQ8: =J8 -> 0 | AR8: =K8 -> 0 | AS8: =L8 -> 0 | AT8: =M8 -> 0 | AU8: =N8 -> 0 | AV8: =O8 -> 0 | AW8: =P8 -> 0 | AY8: 1 | AZ8: =$AZ$6/AY8 -> 4867 | BA8: =$BA$6/AY8 -> 2960 | BB8: =$BB$6/AY8 -> 1114 | BC8: =$BC$6/AY8 -> 0 | BD8: =$BD$6/AY8 -> 0 | BE8: =$BE$6/AY8 -> 0 | BF8: =$BF$6/AY8 -> 0 | BG8: =$BG$6/AY8 -> 0 | BH8: =$BH$6/AY8 -> 0 | BI8: =$BI$6/AY8 -> 0 | BJ8: =$BJ$6/AY8 -> 0 | BK8: =$BK$6/AY8 -> 0 | BL8: =$BL$6/AY8 -> 0 | BM8: =$BM$6/AY8 -> 0 | BO8: =$BO$6/AY8 -> 756 | BP8: =$BP$6/AY8 -> 1214 | BQ8: =AZ8 -> 4867 | BR8: =BA8 -> 2960 | BS8: 1114 | BT8: 0 | BU8: 0 | BV8: 0 | BW8: 0 | BX8: 0 | BY8: 0 | BZ8: 0 | CA8: 0 | CB8: 0 | CC8: 0 | CD8: 0 | CF8: =$CF$6/AY8 -> 1970 | CG8: =AZ8 -> 4867 | CH8: =BA8 -> 2960 | CI8: =BB8 -> 1114 | CJ8: =BC8 -> 0 | CK8: =BD8 -> 0 | CL8: =BE8 -> 0 | CM8: =BF8 -> 0 | CN8: =BG8 -> 0 | CO8: =BH8 -> 0 | CP8: =BI8 -> 0 | CQ8: =BJ8 -> 0 | CR8: =BK8 -> 0 | CS8: =BL8 -> 0 | CT8: =BM8 -> 0
B9: 3 | C9: 1622.333333 | D9: 986.6666667 | E9: 371.3333333 | F9: 0 | G9: 0 | H9: 0 | I9: 0 | J9: 0 | K9: 0 | L9: 0 | M9: 0 | N9: 0 | O9: 0 | P9: 0 | R9: 252 | S9: 404.6666667 | T9: 1622.333333 | U9: 986.6666667 | V9: 371.3333333 | W9: 0 | X9: 0 | Y9: 0 | Z9: 0 | AA9: 0 | AB9: 0 | AC9: 0 | AD9: 0 | AE9: 0 | AF9: 0 | AG9: 0 | AI9: 656.6666667 | AJ9: 1622.333333 | AK9: 986.6666667 | AL9: 371.3333333 | AM9: 0 | AN9: 0 | AO9: 0 | AP9: 0 | AQ9: 0 | AR9: 0 | AS9: 0 | AT9: 0 | AU9: 0 | AV9: 0 | AW9: 0 | AY9: 2 | AZ9: =$AZ$6/AY9 -> 2433.5 | BA9: =$BA$6/AY9 -> 1480 | BB9: =$BB$6/AY9 -> 557 | BC9: =$BC$6/AY9 -> 0 | BD9: =$BD$6/AY9 -> 0 | BE9: =$BE$6/AY9 -> 0 | BF9: =$BF$6/AY9 -> 0 | BG9: =$BG$6/AY9 -> 0 | BH9: =$BH$6/AY9 -> 0 | BI9: =$BI$6/AY9 -> 0 | BJ9: =$BJ$6/AY9 -> 0 | BK9: =$BK$6/AY9 -> 0 | BL9: =$BL$6/AY9 -> 0 | BM9: =$BM$6/AY9 -> 0 | BO9: =$BO$6/AY9 -> 378 | BP9: =$BP$6/AY9 -> 607 | BQ9: =AZ9 -> 2433.5 | BR9: 1480 | BS9: 557 | BT9: 0 | BU9: 0 | BV9: 0 | BW9: 0 | BX9: 0 | BY9: 0 | BZ9: 0 | CA9: 0 | CB9: 0 | CC9: 0 | CD9: 0 | CF9: =$CF$6/AY9 -> 985 | CG9: 2433.5 | CH9: 1480 | CI9: 557 | CJ9: 0 | CK9: 0 | CL9: 0 | CM9: 0 | CN9: 0 | CO9: 0 | CP9: 0 | CQ9: 0 | CR9: 0 | CS9: 0 | CT9: 0
B10: 4 | C10: 1216.75 | D10: 740 | E10: 278.5 | F10: 0 | G10: 0 | H10: 0 | I10: 0 | J10: 0 | K10: 0 | L10: 0 | M10: 0 | N10: 0 | O10: 0 | P10: 0 | R10: 189 | S10: 303.5 | T10: 1216.75 | U10: 740 | V10: 278.5 | W10: 0 | X10: 0 | Y10: 0 | Z10: 0 | AA10: 0 | AB10: 0 | AC10: 0 | AD10: 0 | AE10: 0 | AF10: 0 | AG10: 0 | AI10: 492.5 | AJ10: 1216.75 | AK10: 740 | AL10: 278.5 | AM10: 0 | AN10: 0 | AO10: 0 | AP10: 0 | AQ10: 0 | AR10: 0 | AS10: 0 | AT10: 0 | AU10: 0 | AV10: 0 | AW10: 0 | AY10: 3 | AZ10: 1622.333333 | BA10: 986.6666667 | BB10: 371.3333333 | BC10: 0 | BD10: 0 | BE10: 0 | BF10: 0 | BG10: 0 | BH10: 0 | BI10: 0 | BJ10: 0 | BK10: 0 | BL10: 0 | BM10: 0 | BO10: 252 | BP10: 404.6666667 | BQ10: 1622.333333 | BR10: 986.6666667 | BS10: 371.3333333 | BT10: 0 | BU10: 0 | BV10: 0 | BW10: 0 | BX10: 0 | BY10: 0 | BZ10: 0 | CA10: 0 | CB10: 0 | CC10: 0 | CD10: 0 | CF10: 656.6666667 | CG10: 1622.333333 | CH10: 986.6666667 | CI10: 371.3333333 | CJ10: 0 | CK10: 0 | CL10: 0 | CM10: 0 | CN10: 0 | CO10: 0 | CP10: 0 | CQ10: 0 | CR10: 0 | CS10: 0 | CT10: 0
B11: 5 | C11: 973.4 | D11: 592 | E11: 222.8 | F11: 0 | G11: 0 | H11: 0 | I11: 0 | J11: 0 | K11: 0 | L11: 0 | M11: 0 | N11: 0 | O11: 0 | P11: 0 | R11: 151.2 | S11: 242.8 | T11: 973.4 | U11: 592 | V11: 222.8 | W11: 0 | X11: 0 | Y11: 0 | Z11: 0 | AA11: 0 | AB11: 0 | AC11: 0 | AD11: 0 | AE11: 0 | AF11: 0 | AG11: 0 | AI11: 394 | AJ11: 973.4 | AK11: 592 | AL11: 222.8 | AM11: 0 | AN11: 0 | AO11: 0 | AP11: 0 | AQ11: 0 | AR11: 0 | AS11: 0 | AT11: 0 | AU11: 0 | AV11: 0 | AW11: 0 | AY11: 4 | AZ11: 1216.75 | BA11: 740 | BB11: 278.5 | BC11: 0 | BD11: 0 | BE11: 0 | BF11: 0 | BG11: 0 | BH11: 0 | BI11: 0 | BJ11: 0 | BK11: 0 | BL11: 0 | BM11: 0 | BO11: 189 | BP11: 303.5 | BQ11: 1216.75 | BR11: 740 | BS11: 278.5 | BT11: 0 | BU11: 0 | BV11: 0 | BW11: 0 | BX11: 0 | BY11: 0 | BZ11: 0 | CA11: 0 | CB11: 0 | CC11: 0 | CD11: 0 | CF11: 492.5 | CG11: 1216.75 | CH11: 740 | CI11: 278.5 | CJ11: 0 | CK11: 0 | CL11: 0 | CM11: 0 | CN11: 0 | CO11: 0 | CP11: 0 | CQ11: 0 | CR11: 0 | CS11: 0 | CT11: 0
B12: 6 | C12: 811.1666667 | D12: 493.3333333 | E12: 185.6666667 | F12: 0 | G12: 0 | H12: 0 | I12: 0 | J12: 0 | K12: 0 | L12: 0 | M12: 0 | N12: 0 | O12: 0 | P12: 0 | R12: 126 | S12: 202.3333333 | T12: 811.1666667 | U12: 493.3333333 | V12: 185.6666667 | W12: 0 | X12: 0 | Y12: 0 | Z12: 0 | AA12: 0 | AB12: 0 | AC12: 0 | AD12: 0 | AE12: 0 | AF12: 0 | AG12: 0 | AI12: 328.3333333 | AJ12: 811.1666667 | AK12: 493.3333333 | AL12: 185.6666667 | AM12: 0 | AN12: 0 | AO12: 0 | AP12: 0 | AQ12: 0 | AR12: 0 | AS12: 0 | AT12: 0 | AU12: 0 | AV12: 0 | AW12: 0 | AY12: 5 | AZ12: 973.4 | BA12: 592 | BB12: 222.8 | BC12: 0 | BD12: 0 | BE12: 0 | BF12: 0 | BG12: 0 | BH12: 0 | BI12: 0 | BJ12: 0 | BK12: 0 | BL12: 0 | BM12: 0 | BO12: 151.2 | BP12: 242.8 | BQ12: 973.4 | BR12: 592 | BS12: 222.8 | BT12: 0 | BU12: 0 | BV12: 0 | BW12: 0 | BX12: 0 | BY12: 0 | BZ12: 0 | CA12: 0 | CB12: 0 | CC12: 0 | CD12: 0 | CF12: 394 | CG12: 973.4 | CH12: 592 | CI12: 222.8 | CJ12: 0 | CK12: 0 | CL12: 0 | CM12: 0 | CN12: 0 | CO12: 0 | CP12: 0 | CQ12: 0 | CR12: 0 | CS12: 0 | CT12: 0
B13: 7 | C13: 695.2857143 | D13: 422.8571429 | E13: 159.1428571 | F13: 0 | G13: 0 | H13: 0 | I13: 0 | J13: 0 | K13: 0 | L13: 0 | M13: 0 | N13: 0 | O13: 0 | P13: 0 | R13: 108 | S13: 173.4285714 | T13: 695.2857143 | U13: 422.8571429 | V13: 159.1428571 | W13: 0 | X13: 0 | Y13: 0 | Z13: 0 | AA13: 0 | AB13: 0 | AC13: 0 | AD13: 0 | AE13: 0 | AF13: 0 | AG13: 0 | AI13: 281.4285714 | AJ13: 695.2857143 | AK13: 422.8571429 | AL13: 159.1428571 | AM13: 0 | AN13: 0 | AO13: 0 | AP13: 0 | AQ13: 0 | AR13: 0 | AS13: 0 | AT13: 0 | AU13: 0 | AV13: 0 | AW13: 0 | AY13: 6 | AZ13: 811.1666667 | BA13: 493.3333333 | BB13: 185.6666667 | BC13: 0 | BD13: 0 | BE13: 0 | BF13: 0 | BG13: 0 | BH13: 0 | BI13: 0 | BJ13: 0 | BK13: 0 | BL13: 0 | BM13: 0 | BO13: 126 | BP13: 202.3333333 | BQ13: 811.1666667 | BR13: 493.3333333 | BS13: 185.6666667 | BT13: 0 | BU13: 0 | BV13: 0 | BW13: 0 | BX13: 0 | BY13: 0 | BZ13: 0 | CA13: 0 | CB13: 0 | CC13: 0 | CD13: 0 | CF13: 328.3333333 | CG13: 811.1666667 | CH13: 493.3333333 | CI13: 185.6666667 | CJ13: 0 | CK13: 0 | CL13: 0 | CM13: 0 | CN13: 0 | CO13: 0 | CP13: 0 | CQ13: 0 | CR13: 0 | CS13: 0 | CT13: 0
B14: 8 | C14: 608.375 | D14: 370 | E14: 139.25 | F14: 0 | G14: 0 | H14: 0 | I14: 0 | J14: 0 | K14: 0 | L14: 0 | M14: 0 | N14: 0 | O14: 0 | P14: 0 | R14: 94.5 | S14: 151.75 | T14: 608.375 | U14: 370 | V14: 139.25 | W14: 0 | X14: 0 | Y14: 0 | Z14: 0 | AA14: 0 | AB14: 0 | AC14: 0 | AD14: 0 | AE14: 0 | AF14: 0 | AG14: 0 | AI14: 246.25 | AJ14: 608.375 | AK14: 370 | AL14: 139.25 | AM14: 0 | AN14: 0 | AO14: 0 | AP14: 0 | AQ14: 0 | AR14: 0 | AS14: 0 | AT14: 0 | AU14: 0 | AV14: 0 | AW14: 0 | AY14: 7 | AZ14: 695.2857143 | BA14: 422.8571429 | BB14: 159.1428571 | BC14: 0 | BD14: 0 | BE14: 0 | BF14: 0 | BG14: 0 | BH14: 0 | BI14: 0 | BJ14: 0 | BK14: 0 | BL14: 0 | BM14: 0 | BO14: 108 | BP14: 173.4285714 | BQ14: 695.2857143 | BR14: 422.8571429 | BS14: 159.1428571 | BT14: 0 | BU14: 0 | BV14: 0 | BW14: 0 | BX14: 0 | BY14: 0 | BZ14: 0 | CA14: 0 | CB14: 0 | CC14: 0 | CD14: 0 | CF14: 281.4285714 | CG14: 695.2857143 | CH14: 422.8571429 | CI14: 159.1428571 | CJ14: 0 | CK14: 0 | CL14: 0 | CM14: 0 | CN14: 0 | CO14: 0 | CP14: 0 | CQ14: 0 | CR14: 0 | CS14: 0 | CT14: 0
B15: 9 | C15: 540.7777778 | D15: 328.8888889 | E15: 123.7777778 | F15: 0 | G15: 0 | H15: 0 | I15: 0 | J15: 0 | K15: 0 | L15: 0 | M15: 0 | N15: 0 | O15: 0 | P15: 0 | R15: 84 | S15: 134.8888889 | T15: 540.7777778 | U15: 328.8888889 | V15: 123.7777778 | W15: 0 | X15: 0 | Y15: 0 | Z15: 0 | AA15: 0 | AB15: 0 | AC15: 0 | AD15: 0 | AE15: 0 | AF15: 0 | AG15: 0 | AI15: 218.8888889 | AJ15: 540.7777778 | AK15: 328.8888889 | AL15: 123.7777778 | AM15: 0 | AN15: 0 | AO15: 0 | AP15: 0 | AQ15: 0 | AR15: 0 | AS15: 0 | AT15: 0 | AU15: 0 | AV15: 0 | AW15: 0 | AY15: 8 | AZ15: 608.375 | BA15: 370 | BB15: 139.25 | BC15: 0 | BD15: 0 | BE15: 0 | BF15: 0 | BG15: 0 | BH15: 0 | BI15: 0 | BJ15: 0 | BK15: 0 | BL15: 0 | BM15: 0 | BO15: 94.5 | BP15: 151.75 | BQ15: 608.375 | BR15: 370 | BS15: 139.25 | BT15: 0 | BU15: 0 | BV15: 0 | BW15: 0 | BX15: 0 | BY15: 0 | BZ15: 0 | CA15: 0 | CB15: 0 | CC15: 0 | CD15: 0 | CF15: 246.25 | CG15: 608.375 | CH15: 370 | CI15: 139.25 | CJ15: 0 | CK15: 0 | CL15: 0 | CM15: 0 | CN15: 0 | CO15: 0 | CP15: 0 | CQ15: 0 | CR15: 0 | CS15: 0 | CT15: 0
B16: 10 | C16: 486.7 | D16: 296 | E16: 111.4 | F16: 0 | G16: 0 | H16: 0 | I16: 0 | J16: 0 | K16: 0 | L16: 0 | M16: 0 | N16: 0 | O16: 0 | P16: 0 | R16: 75.6 | S16: 121.4 | T16: 486.7 | U16: 296 | V16: 111.4 | W16: 0 | X16: 0 | Y16: 0 | Z16: 0 | AA16: 0 | AB16: 0 | AC16: 0 | AD16: 0 | AE16: 0 | AF16: 0 | AG16: 0 | AI16: 197 | AJ16: 486.7 | AK16: 296 | AL16: 111.4 | AM16: 0 | AN16: 0 | AO16: 0 | AP16: 0 | AQ16: 0 | AR16: 0 | AS16: 0 | AT16: 0 | AU16: 0 | AV16: 0 | AW16: 0 | AY16: 9 | AZ16: 540.7777778 | BA16: 328.8888889 | BB16: 123.7777778 | BC16: 0 | BD16: 0 | BE16: 0 | BF16: 0 | BG16: 0 | BH16: 0 | BI16: 0 | BJ16: 0 | BK16: 0 | BL16: 0 | BM16: 0 | BO16: 84 | BP16: 134.8888889 | BQ16: 540.7777778 | BR16: 328.8888889 | BS16: 123.7777778 | BT16: 0 | BU16: 0 | BV16: 0 | BW16: 0 | BX16: 0 | BY16: 0 | BZ16: 0 | CA16: 0 | CB16: 0 | CC16: 0 | CD16: 0 | CF16: 218.8888889 | CG16: 540.7777778 | CH16: 328.8888889 | CI16: 123.7777778 | CJ16: 0 | CK16: 0 | CL16: 0 | CM16: 0 | CN16: 0 | CO16: 0 | CP16: 0 | CQ16: 0 | CR16: 0 | CS16: 0 | CT16: 0
B17: 11 | C17: 442.4545455 | D17: 269.0909091 | E17: 101.2727273 | F17: 0 | G17: 0 | H17: 0 | I17: 0 | J17: 0 | K17: 0 | L17: 0 | M17: 0 | N17: 0 | O17: 0 | P17: 0 | R17: 68.72727273 | S17: 110.3636364 | T17: 442.4545455 | U17: 269.0909091 | V17: 101.2727273 | W17: 0 | X17: 0 | Y17: 0 | Z17: 0 | AA17: 0 | AB17: 0 | AC17: 0 | AD17: 0 | AE17: 0 | AF17: 0 | AG17: 0 | AI17: 179.0909091 | AJ17: 442.4545455 | AK17: 269.0909091 | AL17: 101.2727273 | AM17: 0 | AN17: 0 | AO17: 0 | AP17: 0 | AQ17: 0 | AR17: 0 | AS17: 0 | AT17: 0 | AU17: 0 | AV17: 0 | AW17: 0 | AY17: 10 | AZ17: 486.7 | BA17: 296 | BB17: 111.4 | BC17: 0 | BD17: 0 | BE17: 0 | BF17: 0 | BG17: 0 | BH17: 0 | BI17: 0 | BJ17: 0 | BK17: 0 | BL17: 0 | BM17: 0 | BO17: 75.6 | BP17: 121.4 | BQ17: 486.7 | BR17: 296 | BS17: 111.4 | BT17: 0 | BU17: 0 | BV17: 0 | BW17: 0 | BX17: 0 | BY17: 0 | BZ17: 0 | CA17: 0 | CB17: 0 | CC17: 0 | CD17: 0 | CF17: 197 | CG17: 486.7 | CH17: 296 | CI17: 111.4 | CJ17: 0 | CK17: 0 | CL17: 0 | CM17: 0 | CN17: 0 | CO17: 0 | CP17: 0 | CQ17: 0 | CR17: 0 | CS17: 0 | CT17: 0
B18: 12 | C18: 405.5833333 | D18: 246.6666667 | E18: 92.83333333 | F18: 0 | G18: 0 | H18: 0 | I18: 0 | J18: 0 | K18: 0 | L18: 0 | M18: 0 | N18: 0 | O18: 0 | P18: 0 | R18: 63 | S18: 101.1666667 | T18: 405.5833333 | U18: 246.6666667 | V18: 92.83333333 | W18: 0 | X18: 0 | Y18: 0 | Z18: 0 | AA18: 0 | AB18: 0 | AC18: 0 | AD18: 0 | AE18: 0 | AF18: 0 | AG18: 0 | AI18: 164.1666667 | AJ18: 405.5833333 | AK18: 246.6666667 | AL18: 92.83333333 | AM18: 0 | AN18: 0 | AO18: 0 | AP18: 0 | AQ18: 0 | AR18: 0 | AS18: 0 | AT18: 0 | AU18: 0 | AV18: 0 | AW18: 0 | AY18: 11 | AZ18: 442.4545455 | BA18: 269.0909091 | BB18: 101.2727273 | BC18: 0 | BD18: 0 | BE18: 0 | BF18: 0 | BG18: 0 | BH18: 0 | BI18: 0 | BJ18: 0 | BK18: 0 | BL18: 0 | BM18: 0 | BO18: 68.72727273 | BP18: 110.3636364 | BQ18: 442.4545455 | BR18: 269.0909091 | BS18: 101.2727273 | BT18: 0 | BU18: 0 | BV18: 0 | BW18: 0 | BX18: 0 | BY18: 0 | BZ18: 0 | CA18: 0 | CB18: 0 | CC18: 0 | CD18: 0 | CF18: 179.0909091 | CG18: 442.4545455 | CH18: 269.0909091 | CI18: 101.2727273 | CJ18: 0 | CK18: 0 | CL18: 0 | CM18: 0 | CN18: 0 | CO18: 0 | CP18: 0 | CQ18: 0 | CR18: 0 | CS18: 0 | CT18: 0
B19: 13 | C19: 374.3846154 | D19: 227.6923077 | E19: 85.69230769 | F19: 0 | G19: 0 | H19: 0 | I19: 0 | J19: 0 | K19: 0 | L19: 0 | M19: 0 | N19: 0 | O19: 0 | P19: 0 | R19: 58.15384615 | S19: 93.38461538 | T19: 374.3846154 | U19: 227.6923077 | V19: 85.69230769 | W19: 0 | X19: 0 | Y19: 0 | Z19: 0 | AA19: 0 | AB19: 0 | AC19: 0 | AD19: 0 | AE19: 0 | AF19: 0 | AG19: 0 | AI19: 151.5384615 | AJ19: 374.3846154 | AK19: 227.6923077 | AL19: 85.69230769 | AM19: 0 | AN19: 0 | AO19: 0 | AP19: 0 | AQ19: 0 | AR19: 0 | AS19: 0 | AT19: 0 | AU19: 0 | AV19: 0 | AW19: 0 | AY19: 12 | AZ19: 405.5833333 | BA19: 246.6666667 | BB19: 92.83333333 | BC19: 0 | BD19: 0 | BE19: 0 | BF19: 0 | BG19: 0 | BH19: 0 | BI19: 0 | BJ19: 0 | BK19: 0 | BL19: 0 | BM19: 0 | BO19: 63 | BP19: 101.1666667 | BQ19: 405.5833333 | BR19: 246.6666667 | BS19: 92.83333333 | BT19: 0 | BU19: 0 | BV19: 0 | BW19: 0 | BX19: 0 | BY19: 0 | BZ19: 0 | CA19: 0 | CB19: 0 | CC19: 0 | CD19: 0 | CF19: 164.1666667 | CG19: 405.5833333 | CH19: 246.6666667 | CI19: 92.83333333 | CJ19: 0 | CK19: 0 | CL19: 0 | CM19: 0 | CN19: 0 | CO19: 0 | CP19: 0 | CQ19: 0 | CR19: 0 | CS19: 0 | CT19: 0
B20: 14 | C20: 347.6428571 | D20: 211.4285714 | E20: 79.57142857 | F20: 0 | G20: 0 | H20: 0 | I20: 0 | J20: 0 | K20: 0 | L20: 0 | M20: 0 | N20: 0 | O20: 0 | P20: 0 | R20: 54 | S20: 86.71428571 | T20: 347.6428571 | U20: 211.4285714 | V20: 79.57142857 | W20: 0 | X20: 0 | Y20: 0 | Z20: 0 | AA20: 0 | AB20: 0 | AC20: 0 | AD20: 0 | AE20: 0 | AF20: 0 | AG20: 0 | AI20: 140.7142857 | AJ20: 347.6428571 | AK20: 211.4285714 | AL20: 79.57142857 | AM20: 0 | AN20: 0 | AO20: 0 | AP20: 0 | AQ20: 0 | AR20: 0 | AS20: 0 | AT20: 0 | AU20: 0 | AV20: 0 | AW20: 0 | AY20: 13 | AZ20: 374.3846154 | BA20: 227.6923077 | BB20: 85.69230769 | BC20: 0 | BD20: 0 | BE20: 0 | BF20: 0 | BG20: 0 | BH20: 0 | BI20: 0 | BJ20: 0 | BK20: 0 | BL20: 0 | BM20: 0 | BO20: 58.15384615 | BP20: 93.38461538 | BQ20: 374.3846154 | BR20: 227.6923077 | BS20: 85.69230769 | BT20: 0 | BU20: 0 | BV20: 0 | BW20: 0 | BX20: 0 | BY20: 0 | BZ20: 0 | CA20: 0 | CB20: 0 | CC20: 0 | CD20: 0 | CF20: 151.5384615 | CG20: 374.3846154 | CH20: 227.6923077 | CI20: 85.69230769 | CJ20: 0 | CK20: 0 | CL20: 0 | CM20: 0 | CN20: 0 | CO20: 0 | CP20: 0 | CQ20: 0 | CR20: 0 | CS20: 0 | CT20: 0
B21: 15 | C21: 324.4666667 | D21: 197.3333333 | E21: 74.26666667 | F21: 0 | G21: 0 | H21: 0 | I21: 0 | J21: 0 | K21: 0 | L21: 0 | M21: 0 | N21: 0 | O21: 0 | P21: 0 | R21: 50.4 | S21: 80.93333333 | T21: 324.4666667 | U21: 197.3333333 | V21: 74.26666667 | W21: 0 | X21: 0 | Y21: 0 | Z21: 0 | AA21: 0 | AB21: 0 | AC21: 0 | AD21: 0 | AE21: 0 | AF21: 0 | AG21: 0 | AI21: 131.3333333 | AJ21: 324.4666667 | AK21: 197.3333333 | AL21: 74.26666667 | AM21: 0 | AN21: 0 | AO21: 0 | AP21: 0 | AQ21: 0 | AR21: 0 | AS21: 0 | AT21: 0 | AU21: 0 | AV21: 0 | AW21: 0 | AY21: 14 | AZ21: 347.6428571 | BA21: 211.4285714 | BB21: 79.57142857 | BC21: 0 | BD21: 0 | BE21: 0 | BF21: 0 | BG21: 0 | BH21: 0 | BI21: 0 | BJ21: 0 | BK21: 0 | BL21: 0 | BM21: 0 | BO21: 54 | BP21: 86.71428571 | BQ21: 347.6428571 | BR21: 211.4285714 | BS21: 79.57142857 | BT21: 0 | BU21: 0 | BV21: 0 | BW21: 0 | BX21: 0 | BY21: 0 | BZ21: 0 | CA21: 0 | CB21: 0 | CC21: 0 | CD21: 0 | CF21: 140.7142857 | CG21: 347.6428571 | CH21: 211.4285714 | CI21: 79.57142857 | CJ21: 0 | CK21: 0 | CL21: 0 | CM21: 0 | CN21: 0 | CO21: 0 | CP21: 0 | CQ21: 0 | CR21: 0 | CS21: 0 | CT21: 0
B22: 16 | C22: 304.1875 | D22: 185 | E22: 69.625 | F22: 0 | G22: 0 | H22: 0 | I22: 0 | J22: 0 | K22: 0 | L22: 0 | M22: 0 | N22: 0 | O22: 0 | P22: 0 | R22: 47.25 | S22: 75.875 | T22: 304.1875 | U22: 185 | V22: 69.625 | W22: 0 | X22: 0 | Y22: 0 | Z22: 0 | AA22: 0 | AB22: 0 | AC22: 0 | AD22: 0 | AE22: 0 | AF22: 0 | AG22: 0 | AI22: 123.125 | AJ22: 304.1875 | AK22: 185 | AL22: 69.625 | AM22: 0 | AN22: 0 | AO22: 0 | AP22: 0 | AQ22: 0 | AR22: 0 | AS22: 0 | AT22: 0 | AU22: 0 | AV22: 0 | AW22: 0 | AY22: 15 | AZ22: 324.4666667 | BA22: 197.3333333 | BB22: 74.26666667 | BC22: 0 | BD22: 0 | BE22: 0 | BF22: 0 | BG22: 0 | BH22: 0 | BI22: 0 | BJ22: 0 | BK22: 0 | BL22: 0 | BM22: 0 | BO22: 50.4 | BP22: 80.93333333 | BQ22: 324.4666667 | BR22: 197.3333333 | BS22: 74.26666667 | BT22: 0 | BU22: 0 | BV22: 0 | BW22: 0 | BX22: 0 | BY22: 0 | BZ22: 0 | CA22: 0 | CB22: 0 | CC22: 0 | CD22: 0 | CF22: 131.3333333 | CG22: 324.4666667 | CH22: 197.3333333 | CI22: 74.26666667 | CJ22: 0 | CK22: 0 | CL22: 0 | CM22: 0 | CN22: 0 | CO22: 0 | CP22: 0 | CQ22: 0 | CR22: 0 | CS22: 0 | CT22: 0
B23: 17 | C23: 286.2941176 | D23: 174.1176471 | E23: 65.52941176 | F23: 0 | G23: 0 | H23: 0 | I23: 0 | J23: 0 | K23: 0 | L23: 0 | M23: 0 | N23: 0 | O23: 0 | P23: 0 | R23: 44.47058824 | S23: 71.41176471 | T23: 286.2941176 | U23: 174.1176471 | V23: 65.52941176 | W23: 0 | X23: 0 | Y23: 0 | Z23: 0 | AA23: 0 | AB23: 0 | AC23: 0 | AD23: 0 | AE23: 0 | AF23: 0 | AG23: 0 | AI23: 115.8823529 | AJ23: 286.2941176 | AK23: 174.1176471 | AL23: 65.52941176 | AM23: 0 | AN23: 0 | AO23: 0 | AP23: 0 | AQ23: 0 | AR23: 0 | AS23: 0 | AT23: 0 | AU23: 0 | AV23: 0 | AW23: 0 | AY23: 16 | AZ23: 304.1875 | BA23: 185 | BB23: 69.625 | BC23: 0 | BD23: 0 | BE23: 0 | BF23: 0 | BG23: 0 | BH23: 0 | BI23: 0 | BJ23: 0 | BK23: 0 | BL23: 0 | BM23: 0 | BO23: 47.25 | BP23: 75.875 | BQ23: 304.1875 | BR23: 185 | BS23: 69.625 | BT23: 0 | BU23: 0 | BV23: 0 | BW23: 0 | BX23: 0 | BY23: 0 | BZ23: 0 | CA23: 0 | CB23: 0 | CC23: 0 | CD23: 0 | CF23: 123.125 | CG23: 304.1875 | CH23: 185 | CI23: 69.625 | CJ23: 0 | CK23: 0 | CL23: 0 | CM23: 0 | CN23: 0 | CO23: 0 | CP23: 0 | CQ23: 0 | CR23: 0 | CS23: 0 | CT23: 0
B24: 18 | C24: 270.3888889 | D24: 164.4444444 | E24: 61.88888889 | F24: 0 | G24: 0 | H24: 0 | I24: 0 | J24: 0 | K24: 0 | L24: 0 | M24: 0 | N24: 0 | O24: 0 | P24: 0 | R24: 42 | S24: 67.44444444 | T24: 270.3888889 | U24: 164.4444444 | V24: 61.88888889 | W24: 0 | X24: 0 | Y24: 0 | Z24: 0 | AA24: 0 | AB24: 0 | AC24: 0 | AD24: 0 | AE24: 0 | AF24: 0 | AG24: 0 | AI24: 109.4444444 | AJ24: 270.3888889 | AK24: 164.4444444 | AL24: 61.88888889 | AM24: 0 | AN24: 0 | AO24: 0 | AP24: 0 | AQ24: 0 | AR24: 0 | AS24: 0 | AT24: 0 | AU24: 0 | AV24: 0 | AW24: 0 | AY24: 17 | AZ24: 286.2941176 | BA24: 174.1176471 | BB24: 65.52941176 | BC24: 0 | BD24: 0 | BE24: 0 | BF24: 0 | BG24: 0 | BH24: 0 | BI24: 0 | BJ24: 0 | BK24: 0 | BL24: 0 | BM24: 0 | BO24: 44.47058824 | BP24: 71.41176471 | BQ24: 286.2941176 | BR24: 174.1176471 | BS24: 65.52941176 | BT24: 0 | BU24: 0 | BV24: 0 | BW24: 0 | BX24: 0 | BY24: 0 | BZ24: 0 | CA24: 0 | CB24: 0 | CC24: 0 | CD24: 0 | CF24: 115.8823529 | CG24: 286.2941176 | CH24: 174.1176471 | CI24: 65.52941176 | CJ24: 0 | CK24: 0 | CL24: 0 | CM24: 0 | CN24: 0 | CO24: 0 | CP24: 0 | CQ24: 0 | CR24: 0 | CS24: 0 | CT24: 0
B25: 19 | C25: 256.1578947 | D25: 155.7894737 | E25: 58.63157895 | F25: 0 | G25: 0 | H25: 0 | I25: 0 | J25: 0 | K25: 0 | L25: 0 | M25: 0 | N25: 0 | O25: 0 | P25: 0 | R25: 39.78947368 | S25: 63.89473684 | T25: 256.1578947 | U25: 155.7894737 | V25: 58.63157895 | W25: 0 | X25: 0 | Y25: 0 | Z25: 0 | AA25: 0 | AB25: 0 | AC25: 0 | AD25: 0 | AE25: 0 | AF25: 0 | AG25: 0 | AI25: 103.6842105 | AJ25: 256.1578947 | AK25: 155.7894737 | AL25: 58.63157895 | AM25: 0 | AN25: 0 | AO25: 0 | AP25: 0 | AQ25: 0 | AR25: 0 | AS25: 0 | AT25: 0 | AU25: 0 | AV25: 0 | AW25: 0 | AY25: 18 | AZ25: 270.3888889 | BA25: 164.4444444 | BB25: 61.88888889 | BC25: 0 | BD25: 0 | BE25: 0 | BF25: 0 | BG25: 0 | BH25: 0 | BI25: 0 | BJ25: 0 | BK25: 0 | BL25: 0 | BM25: 0 | BO25: 42 | BP25: 67.44444444 | BQ25: 270.3888889 | BR25: 164.4444444 | BS25: 61.88888889 | BT25: 0 | BU25: 0 | BV25: 0 | BW25: 0 | BX25: 0 | BY25: 0 | BZ25: 0 | CA25: 0 | CB25: 0 | CC25: 0 | CD25: 0 | CF25: 109.4444444 | CG25: 270.3888889 | CH25: 164.4444444 | CI25: 61.88888889 | CJ25: 0 | CK25: 0 | CL25: 0 | CM25: 0 | CN25: 0 | CO25: 0 | CP25: 0 | CQ25: 0 | CR25: 0 | CS25: 0 | CT25: 0
B26: 20 | C26: 243.35 | D26: 148 | E26: 55.7 | F26: 0 | G26: 0 | H26: 0 | I26: 0 | J26: 0 | K26: 0 | L26: 0 | M26: 0 | N26: 0 | O26: 0 | P26: 0 | R26: 37.8 | S26: 60.7 | T26: 243.35 | U26: 148 | V26: 55.7 | W26: 0 | X26: 0 | Y26: 0 | Z26: 0 | AA26: 0 | AB26: 0 | AC26: 0 | AD26: 0 | AE26: 0 | AF26: 0 | AG26: 0 | AI26: 98.5 | AJ26: 243.35 | AK26: 148 | AL26: 55.7 | AM26: 0 | AN26: 0 | AO26: 0 | AP26: 0 | AQ26: 0 | AR26: 0 | AS26: 0 | AT26: 0 | AU26: 0 | AV26: 0 | AW26: 0 | AY26: 19 | AZ26: 256.1578947 | BA26: 155.7894737 | BB26: 58.63157895 | BC26: 0 | BD26: 0 | BE26: 0 | BF26: 0 | BG26: 0 | BH26: 0 | BI26: 0 | BJ26: 0 | BK26: 0 | BL26: 0 | BM26: 0 | BO26: 39.78947368 | BP26: 63.89473684 | BQ26: 256.1578947 | BR26: 155.7894737 | BS26: 58.63157895 | BT26: 0 | BU26: 0 | BV26: 0 | BW26: 0 | BX26: 0 | BY26: 0 | BZ26: 0 | CA26: 0 | CB26: 0 | CC26: 0 | CD26: 0 | CF26: 103.6842105 | CG26: 256.1578947 | CH26: 155.7894737 | CI26: 58.63157895 | CJ26: 0 | CK26: 0 | CL26: 0 | CM26: 0 | CN26: 0 | CO26: 0 | CP26: 0 | CQ26: 0 | CR26: 0 | CS26: 0 | CT26: 0
B27: 21 | C27: 231.7619048 | D27: 140.952381 | E27: 53.04761905 | F27: 0 | G27: 0 | H27: 0 | I27: 0 | J27: 0 | K27: 0 | L27: 0 | M27: 0 | N27: 0 | O27: 0 | P27: 0 | R27: 36 | S27: 57.80952381 | T27: 231.7619048 | U27: 140.952381 | V27: 53.04761905 | W27: 0 | X27: 0 | Y27: 0 | Z27: 0 | AA27: 0 | AB27: 0 | AC27: 0 | AD27: 0 | AE27: 0 | AF27: 0 | AG27: 0 | AI27: 93.80952381 | AJ27: 231.7619048 | AK27: 140.952381 | AL27: 53.04761905 | AM27: 0 | AN27: 0 | AO27: 0 | AP27: 0 | AQ27: 0 | AR27: 0 | AS27: 0 | AT27: 0 | AU27: 0 | AV27: 0 | AW27: 0 | AY27: 20 | AZ27: 243.35 | BA27: 148 | BB27: 55.7 | BC27: 0 | BD27: 0 | BE27: 0 | BF27: 0 | BG27: 0 | BH27: 0 | BI27: 0 | BJ27: 0 | BK27: 0 | BL27: 0 | BM27: 0 | BO27: 37.8 | BP27: 60.7 | BQ27: 243.35 | BR27: 148 | BS27: 55.7 | BT27: 0 | BU27: 0 | BV27: 0 | BW27: 0 | BX27: 0 | BY27: 0 | BZ27: 0 | CA27: 0 | CB27: 0 | CC27: 0 | CD27: 0 | CF27: 98.5 | CG27: 243.35 | CH27: 148 | CI27: 55.7 | CJ27: 0 | CK27: 0 | CL27: 0 | CM27: 0 | CN27: 0 | CO27: 0 | CP27: 0 | CQ27: 0 | CR27: 0 | CS27: 0 | CT27: 0
B28: 22 | C28: 221.2272727 | D28: 134.5454545 | E28: 50.63636364 | F28: 0 | G28: 0 | H28: 0 | I28: 0 | J28: 0 | K28: 0 | L28: 0 | M28: 0 | N28: 0 | O28: 0 | P28: 0 | R28: 34.36363636 | S28: 55.18181818 | T28: 221.2272727 | U28: 134.5454545 | V28: 50.63636364 | W28: 0 | X28: 0 | Y28: 0 | Z28: 0 | AA28: 0 | AB28: 0 | AC28: 0 | AD28: 0 | AE28: 0 | AF28: 0 | AG28: 0 | AI28: 89.54545455 | AJ28: 221.2272727 | AK28: 134.5454545 | AL28: 50.63636364 | AM28: 0 | AN28: 0 | AO28: 0 | AP28: 0 | AQ28: 0 | AR28: 0 | AS28: 0 | AT28: 0 | AU28: 0 | AV28: 0 | AW28: 0 | AY28: 21 | AZ28: 231.7619048 | BA28: 140.952381 | BB28: 53.04761905 | BC28: 0 | BD28: 0 | BE28: 0 | BF28: 0 | BG28: 0 | BH28: 0 | BI28: 0 | BJ28: 0 | BK28: 0 | BL28: 0 | BM28: 0 | BO28: 36 | BP28: 57.80952381 | BQ28: 231.7619048 | BR28: 140.952381 | BS28: 53.04761905 | BT28: 0 | BU28: 0 | BV28: 0 | BW28: 0 | BX28: 0 | BY28: 0 | BZ28: 0 | CA28: 0 | CB28: 0 | CC28: 0 | CD28: 0 | CF28: 93.80952381 | CG28: 231.7619048 | CH28: 140.952381 | CI28: 53.04761905 | CJ28: 0 | CK28: 0 | CL28: 0 | CM28: 0 | CN28: 0 | CO28: 0 | CP28: 0 | CQ28: 0 | CR28: 0 | CS28: 0 | CT28: 0
B29: 23 | C29: 211.6086957 | D29: 128.6956522 | E29: 48.43478261 | F29: 0 | G29: 0 | H29: 0 | I29: 0 | J29: 0 | K29: 0 | L29: 0 | M29: 0 | N29: 0 | O29: 0 | P29: 0 | R29: 32.86956522 | S29: 52.7826087 | T29: 211.6086957 | U29: 128.6956522 | V29: 48.43478261 | W29: 0 | X29: 0 | Y29: 0 | Z29: 0 | AA29: 0 | AB29: 0 | AC29: 0 | AD29: 0 | AE29: 0 | AF29: 0 | AG29: 0 | AI29: 85.65217391 | AJ29: 211.6086957 | AK29: 128.6956522 | AL29: 48.43478261 | AM29: 0 | AN29: 0 | AO29: 0 | AP29: 0 | AQ29: 0 | AR29: 0 | AS29: 0 | AT29: 0 | AU29: 0 | AV29: 0 | AW29: 0 | AY29: 22 | AZ29: 221.2272727 | BA29: 134.5454545 | BB29: 50.63636364 | BC29: 0 | BD29: 0 | BE29: 0 | BF29: 0 | BG29: 0 | BH29: 0 | BI29: 0 | BJ29: 0 | BK29: 0 | BL29: 0 | BM29: 0 | BO29: 34.36363636 | BP29: 55.18181818 | BQ29: 221.2272727 | BR29: 134.5454545 | BS29: 50.63636364 | BT29: 0 | BU29: 0 | BV29: 0 | BW29: 0 | BX29: 0 | BY29: 0 | BZ29: 0 | CA29: 0 | CB29: 0 | CC29: 0 | CD29: 0 | CF29: 89.54545455 | CG29: 221.2272727 | CH29: 134.5454545 | CI29: 50.63636364 | CJ29: 0 | CK29: 0 | CL29: 0 | CM29: 0 | CN29: 0 | CO29: 0 | CP29: 0 | CQ29: 0 | CR29: 0 | CS29: 0 | CT29: 0
B30: 24 | C30: 202.7916667 | D30: 123.3333333 | E30: 46.41666667 | F30: 0 | G30: 0 | H30: 0 | I30: 0 | J30: 0 | K30: 0 | L30: 0 | M30: 0 | N30: 0 | O30: 0 | P30: 0 | R30: 31.5 | S30: 50.58333333 | T30: 202.7916667 | U30: 123.3333333 | V30: 46.41666667 | W30: 0 | X30: 0 | Y30: 0 | Z30: 0 | AA30: 0 | AB30: 0 | AC30: 0 | AD30: 0 | AE30: 0 | AF30: 0 | AG30: 0 | AI30: 82.08333333 | AJ30: 202.7916667 | AK30: 123.3333333 | AL30: 46.41666667 | AM30: 0 | AN30: 0 | AO30: 0 | AP30: 0 | AQ30: 0 | AR30: 0 | AS30: 0 | AT30: 0 | AU30: 0 | AV30: 0 | AW30: 0 | AY30: 23 | AZ30: 211.6086957 | BA30: 128.6956522 | BB30: 48.43478261 | BC30: 0 | BD30: 0 | BE30: 0 | BF30: 0 | BG30: 0 | BH30: 0 | BI30: 0 | BJ30: 0 | BK30: 0 | BL30: 0 | BM30: 0 | BO30: 32.86956522 | BP30: 52.7826087 | BQ30: 211.6086957 | BR30: 128.6956522 | BS30: 48.43478261 | BT30: 0 | BU30: 0 | BV30: 0 | BW30: 0 | BX30: 0 | BY30: 0 | BZ30: 0 | CA30: 0 | CB30: 0 | CC30: 0 | CD30: 0 | CF30: 85.65217391 | CG30: 211.6086957 | CH30: 128.6956522 | CI30: 48.43478261 | CJ30: 0 | CK30: 0 | CL30: 0 | CM30: 0 | CN30: 0 | CO30: 0 | CP30: 0 | CQ30: 0 | CR30: 0 | CS30: 0 | CT30: 0
B31: 25 | C31: 194.68 | D31: 118.4 | E31: 44.56 | F31: 0 | G31: 0 | H31: 0 | I31: 0 | J31: 0 | K31: 0 | L31: 0 | M31: 0 | N31: 0 | O31: 0 | P31: 0 | R31: 30.24 | S31: 48.56 | T31: 194.68 | U31: 118.4 | V31: 44.56 | W31: 0 | X31: 0 | Y31: 0 | Z31: 0 | AA31: 0 | AB31: 0 | AC31: 0 | AD31: 0 | AE31: 0 | AF31: 0 | AG31: 0 | AI31: 78.8 | AJ31: 194.68 | AK31: 118.4 | AL31: 44.56 | AM31: 0 | AN31: 0 | AO31: 0 | AP31: 0 | AQ31: 0 | AR31: 0 | AS31: 0 | AT31: 0 | AU31: 0 | AV31: 0 | AW31: 0 | AY31: 24 | AZ31: 202.7916667 | BA31: 123.3333333 | BB31: 46.41666667 | BC31: 0 | BD31: 0 | BE31: 0 | BF31: 0 | BG31: 0 | BH31: 0 | BI31: 0 | BJ31: 0 | BK31: 0 | BL31: 0 | BM31: 0 | BO31: 31.5 | BP31: 50.58333333 | BQ31: 202.7916667 | BR31: 123.3333333 | BS31: 46.41666667 | BT31: 0 | BU31: 0 | BV31: 0 | BW31: 0 | BX31: 0 | BY31: 0 | BZ31: 0 | CA31: 0 | CB31: 0 | CC31: 0 | CD31: 0 | CF31: 82.08333333 | CG31: 202.7916667 | CH31: 123.3333333 | CI31: 46.41666667 | CJ31: 0 | CK31: 0 | CL31: 0 | CM31: 0 | CN31: 0 | CO31: 0 | CP31: 0 | CQ31: 0 | CR31: 0 | CS31: 0 | CT31: 0
B32: 26 | C32: 187.1923077 | D32: 113.8461538 | E32: 42.84615385 | F32: 0 | G32: 0 | H32: 0 | I32: 0 | J32: 0 | K32: 0 | L32: 0 | M32: 0 | N32: 0 | O32: 0 | P32: 0 | R32: 29.07692308 | S32: 46.69230769 | T32: 187.1923077 | U32: 113.8461538 | V32: 42.84615385 | W32: 0 | X32: 0 | Y32: 0 | Z32: 0 | AA32: 0 | AB32: 0 | AC32: 0 | AD32: 0 | AE32: 0 | AF32: 0 | AG32: 0 | AI32: 75.76923077 | AJ32: 187.1923077 | AK32: 113.8461538 | AL32: 42.84615385 | AM32: 0 | AN32: 0 | AO32: 0 | AP32: 0 | AQ32: 0 | AR32: 0 | AS32: 0 | AT32: 0 | AU32: 0 | AV32: 0 | AW32: 0 | AY32: 25 | AZ32: 194.68 | BA32: 118.4 | BB32: 44.56 | BC32: 0 | BD32: 0 | BE32: 0 | BF32: 0 | BG32: 0 | BH32: 0 | BI32: 0 | BJ32: 0 | BK32: 0 | BL32: 0 | BM32: 0 | BO32: 30.24 | BP32: 48.56 | BQ32: 194.68 | BR32: 118.4 | BS32: 44.56 | BT32: 0 | BU32: 0 | BV32: 0 | BW32: 0 | BX32: 0 | BY32: 0 | BZ32: 0 | CA32: 0 | CB32: 0 | CC32: 0 | CD32: 0 | CF32: 78.8 | CG32: 194.68 | CH32: 118.4 | CI32: 44.56 | CJ32: 0 | CK32: 0 | CL32: 0 | CM32: 0 | CN32: 0 | CO32: 0 | CP32: 0 | CQ32: 0 | CR32: 0 | CS32: 0 | CT32: 0
B33: 27 | C33: 180.2592593 | D33: 109.6296296 | E33: 41.25925926 | F33: 0 | G33: 0 | H33: 0 | I33: 0 | J33: 0 | K33: 0 | L33: 0 | M33: 0 | N33: 0 | O33: 0 | P33: 0 | R33: 28 | S33: 44.96296296 | T33: 180.2592593 | U33: 109.6296296 | V33: 41.25925926 | W33: 0 | X33: 0 | Y33: 0 | Z33: 0 | AA33: 0 | AB33: 0 | AC33: 0 | AD33: 0 | AE33: 0 | AF33: 0 | AG33: 0 | AI33: 72.96296296 | AJ33: 180.2592593 | AK33: 109.6296296 | AL33: 41.25925926 | AM33: 0 | AN33: 0 | AO33: 0 | AP33: 0 | AQ33: 0 | AR33: 0 | AS33: 0 | AT33: 0 | AU33: 0 | AV33: 0 | AW33: 0 | AY33: 26 | AZ33: 187.1923077 | BA33: 113.8461538 | BB33: 42.84615385 | BC33: 0 | BD33: 0 | BE33: 0 | BF33: 0 | BG33: 0 | BH33: 0 | BI33: 0 | BJ33: 0 | BK33: 0 | BL33: 0 | BM33: 0 | BO33: 29.07692308 | BP33: 46.69230769 | BQ33: 187.1923077 | BR33: 113.8461538 | BS33: 42.84615385 | BT33: 0 | BU33: 0 | BV33: 0 | BW33: 0 | BX33: 0 | BY33: 0 | BZ33: 0 | CA33: 0 | CB33: 0 | CC33: 0 | CD33: 0 | CF33: 75.76923077 | CG33: 187.1923077 | CH33: 113.8461538 | CI33: 42.84615385 | CJ33: 0 | CK33: 0 | CL33: 0 | CM33: 0 | CN33: 0 | CO33: 0 | CP33: 0 | CQ33: 0 | CR33: 0 | CS33: 0 | CT33: 0
B34: 28 | C34: 173.8214286 | D34: 105.7142857 | E34: 39.78571429 | F34: 0 | G34: 0 | H34: 0 | I34: 0 | J34: 0 | K34: 0 | L34: 0 | M34: 0 | N34: 0 | O34: 0 | P34: 0 | R34: 27 | S34: 43.35714286 | T34: 173.8214286 | U34: 105.7142857 | V34: 39.78571429 | W34: 0 | X34: 0 | Y34: 0 | Z34: 0 | AA34: 0 | AB34: 0 | AC34: 0 | AD34: 0 | AE34: 0 | AF34: 0 | AG34: 0 | AI34: 70.35714286 | AJ34: 173.8214286 | AK34: 105.7142857 | AL34: 39.78571429 | AM34: 0 | AN34: 0 | AO34: 0 | AP34: 0 | AQ34: 0 | AR34: 0 | AS34: 0 | AT34: 0 | AU34: 0 | AV34: 0 | AW34: 0 | AY34: 27 | AZ34: 180.2592593 | BA34: 109.6296296 | BB34: 41.25925926 | BC34: 0 | BD34: 0 | BE34: 0 | BF34: 0 | BG34: 0 | BH34: 0 | BI34: 0 | BJ34: 0 | BK34: 0 | BL34: 0 | BM34: 0 | BO34: 28 | BP34: 44.96296296 | BQ34: 180.2592593 | BR34: 109.6296296 | BS34: 41.25925926 | BT34: 0 | BU34: 0 | BV34: 0 | BW34: 0 | BX34: 0 | BY34: 0 | BZ34: 0 | CA34: 0 | CB34: 0 | CC34: 0 | CD34: 0 | CF34: 72.96296296 | CG34: 180.2592593 | CH34: 109.6296296 | CI34: 41.25925926 | CJ34: 0 | CK34: 0 | CL34: 0 | CM34: 0 | CN34: 0 | CO34: 0 | CP34: 0 | CQ34: 0 | CR34: 0 | CS34: 0 | CT34: 0
B35: 29 | C35: 167.8275862 | D35: 102.0689655 | E35: 38.4137931 | F35: 0 | G35: 0 | H35: 0 | I35: 0 | J35: 0 | K35: 0 | L35: 0 | M35: 0 | N35: 0 | O35: 0 | P35: 0 | R35: 26.06896552 | S35: 41.86206897 | T35: 167.8275862 | U35: 102.0689655 | V35: 38.4137931 | W35: 0 | X35: 0 | Y35: 0 | Z35: 0 | AA35: 0 | AB35: 0 | AC35: 0 | AD35: 0 | AE35: 0 | AF35: 0 | AG35: 0 | AI35: 67.93103448 | AJ35: 167.8275862 | AK35: 102.0689655 | AL35: 38.4137931 | AM35: 0 | AN35: 0 | AO35: 0 | AP35: 0 | AQ35: 0 | AR35: 0 | AS35: 0 | AT35: 0 | AU35: 0 | AV35: 0 | AW35: 0 | AY35: 28 | AZ35: 173.8214286 | BA35: 105.7142857 | BB35: 39.78571429 | BC35: 0 | BD35: 0 | BE35: 0 | BF35: 0 | BG35: 0 | BH35: 0 | BI35: 0 | BJ35: 0 | BK35: 0 | BL35: 0 | BM35: 0 | BO35: 27 | BP35: 43.35714286 | BQ35: 173.8214286 | BR35: 105.7142857 | BS35: 39.78571429 | BT35: 0 | BU35: 0 | BV35: 0 | BW35: 0 | BX35: 0 | BY35: 0 | BZ35: 0 | CA35: 0 | CB35: 0 | CC35: 0 | CD35: 0 | CF35: 70.35714286 | CG35: 173.8214286 | CH35: 105.7142857 | CI35: 39.78571429 | CJ35: 0 | CK35: 0 | CL35: 0 | CM35: 0 | CN35: 0 | CO35: 0 | CP35: 0 | CQ35: 0 | CR35: 0 | CS35: 0 | CT35: 0
B36: 30 | C36: 162.2333333 | D36: 98.66666667 | E36: 37.13333333 | F36: 0 | G36: 0 | H36: 0 | I36: 0 | J36: 0 | K36: 0 | L36: 0 | M36: 0 | N36: 0 | O36: 0 | P36: 0 | R36: 25.2 | S36: 40.46666667 | T36: 162.2333333 | U36: 98.66666667 | V36: 37.13333333 | W36: 0 | X36: 0 | Y36: 0 | Z36: 0 | AA36: 0 | AB36: 0 | AC36: 0 | AD36: 0 | AE36: 0 | AF36: 0 | AG36: 0 | AI36: 65.66666667 | AJ36: 162.2333333 | AK36: 98.66666667 | AL36: 37.13333333 | AM36: 0 | AN36: 0 | AO36: 0 | AP36: 0 | AQ36: 0 | AR36: 0 | AS36: 0 | AT36: 0 | AU36: 0 | AV36: 0 | AW36: 0 | AY36: 29 | AZ36: 167.8275862 | BA36: 102.0689655 | BB36: 38.4137931 | BC36: 0 | BD36: 0 | BE36: 0 | BF36: 0 | BG36: 0 | BH36: 0 | BI36: 0 | BJ36: 0 | BK36: 0 | BL36: 0 | BM36: 0 | BO36: 26.06896552 | BP36: 41.86206897 | BQ36: 167.8275862 | BR36: 102.0689655 | BS36: 38.4137931 | BT36: 0 | BU36: 0 | BV36: 0 | BW36: 0 | BX36: 0 | BY36: 0 | BZ36: 0 | CA36: 0 | CB36: 0 | CC36: 0 | CD36: 0 | CF36: 67.93103448 | CG36: 167.8275862 | CH36: 102.0689655 | CI36: 38.4137931 | CJ36: 0 | CK36: 0 | CL36: 0 | CM36: 0 | CN36: 0 | CO36: 0 | CP36: 0 | CQ36: 0 | CR36: 0 | CS36: 0 | CT36: 0
B37: 31 | C37: 157 | D37: 95.48387097 | E37: 35.93548387 | F37: 0 | G37: 0 | H37: 0 | I37: 0 | J37: 0 | K37: 0 | L37: 0 | M37: 0 | N37: 0 | O37: 0 | P37: 0 | R37: 24.38709677 | S37: 39.16129032 | T37: 157 | U37: 95.48387097 | V37: 35.93548387 | W37: 0 | X37: 0 | Y37: 0 | Z37: 0 | AA37: 0 | AB37: 0 | AC37: 0 | AD37: 0 | AE37: 0 | AF37: 0 | AG37: 0 | AI37: 63.5483871 | AJ37: 157 | AK37: 95.48387097 | AL37: 35.93548387 | AM37: 0 | AN37: 0 | AO37: 0 | AP37: 0 | AQ37: 0 | AR37: 0 | AS37: 0 | AT37: 0 | AU37: 0 | AV37: 0 | AW37: 0 | AY37: 30 | AZ37: 162.2333333 | BA37: 98.66666667 | BB37: 37.13333333 | BC37: 0 | BD37: 0 | BE37: 0 | BF37: 0 | BG37: 0 | BH37: 0 | BI37: 0 | BJ37: 0 | BK37: 0 | BL37: 0 | BM37: 0 | BO37: 25.2 | BP37: 40.46666667 | BQ37: 162.2333333 | BR37: 98.66666667 | BS37: 37.13333333 | BT37: 0 | BU37: 0 | BV37: 0 | BW37: 0 | BX37: 0 | BY37: 0 | BZ37: 0 | CA37: 0 | CB37: 0 | CC37: 0 | CD37: 0 | CF37: 65.66666667 | CG37: 162.2333333 | CH37: 98.66666667 | CI37: 37.13333333 | CJ37: 0 | CK37: 0 | CL37: 0 | CM37: 0 | CN37: 0 | CO37: 0 | CP37: 0 | CQ37: 0 | CR37: 0 | CS37: 0 | CT37: 0
B38: 32 | C38: 152.09375 | D38: 92.5 | E38: 34.8125 | F38: 0 | G38: 0 | H38: 0 | I38: 0 | J38: 0 | K38: 0 | L38: 0 | M38: 0 | N38: 0 | O38: 0 | P38: 0 | R38: 23.625 | S38: 37.9375 | T38: 152.09375 | U38: 92.5 | V38: 34.8125 | W38: 0 | X38: 0 | Y38: 0 | Z38: 0 | AA38: 0 | AB38: 0 | AC38: 0 | AD38: 0 | AE38: 0 | AF38: 0 | AG38: 0 | AI38: 61.5625 | AJ38: 152.09375 | AK38: 92.5 | AL38: 34.8125 | AM38: 0 | AN38: 0 | AO38: 0 | AP38: 0 | AQ38: 0 | AR38: 0 | AS38: 0 | AT38: 0 | AU38: 0 | AV38: 0 | AW38: 0 | AY38: 31 | AZ38: 157 | BA38: 95.48387097 | BB38: 35.93548387 | BC38: 0 | BD38: 0 | BE38: 0 | BF38: 0 | BG38: 0 | BH38: 0 | BI38: 0 | BJ38: 0 | BK38: 0 | BL38: 0 | BM38: 0 | BO38: 24.38709677 | BP38: 39.16129032 | BQ38: 157 | BR38: 95.48387097 | BS38: 35.93548387 | BT38: 0 | BU38: 0 | BV38: 0 | BW38: 0 | BX38: 0 | BY38: 0 | BZ38: 0 | CA38: 0 | CB38: 0 | CC38: 0 | CD38: 0 | CF38: 63.5483871 | CG38: 157 | CH38: 95.48387097 | CI38: 35.93548387 | CJ38: 0 | CK38: 0 | CL38: 0 | CM38: 0 | CN38: 0 | CO38: 0 | CP38: 0 | CQ38: 0 | CR38: 0 | CS38: 0 | CT38: 0
B39: 33 | C39: 147.4848485 | D39: 89.6969697 | E39: 33.75757576 | F39: 0 | G39: 0 | H39: 0 | I39: 0 | J39: 0 | K39: 0 | L39: 0 | M39: 0 | N39: 0 | O39: 0 | P39: 0 | R39: 22.90909091 | S39: 36.78787879 | T39: 147.4848485 | U39: 89.6969697 | V39: 33.75757576 | W39: 0 | X39: 0 | Y39: 0 | Z39: 0 | AA39: 0 | AB39: 0 | AC39: 0 | AD39: 0 | AE39: 0 | AF39: 0 | AG39: 0 | AI39: 59.6969697 | AJ39: 147.4848485 | AK39: 89.6969697 | AL39: 33.75757576 | AM39: 0 | AN39: 0 | AO39: 0 | AP39: 0 | AQ39: 0 | AR39: 0 | AS39: 0 | AT39: 0 | AU39: 0 | AV39: 0 | AW39: 0 | AY39: 32 | AZ39: 152.09375 | BA39: 92.5 | BB39: 34.8125 | BC39: 0 | BD39: 0 | BE39: 0 | BF39: 0 | BG39: 0 | BH39: 0 | BI39: 0 | BJ39: 0 | BK39: 0 | BL39: 0 | BM39: 0 | BO39: 23.625 | BP39: 37.9375 | BQ39: 152.09375 | BR39: 92.5 | BS39: 34.8125 | BT39: 0 | BU39: 0 | BV39: 0 | BW39: 0 | BX39: 0 | BY39: 0 | BZ39: 0 | CA39: 0 | CB39: 0 | CC39: 0 | CD39: 0 | CF39: 61.5625 | CG39: 152.09375 | CH39: 92.5 | CI39: 34.8125 | CJ39: 0 | CK39: 0 | CL39: 0 | CM39: 0 | CN39: 0 | CO39: 0 | CP39: 0 | CQ39: 0 | CR39: 0 | CS39: 0 | CT39: 0
B40: 34 | C40: =$C$6/B40 -> 143.1470588 | D40: =$D$6/B40 -> 87.05882353 | E40: =$E$6/B40 -> 32.76470588 | F40: =$F$6/B40 -> 0 | G40: =$G$6/B40 -> 0 | H40: =$H$6/B40 -> 0 | I40: =$I$6/B40 -> 0 | J40: =$J$6/B40 -> 0 | K40: =$K$6/B40 -> 0 | L40: =$L$6/B40 -> 0 | M40: =$M$6/B40 -> 0 | N40: =$N$6/B40 -> 0 | O40: =$O$6/B40 -> 0 | P40: =$P$6/B40 -> 0 | R40: =$R$6/B40 -> 22.23529412 | S40: =$S$6/B40 -> 35.70588235 | T40: =C40 -> 143.1470588 | U40: =D40 -> 87.05882353 | V40: =E40 -> 32.76470588 | W40: =F40 -> 0 | X40: =G40 -> 0 | Y40: =H40 -> 0 | Z40: =I40 -> 0 | AA40: =J40 -> 0 | AB40: =K40 -> 0 | AC40: =L40 -> 0 | AD40: =M40 -> 0 | AE40: =N40 -> 0 | AF40: =O40 -> 0 | AG40: =P40 -> 0 | AI40: =$AI$6/B40 -> 57.94117647 | AJ40: =C40 -> 143.1470588 | AK40: =D40 -> 87.05882353 | AL40: =E40 -> 32.76470588 | AM40: =F40 -> 0 | AN40: =G40 -> 0 | AO40: =H40 -> 0 | AP40: =I40 -> 0 | AQ40: =J40 -> 0 | AR40: =K40 -> 0 | AS40: =L40 -> 0 | AT40: =M40 -> 0 | AU40: =N40 -> 0 | AV40: =O40 -> 0 | AW40: =P40 -> 0 | AY40: 33 | AZ40: 147.4848485 | BA40: 89.6969697 | BB40: 33.75757576 | BC40: 0 | BD40: 0 | BE40: 0 | BF40: 0 | BG40: 0 | BH40: 0 | BI40: 0 | BJ40: 0 | BK40: 0 | BL40: 0 | BM40: 0 | BO40: 22.90909091 | BP40: 36.78787879 | BQ40: 147.4848485 | BR40: 89.6969697 | BS40: 33.75757576 | BT40: 0 | BU40: 0 | BV40: 0 | BW40: 0 | BX40: 0 | BY40: 0 | BZ40: 0 | CA40: 0 | CB40: 0 | CC40: 0 | CD40: 0 | CF40: 59.6969697 | CG40: 147.4848485 | CH40: 89.6969697 | CI40: 33.75757576 | CJ40: 0 | CK40: 0 | CL40: 0 | CM40: 0 | CN40: 0 | CO40: 0 | CP40: 0 | CQ40: 0 | CR40: 0 | CS40: 0 | CT40: 0
B41: 35 | C41: 139.0571429 | D41: 84.57142857 | E41: 31.82857143 | F41: 0 | G41: 0 | H41: 0 | I41: 0 | J41: 0 | K41: 0 | L41: 0 | M41: 0 | N41: 0 | O41: 0 | P41: 0 | R41: 21.6 | S41: 34.68571429 | T41: 139.0571429 | U41: 84.57142857 | V41: 31.82857143 | W41: 0 | X41: 0 | Y41: 0 | Z41: 0 | AA41: 0 | AB41: 0 | AC41: 0 | AD41: 0 | AE41: 0 | AF41: 0 | AG41: 0 | AI41: 56.28571429 | AJ41: 139.0571429 | AK41: 84.57142857 | AL41: 31.82857143 | AM41: 0 | AN41: 0 | AO41: 0 | AP41: 0 | AQ41: 0 | AR41: 0 | AS41: 0 | AT41: 0 | AU41: 0 | AV41: 0 | AW41: 0 | AY41: 34 | AZ41: 143.1470588 | BA41: 87.05882353 | BB41: 32.76470588 | BC41: 0 | BD41: 0 | BE41: 0 | BF41: 0 | BG41: 0 | BH41: 0 | BI41: 0 | BJ41: 0 | BK41: 0 | BL41: 0 | BM41: 0 | BO41: 22.23529412 | BP41: 35.70588235 | BQ41: 143.1470588 | BR41: 87.05882353 | BS41: =BB41 -> 32.76470588 | BT41: 0 | BU41: 0 | BV41: 0 | BW41: 0 | BX41: 0 | BY41: 0 | BZ41: 0 | CA41: 0 | CB41: 0 | CC41: 0 | CD41: 0 | CF41: 57.94117647 | CG41: 143.1470588 | CH41: 87.05882353 | CI41: 32.76470588 | CJ41: 0 | CK41: 0 | CL41: 0 | CM41: 0 | CN41: 0 | CO41: 0 | CP41: 0 | CQ41: 0 | CR41: 0 | CS41: 0 | CT41: 0
B42: 36 | C42: 135.1944444 | D42: 82.22222222 | E42: 30.94444444 | F42: 0 | G42: 0 | H42: 0 | I42: 0 | J42: 0 | K42: 0 | L42: 0 | M42: 0 | N42: 0 | O42: 0 | P42: 0 | R42: 21 | S42: 33.72222222 | T42: 135.1944444 | U42: 82.22222222 | V42: 30.94444444 | W42: 0 | X42: 0 | Y42: 0 | Z42: 0 | AA42: 0 | AB42: 0 | AC42: 0 | AD42: 0 | AE42: 0 | AF42: 0 | AG42: 0 | AI42: 54.72222222 | AJ42: 135.1944444 | AK42: 82.22222222 | AL42: 30.94444444 | AM42: 0 | AN42: 0 | AO42: 0 | AP42: 0 | AQ42: 0 | AR42: 0 | AS42: 0 | AT42: 0 | AU42: 0 | AV42: 0 | AW42: 0 | AY42: 35 | AZ42: 139.0571429 | BA42: 84.57142857 | BB42: 31.82857143 | BC42: 0 | BD42: 0 | BE42: 0 | BF42: 0 | BG42: 0 | BH42: 0 | BI42: 0 | BJ42: 0 | BK42: 0 | BL42: 0 | BM42: 0 | BO42: 21.6 | BP42: 34.68571429 | BQ42: =AZ42 -> 139.0571429 | BR42: 84.57142857 | BS42: 31.82857143 | BT42: 0 | BU42: 0 | BV42: 0 | BW42: 0 | BX42: 0 | BY42: 0 | BZ42: 0 | CA42: 0 | CB42: 0 | CC42: 0 | CD42: 0 | CF42: 56.28571429 | CG42: 139.0571429 | CH42: 84.57142857 | CI42: 31.82857143 | CJ42: 0 | CK42: 0 | CL42: 0 | CM42: 0 | CN42: 0 | CO42: 0 | CP42: 0 | CQ42: 0 | CR42: 0 | CS42: 0 | CT42: 0
B43: 37 | C43: 131.5405405 | D43: 80 | E43: 30.10810811 | F43: 0 | G43: 0 | H43: 0 | I43: 0 | J43: 0 | K43: 0 | L43: 0 | M43: 0 | N43: 0 | O43: 0 | P43: 0 | R43: 20.43243243 | S43: 32.81081081 | T43: 131.5405405 | U43: 80 | V43: 30.10810811 | W43: 0 | X43: 0 | Y43: 0 | Z43: 0 | AA43: 0 | AB43: 0 | AC43: 0 | AD43: 0 | AE43: 0 | AF43: 0 | AG43: 0 | AI43: 53.24324324 | AJ43: 131.5405405 | AK43: 80 | AL43: 30.10810811 | AM43: 0 | AN43: 0 | AO43: 0 | AP43: 0 | AQ43: 0 | AR43: 0 | AS43: 0 | AT43: 0 | AU43: 0 | AV43: 0 | AW43: 0 | AY43: 36 | AZ43: 135.1944444 | BA43: 82.22222222 | BB43: 30.94444444 | BC43: 0 | BD43: 0 | BE43: 0 | BF43: 0 | BG43: 0 | BH43: 0 | BI43: 0 | BJ43: 0 | BK43: 0 | BL43: 0 | BM43: 0 | BO43: 21 | BP43: 33.72222222 | BQ43: 135.1944444 | BR43: 82.22222222 | BS43: 30.94444444 | BT43: 0 | BU43: 0 | BV43: 0 | BW43: 0 | BX43: 0 | BY43: 0 | BZ43: 0 | CA43: 0 | CB43: 0 | CC43: 0 | CD43: 0 | CF43: 54.72222222 | CG43: 135.1944444 | CH43: 82.22222222 | CI43: 30.94444444 | CJ43: 0 | CK43: 0 | CL43: 0 | CM43: 0 | CN43: 0 | CO43: 0 | CP43: 0 | CQ43: 0 | CR43: 0 | CS43: 0 | CT43: 0
B44: 38 | C44: 128.0789474 | D44: 77.89473684 | E44: 29.31578947 | F44: 0 | G44: 0 | H44: 0 | I44: 0 | J44: 0 | K44: 0 | L44: 0 | M44: 0 | N44: 0 | O44: 0 | P44: 0 | R44: 19.89473684 | S44: 31.94736842 | T44: 128.0789474 | U44: 77.89473684 | V44: 29.31578947 | W44: 0 | X44: 0 | Y44: 0 | Z44: 0 | AA44: 0 | AB44: 0 | AC44: 0 | AD44: 0 | AE44: 0 | AF44: 0 | AG44: 0 | AI44: 51.84210526 | AJ44: 128.0789474 | AK44: 77.89473684 | AL44: 29.31578947 | AM44: 0 | AN44: 0 | AO44: 0 | AP44: 0 | AQ44: 0 | AR44: 0 | AS44: 0 | AT44: 0 | AU44: 0 | AV44: 0 | AW44: 0 | AY44: 37 | AZ44: 131.5405405 | BA44: 80 | BB44: 30.10810811 | BC44: 0 | BD44: 0 | BE44: 0 | BF44: 0 | BG44: 0 | BH44: 0 | BI44: 0 | BJ44: 0 | BK44: 0 | BL44: 0 | BM44: 0 | BO44: 20.43243243 | BP44: 32.81081081 | BQ44: 131.5405405 | BR44: 80 | BS44: 30.10810811 | BT44: 0 | BU44: 0 | BV44: 0 | BW44: 0 | BX44: 0 | BY44: 0 | BZ44: 0 | CA44: 0 | CB44: 0 | CC44: 0 | CD44: 0 | CF44: 53.24324324 | CG44: 131.5405405 | CH44: 80 | CI44: 30.10810811 | CJ44: 0 | CK44: 0 | CL44: 0 | CM44: 0 | CN44: 0 | CO44: 0 | CP44: 0 | CQ44: 0 | CR44: 0 | CS44: 0 | CT44: 0
B45: 39 | C45: 124.7948718 | D45: 75.8974359 | E45: 28.56410256 | F45: 0 | G45: 0 | H45: 0 | I45: 0 | J45: 0 | K45: 0 | L45: 0 | M45: 0 | N45: 0 | O45: 0 | P45: 0 | R45: 19.38461538 | S45: 31.12820513 | T45: 124.7948718 | U45: 75.8974359 | V45: 28.56410256 | W45: 0 | X45: 0 | Y45: 0 | Z45: 0 | AA45: 0 | AB45: 0 | AC45: 0 | AD45: 0 | AE45: 0 | AF45: 0 | AG45: 0 | AI45: 50.51282051 | AJ45: 124.7948718 | AK45: 75.8974359 | AL45: 28.56410256 | AM45: 0 | AN45: 0 | AO45: 0 | AP45: 0 | AQ45: 0 | AR45: 0 | AS45: 0 | AT45: 0 | AU45: 0 | AV45: 0 | AW45: 0 | AY45: 38 | AZ45: 128.0789474 | BA45: 77.89473684 | BB45: 29.31578947 | BC45: 0 | BD45: 0 | BE45: 0 | BF45: 0 | BG45: 0 | BH45: 0 | BI45: 0 | BJ45: 0 | BK45: 0 | BL45: 0 | BM45: 0 | BO45: 19.89473684 | BP45: 31.94736842 | BQ45: 128.0789474 | BR45: 77.89473684 | BS45: 29.31578947 | BT45: 0 | BU45: 0 | BV45: 0 | BW45: 0 | BX45: 0 | BY45: 0 | BZ45: 0 | CA45: 0 | CB45: 0 | CC45: 0 | CD45: 0 | CF45: 51.84210526 | CG45: 128.0789474 | CH45: 77.89473684 | CI45: 29.31578947 | CJ45: 0 | CK45: 0 | CL45: 0 | CM45: 0 | CN45: 0 | CO45: 0 | CP45: 0 | CQ45: 0 | CR45: 0 | CS45: 0 | CT45: 0
B46: 40 | C46: 121.675 | D46: 74 | E46: 27.85 | F46: 0 | G46: 0 | H46: 0 | I46: 0 | J46: 0 | K46: 0 | L46: 0 | M46: 0 | N46: 0 | O46: 0 | P46: 0 | R46: 18.9 | S46: 30.35 | T46: 121.675 | U46: 74 | V46: 27.85 | W46: 0 | X46: 0 | Y46: 0 | Z46: 0 | AA46: 0 | AB46: 0 | AC46: 0 | AD46: 0 | AE46: 0 | AF46: 0 | AG46: 0 | AI46: 49.25 | AJ46: 121.675 | AK46: 74 | AL46: 27.85 | AM46: 0 | AN46: 0 | AO46: 0 | AP46: 0 | AQ46: 0 | AR46: 0 | AS46: 0 | AT46: 0 | AU46: 0 | AV46: 0 | AW46: 0 | AY46: 39 | AZ46: 124.7948718 | BA46: 75.8974359 | BB46: 28.56410256 | BC46: 0 | BD46: 0 | BE46: 0 | BF46: 0 | BG46: 0 | BH46: 0 | BI46: 0 | BJ46: 0 | BK46: 0 | BL46: 0 | BM46: 0 | BO46: 19.38461538 | BP46: 31.12820513 | BQ46: 124.7948718 | BR46: 75.8974359 | BS46: 28.56410256 | BT46: 0 | BU46: 0 | BV46: 0 | BW46: 0 | BX46: 0 | BY46: 0 | BZ46: 0 | CA46: 0 | CB46: 0 | CC46: 0 | CD46: 0 | CF46: 50.51282051 | CG46: 124.7948718 | CH46: 75.8974359 | CI46: 28.56410256 | CJ46: 0 | CK46: 0 | CL46: 0 | CM46: 0 | CN46: 0 | CO46: 0 | CP46: 0 | CQ46: 0 | CR46: 0 | CS46: 0 | CT46: 0
B47: 41 | C47: 118.7073171 | D47: 72.19512195 | E47: 27.17073171 | F47: 0 | G47: 0 | H47: 0 | I47: 0 | J47: 0 | K47: 0 | L47: 0 | M47: 0 | N47: 0 | O47: 0 | P47: 0 | R47: 18.43902439 | S47: 29.6097561 | T47: 118.7073171 | U47: 72.19512195 | V47: 27.17073171 | W47: 0 | X47: 0 | Y47: 0 | Z47: 0 | AA47: 0 | AB47: 0 | AC47: 0 | AD47: 0 | AE47: 0 | AF47: 0 | AG47: 0 | AI47: 48.04878049 | AJ47: 118.7073171 | AK47: 72.19512195 | AL47: 27.17073171 | AM47: 0 | AN47: 0 | AO47: 0 | AP47: 0 | AQ47: 0 | AR47: 0 | AS47: 0 | AT47: 0 | AU47: 0 | AV47: 0 | AW47: 0 | AY47: 40 | AZ47: 121.675 | BA47: 74 | BB47: 27.85 | BC47: 0 | BD47: 0 | BE47: 0 | BF47: 0 | BG47: 0 | BH47: 0 | BI47: 0 | BJ47: 0 | BK47: 0 | BL47: 0 | BM47: 0 | BO47: 18.9 | BP47: 30.35 | BQ47: 121.675 | BR47: 74 | BS47: 27.85 | BT47: 0 | BU47: 0 | BV47: 0 | BW47: 0 | BX47: 0 | BY47: 0 | BZ47: 0 | CA47: 0 | CB47: 0 | CC47: 0 | CD47: 0 | CF47: 49.25 | CG47: 121.675 | CH47: 74 | CI47: 27.85 | CJ47: 0 | CK47: 0 | CL47: 0 | CM47: 0 | CN47: 0 | CO47: 0 | CP47: 0 | CQ47: 0 | CR47: 0 | CS47: 0 | CT47: 0
B48: 42 | C48: 115.8809524 | D48: 70.47619048 | E48: 26.52380952 | F48: 0 | G48: 0 | H48: 0 | I48: 0 | J48: 0 | K48: 0 | L48: 0 | M48: 0 | N48: 0 | O48: 0 | P48: 0 | R48: 18 | S48: 28.9047619 | T48: 115.8809524 | U48: 70.47619048 | V48: 26.52380952 | W48: 0 | X48: 0 | Y48: 0 | Z48: 0 | AA48: 0 | AB48: 0 | AC48: 0 | AD48: 0 | AE48: 0 | AF48: 0 | AG48: 0 | AI48: 46.9047619 | AJ48: 115.8809524 | AK48: 70.47619048 | AL48: 26.52380952 | AM48: 0 | AN48: 0 | AO48: 0 | AP48: 0 | AQ48: 0 | AR48: 0 | AS48: 0 | AT48: 0 | AU48: 0 | AV48: 0 | AW48: 0 | AY48: 41 | AZ48: 118.7073171 | BA48: 72.19512195 | BB48: 27.17073171 | BC48: 0 | BD48: 0 | BE48: 0 | BF48: 0 | BG48: 0 | BH48: 0 | BI48: 0 | BJ48: 0 | BK48: 0 | BL48: 0 | BM48: 0 | BO48: 18.43902439 | BP48: 29.6097561 | BQ48: 118.7073171 | BR48: 72.19512195 | BS48: 27.17073171 | BT48: 0 | BU48: 0 | BV48: 0 | BW48: 0 | BX48: 0 | BY48: 0 | BZ48: 0 | CA48: 0 | CB48: 0 | CC48: 0 | CD48: 0 | CF48: 48.04878049 | CG48: 118.7073171 | CH48: 72.19512195 | CI48: 27.17073171 | CJ48: 0 | CK48: 0 | CL48: 0 | CM48: 0 | CN48: 0 | CO48: 0 | CP48: 0 | CQ48: 0 | CR48: 0 | CS48: 0 | CT48: 0
B49: 43 | C49: 113.1860465 | D49: 68.8372093 | E49: 25.90697674 | F49: 0 | G49: 0 | H49: 0 | I49: 0 | J49: 0 | K49: 0 | L49: 0 | M49: 0 | N49: 0 | O49: 0 | P49: 0 | R49: 17.58139535 | S49: 28.23255814 | T49: 113.1860465 | U49: 68.8372093 | V49: 25.90697674 | W49: 0 | X49: 0 | Y49: 0 | Z49: 0 | AA49: 0 | AB49: 0 | AC49: 0 | AD49: 0 | AE49: 0 | AF49: 0 | AG49: 0 | AI49: 45.81395349 | AJ49: 113.1860465 | AK49: 68.8372093 | AL49: 25.90697674 | AM49: 0 | AN49: 0 | AO49: 0 | AP49: 0 | AQ49: 0 | AR49: 0 | AS49: 0 | AT49: 0 | AU49: 0 | AV49: 0 | AW49: 0 | AY49: 42 | AZ49: 115.8809524 | BA49: 70.47619048 | BB49: 26.52380952 | BC49: 0 | BD49: 0 | BE49: 0 | BF49: 0 | BG49: 0 | BH49: 0 | BI49: 0 | BJ49: 0 | BK49: 0 | BL49: 0 | BM49: 0 | BO49: 18 | BP49: 28.9047619 | BQ49: 115.8809524 | BR49: 70.47619048 | BS49: 26.52380952 | BT49: 0 | BU49: 0 | BV49: 0 | BW49: 0 | BX49: 0 | BY49: 0 | BZ49: 0 | CA49: 0 | CB49: 0 | CC49: 0 | CD49: 0 | CF49: 46.9047619 | CG49: 115.8809524 | CH49: 70.47619048 | CI49: 26.52380952 | CJ49: 0 | CK49: 0 | CL49: 0 | CM49: 0 | CN49: 0 | CO49: 0 | CP49: 0 | CQ49: 0 | CR49: 0 | CS49: 0 | CT49: 0
B50: 44 | C50: 110.6136364 | D50: 67.27272727 | E50: 25.31818182 | F50: 0 | G50: 0 | H50: 0 | I50: 0 | J50: 0 | K50: 0 | L50: 0 | M50: 0 | N50: 0 | O50: 0 | P50: 0 | R50: 17.18181818 | S50: 27.59090909 | T50: 110.6136364 | U50: 67.27272727 | V50: 25.31818182 | W50: 0 | X50: 0 | Y50: 0 | Z50: 0 | AA50: 0 | AB50: 0 | AC50: 0 | AD50: 0 | AE50: 0 | AF50: 0 | AG50: 0 | AI50: 44.77272727 | AJ50: 110.6136364 | AK50: 67.27272727 | AL50: 25.31818182 | AM50: 0 | AN50: 0 | AO50: 0 | AP50: 0 | AQ50: 0 | AR50: 0 | AS50: 0 | AT50: 0 | AU50: 0 | AV50: 0 | AW50: 0 | AY50: 43 | AZ50: 113.1860465 | BA50: 68.8372093 | BB50: 25.90697674 | BC50: 0 | BD50: 0 | BE50: 0 | BF50: 0 | BG50: 0 | BH50: 0 | BI50: 0 | BJ50: 0 | BK50: 0 | BL50: 0 | BM50: 0 | BO50: 17.58139535 | BP50: 28.23255814 | BQ50: 113.1860465 | BR50: 68.8372093 | BS50: 25.90697674 | BT50: 0 | BU50: 0 | BV50: 0 | BW50: 0 | BX50: 0 | BY50: 0 | BZ50: 0 | CA50: 0 | CB50: 0 | CC50: 0 | CD50: 0 | CF50: 45.81395349 | CG50: 113.1860465 | CH50: 68.8372093 | CI50: 25.90697674 | CJ50: 0 | CK50: 0 | CL50: 0 | CM50: 0 | CN50: 0 | CO50: 0 | CP50: 0 | CQ50: 0 | CR50: 0 | CS50: 0 | CT50: 0
B51: 45 | C51: 108.1555556 | D51: 65.77777778 | E51: 24.75555556 | F51: 0 | G51: 0 | H51: 0 | I51: 0 | J51: 0 | K51: 0 | L51: 0 | M51: 0 | N51: 0 | O51: 0 | P51: 0 | R51: 16.8 | S51: 26.97777778 | T51: 108.1555556 | U51: 65.77777778 | V51: 24.75555556 | W51: 0 | X51: 0 | Y51: 0 | Z51: 0 | AA51: 0 | AB51: 0 | AC51: 0 | AD51: 0 | AE51: 0 | AF51: 0 | AG51: 0 | AI51: 43.77777778 | AJ51: 108.1555556 | AK51: 65.77777778 | AL51: 24.75555556 | AM51: 0 | AN51: 0 | AO51: 0 | AP51: 0 | AQ51: 0 | AR51: 0 | AS51: 0 | AT51: 0 | AU51: 0 | AV51: 0 | AW51: 0 | AY51: 44 | AZ51: 110.6136364 | BA51: 67.27272727 | BB51: 25.31818182 | BC51: 0 | BD51: 0 | BE51: 0 | BF51: 0 | BG51: 0 | BH51: 0 | BI51: 0 | BJ51: 0 | BK51: 0 | BL51: 0 | BM51: 0 | BO51: 17.18181818 | BP51: 27.59090909 | BQ51: 110.6136364 | BR51: 67.27272727 | BS51: 25.31818182 | BT51: 0 | BU51: 0 | BV51: 0 | BW51: 0 | BX51: 0 | BY51: 0 | BZ51: 0 | CA51: 0 | CB51: 0 | CC51: 0 | CD51: 0 | CF51: 44.77272727 | CG51: 110.6136364 | CH51: 67.27272727 | CI51: 25.31818182 | CJ51: 0 | CK51: 0 | CL51: 0 | CM51: 0 | CN51: 0 | CO51: 0 | CP51: 0 | CQ51: 0 | CR51: 0 | CS51: 0 | CT51: 0
B52: 46 | C52: 105.8043478 | D52: 64.34782609 | E52: 24.2173913 | F52: 0 | G52: 0 | H52: 0 | I52: 0 | J52: 0 | K52: 0 | L52: 0 | M52: 0 | N52: 0 | O52: 0 | P52: 0 | R52: 16.43478261 | S52: 26.39130435 | T52: 105.8043478 | U52: 64.34782609 | V52: 24.2173913 | W52: 0 | X52: 0 | Y52: 0 | Z52: 0 | AA52: 0 | AB52: 0 | AC52: 0 | AD52: 0 | AE52: 0 | AF52: 0 | AG52: 0 | AI52: 42.82608696 | AJ52: 105.8043478 | AK52: 64.34782609 | AL52: 24.2173913 | AM52: 0 | AN52: 0 | AO52: 0 | AP52: 0 | AQ52: 0 | AR52: 0 | AS52: 0 | AT52: 0 | AU52: 0 | AV52: 0 | AW52: 0 | AY52: 45 | AZ52: 108.1555556 | BA52: 65.77777778 | BB52: 24.75555556 | BC52: 0 | BD52: 0 | BE52: 0 | BF52: 0 | BG52: 0 | BH52: 0 | BI52: 0 | BJ52: 0 | BK52: 0 | BL52: 0 | BM52: 0 | BO52: 16.8 | BP52: 26.97777778 | BQ52: 108.1555556 | BR52: 65.77777778 | BS52: 24.75555556 | BT52: 0 | BU52: 0 | BV52: 0 | BW52: 0 | BX52: 0 | BY52: 0 | BZ52: 0 | CA52: 0 | CB52: 0 | CC52: 0 | CD52: 0 | CF52: 43.77777778 | CG52: 108.1555556 | CH52: 65.77777778 | CI52: 24.75555556 | CJ52: 0 | CK52: 0 | CL52: 0 | CM52: 0 | CN52: 0 | CO52: 0 | CP52: 0 | CQ52: 0 | CR52: 0 | CS52: 0 | CT52: 0
B53: 47 | C53: 103.5531915 | D53: 62.9787234 | E53: 23.70212766 | F53: 0 | G53: 0 | H53: 0 | I53: 0 | J53: 0 | K53: 0 | L53: 0 | M53: 0 | N53: 0 | O53: 0 | P53: 0 | R53: 16.08510638 | S53: 25.82978723 | T53: 103.5531915 | U53: 62.9787234 | V53: 23.70212766 | W53: 0 | X53: 0 | Y53: 0 | Z53: 0 | AA53: 0 | AB53: 0 | AC53: 0 | AD53: 0 | AE53: 0 | AF53: 0 | AG53: 0 | AI53: 41.91489362 | AJ53: 103.5531915 | AK53: 62.9787234 | AL53: 23.70212766 | AM53: 0 | AN53: 0 | AO53: 0 | AP53: 0 | AQ53: 0 | AR53: 0 | AS53: 0 | AT53: 0 | AU53: 0 | AV53: 0 | AW53: 0 | AY53: 46 | AZ53: 105.8043478 | BA53: 64.34782609 | BB53: 24.2173913 | BC53: 0 | BD53: 0 | BE53: 0 | BF53: 0 | BG53: 0 | BH53: 0 | BI53: 0 | BJ53: 0 | BK53: 0 | BL53: 0 | BM53: 0 | BO53: 16.43478261 | BP53: 26.39130435 | BQ53: 105.8043478 | BR53: 64.34782609 | BS53: 24.2173913 | BT53: 0 | BU53: 0 | BV53: 0 | BW53: 0 | BX53: 0 | BY53: 0 | BZ53: 0 | CA53: 0 | CB53: 0 | CC53: 0 | CD53: 0 | CF53: 42.82608696 | CG53: 105.8043478 | CH53: 64.34782609 | CI53: 24.2173913 | CJ53: 0 | CK53: 0 | CL53: 0 | CM53: 0 | CN53: 0 | CO53: 0 | CP53: 0 | CQ53: 0 | CR53: 0 | CS53: 0 | CT53: 0
B54: 48 | C54: 101.3958333 | D54: 61.66666667 | E54: 23.20833333 | F54: 0 | G54: 0 | H54: 0 | I54: 0 | J54: 0 | K54: 0 | L54: 0 | M54: 0 | N54: 0 | O54: 0 | P54: 0 | R54: 15.75 | S54: 25.29166667 | T54: 101.3958333 | U54: 61.66666667 | V54: 23.20833333 | W54: 0 | X54: 0 | Y54: 0 | Z54: 0 | AA54: 0 | AB54: 0 | AC54: 0 | AD54: 0 | AE54: 0 | AF54: 0 | AG54: 0 | AI54: 41.04166667 | AJ54: 101.3958333 | AK54: 61.66666667 | AL54: 23.20833333 | AM54: 0 | AN54: 0 | AO54: 0 | AP54: 0 | AQ54: 0 | AR54: 0 | AS54: 0 | AT54: 0 | AU54: 0 | AV54: 0 | AW54: 0 | AY54: 47 | AZ54: 103.5531915 | BA54: 62.9787234 | BB54: 23.70212766 | BC54: 0 | BD54: 0 | BE54: 0 | BF54: 0 | BG54: 0 | BH54: 0 | BI54: 0 | BJ54: 0 | BK54: 0 | BL54: 0 | BM54: 0 | BO54: 16.08510638 | BP54: 25.82978723 | BQ54: 103.5531915 | BR54: 62.9787234 | BS54: 23.70212766 | BT54: 0 | BU54: 0 | BV54: 0 | BW54: 0 | BX54: 0 | BY54: 0 | BZ54: 0 | CA54: 0 | CB54: 0 | CC54: 0 | CD54: 0 | CF54: 41.91489362 | CG54: 103.5531915 | CH54: 62.9787234 | CI54: 23.70212766 | CJ54: 0 | CK54: 0 | CL54: 0 | CM54: 0 | CN54: 0 | CO54: 0 | CP54: 0 | CQ54: 0 | CR54: 0 | CS54: 0 | CT54: 0
B55: 49 | C55: 99.32653061 | D55: 60.40816327 | E55: 22.73469388 | F55: 0 | G55: 0 | H55: 0 | I55: 0 | J55: 0 | K55: 0 | L55: 0 | M55: 0 | N55: 0 | O55: 0 | P55: 0 | R55: 15.42857143 | S55: 24.7755102 | T55: 99.32653061 | U55: 60.40816327 | V55: 22.73469388 | W55: 0 | X55: 0 | Y55: 0 | Z55: 0 | AA55: 0 | AB55: 0 | AC55: 0 | AD55: 0 | AE55: 0 | AF55: 0 | AG55: 0 | AI55: 40.20408163 | AJ55: 99.32653061 | AK55: 60.40816327 | AL55: 22.73469388 | AM55: 0 | AN55: 0 | AO55: 0 | AP55: 0 | AQ55: 0 | AR55: 0 | AS55: 0 | AT55: 0 | AU55: 0 | AV55: 0 | AW55: 0 | AY55: 48 | AZ55: 101.3958333 | BA55: 61.66666667 | BB55: 23.20833333 | BC55: 0 | BD55: 0 | BE55: 0 | BF55: 0 | BG55: 0 | BH55: 0 | BI55: 0 | BJ55: 0 | BK55: 0 | BL55: 0 | BM55: 0 | BO55: 15.75 | BP55: 25.29166667 | BQ55: 101.3958333 | BR55: 61.66666667 | BS55: 23.20833333 | BT55: 0 | BU55: 0 | BV55: 0 | BW55: 0 | BX55: 0 | BY55: 0 | BZ55: 0 | CA55: 0 | CB55: 0 | CC55: 0 | CD55: 0 | CF55: 41.04166667 | CG55: 101.3958333 | CH55: 61.66666667 | CI55: 23.20833333 | CJ55: 0 | CK55: 0 | CL55: 0 | CM55: 0 | CN55: 0 | CO55: 0 | CP55: 0 | CQ55: 0 | CR55: 0 | CS55: 0 | CT55: 0
B56: 50 | C56: 97.34 | D56: 59.2 | E56: 22.28 | F56: 0 | G56: 0 | H56: 0 | I56: 0 | J56: 0 | K56: 0 | L56: 0 | M56: 0 | N56: 0 | O56: 0 | P56: 0 | R56: 15.12 | S56: 24.28 | T56: 97.34 | U56: 59.2 | V56: 22.28 | W56: 0 | X56: 0 | Y56: 0 | Z56: 0 | AA56: 0 | AB56: 0 | AC56: 0 | AD56: 0 | AE56: 0 | AF56: 0 | AG56: 0 | AI56: 39.4 | AJ56: 97.34 | AK56: 59.2 | AL56: 22.28 | AM56: 0 | AN56: 0 | AO56: 0 | AP56: 0 | AQ56: 0 | AR56: 0 | AS56: 0 | AT56: 0 | AU56: 0 | AV56: 0 | AW56: 0 | AY56: 49 | AZ56: 99.32653061 | BA56: 60.40816327 | BB56: 22.73469388 | BC56: 0 | BD56: 0 | BE56: 0 | BF56: 0 | BG56: 0 | BH56: 0 | BI56: 0 | BJ56: 0 | BK56: 0 | BL56: 0 | BM56: 0 | BO56: 15.42857143 | BP56: 24.7755102 | BQ56: 99.32653061 | BR56: 60.40816327 | BS56: 22.73469388 | BT56: 0 | BU56: 0 | BV56: 0 | BW56: 0 | BX56: 0 | BY56: 0 | BZ56: 0 | CA56: 0 | CB56: 0 | CC56: 0 | CD56: 0 | CF56: 40.20408163 | CG56: 99.32653061 | CH56: 60.40816327 | CI56: 22.73469388 | CJ56: 0 | CK56: 0 | CL56: 0 | CM56: 0 | CN56: 0 | CO56: 0 | CP56: 0 | CQ56: 0 | CR56: 0 | CS56: 0 | CT56: 0
B57: 51 | C57: 95.43137255 | D57: 58.03921569 | E57: 21.84313725 | F57: 0 | G57: 0 | H57: 0 | I57: 0 | J57: 0 | K57: 0 | L57: 0 | M57: 0 | N57: 0 | O57: 0 | P57: 0 | R57: 14.82352941 | S57: 23.80392157 | T57: 95.43137255 | U57: 58.03921569 | V57: 21.84313725 | W57: 0 | X57: 0 | Y57: 0 | Z57: 0 | AA57: 0 | AB57: 0 | AC57: 0 | AD57: 0 | AE57: 0 | AF57: 0 | AG57: 0 | AI57: 38.62745098 | AJ57: 95.43137255 | AK57: 58.03921569 | AL57: 21.84313725 | AM57: 0 | AN57: 0 | AO57: 0 | AP57: 0 | AQ57: 0 | AR57: 0 | AS57: 0 | AT57: 0 | AU57: 0 | AV57: 0 | AW57: 0 | AY57: 50 | AZ57: 97.34 | BA57: 59.2 | BB57: 22.28 | BC57: 0 | BD57: 0 | BE57: 0 | BF57: 0 | BG57: 0 | BH57: 0 | BI57: 0 | BJ57: 0 | BK57: 0 | BL57: 0 | BM57: 0 | BO57: 15.12 | BP57: 24.28 | BQ57: 97.34 | BR57: 59.2 | BS57: 22.28 | BT57: 0 | BU57: 0 | BV57: 0 | BW57: 0 | BX57: 0 | BY57: 0 | BZ57: 0 | CA57: 0 | CB57: 0 | CC57: 0 | CD57: 0 | CF57: 39.4 | CG57: 97.34 | CH57: 59.2 | CI57: 22.28 | CJ57: 0 | CK57: 0 | CL57: 0 | CM57: 0 | CN57: 0 | CO57: 0 | CP57: 0 | CQ57: 0 | CR57: 0 | CS57: 0 | CT57: 0
B58: 52 | C58: 93.59615385 | D58: 56.92307692 | E58: 21.42307692 | F58: 0 | G58: 0 | H58: 0 | I58: 0 | J58: 0 | K58: 0 | L58: 0 | M58: 0 | N58: 0 | O58: 0 | P58: 0 | R58: 14.53846154 | S58: 23.34615385 | T58: 93.59615385 | U58: 56.92307692 | V58: 21.42307692 | W58: 0 | X58: 0 | Y58: 0 | Z58: 0 | AA58: 0 | AB58: 0 | AC58: 0 | AD58: 0 | AE58: 0 | AF58: 0 | AG58: 0 | AI58: 37.88461538 | AJ58: 93.59615385 | AK58: 56.92307692 | AL58: 21.42307692 | AM58: 0 | AN58: 0 | AO58: 0 | AP58: 0 | AQ58: 0 | AR58: 0 | AS58: 0 | AT58: 0 | AU58: 0 | AV58: 0 | AW58: 0 | AY58: 51 | AZ58: 95.43137255 | BA58: 58.03921569 | BB58: 21.84313725 | BC58: 0 | BD58: 0 | BE58: 0 | BF58: 0 | BG58: 0 | BH58: 0 | BI58: 0 | BJ58: 0 | BK58: 0 | BL58: 0 | BM58: 0 | BO58: 14.82352941 | BP58: 23.80392157 | BQ58: 95.43137255 | BR58: 58.03921569 | BS58: 21.84313725 | BT58: 0 | BU58: 0 | BV58: 0 | BW58: 0 | BX58: 0 | BY58: 0 | BZ58: 0 | CA58: 0 | CB58: 0 | CC58: 0 | CD58: 0 | CF58: 38.62745098 | CG58: 95.43137255 | CH58: 58.03921569 | CI58: 21.84313725 | CJ58: 0 | CK58: 0 | CL58: 0 | CM58: 0 | CN58: 0 | CO58: 0 | CP58: 0 | CQ58: 0 | CR58: 0 | CS58: 0 | CT58: 0
B59: 53 | C59: 91.83018868 | D59: 55.8490566 | E59: 21.01886792 | F59: 0 | G59: 0 | H59: 0 | I59: 0 | J59: 0 | K59: 0 | L59: 0 | M59: 0 | N59: 0 | O59: 0 | P59: 0 | R59: =$R$6/B59 -> 14.26415094 | S59: =$S$6/B59 -> 22.90566038 | T59: 91.83018868 | U59: 55.8490566 | V59: 21.01886792 | W59: 0 | X59: 0 | Y59: 0 | Z59: 0 | AA59: 0 | AB59: 0 | AC59: 0 | AD59: 0 | AE59: 0 | AF59: 0 | AG59: 0 | AI59: =$AI$6/B59 -> 37.16981132 | AJ59: 91.83018868 | AK59: 55.8490566 | AL59: 21.01886792 | AM59: 0 | AN59: 0 | AO59: 0 | AP59: 0 | AQ59: 0 | AR59: 0 | AS59: 0 | AT59: 0 | AU59: 0 | AV59: 0 | AW59: 0 | AY59: 52 | AZ59: 93.59615385 | BA59: 56.92307692 | BB59: 21.42307692 | BC59: 0 | BD59: 0 | BE59: 0 | BF59: 0 | BG59: 0 | BH59: 0 | BI59: 0 | BJ59: 0 | BK59: 0 | BL59: 0 | BM59: 0 | BO59: 14.53846154 | BP59: 23.34615385 | BQ59: 93.59615385 | BR59: 56.92307692 | BS59: 21.42307692 | BT59: 0 | BU59: 0 | BV59: 0 | BW59: 0 | BX59: 0 | BY59: 0 | BZ59: 0 | CA59: 0 | CB59: 0 | CC59: 0 | CD59: 0 | CF59: 37.88461538 | CG59: 93.59615385 | CH59: 56.92307692 | CI59: 21.42307692 | CJ59: 0 | CK59: 0 | CL59: 0 | CM59: 0 | CN59: 0 | CO59: 0 | CP59: 0 | CQ59: 0 | CR59: 0 | CS59: 0 | CT59: 0
B60: 54 | C60: 90.12962963 | D60: 54.81481481 | E60: 20.62962963 | F60: 0 | G60: 0 | H60: 0 | I60: 0 | J60: 0 | K60: 0 | L60: 0 | M60: 0 | N60: 0 | O60: 0 | P60: 0 | R60: =$R$6/B60 -> 14 | S60: =$S$6/B60 -> 22.48148148 | T60: 90.12962963 | U60: 54.81481481 | V60: 20.62962963 | W60: 0 | X60: 0 | Y60: 0 | Z60: 0 | AA60: 0 | AB60: 0 | AC60: 0 | AD60: 0 | AE60: 0 | AF60: 0 | AG60: 0 | AI60: =$AI$6/B60 -> 36.48148148 | AJ60: 90.12962963 | AK60: 54.81481481 | AL60: 20.62962963 | AM60: 0 | AN60: 0 | AO60: 0 | AP60: 0 | AQ60: 0 | AR60: 0 | AS60: 0 | AT60: 0 | AU60: 0 | AV60: 0 | AW60: 0 | AY60: 53 | AZ60: 91.83018868 | BA60: 55.8490566 | BB60: 21.01886792 | BC60: 0 | BD60: 0 | BE60: 0 | BF60: 0 | BG60: 0 | BH60: 0 | BI60: 0 | BJ60: 0 | BK60: 0 | BL60: 0 | BM60: 0 | BO60: 14.26415094 | BP60: 22.90566038 | BQ60: 91.83018868 | BR60: 55.8490566 | BS60: 21.01886792 | BT60: 0 | BU60: 0 | BV60: 0 | BW60: 0 | BX60: 0 | BY60: 0 | BZ60: 0 | CA60: 0 | CB60: 0 | CC60: 0 | CD60: 0 | CF60: 37.16981132 | CG60: 91.83018868 | CH60: 55.8490566 | CI60: 21.01886792 | CJ60: 0 | CK60: 0 | CL60: 0 | CM60: 0 | CN60: 0 | CO60: 0 | CP60: 0 | CQ60: 0 | CR60: 0 | CS60: 0 | CT60: 0
B64: Nombre de sièges | C64: 23 | D64: =[1]LPO_CC_20190717!$Q$7 -> 23 | E64: =C64-D64 -> 0
B65: Nombre d'inscrits | C65: 10911 | D65: =[1]LPO_CC_20190717!$AY$7 -> 10911 | E65: =C65-D65 -> 0
B66: Bulletins déposés | C66: 9697 | D66: =[1]LPO_CC_20190717!$AZ$7 -> 9697 | E66: 0
B67: Blancs & Nuls | C67: 756 | D67: =[1]LPO_CC_20190717!$BA$7 -> 756 | E67: 0
B68: Votes valables | C68: 8941 | D68: =[1]LPO_CC_20190717!$BB$7 -> 8941 | E68: 0
B73: Liste unique Majorité absolue | C73: =SUM($C$74:$P$74) -> 1 | R73: =SUM($R$74:$AG$74) -> 1 | AI73: =SUM($AI$74:$AW$74) -> 1 | AY73: =SUM(AY74:BM74) -> 1 | BO73: =SUM(BO74:CD74) -> 0 | CF73: =SUM(CF74:CT74) -> 0 | CW73: =SUM(CW74:DL74) -> 0
C74: =IF(C7>($C$64/2),1,0) -> 1 | D74: 0 | E74: 0 | F74: 0 | G74: 0 | H74: 0 | I74: 0 | J74: 0 | K74: 0 | L74: 0 | M74: 0 | N74: 0 | O74: 0 | P74: 0 | R74: =IF(R7>($C$64/2),1,0) -> 0 | S74: 0 | T74: 1 | U74: 0 | V74: 0 | W74: 0 | X74: 0 | Y74: 0 | Z74: 0 | AA74: 0 | AB74: 0 | AC74: 0 | AD74: 0 | AE74: 0 | AF74: 0 | AG74: 0 | AI74: =IF(AI7>($C$64/2),1,0) -> 0 | AJ74: 1 | AK74: 0 | AL74: 0 | AM74: 0 | AN74: 0 | AO74: 0 | AP74: 0 | AQ74: 0 | AR74: 0 | AS74: 0 | AT74: 0 | AU74: 0 | AV74: 0 | AW74: 0 | AY74: =IF(AY7>($C$64/2),1,0) -> 0 | AZ74: 1 | BA74: 0 | BB74: 0 | BC74: 0 | BD74: 0 | BE74: 0 | BF74: 0 | BG74: 0 | BH74: 0 | BI74: 0 | BJ74: 0 | BK74: 0 | BL74: 0 | BM74: 0 | BO74: =IF(BO7>($C$64/2),1,0) -> 0 | BP74: 0 | BQ74: 0 | BR74: 0 | BS74: 0 | BT74: 0 | BU74: 0 | BV74: 0 | BW74: 0 | BX74: 0 | BY74: 0 | BZ74: 0 | CA74: 0 | CB74: 0 | CC74: 0 | CD74: 0 | CF74: =IF(CF7>($C$64/2),1,0) -> 0 | CG74: 0 | CH74: 0 | CI74: 0 | CJ74: 0 | CK74: 0 | CL74: 0 | CM74: 0 | CN74: 0 | CO74: 0 | CP74: 0 | CQ74: 0 | CR74: 0 | CS74: 0 | CT74: 0 | CW74: =IF(CW7>($C$64/2),1,0) -> 0 | CX74: 0 | CY74: 0 | CZ74: 0 | DA74: 0 | DB74: 0 | DC74: 0 | DD74: 0 | DE74: 0 | DF74: 0 | DG74: 0 | DH74: 0 | DI74: 0 | DJ74: 0 | DK74: 0 | DL74: 0
B76: Liste unique Majorité absolue Nombre de voix | C76: =SUM($C$77:$P$77) -> 4867 | R76: =SUM($R$77:$AG$77) -> 4867 | AI76: =SUM($AI$77:$AW$77) -> 4867 | AY76: =SUM(AY77:BM77) -> 4867 | BO76: =SUM(BO77:CD77) -> 0 | CF76: =SUM(CF77:CT77) -> 0 | CW76: =SUM(CW77:DL77) -> 0
C77: =IF(C74>0,C6,0) -> 4867 | D77: =IF(D74>0,D6,0) -> 0 | E77: 0 | F77: 0 | G77: 0 | H77: 0 | I77: 0 | J77: 0 | K77: 0 | L77: 0 | M77: 0 | N77: 0 | O77: 0 | P77: 0 | R77: =IF(R74>0,R6,0) -> 0 | S77: =IF(S74>0,S6,0) -> 0 | T77: 4867 | U77: 0 | V77: 0 | W77: 0 | X77: 0 | Y77: 0 | Z77: 0 | AA77: 0 | AB77: 0 | AC77: 0 | AD77: 0 | AE77: 0 | AF77: 0 | AG77: 0 | AI77: =IF(AI74>0,AI6,0) -> 0 | AJ77: =IF(AJ74>0,AJ6,0) -> 4867 | AK77: 0 | AL77: 0 | AM77: 0 | AN77: 0 | AO77: 0 | AP77: 0 | AQ77: 0 | AR77: 0 | AS77: 0 | AT77: 0 | AU77: 0 | AV77: 0 | AW77: 0 | AY77: =IF(AY74>0,AY6,0) -> 0 | AZ77: =IF(AZ74>0,AZ6,0) -> 4867 | BA77: 0 | BB77: 0 | BC77: 0 | BD77: 0 | BE77: 0 | BF77: 0 | BG77: 0 | BH77: 0 | BI77: 0 | BJ77: 0 | BK77: 0 | BL77: 0 | BM77: 0 | BO77: =IF(BO74>0,BO6,0) -> 0 | BP77: =IF(BP74>0,BP6,0) -> 0 | BQ77: 0 | BR77: 0 | BS77: 0 | BT77: 0 | BU77: 0 | BV77: 0 | BW77: 0 | BX77: 0 | BY77: 0 | BZ77: 0 | CA77: 0 | CB77: 0 | CC77: 0 | CD77: 0 | CF77: =IF(CF74>0,CF6,0) -> 0 | CG77: =IF(CG74>0,CG6,0) -> 0 | CH77: 0 | CI77: 0 | CJ77: 0 | CK77: 0 | CL77: 0 | CM77: 0 | CN77: 0 | CO77: 0 | CP77: 0 | CQ77: 0 | CR77: 0 | CS77: 0 | CT77: 0 | CW77: =IF(CW74>0,CW6,0) -> 0 | CX77: =IF(CX74>0,CX6,0) -> 0 | CY77: 0 | CZ77: 0 | DA77: 0 | DB77: 0 | DC77: 0 | DD77: 0 | DE77: 0 | DF77: 0 | DG77: 0 | DH77: 0 | DI77: 0 | DJ77: 0 | DK77: 0 | DL77: 0
B80: Nbr voix Coallition | C80: =SUMIF(C4:P4,"x",C6:P6) -> 0
B82: % Coalition | C82: =100/C65*C80 -> 0
B83: % Majorité | C83: =100/C65*C76 -> 44.60636055
B86: Coalition | C86: =COUNTA(C4:P4) -> 0 | D86: =IF(C86>0,1,0) -> 0
F93: =R5 -> Blancs & Nuls | G93: Non-déposés | H93: ECOLO | I93: PS | J93: AMAY.PLUS | K93: 0 | L93: 0 | M93: 0 | N93: 0 | O93: 0 | P93: 0 | Q93: 0 | R93: 0 | S93: 0 | T93: 0 | U93: 0
E94: Chiffres électoraux | F94: 756 | G94: 1214 | H94: 4867 | I94: 2960 | J94: 1114 | K94: 0 | L94: 0 | M94: 0 | N94: 0 | O94: 0 | P94: 0 | Q94: 0 | R94: 0 | S94: 0 | T94: 0 | U94: 0
E95: Impériali | F95: 0 | G95: 0 | H95: =C7 -> 13 | I95: 8 | J95: 2 | K95: 0 | L95: 0 | M95: 0 | N95: 0 | O95: 0 | P95: 0 | Q95: 0 | R95: 0 | S95: 0 | T95: 0 | U95: 0
E96: Impériali + proportionnelle | F96: =R7 -> 1 | G96: 2 | H96: 12 | I96: 6 | J96: 2 | K96: 0 | L96: 0 | M96: 0 | N96: 0 | O96: 0 | P96: 0 | Q96: 0 | R96: 0 | S96: 0 | T96: 0 | U96: 0
E97: D'Hondt | F97: 0 | G97: 0 | H97: =AZ7 -> 13 | I97: 7 | J97: 3 | K97: 0 | L97: 0 | M97: 0 | N97: 0 | O97: 0 | P97: 0 | Q97: 0 | R97: 0 | S97: 0 | T97: 0 | U97: 0
E98: D'Hondt + proportionnelle | F98: =BO7 -> 1 | G98: 2 | H98: 11 | I98: 7 | J98: 2 | K98: 0 | L98: 0 | M98: 0 | N98: 0 | O98: 0 | P98: 0 | Q98: 0 | R98: 0 | S98: 0 | T98: 0 | U98: 0
E99: Proportionnelle pure | F99: =CW7 -> 1.593621116 | G99: 2.55906883 | H99: 10.25946293 | I99: 6.239574741 | J99: 2.348272386 | K99: 0 | L99: 0 | M99: 0 | N99: 0 | O99: 0 | P99: 0 | Q99: 0 | R99: 0 | S99: 0 | T99: 0 | U99: 0
E101: Nombre de sièges à distribuer : | H101: =C64 -> 23 | K101: Est-ce une liste unique en majorité absolue en termes de sièges ? | T101: =IF(C73>0,"Oui","Non") -> Oui
E103: Nombre d'inscrits : | H103: =C65 -> 10911 | K103: Est-ce une liste unique en majorité absolue en termes de voix ? | T103: =IF(C76>0,"Oui","Non") -> Oui
E105: Nombre de bulletins déposés : | H105: =C66 -> 9697 | K105: La majorité est-elle formée par une coalition ? | T105: =IF(C86>1,"Oui","Non") -> Non
E107: Nombre de votes valables : | H107: =C68 -> 8941 | K107: Quelle est la proportion de l'électorat représentée par la majorité ? | T107: =IF(C86>1,C82,C83) -> 44.60636055

Sheet AMBLEVE
B2: Impériali | AY2: D'Hondt | CV2: Proportionnelle pure
B4: Coalition
B5: =COUNTA(C5:P5) -> 2 | C5: GI | D5: G.Z. | R5: Blancs & Nuls | S5: Non-déposés | T5: =C5 -> GI | U5: G.Z. | V5: 0 | Y5: =H5 -> 0 | Z5: =I5 -> 0 | AA5: 0 | AB5: 0 | AC5: 0 | AD5: 0 | AE5: 0 | AF5: 0 | AG5: 0 | AI5: Non-valables | AJ5: =C5 -> GI | AK5: G.Z. | AL5: 0 | AO5: =H5 -> 0 | AP5: =I5 -> 0 | AQ5: 0 | AR5: 0 | AS5: 0 | AT5: 0 | AU5: 0 | AV5: 0 | AW5: 0 | AY5: =COUNTA(AZ5:BM5) -> 14 | AZ5: =C5 -> GI | BA5: G.Z. | BB5: 0 | BC5: 0 | BD5: 0 | BE5: 0 | BF5: 0 | BG5: 0 | BH5: 0 | BI5: 0 | BJ5: 0 | BK5: 0 | BL5: 0 | BM5: 0 | BO5: Blancs & Nuls | BP5: Non-déposés | BQ5: =C5 -> GI | BR5: G.Z. | BS5: 0 | BT5: 0 | BU5: 0 | BV5: 0 | BW5: 0 | BX5: 0 | BY5: 0 | BZ5: 0 | CA5: 0 | CB5: 0 | CC5: 0 | CD5: 0 | CF5: Non-valables | CG5: =AZ5 -> GI | CH5: =BA5 -> G.Z. | CI5: =BB5 -> 0 | CL5: =BE5 -> 0 | CM5: =BF5 -> 0 | CN5: 0 | CO5: 0 | CP5: 0 | CQ5: 0 | CR5: 0 | CS5: 0 | CT5: 0 | CV5: New Key | CW5: Blancs & Nuls | CX5: Non-déposés | CY5: =C5 -> GI | CZ5: G.Z. | DA5: 0 | DB5: 0 | DC5: 0 | DD5: 0 | DE5: 0 | DF5: 0 | DG5: 0 | DH5: 0 | DI5: 0 | DJ5: 0 | DK5: 0 | DL5: 0
B6: Chiffres électoraux | C6: 2587 | D6: 790 | R6: =C67 -> 354 | S6: =C65-C66 -> 467 | T6: 2587 | U6: 790 | V6: 0 | Y6: =H6 -> 0 | Z6: 0 | AA6: 0 | AB6: 0 | AC6: 0 | AD6: 0 | AE6: 0 | AF6: 0 | AG6: 0 | AI6: =R6+S6 -> 821 | AJ6: 2587 | AK6: 790 | AL6: 0 | AO6: =H6 -> 0 | AP6: 0 | AQ6: 0 | AR6: 0 | AS6: 0 | AT6: 0 | AU6: 0 | AV6: 0 | AW6: 0 | AY6: Chiffres électoraux | AZ6: 2587 | BA6: 790 | BB6: 0 | BC6: 0 | BD6: 0 | BE6: 0 | BF6: 0 | BG6: 0 | BH6: 0 | BI6: 0 | BJ6: 0 | BK6: 0 | BL6: 0 | BM6: 0 | BO6: =C67 -> 354 | BP6: =C65-C66 -> 467 | BQ6: 2587 | BR6: 790 | BS6: 0 | BT6: 0 | BU6: 0 | BV6: 0 | BW6: 0 | BX6: 0 | BY6: 0 | BZ6: 0 | CA6: 0 | CB6: 0 | CC6: 0 | CD6: 0 | CF6: =BO6+BP6 -> 821 | CG6: 2587 | CH6: 790 | CI6: 0 | CL6: =BE6 -> 0 | CM6: 0 | CN6: 0 | CO6: 0 | CP6: 0 | CQ6: 0 | CR6: 0 | CS6: 0 | CT6: 0 | CW6: =C67 -> 354 | CX6: =C65-C66 -> 467 | CY6: 2587 | CZ6: 790 | DA6: 0 | DB6: 0 | DC6: 0 | DD6: 0 | DE6: 0 | DF6: 0 | DG6: 0 | DH6: 0 | DI6: 0 | DJ6: 0 | DK6: 0 | DL6: 0
B7: Sièges | C7: 14 | D7: 3 | E7: 0 | F7: 0 | G7: 0 | H7: 0 | I7: 0 | J7: 0 | K7: 0 | L7: 0 | M7: 0 | N7: 0 | O7: 0 | P7: 0 | R7: 0 | S7: 1 | T7: 13 | U7: 3 | V7: 0 | W7: 0 | X7: 0 | Y7: 0 | Z7: 0 | AA7: 0 | AB7: 0 | AC7: 0 | AD7: 0 | AE7: 0 | AF7: 0 | AG7: 0 | AI7: 3 | AJ7: 12 | AK7: 2 | AL7: 0 | AM7: 0 | AN7: 0 | AO7: 0 | AP7: 0 | AQ7: 0 | AR7: 0 | AS7: 0 | AT7: 0 | AU7: 0 | AV7: 0 | AW7: 0 | AY7: 0 | AZ7: 13 | BA7: 4 | BB7: 0 | BC7: 0 | BD7: 0 | BE7: 0 | BF7: 0 | BG7: 0 | BH7: 0 | BI7: 0 | BJ7: 0 | BK7: 0 | BL7: 0 | BM7: 0 | BO7: 1 | BP7: 2 | BQ7: 11 | BR7: 3 | BS7: 0 | BT7: 0 | BU7: 0 | BV7: 0 | BW7: 0 | BX7: 0 | BY7: 0 | BZ7: 0 | CA7: 0 | CB7: 0 | CC7: 0 | CD7: 0 | CF7: 3 | CG7: 11 | CH7: 3 | CI7: 0 | CJ7: 0 | CK7: 0 | CL7: 0 | CM7: 0 | CN7: 0 | CO7: 0 | CP7: 0 | CQ7: 0 | CR7: 0 | CS7: 0 | CT7: 0 | CV7: =C65/C64 -> 246.9411765 | CW7: =CW6/$CV$7 -> 1.433539781 | CX7: 1.891138637 | CY7: 10.47617913 | CZ7: 3.199142449 | DA7: 0 | DB7: 0 | DC7: 0 | DD7: 0 | DE7: 0 | DF7: 0 | DG7: 0 | DH7: 0 | DI7: 0 | DJ7: 0 | DK7: 0 | DL7: 0
B8: 2 | C8: =$C$6/B8 -> 1293.5 | D8: =$D$6/B8 -> 395 | E8: =$E$6/B8 -> 0 | F8: =$F$6/B8 -> 0 | G8: =$G$6/B8 -> 0 | H8: =$H$6/B8 -> 0 | I8: =$I$6/B8 -> 0 | J8: =$J$6/B8 -> 0 | K8: =$K$6/B8 -> 0 | L8: =$L$6/B8 -> 0 | M8: =$M$6/B8 -> 0 | N8: =$N$6/B8 -> 0 | O8: =$O$6/B8 -> 0 | P8: =$P$6/B8 -> 0 | R8: =$R$6/B8 -> 177 | S8: =$S$6/B8 -> 233.5 | T8: =C8 -> 1293.5 | U8: 395 | V8: 0 | W8: 0 | X8: 0 | Y8: 0 | Z8: 0 | AA8: 0 | AB8: 0 | AC8: 0 | AD8: 0 | AE8: 0 | AF8: 0 | AG8: 0 | AI8: =$AI$6/B8 -> 410.5 | AJ8: =C8 -> 1293.5 | AK8: 395 | AL8: 0 | AM8: 0 | AN8: 0 | AO8: 0 | AP8: 0 | AQ8: 0 | AR8: 0 | AS8: 0 | AT8: 0 | AU8: 0 | AV8: 0 | AW8: 0 | AY8: 1 | AZ8: =$AZ$6/AY8 -> 2587 | BA8: =$BA$6/AY8 -> 790 | BB8: =$BB$6/AY8 -> 0 | BC8: =$BC$6/AY8 -> 0 | BD8: =$BD$6/AY8 -> 0 | BE8: =$BE$6/AY8 -> 0 | BF8: =$BF$6/AY8 -> 0 | BG8: =$BG$6/AY8 -> 0 | BH8: =$BH$6/AY8 -> 0 | BI8: =$BI$6/AY8 -> 0 | BJ8: =$BJ$6/AY8 -> 0 | BK8: =$BK$6/AY8 -> 0 | BL8: =$BL$6/AY8 -> 0 | BM8: =$BM$6/AY8 -> 0 | BO8: =$BO$6/AY8 -> 354 | BP8: =$BP$6/AY8 -> 467 | BQ8: =AZ8 -> 2587 | BR8: =BA8 -> 790 | BS8: 0 | BT8: 0 | BU8: 0 | BV8: 0 | BW8: 0 | BX8: 0 | BY8: 0 | BZ8: 0 | CA8: 0 | CB8: 0 | CC8: 0 | CD8: 0 | CF8: =$CF$6/AY8 -> 821 | CG8: =AZ8 -> 2587 | CH8: 790 | CI8: 0 | CJ8: 0 | CK8: 0 | CL8: 0 | CM8: 0 | CN8: 0 | CO8: 0 | CP8: 0 | CQ8: 0 | CR8: 0 | CS8: 0 | CT8: 0
B9: 3 | C9: =$C$6/B9 -> 862.3333333 | D9: 263.3333333 | E9: =$E$6/B9 -> 0 | F9: 0 | G9: 0 | H9: =$H$6/B9 -> 0 | I9: =$I$6/B9 -> 0 | J9: =$J$6/B9 -> 0 | K9: =$K$6/B9 -> 0 | L9: =$L$6/B9 -> 0 | M9: 0 | N9: 0 | O9: =$O$6/B9 -> 0 | P9: 0 | R9: 118 | S9: 155.6666667 | T9: 862.3333333 | U9: 263.3333333 | V9: 0 | W9: 0 | X9: 0 | Y9: 0 | Z9: 0 | AA9: 0 | AB9: 0 | AC9: 0 | AD9: 0 | AE9: 0 | AF9: 0 | AG9: 0 | AI9: 273.6666667 | AJ9: 862.3333333 | AK9: 263.3333333 | AL9: 0 | AM9: 0 | AN9: 0 | AO9: 0 | AP9: 0 | AQ9: 0 | AR9: 0 | AS9: 0 | AT9: 0 | AU9: 0 | AV9: 0 | AW9: 0 | AY9: 2 | AZ9: =$AZ$6/AY9 -> 1293.5 | BA9: =$BA$6/AY9 -> 395 | BB9: =$BB$6/AY9 -> 0 | BC9: =$BC$6/AY9 -> 0 | BD9: =$BD$6/AY9 -> 0 | BE9: =$BE$6/AY9 -> 0 | BF9: =$BF$6/AY9 -> 0 | BG9: =$BG$6/AY9 -> 0 | BH9: =$BH$6/AY9 -> 0 | BI9: =$BI$6/AY9 -> 0 | BJ9: =$BJ$6/AY9 -> 0 | BK9: =$BK$6/AY9 -> 0 | BL9: =$BL$6/AY9 -> 0 | BM9: =$BM$6/AY9 -> 0 | BO9: =$BO$6/AY9 -> 177 | BP9: =$BP$6/AY9 -> 233.5 | BQ9: =AZ9 -> 1293.5 | BR9: 395 | BS9: 0 | BT9: 0 | BU9: 0 | BV9: 0 | BW9: 0 | BX9: 0 | BY9: 0 | BZ9: 0 | CA9: 0 | CB9: 0 | CC9: 0 | CD9: 0 | CF9: =$CF$6/AY9 -> 410.5 | CG9: 1293.5 | CH9: 395 | CI9: 0 | CJ9: 0 | CK9: 0 | CL9: 0 | CM9: 0 | CN9: 0 | CO9: 0 | CP9: 0 | CQ9: 0 | CR9: 0 | CS9: 0 | CT9: 0
B10: 4 | C10: 646.75 | D10: 197.5 | E10: 0 | F10: 0 | G10: 0 | H10: 0 | I10: 0 | J10: 0 | K10: 0 | L10: 0 | M10: 0 | N10: 0 | O10: 0 | P10: 0 | R10: 88.5 | S10: 116.75 | T10: 646.75 | U10: 197.5 | V10: 0 | W10: 0 | X10: 0 | Y10: 0 | Z10: 0 | AA10: 0 | AB10: 0 | AC10: 0 | AD10: 0 | AE10: 0 | AF10: 0 | AG10: 0 | AI10: 205.25 | AJ10: 646.75 | AK10: 197.5 | AL10: 0 | AM10: 0 | AN10: 0 | AO10: 0 | AP10: 0 | AQ10: 0 | AR10: 0 | AS10: 0 | AT10: 0 | AU10: 0 | AV10: 0 | AW10: 0 | AY10: 3 | AZ10: 862.3333333 | BA10: 263.3333333 | BB10: 0 | BC10: 0 | BD10: 0 | BE10: 0 | BF10: 0 | BG10: 0 | BH10: 0 | BI10: 0 | BJ10: 0 | BK10: 0 | BL10: 0 | BM10: 0 | BO10: 118 | BP10: 155.6666667 | BQ10: 862.3333333 | BR10: 263.3333333 | BS10: 0 | BT10: 0 | BU10: 0 | BV10: 0 | BW10: 0 | BX10: 0 | BY10: 0 | BZ10: 0 | CA10: 0 | CB10: 0 | CC10: 0 | CD10: 0 | CF10: 273.6666667 | CG10: 862.3333333 | CH10: 263.3333333 | CI10: 0 | CJ10: 0 | CK10: 0 | CL10: 0 | CM10: 0 | CN10: 0 | CO10: 0 | CP10: 0 | CQ10: 0 | CR10: 0 | CS10: 0 | CT10: 0
B11: 5 | C11: 517.4 | D11: 158 | E11: 0 | F11: 0 | G11: 0 | H11: 0 | I11: 0 | J11: 0 | K11: 0 | L11: 0 | M11: 0 | N11: 0 | O11: 0 | P11: 0 | R11: 70.8 | S11: 93.4 | T11: 517.4 | U11: 158 | V11: 0 | W11: 0 | X11: 0 | Y11: 0 | Z11: 0 | AA11: 0 | AB11: 0 | AC11: 0 | AD11: 0 | AE11: 0 | AF11: 0 | AG11: 0 | AI11: 164.2 | AJ11: 517.4 | AK11: 158 | AL11: 0 | AM11: 0 | AN11: 0 | AO11: 0 | AP11: 0 | AQ11: 0 | AR11: 0 | AS11: 0 | AT11: 0 | AU11: 0 | AV11: 0 | AW11: 0 | AY11: 4 | AZ11: 646.75 | BA11: 197.5 | BB11: 0 | BC11: 0 | BD11: 0 | BE11: 0 | BF11: 0 | BG11: 0 | BH11: 0 | BI11: 0 | BJ11: 0 | BK11: 0 | BL11: 0 | BM11: 0 | BO11: 88.5 | BP11: 116.75 | BQ11: 646.75 | BR11: 197.5 | BS11: 0 | BT11: 0 | BU11: 0 | BV11: 0 | BW11: 0 | BX11: 0 | BY11: 0 | BZ11: 0 | CA11: 0 | CB11: 0 | CC11: 0 | CD11: 0 | CF11: 205.25 | CG11: 646.75 | CH11: 197.5 | CI11: 0 | CJ11: 0 | CK11: 0 | CL11: 0 | CM11: 0 | CN11: 0 | CO11: 0 | CP11: 0 | CQ11: 0 | CR11: 0 | CS11: 0 | CT11: 0
B12: 6 | C12: 431.1666667 | D12: 131.6666667 | E12: 0 | F12: 0 | G12: 0 | H12: 0 | I12: 0 | J12: 0 | K12: 0 | L12: 0 | M12: 0 | N12: 0 | O12: 0 | P12: 0 | R12: 59 | S12: 77.83333333 | T12: 431.1666667 | U12: 131.6666667 | V12: 0 | W12: 0 | X12: 0 | Y12: 0 | Z12: 0 | AA12: 0 | AB12: 0 | AC12: 0 | AD12: 0 | AE12: 0 | AF12: 0 | AG12: 0 | AI12: 136.8333333 | AJ12: 431.1666667 | AK12: 131.6666667 | AL12: 0 | AM12: 0 | AN12: 0 | AO12: 0 | AP12: 0 | AQ12: 0 | AR12: 0 | AS12: 0 | AT12: 0 | AU12: 0 | AV12: 0 | AW12: 0 | AY12: 5 | AZ12: 517.4 | BA12: 158 | BB12: 0 | BC12: 0 | BD12: 0 | BE12: 0 | BF12: 0 | BG12: 0 | BH12: 0 | BI12: 0 | BJ12: 0 | BK12: 0 | BL12: 0 | BM12: 0 | BO12: 70.8 | BP12: 93.4 | BQ12: 517.4 | BR12: 158 | BS12: 0 | BT12: 0 | BU12: 0 | BV12: 0 | BW12: 0 | BX12: 0 | BY12: 0 | BZ12: 0 | CA12: 0 | CB12: 0 | CC12: 0 | CD12: 0 | CF12: 164.2 | CG12: 517.4 | CH12: 158 | CI12: 0 | CJ12: 0 | CK12: 0 | CL12: 0 | CM12: 0 | CN12: 0 | CO12: 0 | CP12: 0 | CQ12: 0 | CR12: 0 | CS12: 0 | CT12: 0
B13: 7 | C13: 369.5714286 | D13: 112.8571429 | E13: 0 | F13: 0 | G13: 0 | H13: 0 | I13: 0 | J13: 0 | K13: 0 | L13: 0 | M13: 0 | N13: 0 | O13: 0 | P13: 0 | R13: 50.57142857 | S13: 66.71428571 | T13: 369.5714286 | U13: 112.8571429 | V13: 0 | W13: 0 | X13: 0 | Y13: 0 | Z13: 0 | AA13: 0 | AB13: 0 | AC13: 0 | AD13: 0 | AE13: 0 | AF13: 0 | AG13: 0 | AI13: 117.2857143 | AJ13: 369.5714286 | AK13: 112.8571429 | AL13: 0 | AM13: 0 | AN13: 0 | AO13: 0 | AP13: 0 | AQ13: 0 | AR13: 0 | AS13: 0 | AT13: 0 | AU13: 0 | AV13: 0 | AW13: 0 | AY13: 6 | AZ13: 431.1666667 | BA13: 131.6666667 | BB13: 0 | BC13: 0 | BD13: 0 | BE13: 0 | BF13: 0 | BG13: 0 | BH13: 0 | BI13: 0 | BJ13: 0 | BK13: 0 | BL13: 0 | BM13: 0 | BO13: 59 | BP13: 77.83333333 | BQ13: 431.1666667 | BR13: 131.6666667 | BS13: 0 | BT13: 0 | BU13: 0 | BV13: 0 | BW13: 0 | BX13: 0 | BY13: 0 | BZ13: 0 | CA13: 0 | CB13: 0 | CC13: 0 | CD13: 0 | CF13: 136.8333333 | CG13: 431.1666667 | CH13: 131.6666667 | CI13: 0 | CJ13: 0 | CK13: 0 | CL13: 0 | CM13: 0 | CN13: 0 | CO13: 0 | CP13: 0 | CQ13: 0 | CR13: 0 | CS13: 0 | CT13: 0
B14: 8 | C14: 323.375 | D14: 98.75 | E14: 0 | F14: 0 | G14: 0 | H14: 0 | I14: 0 | J14: 0 | K14: 0 | L14: 0 | M14: 0 | N14: 0 | O14: 0 | P14: 0 | R14: 44.25 | S14: 58.375 | T14: 323.375 | U14: 98.75 | V14: 0 | W14: 0 | X14: 0 | Y14: 0 | Z14: 0 | AA14: 0 | AB14: 0 | AC14: 0 | AD14: 0 | AE14: 0 | AF14: 0 | AG14: 0 | AI14: 102.625 | AJ14: 323.375 | AK14: 98.75 | AL14: 0 | AM14: 0 | AN14: 0 | AO14: 0 | AP14: 0 | AQ14: 0 | AR14: 0 | AS14: 0 | AT14: 0 | AU14: 0 | AV14: 0 | AW14: 0 | AY14: 7 | AZ14: 369.5714286 | BA14: 112.8571429 | BB14: 0 | BC14: 0 | BD14: 0 | BE14: 0 | BF14: 0 | BG14: 0 | BH14: 0 | BI14: 0 | BJ14: 0 | BK14: 0 | BL14: 0 | BM14: 0 | BO14: 50.57142857 | BP14: 66.71428571 | BQ14: 369.5714286 | BR14: 112.8571429 | BS14: 0 | BT14: 0 | BU14: 0 | BV14: 0 | BW14: 0 | BX14: 0 | BY14: 0 | BZ14: 0 | CA14: 0 | CB14: 0 | CC14: 0 | CD14: 0 | CF14: 117.2857143 | CG14: 369.5714286 | CH14: 112.8571429 | CI14: 0 | CJ14: 0 | CK14: 0 | CL14: 0 | CM14: 0 | CN14: 0 | CO14: 0 | CP14: 0 | CQ14: 0 | CR14: 0 | CS14: 0 | CT14: 0
B15: 9 | C15: 287.4444444 | D15: 87.77777778 | E15: 0 | F15: 0 | G15: 0 | H15: 0 | I15: 0 | J15: 0 | K15: 0 | L15: 0 | M15: 0 | N15: 0 | O15: 0 | P15: 0 | R15: 39.33333333 | S15: 51.88888889 | T15: 287.4444444 | U15: 87.77777778 | V15: 0 | W15: 0 | X15: 0 | Y15: 0 | Z15: 0 | AA15: 0 | AB15: 0 | AC15: 0 | AD15: 0 | AE15: 0 | AF15: 0 | AG15: 0 | AI15: 91.22222222 | AJ15: 287.4444444 | AK15: 87.77777778 | AL15: 0 | AM15: 0 | AN15: 0 | AO15: 0 | AP15: 0 | AQ15: 0 | AR15: 0 | AS15: 0 | AT15: 0 | AU15: 0 | AV15: 0 | AW15: 0 | AY15: 8 | AZ15: 323.375 | BA15: 98.75 | BB15: 0 | BC15: 0 | BD15: 0 | BE15: 0 | BF15: 0 | BG15: 0 | BH15: 0 | BI15: 0 | BJ15: 0 | BK15: 0 | BL15: 0 | BM15: 0 | BO15: 44.25 | BP15: 58.375 | BQ15: 323.375 | BR15: 98.75 | BS15: 0 | BT15: 0 | BU15: 0 | BV15: 0 | BW15: 0 | BX15: 0 | BY15: 0 | BZ15: 0 | CA15: 0 | CB15: 0 | CC15: 0 | CD15: 0 | CF15: 102.625 | CG15: 323.375 | CH15: 98.75 | CI15: 0 | CJ15: 0 | CK15: 0 | CL15: 0 | CM15: 0 | CN15: 0 | CO15: 0 | CP15: 0 | CQ15: 0 | CR15: 0 | CS15: 0 | CT15: 0
B16: 10 | C16: 258.7 | D16: 79 | E16: 0 | F16: 0 | G16: 0 | H16: 0 | I16: 0 | J16: 0 | K16: 0 | L16: 0 | M16: 0 | N16: 0 | O16: 0 | P16: 0 | R16: 35.4 | S16: 46.7 | T16: 258.7 | U16: 79 | V16: 0 | W16: 0 | X16: 0 | Y16: 0 | Z16: 0 | AA16: 0 | AB16: 0 | AC16: 0 | AD16: 0 | AE16: 0 | AF16: 0 | AG16: 0 | AI16: 82.1 | AJ16: 258.7 | AK16: 79 | AL16: 0 | AM16: 0 | AN16: 0 | AO16: 0 | AP16: 0 | AQ16: 0 | AR16: 0 | AS16: 0 | AT16: 0 | AU16: 0 | AV16: 0 | AW16: 0 | AY16: 9 | AZ16: 287.4444444 | BA16: 87.77777778 | BB16: 0 | BC16: 0 | BD16: 0 | BE16: 0 | BF16: 0 | BG16: 0 | BH16: 0 | BI16: 0 | BJ16: 0 | BK16: 0 | BL16: 0 | BM16: 0 | BO16: 39.33333333 | BP16: 51.88888889 | BQ16: 287.4444444 | BR16: 87.77777778 | BS16: 0 | BT16: 0 | BU16: 0 | BV16: 0 | BW16: 0 | BX16: 0 | BY16: 0 | BZ16: 0 | CA16: 0 | CB16: 0 | CC16: 0 | CD16: 0 | CF16: 91.22222222 | CG16: 287.4444444 | CH16: 87.77777778 | CI16: 0 | CJ16: 0 | CK16: 0 | CL16: 0 | CM16: 0 | CN16: 0 | CO16: 0 | CP16: 0 | CQ16: 0 | CR16: 0 | CS16: 0 | CT16: 0
B17: 11 | C17: 235.1818182 | D17: 71.81818182 | E17: 0 | F17: 0 | G17: 0 | H17: 0 | I17: 0 | J17: 0 | K17: 0 | L17: 0 | M17: 0 | N17: 0 | O17: 0 | P17: 0 | R17: 32.18181818 | S17: 42.45454545 | T17: 235.1818182 | U17: 71.81818182 | V17: 0 | W17: 0 | X17: 0 | Y17: 0 | Z17: 0 | AA17: 0 | AB17: 0 | AC17: 0 | AD17: 0 | AE17: 0 | AF17: 0 | AG17: 0 | AI17: 74.63636364 | AJ17: 235.1818182 | AK17: 71.81818182 | AL17: 0 | AM17: 0 | AN17: 0 | AO17: 0 | AP17: 0 | AQ17: 0 | AR17: 0 | AS17: 0 | AT17: 0 | AU17: 0 | AV17: 0 | AW17: 0 | AY17: 10 | AZ17: 258.7 | BA17: 79 | BB17: 0 | BC17: 0 | BD17: 0 | BE17: 0 | BF17: 0 | BG17: 0 | BH17: 0 | BI17: 0 | BJ17: 0 | BK17: 0 | BL17: 0 | BM17: 0 | BO17: 35.4 | BP17: 46.7 | BQ17: 258.7 | BR17: 79 | BS17: 0 | BT17: 0 | BU17: 0 | BV17: 0 | BW17: 0 | BX17: 0 | BY17: 0 | BZ17: 0 | CA17: 0 | CB17: 0 | CC17: 0 | CD17: 0 | CF17: 82.1 | CG17: 258.7 | CH17: 79 | CI17: 0 | CJ17: 0 | CK17: 0 | CL17: 0 | CM17: 0 | CN17: 0 | CO17: 0 | CP17: 0 | CQ17: 0 | CR17: 0 | CS17: 0 | CT17: 0
B18: 12 | C18: 215.5833333 | D18: 65.83333333 | E18: 0 | F18: 0 | G18: 0 | H18: 0 | I18: 0 | J18: 0 | K18: 0 | L18: 0 | M18: 0 | N18: 0 | O18: 0 | P18: 0 | R18: 29.5 | S18: 38.91666667 | T18: 215.5833333 | U18: 65.83333333 | V18: 0 | W18: 0 | X18: 0 | Y18: 0 | Z18: 0 | AA18: 0 | AB18: 0 | AC18: 0 | AD18: 0 | AE18: 0 | AF18: 0 | AG18: 0 | AI18: 68.41666667 | AJ18: 215.5833333 | AK18: 65.83333333 | AL18: 0 | AM18: 0 | AN18: 0 | AO18: 0 | AP18: 0 | AQ18: 0 | AR18: 0 | AS18: 0 | AT18: 0 | AU18: 0 | AV18: 0 | AW18: 0 | AY18: 11 | AZ18: 235.1818182 | BA18: 71.81818182 | BB18: 0 | BC18: 0 | BD18: 0 | BE18: 0 | BF18: 0 | BG18: 0 | BH18: 0 | BI18: 0 | BJ18: 0 | BK18: 0 | BL18: 0 | BM18: 0 | BO18: 32.18181818 | BP18: 42.45454545 | BQ18: 235.1818182 | BR18: 71.81818182 | BS18: 0 | BT18: 0 | BU18: 0 | BV18: 0 | BW18: 0 | BX18: 0 | BY18: 0 | BZ18: 0 | CA18: 0 | CB18: 0 | CC18: 0 | CD18: 0 | CF18: 74.63636364 | CG18: 235.1818182 | CH18: 71.81818182 | CI18: 0 | CJ18: 0 | CK18: 0 | CL18: 0 | CM18: 0 | CN18: 0 | CO18: 0 | CP18: 0 | CQ18: 0 | CR18: 0 | CS18: 0 | CT18: 0
B19: 13 | C19: 199 | D19: 60.76923077 | E19: 0 | F19: 0 | G19: 0 | H19: 0 | I19: 0 | J19: 0 | K19: 0 | L19: 0 | M19: 0 | N19: 0 | O19: 0 | P19: 0 | R19: 27.23076923 | S19: 35.92307692 | T19: 199 | U19: 60.76923077 | V19: 0 | W19: 0 | X19: 0 | Y19: 0 | Z19: 0 | AA19: 0 | AB19: 0 | AC19: 0 | AD19: 0 | AE19: 0 | AF19: 0 | AG19: 0 | AI19: 63.15384615 | AJ19: 199 | AK19: 60.76923077 | AL19: 0 | AM19: 0 | AN19: 0 | AO19: 0 | AP19: 0 | AQ19: 0 | AR19: 0 | AS19: 0 | AT19: 0 | AU19: 0 | AV19: 0 | AW19: 0 | AY19: 12 | AZ19: 215.5833333 | BA19: 65.83333333 | BB19: 0 | BC19: 0 | BD19: 0 | BE19: 0 | BF19: 0 | BG19: 0 | BH19: 0 | BI19: 0 | BJ19: 0 | BK19: 0 | BL19: 0 | BM19: 0 | BO19: 29.5 | BP19: 38.91666667 | BQ19: 215.5833333 | BR19: 65.83333333 | BS19: 0 | BT19: 0 | BU19: 0 | BV19: 0 | BW19: 0 | BX19: 0 | BY19: 0 | BZ19: 0 | CA19: 0 | CB19: 0 | CC19: 0 | CD19: 0 | CF19: 68.41666667 | CG19: 215.5833333 | CH19: 65.83333333 | CI19: 0 | CJ19: 0 | CK19: 0 | CL19: 0 | CM19: 0 | CN19: 0 | CO19: 0 | CP19: 0 | CQ19: 0 | CR19: 0 | CS19: 0 | CT19: 0
B20: 14 | C20: 184.7857143 | D20: 56.42857143 | E20: 0 | F20: 0 | G20: 0 | H20: 0 | I20: 0 | J20: 0 | K20: 0 | L20: 0 | M20: 0 | N20: 0 | O20: 0 | P20: 0 | R20: 25.28571429 | S20: 33.35714286 | T20: 184.7857143 | U20: 56.42857143 | V20: 0 | W20: 0 | X20: 0 | Y20: 0 | Z20: 0 | AA20: 0 | AB20: 0 | AC20: 0 | AD20: 0 | AE20: 0 | AF20: 0 | AG20: 0 | AI20: 58.64285714 | AJ20: 184.7857143 | AK20: 56.42857143 | AL20: 0 | AM20: 0 | AN20: 0 | AO20: 0 | AP20: 0 | AQ20: 0 | AR20: 0 | AS20: 0 | AT20: 0 | AU20: 0 | AV20: 0 | AW20: 0 | AY20: 13 | AZ20: 199 | BA20: 60.76923077 | BB20: 0 | BC20: 0 | BD20: 0 | BE20: 0 | BF20: 0 | BG20: 0 | BH20: 0 | BI20: 0 | BJ20: 0 | BK20: 0 | BL20: 0 | BM20: 0 | BO20: 27.23076923 | BP20: 35.92307692 | BQ20: 199 | BR20: 60.76923077 | BS20: 0 | BT20: 0 | BU20: 0 | BV20: 0 | BW20: 0 | BX20: 0 | BY20: 0 | BZ20: 0 | CA20: 0 | CB20: 0 | CC20: 0 | CD20: 0 | CF20: 63.15384615 | CG20: 199 | CH20: 60.76923077 | CI20: 0 | CJ20: 0 | CK20: 0 | CL20: 0 | CM20: 0 | CN20: 0 | CO20: 0 | CP20: 0 | CQ20: 0 | CR20: 0 | CS20: 0 | CT20: 0
B21: 15 | C21: 172.4666667 | D21: 52.66666667 | E21: 0 | F21: 0 | G21: 0 | H21: 0 | I21: 0 | J21: 0 | K21: 0 | L21: 0 | M21: 0 | N21: 0 | O21: 0 | P21: 0 | R21: 23.6 | S21: 31.13333333 | T21: 172.4666667 | U21: 52.66666667 | V21: 0 | W21: 0 | X21: 0 | Y21: 0 | Z21: 0 | AA21: 0 | AB21: 0 | AC21: 0 | AD21: 0 | AE21: 0 | AF21: 0 | AG21: 0 | AI21: 54.73333333 | AJ21: 172.4666667 | AK21: 52.66666667 | AL21: 0 | AM21: 0 | AN21: 0 | AO21: 0 | AP21: 0 | AQ21: 0 | AR21: 0 | AS21: 0 | AT21: 0 | AU21: 0 | AV21: 0 | AW21: 0 | AY21: 14 | AZ21: 184.7857143 | BA21: 56.42857143 | BB21: 0 | BC21: 0 | BD21: 0 | BE21: 0 | BF21: 0 | BG21: 0 | BH21: 0 | BI21: 0 | BJ21: 0 | BK21: 0 | BL21: 0 | BM21: 0 | BO21: 25.28571429 | BP21: 33.35714286 | BQ21: 184.7857143 | BR21: 56.42857143 | BS21: 0 | BT21: 0 | BU21: 0 | BV21: 0 | BW21: 0 | BX21: 0 | BY21: 0 | BZ21: 0 | CA21: 0 | CB21: 0 | CC21: 0 | CD21: 0 | CF21: 58.64285714 | CG21: 184.7857143 | CH21: 56.42857143 | CI21: 0 | CJ21: 0 | CK21: 0 | CL21: 0 | CM21: 0 | CN21: 0 | CO21: 0 | CP21: 0 | CQ21: 0 | CR21: 0 | CS21: 0 | CT21: 0
B22: 16 | C22: 161.6875 | D22: 49.375 | E22: 0 | F22: 0 | G22: 0 | H22: 0 | I22: 0 | J22: 0 | K22: 0 | L22: 0 | M22: 0 | N22: 0 | O22: 0 | P22: 0 | R22: 22.125 | S22: 29.1875 | T22: 161.6875 | U22: 49.375 | V22: 0 | W22: 0 | X22: 0 | Y22: 0 | Z22: 0 | AA22: 0 | AB22: 0 | AC22: 0 | AD22: 0 | AE22: 0 | AF22: 0 | AG22: 0 | AI22: 51.3125 | AJ22: 161.6875 | AK22: 49.375 | AL22: 0 | AM22: 0 | AN22: 0 | AO22: 0 | AP22: 0 | AQ22: 0 | AR22: 0 | AS22: 0 | AT22: 0 | AU22: 0 | AV22: 0 | AW22: 0 | AY22: 15 | AZ22: 172.4666667 | BA22: 52.66666667 | BB22: 0 | BC22: 0 | BD22: 0 | BE22: 0 | BF22: 0 | BG22: 0 | BH22: 0 | BI22: 0 | BJ22: 0 | BK22: 0 | BL22: 0 | BM22: 0 | BO22: 23.6 | BP22: 31.13333333 | BQ22: 172.4666667 | BR22: 52.66666667 | BS22: 0 | BT22: 0 | BU22: 0 | BV22: 0 | BW22: 0 | BX22: 0 | BY22: 0 | BZ22: 0 | CA22: 0 | CB22: 0 | CC22: 0 | CD22: 0 | CF22: 54.73333333 | CG22: 172.4666667 | CH22: 52.66666667 | CI22: 0 | CJ22: 0 | CK22: 0 | CL22: 0 | CM22: 0 | CN22: 0 | CO22: 0 | CP22: 0 | CQ22: 0 | CR22: 0 | CS22: 0 | CT22: 0
B23: 17 | C23: 152.1764706 | D23: 46.47058824 | E23: 0 | F23: 0 | G23: 0 | H23: 0 | I23: 0 | J23: 0 | K23: 0 | L23: 0 | M23: 0 | N23: 0 | O23: 0 | P23: 0 | R23: 20.82352941 | S23: 27.47058824 | T23: 152.1764706 | U23: 46.47058824 | V23: 0 | W23: 0 | X23: 0 | Y23: 0 | Z23: 0 | AA23: 0 | AB23: 0 | AC23: 0 | AD23: 0 | AE23: 0 | AF23: 0 | AG23: 0 | AI23: 48.29411765 | AJ23: 152.1764706 | AK23: 46.47058824 | AL23: 0 | AM23: 0 | AN23: 0 | AO23: 0 | AP23: 0 | AQ23: 0 | AR23: 0 | AS23: 0 | AT23: 0 | AU23: 0 | AV23: 0 | AW23: 0 | AY23: 16 | AZ23: 161.6875 | BA23: 49.375 | BB23: 0 | BC23: 0 | BD23: 0 | BE23: 0 | BF23: 0 | BG23: 0 | BH23: 0 | BI23: 0 | BJ23: 0 | BK23: 0 | BL23: 0 | BM23: 0 | BO23: 22.125 | BP23: 29.1875 | BQ23: 161.6875 | BR23: 49.375 | BS23: 0 | BT23: 0 | BU23: 0 | BV23: 0 | BW23: 0 | BX23: 0 | BY23: 0 | BZ23: 0 | CA23: 0 | CB23: 0 | CC23: 0 | CD23: 0 | CF23: 51.3125 | CG23: 161.6875 | CH23: 49.375 | CI23: 0 | CJ23: 0 | CK23: 0 | CL23: 0 | CM23: 0 | CN23: 0 | CO23: 0 | CP23: 0 | CQ23: 0 | CR23: 0 | CS23: 0 | CT23: 0
B24: 18 | C24: 143.7222222 | D24: 43.88888889 | E24: 0 | F24: 0 | G24: 0 | H24: 0 | I24: 0 | J24: 0 | K24: 0 | L24: 0 | M24: 0 | N24: 0 | O24: 0 | P24: 0 | R24: 19.66666667 | S24: 25.94444444 | T24: 143.7222222 | U24: 43.88888889 | V24: 0 | W24: 0 | X24: 0 | Y24: 0 | Z24: 0 | AA24: 0 | AB24: 0 | AC24: 0 | AD24: 0 | AE24: 0 | AF24: 0 | AG24: 0 | AI24: 45.61111111 | AJ24: 143.7222222 | AK24: 43.88888889 | AL24: 0 | AM24: 0 | AN24: 0 | AO24: 0 | AP24: 0 | AQ24: 0 | AR24: 0 | AS24: 0 | AT24: 0 | AU24: 0 | AV24: 0 | AW24: 0 | AY24: 17 | AZ24: 152.1764706 | BA24: 46.47058824 | BB24: 0 | BC24: 0 | BD24: 0 | BE24: 0 | BF24: 0 | BG24: 0 | BH24: 0 | BI24: 0 | BJ24: 0 | BK24: 0 | BL24: 0 | BM24: 0 | BO24: 20.82352941 | BP24: 27.47058824 | BQ24: 152.1764706 | BR24: 46.47058824 | BS24: 0 | BT24: 0 | BU24: 0 | BV24: 0 | BW24: 0 | BX24: 0 | BY24: 0 | BZ24: 0 | CA24: 0 | CB24: 0 | CC24: 0 | CD24: 0 | CF24: 48.29411765 | CG24: 152.1764706 | CH24: 46.47058824 | CI24: 0 | CJ24: 0 | CK24: 0 | CL24: 0 | CM24: 0 | CN24: 0 | CO24: 0 | CP24: 0 | CQ24: 0 | CR24: 0 | CS24: 0 | CT24: 0
B25: 19 | C25: 136.1578947 | D25: 41.57894737 | E25: 0 | F25: 0 | G25: 0 | H25: 0 | I25: 0 | J25: 0 | K25: 0 | L25: 0 | M25: 0 | N25: 0 | O25: 0 | P25: 0 | R25: 18.63157895 | S25: 24.57894737 | T25: 136.1578947 | U25: 41.57894737 | V25: 0 | W25: 0 | X25: 0 | Y25: 0 | Z25: 0 | AA25: 0 | AB25: 0 | AC25: 0 | AD25: 0 | AE25: 0 | AF25: 0 | AG25: 0 | AI25: 43.21052632 | AJ25: 136.1578947 | AK25: 41.57894737 | AL25: 0 | AM25: 0 | AN25: 0 | AO25: 0 | AP25: 0 | AQ25: 0 | AR25: 0 | AS25: 0 | AT25: 0 | AU25: 0 | AV25: 0 | AW25: 0 | AY25: 18 | AZ25: 143.7222222 | BA25: 43.88888889 | BB25: 0 | BC25: 0 | BD25: 0 | BE25: 0 | BF25: 0 | BG25: 0 | BH25: 0 | BI25: 0 | BJ25: 0 | BK25: 0 | BL25: 0 | BM25: 0 | BO25: 19.66666667 | BP25: 25.94444444 | BQ25: 143.7222222 | BR25: 43.88888889 | BS25: 0 | BT25: 0 | BU25: 0 | BV25: 0 | BW25: 0 | BX25: 0 | BY25: 0 | BZ25: 0 | CA25: 0 | CB25: 0 | CC25: 0 | CD25: 0 | CF25: 45.61111111 | CG25: 143.7222222 | CH25: 43.88888889 | CI25: 0 | CJ25: 0 | CK25: 0 | CL25: 0 | CM25: 0 | CN25: 0 | CO25: 0 | CP25: 0 | CQ25: 0 | CR25: 0 | CS25: 0 | CT25: 0
B26: 20 | C26: 129.35 | D26: 39.5 | E26: 0 | F26: 0 | G26: 0 | H26: 0 | I26: 0 | J26: 0 | K26: 0 | L26: 0 | M26: 0 | N26: 0 | O26: 0 | P26: 0 | R26: 17.7 | S26: 23.35 | T26: 129.35 | U26: 39.5 | V26: 0 | W26: =F26 -> 0 | X26: 0 | Y26: 0 | Z26: 0 | AA26: 0 | AB26: 0 | AC26: 0 | AD26: 0 | AE26: 0 | AF26: 0 | AG26: 0 | AI26: 41.05 | AJ26: 129.35 | AK26: 39.5 | AL26: 0 | AM26: =F26 -> 0 | AN26: 0 | AO26: 0 | AP26: 0 | AQ26: 0 | AR26: 0 | AS26: 0 | AT26: 0 | AU26: 0 | AV26: 0 | AW26: 0 | AY26: 19 | AZ26: 136.1578947 | BA26: 41.57894737 | BB26: 0 | BC26: 0 | BD26: 0 | BE26: 0 | BF26: 0 | BG26: 0 | BH26: 0 | BI26: 0 | BJ26: 0 | BK26: 0 | BL26: 0 | BM26: 0 | BO26: 18.63157895 | BP26: 24.57894737 | BQ26: 136.1578947 | BR26: 41.57894737 | BS26: 0 | BT26: 0 | BU26: 0 | BV26: 0 | BW26: 0 | BX26: 0 | BY26: 0 | BZ26: 0 | CA26: 0 | CB26: 0 | CC26: 0 | CD26: 0 | CF26: 43.21052632 | CG26: 136.1578947 | CH26: 41.57894737 | CI26: 0 | CJ26: =BC26 -> 0 | CK26: 0 | CL26: 0 | CM26: 0 | CN26: 0 | CO26: 0 | CP26: 0 | CQ26: 0 | CR26: 0 | CS26: 0 | CT26: 0
B27: 21 | C27: 123.1904762 | D27: 37.61904762 | E27: 0 | F27: 0 | G27: 0 | H27: 0 | I27: 0 | J27: 0 | K27: 0 | L27: 0 | M27: 0 | N27: 0 | O27: 0 | P27: 0 | R27: 16.85714286 | S27: 22.23809524 | T27: =C27 -> 123.1904762 | U27: 37.61904762 | V27: 0 | W27: 0 | X27: 0 | Y27: 0 | Z27: 0 | AA27: 0 | AB27: 0 | AC27: 0 | AD27: 0 | AE27: 0 | AF27: 0 | AG27: 0 | AI27: 39.0952381 | AJ27: =C27 -> 123.1904762 | AK27: 37.61904762 | AL27: 0 | AM27: 0 | AN27: 0 | AO27: 0 | AP27: 0 | AQ27: 0 | AR27: 0 | AS27: 0 | AT27: 0 | AU27: 0 | AV27: 0 | AW27: 0 | AY27: 20 | AZ27: 129.35 | BA27: 39.5 | BB27: 0 | BC27: 0 | BD27: 0 | BE27: 0 | BF27: 0 | BG27: 0 | BH27: 0 | BI27: 0 | BJ27: 0 | BK27: 0 | BL27: 0 | BM27: 0 | BO27: 17.7 | BP27: 23.35 | BQ27: 129.35 | BR27: 39.5 | BS27: 0 | BT27: 0 | BU27: 0 | BV27: 0 | BW27: 0 | BX27: 0 | BY27: 0 | BZ27: 0 | CA27: 0 | CB27: 0 | CC27: 0 | CD27: 0 | CF27: 41.05 | CG27: =AZ27 -> 129.35 | CH27: =BA27 -> 39.5 | CI27: =BB27 -> 0 | CJ27: 0 | CK27: 0 | CL27: 0 | CM27: 0 | CN27: 0 | CO27: 0 | CP27: 0 | CQ27: 0 | CR27: 0 | CS27: 0 | CT27: 0
B28: 22 | C28: 117.5909091 | D28: 35.90909091 | E28: 0 | F28: 0 | G28: 0 | H28: 0 | I28: 0 | J28: 0 | K28: 0 | L28: 0 | M28: 0 | N28: 0 | O28: 0 | P28: 0 | R28: 16.09090909 | S28: 21.22727273 | T28: 117.5909091 | U28: 35.90909091 | V28: 0 | W28: 0 | X28: 0 | Y28: 0 | Z28: 0 | AA28: 0 | AB28: 0 | AC28: 0 | AD28: 0 | AE28: 0 | AF28: 0 | AG28: 0 | AI28: 37.31818182 | AJ28: 117.5909091 | AK28: 35.90909091 | AL28: 0 | AM28: 0 | AN28: 0 | AO28: 0 | AP28: 0 | AQ28: 0 | AR28: 0 | AS28: 0 | AT28: 0 | AU28: 0 | AV28: 0 | AW28: 0 | AY28: 21 | AZ28: 123.1904762 | BA28: 37.61904762 | BB28: 0 | BC28: 0 | BD28: 0 | BE28: 0 | BF28: 0 | BG28: 0 | BH28: 0 | BI28: 0 | BJ28: 0 | BK28: 0 | BL28: 0 | BM28: 0 | BO28: 16.85714286 | BP28: 22.23809524 | BQ28: 123.1904762 | BR28: 37.61904762 | BS28: 0 | BT28: 0 | BU28: 0 | BV28: 0 | BW28: 0 | BX28: 0 | BY28: 0 | BZ28: 0 | CA28: 0 | CB28: 0 | CC28: 0 | CD28: 0 | CF28: 39.0952381 | CG28: 123.1904762 | CH28: 37.61904762 | CI28: 0 | CJ28: 0 | CK28: 0 | CL28: 0 | CM28: 0 | CN28: 0 | CO28: 0 | CP28: 0 | CQ28: 0 | CR28: 0 | CS28: 0 | CT28: 0
B29: 23 | C29: 112.4782609 | D29: 34.34782609 | E29: 0 | F29: 0 | G29: 0 | H29: 0 | I29: 0 | J29: 0 | K29: 0 | L29: 0 | M29: 0 | N29: 0 | O29: 0 | P29: 0 | R29: 15.39130435 | S29: 20.30434783 | T29: 112.4782609 | U29: 34.34782609 | V29: 0 | W29: 0 | X29: 0 | Y29: 0 | Z29: 0 | AA29: 0 | AB29: 0 | AC29: 0 | AD29: 0 | AE29: 0 | AF29: 0 | AG29: 0 | AI29: 35.69565217 | AJ29: 112.4782609 | AK29: 34.34782609 | AL29: 0 | AM29: 0 | AN29: 0 | AO29: 0 | AP29: 0 | AQ29: 0 | AR29: 0 | AS29: 0 | AT29: 0 | AU29: 0 | AV29: 0 | AW29: 0 | AY29: 22 | AZ29: 117.5909091 | BA29: 35.90909091 | BB29: 0 | BC29: 0 | BD29: 0 | BE29: 0 | BF29: 0 | BG29: 0 | BH29: 0 | BI29: 0 | BJ29: 0 | BK29: 0 | BL29: 0 | BM29: 0 | BO29: 16.09090909 | BP29: 21.22727273 | BQ29: 117.5909091 | BR29: 35.90909091 | BS29: 0 | BT29: 0 | BU29: 0 | BV29: 0 | BW29: 0 | BX29: 0 | BY29: 0 | BZ29: 0 | CA29: 0 | CB29: 0 | CC29: 0 | CD29: 0 | CF29: 37.31818182 | CG29: 117.5909091 | CH29: 35.90909091 | CI29: 0 | CJ29: 0 | CK29: 0 | CL29: 0 | CM29: 0 | CN29: 0 | CO29: 0 | CP29: 0 | CQ29: 0 | CR29: 0 | CS29: 0 | CT29: 0
B30: 24 | C30: 107.7916667 | D30: 32.91666667 | E30: 0 | F30: 0 | G30: 0 | H30: 0 | I30: 0 | J30: 0 | K30: 0 | L30: 0 | M30: 0 | N30: 0 | O30: 0 | P30: 0 | R30: 14.75 | S30: 19.45833333 | T30: 107.7916667 | U30: 32.91666667 | V30: 0 | W30: 0 | X30: 0 | Y30: 0 | Z30: 0 | AA30: 0 | AB30: 0 | AC30: 0 | AD30: 0 | AE30: 0 | AF30: 0 | AG30: 0 | AI30: 34.20833333 | AJ30: 107.7916667 | AK30: 32.91666667 | AL30: 0 | AM30: 0 | AN30: 0 | AO30: 0 | AP30: 0 | AQ30: 0 | AR30: 0 | AS30: 0 | AT30: 0 | AU30: 0 | AV30: 0 | AW30: 0 | AY30: 23 | AZ30: 112.4782609 | BA30: 34.34782609 | BB30: 0 | BC30: 0 | BD30: 0 | BE30: 0 | BF30: 0 | BG30: 0 | BH30: 0 | BI30: 0 | BJ30: 0 | BK30: 0 | BL30: 0 | BM30: 0 | BO30: 15.39130435 | BP30: 20.30434783 | BQ30: 112.4782609 | BR30: 34.34782609 | BS30: 0 | BT30: 0 | BU30: 0 | BV30: 0 | BW30: 0 | BX30: 0 | BY30: 0 | BZ30: 0 | CA30: 0 | CB30: 0 | CC30: 0 | CD30: 0 | CF30: 35.69565217 | CG30: 112.4782609 | CH30: 34.34782609 | CI30: 0 | CJ30: 0 | CK30: 0 | CL30: 0 | CM30: 0 | CN30: 0 | CO30: 0 | CP30: 0 | CQ30: 0 | CR30: 0 | CS30: 0 | CT30: 0
B31: 25 | C31: 103.48 | D31: 31.6 | E31: 0 | F31: 0 | G31: 0 | H31: 0 | I31: 0 | J31: 0 | K31: 0 | L31: 0 | M31: 0 | N31: 0 | O31: 0 | P31: 0 | R31: 14.16 | S31: 18.68 | T31: 103.48 | U31: 31.6 | V31: 0 | W31: 0 | X31: 0 | Y31: 0 | Z31: 0 | AA31: 0 | AB31: 0 | AC31: 0 | AD31: 0 | AE31: 0 | AF31: 0 | AG31: 0 | AI31: 32.84 | AJ31: 103.48 | AK31: 31.6 | AL31: 0 | AM31: 0 | AN31: 0 | AO31: 0 | AP31: 0 | AQ31: 0 | AR31: 0 | AS31: 0 | AT31: 0 | AU31: 0 | AV31: 0 | AW31: 0 | AY31: 24 | AZ31: 107.7916667 | BA31: 32.91666667 | BB31: 0 | BC31: 0 | BD31: 0 | BE31: 0 | BF31: 0 | BG31: 0 | BH31: 0 | BI31: 0 | BJ31: 0 | BK31: 0 | BL31: 0 | BM31: 0 | BO31: 14.75 | BP31: 19.45833333 | BQ31: 107.7916667 | BR31: 32.91666667 | BS31: 0 | BT31: 0 | BU31: 0 | BV31: 0 | BW31: 0 | BX31: 0 | BY31: 0 | BZ31: 0 | CA31: 0 | CB31: 0 | CC31: 0 | CD31: 0 | CF31: 34.20833333 | CG31: 107.7916667 | CH31: 32.91666667 | CI31: 0 | CJ31: 0 | CK31: 0 | CL31: 0 | CM31: 0 | CN31: 0 | CO31: 0 | CP31: 0 | CQ31: 0 | CR31: 0 | CS31: 0 | CT31: 0
B32: 26 | C32: 99.5 | D32: 30.38461538 | E32: 0 | F32: 0 | G32: 0 | H32: 0 | I32: 0 | J32: 0 | K32: 0 | L32: 0 | M32: 0 | N32: 0 | O32: 0 | P32: 0 | R32: 13.61538462 | S32: 17.96153846 | T32: 99.5 | U32: 30.38461538 | V32: 0 | W32: 0 | X32: 0 | Y32: 0 | Z32: 0 | AA32: 0 | AB32: 0 | AC32: 0 | AD32: 0 | AE32: 0 | AF32: 0 | AG32: 0 | AI32: 31.57692308 | AJ32: 99.5 | AK32: 30.38461538 | AL32: 0 | AM32: 0 | AN32: 0 | AO32: 0 | AP32: 0 | AQ32: 0 | AR32: 0 | AS32: 0 | AT32: 0 | AU32: 0 | AV32: 0 | AW32: 0 | AY32: 25 | AZ32: 103.48 | BA32: 31.6 | BB32: 0 | BC32: 0 | BD32: 0 | BE32: 0 | BF32: 0 | BG32: 0 | BH32: 0 | BI32: 0 | BJ32: 0 | BK32: 0 | BL32: 0 | BM32: 0 | BO32: 14.16 | BP32: 18.68 | BQ32: 103.48 | BR32: 31.6 | BS32: 0 | BT32: 0 | BU32: 0 | BV32: 0 | BW32: 0 | BX32: 0 | BY32: 0 | BZ32: 0 | CA32: 0 | CB32: 0 | CC32: 0 | CD32: 0 | CF32: 32.84 | CG32: 103.48 | CH32: 31.6 | CI32: 0 | CJ32: 0 | CK32: 0 | CL32: 0 | CM32: 0 | CN32: 0 | CO32: 0 | CP32: 0 | CQ32: 0 | CR32: 0 | CS32: 0 | CT32: 0
B33: 27 | C33: 95.81481481 | D33: 29.25925926 | E33: 0 | F33: 0 | G33: 0 | H33: 0 | I33: 0 | J33: 0 | K33: 0 | L33: 0 | M33: 0 | N33: 0 | O33: 0 | P33: 0 | R33: 13.11111111 | S33: 17.2962963 | T33: 95.81481481 | U33: 29.25925926 | V33: 0 | W33: 0 | X33: 0 | Y33: 0 | Z33: 0 | AA33: 0 | AB33: 0 | AC33: 0 | AD33: 0 | AE33: 0 | AF33: 0 | AG33: 0 | AI33: 30.40740741 | AJ33: 95.81481481 | AK33: 29.25925926 | AL33: 0 | AM33: 0 | AN33: 0 | AO33: 0 | AP33: 0 | AQ33: 0 | AR33: 0 | AS33: 0 | AT33: 0 | AU33: 0 | AV33: 0 | AW33: 0 | AY33: 26 | AZ33: 99.5 | BA33: 30.38461538 | BB33: 0 | BC33: 0 | BD33: 0 | BE33: 0 | BF33: 0 | BG33: 0 | BH33: 0 | BI33: 0 | BJ33: 0 | BK33: 0 | BL33: 0 | BM33: 0 | BO33: 13.61538462 | BP33: 17.96153846 | BQ33: 99.5 | BR33: 30.38461538 | BS33: 0 | BT33: 0 | BU33: 0 | BV33: 0 | BW33: 0 | BX33: 0 | BY33: 0 | BZ33: 0 | CA33: 0 | CB33: 0 | CC33: 0 | CD33: 0 | CF33: 31.57692308 | CG33: 99.5 | CH33: 30.38461538 | CI33: 0 | CJ33: 0 | CK33: 0 | CL33: 0 | CM33: 0 | CN33: 0 | CO33: 0 | CP33: 0 | CQ33: 0 | CR33: 0 | CS33: 0 | CT33: 0
B34: 28 | C34: 92.39285714 | D34: 28.21428571 | E34: 0 | F34: 0 | G34: 0 | H34: 0 | I34: 0 | J34: 0 | K34: 0 | L34: 0 | M34: 0 | N34: 0 | O34: 0 | P34: 0 | R34: 12.64285714 | S34: 16.67857143 | T34: 92.39285714 | U34: 28.21428571 | V34: 0 | W34: 0 | X34: 0 | Y34: 0 | Z34: 0 | AA34: 0 | AB34: 0 | AC34: 0 | AD34: 0 | AE34: 0 | AF34: 0 | AG34: 0 | AI34: 29.32142857 | AJ34: 92.39285714 | AK34: 28.21428571 | AL34: 0 | AM34: 0 | AN34: 0 | AO34: 0 | AP34: 0 | AQ34: 0 | AR34: 0 | AS34: 0 | AT34: 0 | AU34: 0 | AV34: 0 | AW34: 0 | AY34: 27 | AZ34: 95.81481481 | BA34: 29.25925926 | BB34: 0 | BC34: 0 | BD34: 0 | BE34: 0 | BF34: 0 | BG34: 0 | BH34: 0 | BI34: 0 | BJ34: 0 | BK34: 0 | BL34: 0 | BM34: 0 | BO34: 13.11111111 | BP34: 17.2962963 | BQ34: 95.81481481 | BR34: 29.25925926 | BS34: 0 | BT34: 0 | BU34: 0 | BV34: 0 | BW34: 0 | BX34: 0 | BY34: 0 | BZ34: 0 | CA34: 0 | CB34: 0 | CC34: 0 | CD34: 0 | CF34: 30.40740741 | CG34: 95.81481481 | CH34: 29.25925926 | CI34: 0 | CJ34: 0 | CK34: 0 | CL34: 0 | CM34: 0 | CN34: 0 | CO34: 0 | CP34: 0 | CQ34: 0 | CR34: 0 | CS34: 0 | CT34: 0
B35: 29 | C35: 89.20689655 | D35: 27.24137931 | E35: 0 | F35: 0 | G35: 0 | H35: 0 | I35: 0 | J35: 0 | K35: 0 | L35: 0 | M35: 0 | N35: 0 | O35: 0 | P35: 0 | R35: 12.20689655 | S35: 16.10344828 | T35: 89.20689655 | U35: 27.24137931 | V35: 0 | W35: 0 | X35: 0 | Y35: 0 | Z35: 0 | AA35: 0 | AB35: 0 | AC35: 0 | AD35: 0 | AE35: 0 | AF35: 0 | AG35: 0 | AI35: 28.31034483 | AJ35: 89.20689655 | AK35: 27.24137931 | AL35: 0 | AM35: 0 | AN35: 0 | AO35: 0 | AP35: 0 | AQ35: 0 | AR35: 0 | AS35: 0 | AT35: 0 | AU35: 0 | AV35: 0 | AW35: 0 | AY35: 28 | AZ35: 92.39285714 | BA35: 28.21428571 | BB35: 0 | BC35: 0 | BD35: 0 | BE35: 0 | BF35: 0 | BG35: 0 | BH35: 0 | BI35: 0 | BJ35: 0 | BK35: 0 | BL35: 0 | BM35: 0 | BO35: 12.64285714 | BP35: 16.67857143 | BQ35: 92.39285714 | BR35: 28.21428571 | BS35: 0 | BT35: 0 | BU35: 0 | BV35: 0 | BW35: 0 | BX35: 0 | BY35: 0 | BZ35: 0 | CA35: 0 | CB35: 0 | CC35: 0 | CD35: 0 | CF35: 29.32142857 | CG35: 92.39285714 | CH35: 28.21428571 | CI35: 0 | CJ35: 0 | CK35: 0 | CL35: 0 | CM35: 0 | CN35: 0 | CO35: 0 | CP35: 0 | CQ35: 0 | CR35: 0 | CS35: 0 | CT35: 0
B36: 30 | C36: 86.23333333 | D36: 26.33333333 | E36: 0 | F36: 0 | G36: 0 | H36: 0 | I36: 0 | J36: 0 | K36: 0 | L36: 0 | M36: 0 | N36: 0 | O36: 0 | P36: 0 | R36: 11.8 | S36: 15.56666667 | T36: 86.23333333 | U36: 26.33333333 | V36: 0 | W36: 0 | X36: 0 | Y36: 0 | Z36: 0 | AA36: 0 | AB36: 0 | AC36: 0 | AD36: 0 | AE36: 0 | AF36: 0 | AG36: 0 | AI36: 27.36666667 | AJ36: 86.23333333 | AK36: 26.33333333 | AL36: 0 | AM36: 0 | AN36: 0 | AO36: 0 | AP36: 0 | AQ36: 0 | AR36: 0 | AS36: 0 | AT36: 0 | AU36: 0 | AV36: 0 | AW36: 0 | AY36: 29 | AZ36: 89.20689655 | BA36: 27.24137931 | BB36: 0 | BC36: 0 | BD36: 0 | BE36: 0 | BF36: 0 | BG36: 0 | BH36: 0 | BI36: 0 | BJ36: 0 | BK36: 0 | BL36: 0 | BM36: 0 | BO36: 12.20689655 | BP36: 16.10344828 | BQ36: 89.20689655 | BR36: 27.24137931 | BS36: 0 | BT36: 0 | BU36: 0 | BV36: 0 | BW36: 0 | BX36: 0 | BY36: 0 | BZ36: 0 | CA36: 0 | CB36: 0 | CC36: 0 | CD36: 0 | CF36: 28.31034483 | CG36: 89.20689655 | CH36: 27.24137931 | CI36: 0 | CJ36: 0 | CK36: 0 | CL36: 0 | CM36: 0 | CN36: 0 | CO36: 0 | CP36: 0 | CQ36: 0 | CR36: 0 | CS36: 0 | CT36: 0
B37: 31 | C37: 83.4516129 | D37: 25.48387097 | E37: 0 | F37: 0 | G37: 0 | H37: 0 | I37: 0 | J37: 0 | K37: 0 | L37: 0 | M37: 0 | N37: 0 | O37: 0 | P37: 0 | R37: 11.41935484 | S37: 15.06451613 | T37: 83.4516129 | U37: 25.48387097 | V37: 0 | W37: 0 | X37: 0 | Y37: 0 | Z37: 0 | AA37: 0 | AB37: 0 | AC37: 0 | AD37: 0 | AE37: 0 | AF37: 0 | AG37: 0 | AI37: 26.48387097 | AJ37: 83.4516129 | AK37: 25.48387097 | AL37: 0 | AM37: 0 | AN37: 0 | AO37: 0 | AP37: 0 | AQ37: 0 | AR37: 0 | AS37: 0 | AT37: 0 | AU37: 0 | AV37: 0 | AW37: 0 | AY37: 30 | AZ37: 86.23333333 | BA37: 26.33333333 | BB37: 0 | BC37: 0 | BD37: 0 | BE37: 0 | BF37: 0 | BG37: 0 | BH37: 0 | BI37: 0 | BJ37: 0 | BK37: 0 | BL37: 0 | BM37: 0 | BO37: 11.8 | BP37: 15.56666667 | BQ37: 86.23333333 | BR37: 26.33333333 | BS37: 0 | BT37: 0 | BU37: 0 | BV37: 0 | BW37: 0 | BX37: 0 | BY37: 0 | BZ37: 0 | CA37: 0 | CB37: 0 | CC37: 0 | CD37: 0 | CF37: 27.36666667 | CG37: 86.23333333 | CH37: 26.33333333 | CI37: 0 | CJ37: 0 | CK37: 0 | CL37: 0 | CM37: 0 | CN37: 0 | CO37: 0 | CP37: 0 | CQ37: 0 | CR37: 0 | CS37: 0 | CT37: 0
B38: 32 | C38: 80.84375 | D38: 24.6875 | E38: 0 | F38: 0 | G38: 0 | H38: 0 | I38: 0 | J38: 0 | K38: 0 | L38: 0 | M38: 0 | N38: 0 | O38: 0 | P38: 0 | R38: 11.0625 | S38: 14.59375 | T38: 80.84375 | U38: 24.6875 | V38: 0 | W38: 0 | X38: 0 | Y38: 0 | Z38: 0 | AA38: 0 | AB38: 0 | AC38: 0 | AD38: 0 | AE38: 0 | AF38: 0 | AG38: 0 | AI38: 25.65625 | AJ38: 80.84375 | AK38: 24.6875 | AL38: 0 | AM38: 0 | AN38: 0 | AO38: 0 | AP38: 0 | AQ38: 0 | AR38: 0 | AS38: 0 | AT38: 0 | AU38: 0 | AV38: 0 | AW38: 0 | AY38: 31 | AZ38: 83.4516129 | BA38: 25.48387097 | BB38: 0 | BC38: 0 | BD38: 0 | BE38: 0 | BF38: 0 | BG38: 0 | BH38: 0 | BI38: 0 | BJ38: 0 | BK38: 0 | BL38: 0 | BM38: 0 | BO38: 11.41935484 | BP38: 15.06451613 | BQ38: 83.4516129 | BR38: 25.48387097 | BS38: 0 | BT38: 0 | BU38: 0 | BV38: 0 | BW38: 0 | BX38: 0 | BY38: 0 | BZ38: 0 | CA38: 0 | CB38: 0 | CC38: 0 | CD38: 0 | CF38: 26.48387097 | CG38: 83.4516129 | CH38: 25.48387097 | CI38: 0 | CJ38: 0 | CK38: 0 | CL38: 0 | CM38: 0 | CN38: 0 | CO38: 0 | CP38: 0 | CQ38: 0 | CR38: 0 | CS38: 0 | CT38: 0
B39: 33 | C39: 78.39393939 | D39: 23.93939394 | E39: 0 | F39: 0 | G39: 0 | H39: 0 | I39: 0 | J39: 0 | K39: 0 | L39: 0 | M39: 0 | N39: 0 | O39: 0 | P39: 0 | R39: 10.72727273 | S39: 14.15151515 | T39: 78.39393939 | U39: 23.93939394 | V39: 0 | W39: 0 | X39: 0 | Y39: 0 | Z39: 0 | AA39: 0 | AB39: 0 | AC39: 0 | AD39: 0 | AE39: 0 | AF39: 0 | AG39: 0 | AI39: 24.87878788 | AJ39: 78.39393939 | AK39: 23.93939394 | AL39: 0 | AM39: 0 | AN39: 0 | AO39: 0 | AP39: 0 | AQ39: 0 | AR39: 0 | AS39: 0 | AT39: 0 | AU39: 0 | AV39: 0 | AW39: 0 | AY39: 32 | AZ39: 80.84375 | BA39: 24.6875 | BB39: 0 | BC39: 0 | BD39: 0 | BE39: 0 | BF39: 0 | BG39: 0 | BH39: 0 | BI39: 0 | BJ39: 0 | BK39: 0 | BL39: 0 | BM39: 0 | BO39: 11.0625 | BP39: 14.59375 | BQ39: 80.84375 | BR39: 24.6875 | BS39: 0 | BT39: 0 | BU39: 0 | BV39: 0 | BW39: 0 | BX39: 0 | BY39: 0 | BZ39: 0 | CA39: 0 | CB39: 0 | CC39: 0 | CD39: 0 | CF39: 25.65625 | CG39: 80.84375 | CH39: 24.6875 | CI39: 0 | CJ39: 0 | CK39: 0 | CL39: 0 | CM39: 0 | CN39: 0 | CO39: 0 | CP39: 0 | CQ39: 0 | CR39: 0 | CS39: 0 | CT39: 0
B40: 34 | C40: 76.08823529 | D40: 23.23529412 | E40: 0 | F40: 0 | G40: 0 | H40: 0 | I40: 0 | J40: 0 | K40: 0 | L40: 0 | M40: 0 | N40: 0 | O40: 0 | P40: 0 | R40: 10.41176471 | S40: 13.73529412 | T40: 76.08823529 | U40: 23.23529412 | V40: 0 | W40: 0 | X40: 0 | Y40: 0 | Z40: 0 | AA40: 0 | AB40: 0 | AC40: 0 | AD40: 0 | AE40: 0 | AF40: 0 | AG40: 0 | AI40: 24.14705882 | AJ40: 76.08823529 | AK40: 23.23529412 | AL40: 0 | AM40: 0 | AN40: 0 | AO40: 0 | AP40: 0 | AQ40: 0 | AR40: 0 | AS40: 0 | AT40: 0 | AU40: 0 | AV40: 0 | AW40: 0 | AY40: 33 | AZ40: 78.39393939 | BA40: 23.93939394 | BB40: 0 | BC40: 0 | BD40: 0 | BE40: 0 | BF40: 0 | BG40: 0 | BH40: 0 | BI40: 0 | BJ40: 0 | BK40: 0 | BL40: 0 | BM40: 0 | BO40: 10.72727273 | BP40: 14.15151515 | BQ40: 78.39393939 | BR40: 23.93939394 | BS40: 0 | BT40: 0 | BU40: 0 | BV40: 0 | BW40: 0 | BX40: 0 | BY40: 0 | BZ40: 0 | CA40: 0 | CB40: 0 | CC40: 0 | CD40: 0 | CF40: 24.87878788 | CG40: 78.39393939 | CH40: 23.93939394 | CI40: 0 | CJ40: 0 | CK40: 0 | CL40: 0 | CM40: 0 | CN40: 0 | CO40: 0 | CP40: 0 | CQ40: 0 | CR40: 0 | CS40: 0 | CT40: 0
B41: 35 | C41: 73.91428571 | D41: 22.57142857 | E41: 0 | F41: 0 | G41: 0 | H41: 0 | I41: 0 | J41: 0 | K41: 0 | L41: 0 | M41: 0 | N41: 0 | O41: 0 | P41: 0 | R41: 10.11428571 | S41: 13.34285714 | T41: 73.91428571 | U41: 22.57142857 | V41: 0 | W41: 0 | X41: 0 | Y41: 0 | Z41: 0 | AA41: 0 | AB41: 0 | AC41: 0 | AD41: 0 | AE41: 0 | AF41: 0 | AG41: 0 | AI41: 23.45714286 | AJ41: 73.91428571 | AK41: 22.57142857 | AL41: 0 | AM41: 0 | AN41: 0 | AO41: 0 | AP41: 0 | AQ41: 0 | AR41: 0 | AS41: 0 | AT41: 0 | AU41: 0 | AV41: 0 | AW41: 0 | AY41: 34 | AZ41: 76.08823529 | BA41: 23.23529412 | BB41: 0 | BC41: 0 | BD41: 0 | BE41: 0 | BF41: 0 | BG41: 0 | BH41: 0 | BI41: 0 | BJ41: 0 | BK41: 0 | BL41: 0 | BM41: 0 | BO41: 10.41176471 | BP41: 13.73529412 | BQ41: 76.08823529 | BR41: 23.23529412 | BS41: =BB41 -> 0 | BT41: 0 | BU41: 0 | BV41: 0 | BW41: 0 | BX41: 0 | BY41: 0 | BZ41: 0 | CA41: 0 | CB41: 0 | CC41: 0 | CD41: 0 | CF41: 24.14705882 | CG41: 76.08823529 | CH41: 23.23529412 | CI41: 0 | CJ41: 0 | CK41: 0 | CL41: 0 | CM41: 0 | CN41: 0 | CO41: 0 | CP41: 0 | CQ41: 0 | CR41: 0 | CS41: 0 | CT41: 0
B42: 36 | C42: 71.86111111 | D42: 21.94444444 | E42: 0 | F42: 0 | G42: 0 | H42: 0 | I42: 0 | J42: 0 | K42: 0 | L42: 0 | M42: 0 | N42: 0 | O42: 0 | P42: 0 | R42: 9.833333333 | S42: 12.97222222 | T42: 71.86111111 | U42: 21.94444444 | V42: 0 | W42: 0 | X42: 0 | Y42: 0 | Z42: 0 | AA42: 0 | AB42: 0 | AC42: 0 | AD42: 0 | AE42: 0 | AF42: 0 | AG42: 0 | AI42: 22.80555556 | AJ42: 71.86111111 | AK42: 21.94444444 | AL42: 0 | AM42: 0 | AN42: 0 | AO42: 0 | AP42: 0 | AQ42: 0 | AR42: 0 | AS42: 0 | AT42: 0 | AU42: 0 | AV42: 0 | AW42: 0 | AY42: 35 | AZ42: 73.91428571 | BA42: 22.57142857 | BB42: 0 | BC42: 0 | BD42: 0 | BE42: 0 | BF42: 0 | BG42: 0 | BH42: 0 | BI42: 0 | BJ42: 0 | BK42: 0 | BL42: 0 | BM42: 0 | BO42: 10.11428571 | BP42: 13.34285714 | BQ42: =AZ42 -> 73.91428571 | BR42: 22.57142857 | BS42: 0 | BT42: 0 | BU42: 0 | BV42: 0 | BW42: 0 | BX42: 0 | BY42: 0 | BZ42: 0 | CA42: 0 | CB42: 0 | CC42: 0 | CD42: 0 | CF42: 23.45714286 | CG42: 73.91428571 | CH42: 22.57142857 | CI42: 0 | CJ42: 0 | CK42: 0 | CL42: 0 | CM42: 0 | CN42: 0 | CO42: 0 | CP42: 0 | CQ42: 0 | CR42: 0 | CS42: 0 | CT42: 0
B43: 37 | C43: 69.91891892 | D43: 21.35135135 | E43: 0 | F43: 0 | G43: 0 | H43: 0 | I43: 0 | J43: 0 | K43: 0 | L43: 0 | M43: 0 | N43: 0 | O43: 0 | P43: 0 | R43: 9.567567568 | S43: 12.62162162 | T43: 69.91891892 | U43: 21.35135135 | V43: 0 | W43: 0 | X43: 0 | Y43: 0 | Z43: 0 | AA43: 0 | AB43: 0 | AC43: 0 | AD43: 0 | AE43: 0 | AF43: 0 | AG43: 0 | AI43: 22.18918919 | AJ43: 69.91891892 | AK43: 21.35135135 | AL43: 0 | AM43: 0 | AN43: 0 | AO43: 0 | AP43: 0 | AQ43: 0 | AR43: 0 | AS43: 0 | AT43: 0 | AU43: 0 | AV43: 0 | AW43: 0 | AY43: 36 | AZ43: 71.86111111 | BA43: 21.94444444 | BB43: 0 | BC43: 0 | BD43: 0 | BE43: 0 | BF43: 0 | BG43: 0 | BH43: 0 | BI43: 0 | BJ43: 0 | BK43: 0 | BL43: 0 | BM43: 0 | BO43: 9.833333333 | BP43: 12.97222222 | BQ43: 71.86111111 | BR43: 21.94444444 | BS43: 0 | BT43: 0 | BU43: 0 | BV43: 0 | BW43: 0 | BX43: 0 | BY43: 0 | BZ43: 0 | CA43: 0 | CB43: 0 | CC43: 0 | CD43: 0 | CF43: 22.80555556 | CG43: 71.86111111 | CH43: 21.94444444 | CI43: 0 | CJ43: 0 | CK43: 0 | CL43: 0 | CM43: 0 | CN43: 0 | CO43: 0 | CP43: 0 | CQ43: 0 | CR43: 0 | CS43: 0 | CT43: 0
B44: 38 | C44: 68.07894737 | D44: 20.78947368 | E44: 0 | F44: 0 | G44: 0 | H44: 0 | I44: 0 | J44: 0 | K44: 0 | L44: 0 | M44: 0 | N44: 0 | O44: 0 | P44: 0 | R44: 9.315789474 | S44: 12.28947368 | T44: 68.07894737 | U44: 20.78947368 | V44: 0 | W44: 0 | X44: 0 | Y44: 0 | Z44: 0 | AA44: 0 | AB44: 0 | AC44: 0 | AD44: 0 | AE44: 0 | AF44: 0 | AG44: 0 | AI44: 21.60526316 | AJ44: 68.07894737 | AK44: 20.78947368 | AL44: 0 | AM44: 0 | AN44: 0 | AO44: 0 | AP44: 0 | AQ44: 0 | AR44: 0 | AS44: 0 | AT44: 0 | AU44: 0 | AV44: 0 | AW44: 0 | AY44: 37 | AZ44: 69.91891892 | BA44: 21.35135135 | BB44: 0 | BC44: 0 | BD44: 0 | BE44: 0 | BF44: 0 | BG44: 0 | BH44: 0 | BI44: 0 | BJ44: 0 | BK44: 0 | BL44: 0 | BM44: 0 | BO44: 9.567567568 | BP44: 12.62162162 | BQ44: 69.91891892 | BR44: 21.35135135 | BS44: 0 | BT44: 0 | BU44: 0 | BV44: 0 | BW44: 0 | BX44: 0 | BY44: 0 | BZ44: 0 | CA44: 0 | CB44: 0 | CC44: 0 | CD44: 0 | CF44: 22.18918919 | CG44: 69.91891892 | CH44: 21.35135135 | CI44: 0 | CJ44: 0 | CK44: 0 | CL44: 0 | CM44: 0 | CN44: 0 | CO44: 0 | CP44: 0 | CQ44: 0 | CR44: 0 | CS44: 0 | CT44: 0
B45: 39 | C45: 66.33333333 | D45: 20.25641026 | E45: 0 | F45: 0 | G45: 0 | H45: 0 | I45: 0 | J45: 0 | K45: 0 | L45: 0 | M45: 0 | N45: 0 | O45: 0 | P45: 0 | R45: 9.076923077 | S45: 11.97435897 | T45: 66.33333333 | U45: 20.25641026 | V45: 0 | W45: 0 | X45: 0 | Y45: 0 | Z45: 0 | AA45: 0 | AB45: 0 | AC45: 0 | AD45: 0 | AE45: 0 | AF45: 0 | AG45: 0 | AI45: 21.05128205 | AJ45: 66.33333333 | AK45: 20.25641026 | AL45: 0 | AM45: 0 | AN45: 0 | AO45: 0 | AP45: 0 | AQ45: 0 | AR45: 0 | AS45: 0 | AT45: 0 | AU45: 0 | AV45: 0 | AW45: 0 | AY45: 38 | AZ45: 68.07894737 | BA45: 20.78947368 | BB45: 0 | BC45: 0 | BD45: 0 | BE45: 0 | BF45: 0 | BG45: 0 | BH45: 0 | BI45: 0 | BJ45: 0 | BK45: 0 | BL45: 0 | BM45: 0 | BO45: 9.315789474 | BP45: 12.28947368 | BQ45: 68.07894737 | BR45: 20.78947368 | BS45: 0 | BT45: 0 | BU45: 0 | BV45: 0 | BW45: 0 | BX45: 0 | BY45: 0 | BZ45: 0 | CA45: 0 | CB45: 0 | CC45: 0 | CD45: 0 | CF45: 21.60526316 | CG45: 68.07894737 | CH45: 20.78947368 | CI45: 0 | CJ45: 0 | CK45: 0 | CL45: 0 | CM45: 0 | CN45: 0 | CO45: 0 | CP45: 0 | CQ45: 0 | CR45: 0 | CS45: 0 | CT45: 0
B46: 40 | C46: 64.675 | D46: 19.75 | E46: 0 | F46: 0 | G46: 0 | H46: 0 | I46: 0 | J46: 0 | K46: 0 | L46: 0 | M46: 0 | N46: 0 | O46: 0 | P46: 0 | R46: 8.85 | S46: 11.675 | T46: 64.675 | U46: 19.75 | V46: 0 | W46: 0 | X46: 0 | Y46: 0 | Z46: 0 | AA46: 0 | AB46: 0 | AC46: 0 | AD46: 0 | AE46: 0 | AF46: 0 | AG46: 0 | AI46: 20.525 | AJ46: 64.675 | AK46: 19.75 | AL46: 0 | AM46: 0 | AN46: 0 | AO46: 0 | AP46: 0 | AQ46: 0 | AR46: 0 | AS46: 0 | AT46: 0 | AU46: 0 | AV46: 0 | AW46: 0 | AY46: 39 | AZ46: 66.33333333 | BA46: 20.25641026 | BB46: 0 | BC46: 0 | BD46: 0 | BE46: 0 | BF46: 0 | BG46: 0 | BH46: 0 | BI46: 0 | BJ46: 0 | BK46: 0 | BL46: 0 | BM46: 0 | BO46: 9.076923077 | BP46: 11.97435897 | BQ46: 66.33333333 | BR46: 20.25641026 | BS46: 0 | BT46: 0 | BU46: 0 | BV46: 0 | BW46: 0 | BX46: 0 | BY46: 0 | BZ46: 0 | CA46: 0 | CB46: 0 | CC46: 0 | CD46: 0 | CF46: 21.05128205 | CG46: 66.33333333 | CH46: 20.25641026 | CI46: 0 | CJ46: 0 | CK46: 0 | CL46: 0 | CM46: 0 | CN46: 0 | CO46: 0 | CP46: 0 | CQ46: 0 | CR46: 0 | CS46: 0 | CT46: 0
B47: 41 | C47: 63.09756098 | D47: 19.26829268 | E47: 0 | F47: 0 | G47: 0 | H47: 0 | I47: 0 | J47: 0 | K47: 0 | L47: 0 | M47: 0 | N47: 0 | O47: 0 | P47: 0 | R47: 8.634146341 | S47: 11.3902439 | T47: 63.09756098 | U47: 19.26829268 | V47: 0 | W47: 0 | X47: 0 | Y47: 0 | Z47: 0 | AA47: 0 | AB47: 0 | AC47: 0 | AD47: 0 | AE47: 0 | AF47: 0 | AG47: 0 | AI47: 20.02439024 | AJ47: 63.09756098 | AK47: 19.26829268 | AL47: 0 | AM47: 0 | AN47: 0 | AO47: 0 | AP47: 0 | AQ47: 0 | AR47: 0 | AS47: 0 | AT47: 0 | AU47: 0 | AV47: 0 | AW47: 0 | AY47: 40 | AZ47: 64.675 | BA47: 19.75 | BB47: 0 | BC47: 0 | BD47: 0 | BE47: 0 | BF47: 0 | BG47: 0 | BH47: 0 | BI47: 0 | BJ47: 0 | BK47: 0 | BL47: 0 | BM47: 0 | BO47: 8.85 | BP47: 11.675 | BQ47: 64.675 | BR47: 19.75 | BS47: 0 | BT47: 0 | BU47: 0 | BV47: 0 | BW47: 0 | BX47: 0 | BY47: 0 | BZ47: 0 | CA47: 0 | CB47: 0 | CC47: 0 | CD47: 0 | CF47: 20.525 | CG47: 64.675 | CH47: 19.75 | CI47: 0 | CJ47: 0 | CK47: 0 | CL47: 0 | CM47: 0 | CN47: 0 | CO47: 0 | CP47: 0 | CQ47: 0 | CR47: 0 | CS47: 0 | CT47: 0
B48: 42 | C48: 61.5952381 | D48: 18.80952381 | E48: 0 | F48: 0 | G48: 0 | H48: 0 | I48: 0 | J48: 0 | K48: 0 | L48: 0 | M48: 0 | N48: 0 | O48: 0 | P48: 0 | R48: 8.428571429 | S48: 11.11904762 | T48: 61.5952381 | U48: 18.80952381 | V48: 0 | W48: 0 | X48: 0 | Y48: 0 | Z48: 0 | AA48: 0 | AB48: 0 | AC48: 0 | AD48: 0 | AE48: 0 | AF48: 0 | AG48: 0 | AI48: 19.54761905 | AJ48: 61.5952381 | AK48: 18.80952381 | AL48: 0 | AM48: 0 | AN48: 0 | AO48: 0 | AP48: 0 | AQ48: 0 | AR48: 0 | AS48: 0 | AT48: 0 | AU48: 0 | AV48: 0 | AW48: 0 | AY48: 41 | AZ48: 63.09756098 | BA48: 19.26829268 | BB48: 0 | BC48: 0 | BD48: 0 | BE48: 0 | BF48: 0 | BG48: 0 | BH48: 0 | BI48: 0 | BJ48: 0 | BK48: 0 | BL48: 0 | BM48: 0 | BO48: 8.634146341 | BP48: 11.3902439 | BQ48: 63.09756098 | BR48: 19.26829268 | BS48: 0 | BT48: 0 | BU48: 0 | BV48: 0 | BW48: 0 | BX48: 0 | BY48: 0 | BZ48: 0 | CA48: 0 | CB48: 0 | CC48: 0 | CD48: 0 | CF48: 20.02439024 | CG48: 63.09756098 | CH48: 19.26829268 | CI48: 0 | CJ48: 0 | CK48: 0 | CL48: 0 | CM48: 0 | CN48: 0 | CO48: 0 | CP48: 0 | CQ48: 0 | CR48: 0 | CS48: 0 | CT48: 0
B49: 43 | C49: 60.1627907 | D49: 18.37209302 | E49: 0 | F49: 0 | G49: 0 | H49: 0 | I49: 0 | J49: 0 | K49: 0 | L49: 0 | M49: 0 | N49: 0 | O49: 0 | P49: 0 | R49: 8.23255814 | S49: 10.86046512 | T49: 60.1627907 | U49: 18.37209302 | V49: 0 | W49: 0 | X49: 0 | Y49: =H49 -> 0 | Z49: 0 | AA49: 0 | AB49: 0 | AC49: 0 | AD49: 0 | AE49: 0 | AF49: 0 | AG49: 0 | AI49: 19.09302326 | AJ49: 60.1627907 | AK49: 18.37209302 | AL49: 0 | AM49: 0 | AN49: 0 | AO49: =H49 -> 0 | AP49: 0 | AQ49: 0 | AR49: 0 | AS49: 0 | AT49: 0 | AU49: 0 | AV49: 0 | AW49: 0 | AY49: 42 | AZ49: 61.5952381 | BA49: 18.80952381 | BB49: 0 | BC49: 0 | BD49: 0 | BE49: 0 | BF49: 0 | BG49: 0 | BH49: 0 | BI49: 0 | BJ49: 0 | BK49: 0 | BL49: 0 | BM49: 0 | BO49: 8.428571429 | BP49: 11.11904762 | BQ49: 61.5952381 | BR49: 18.80952381 | BS49: 0 | BT49: 0 | BU49: 0 | BV49: 0 | BW49: 0 | BX49: 0 | BY49: 0 | BZ49: 0 | CA49: 0 | CB49: 0 | CC49: 0 | CD49: 0 | CF49: 19.54761905 | CG49: 61.5952381 | CH49: 18.80952381 | CI49: 0 | CJ49: 0 | CK49: 0 | CL49: =BE49 -> 0 | CM49: =BF49 -> 0 | CN49: =BG49 -> 0 | CO49: =BH49 -> 0 | CP49: =BI49 -> 0 | CQ49: =BJ49 -> 0 | CR49: =BK49 -> 0 | CS49: =BL49 -> 0 | CT49: =BM49 -> 0
B50: 44 | C50: 58.79545455 | D50: 17.95454545 | E50: 0 | F50: 0 | G50: 0 | H50: 0 | I50: 0 | J50: 0 | K50: 0 | L50: 0 | M50: 0 | N50: 0 | O50: 0 | P50: 0 | R50: 8.045454545 | S50: 10.61363636 | T50: 58.79545455 | U50: 17.95454545 | V50: 0 | W50: 0 | X50: 0 | Y50: 0 | Z50: 0 | AA50: 0 | AB50: 0 | AC50: 0 | AD50: 0 | AE50: 0 | AF50: 0 | AG50: 0 | AI50: 18.65909091 | AJ50: 58.79545455 | AK50: 17.95454545 | AL50: 0 | AM50: 0 | AN50: 0 | AO50: 0 | AP50: 0 | AQ50: 0 | AR50: 0 | AS50: 0 | AT50: 0 | AU50: 0 | AV50: 0 | AW50: 0 | AY50: 43 | AZ50: 60.1627907 | BA50: 18.37209302 | BB50: 0 | BC50: 0 | BD50: 0 | BE50: 0 | BF50: 0 | BG50: 0 | BH50: 0 | BI50: 0 | BJ50: 0 | BK50: 0 | BL50: 0 | BM50: 0 | BO50: 8.23255814 | BP50: 10.86046512 | BQ50: 60.1627907 | BR50: 18.37209302 | BS50: 0 | BT50: 0 | BU50: 0 | BV50: 0 | BW50: 0 | BX50: 0 | BY50: 0 | BZ50: 0 | CA50: 0 | CB50: 0 | CC50: 0 | CD50: 0 | CF50: 19.09302326 | CG50: 60.1627907 | CH50: 18.37209302 | CI50: 0 | CJ50: =BC50 -> 0 | CK50: =BD50 -> 0 | CL50: 0 | CM50: 0 | CN50: 0 | CO50: 0 | CP50: 0 | CQ50: 0 | CR50: 0 | CS50: 0 | CT50: 0
B51: 45 | C51: 57.48888889 | D51: 17.55555556 | E51: 0 | F51: 0 | G51: 0 | H51: 0 | I51: 0 | J51: 0 | K51: 0 | L51: 0 | M51: 0 | N51: 0 | O51: 0 | P51: 0 | R51: 7.866666667 | S51: 10.37777778 | T51: 57.48888889 | U51: 17.55555556 | V51: 0 | W51: 0 | X51: 0 | Y51: 0 | Z51: 0 | AA51: 0 | AB51: 0 | AC51: 0 | AD51: 0 | AE51: 0 | AF51: 0 | AG51: 0 | AI51: 18.24444444 | AJ51: 57.48888889 | AK51: 17.55555556 | AL51: 0 | AM51: 0 | AN51: 0 | AO51: 0 | AP51: 0 | AQ51: 0 | AR51: 0 | AS51: 0 | AT51: 0 | AU51: 0 | AV51: 0 | AW51: 0 | AY51: 44 | AZ51: 58.79545455 | BA51: 17.95454545 | BB51: 0 | BC51: 0 | BD51: 0 | BE51: 0 | BF51: 0 | BG51: 0 | BH51: 0 | BI51: 0 | BJ51: 0 | BK51: 0 | BL51: 0 | BM51: 0 | BO51: 8.045454545 | BP51: 10.61363636 | BQ51: 58.79545455 | BR51: 17.95454545 | BS51: 0 | BT51: 0 | BU51: 0 | BV51: 0 | BW51: 0 | BX51: 0 | BY51: 0 | BZ51: 0 | CA51: 0 | CB51: 0 | CC51: 0 | CD51: 0 | CF51: 18.65909091 | CG51: 58.79545455 | CH51: 17.95454545 | CI51: 0 | CJ51: 0 | CK51: 0 | CL51: 0 | CM51: 0 | CN51: 0 | CO51: 0 | CP51: 0 | CQ51: 0 | CR51: 0 | CS51: 0 | CT51: 0
B52: 46 | C52: 56.23913043 | D52: 17.17391304 | E52: 0 | F52: 0 | G52: 0 | H52: 0 | I52: 0 | J52: 0 | K52: 0 | L52: 0 | M52: 0 | N52: 0 | O52: 0 | P52: 0 | R52: 7.695652174 | S52: 10.15217391 | T52: 56.23913043 | U52: 17.17391304 | V52: 0 | W52: 0 | X52: 0 | Y52: 0 | Z52: 0 | AA52: 0 | AB52: 0 | AC52: 0 | AD52: 0 | AE52: 0 | AF52: 0 | AG52: 0 | AI52: 17.84782609 | AJ52: 56.23913043 | AK52: 17.17391304 | AL52: 0 | AM52: 0 | AN52: 0 | AO52: 0 | AP52: 0 | AQ52: 0 | AR52: 0 | AS52: 0 | AT52: 0 | AU52: 0 | AV52: 0 | AW52: 0 | AY52: 45 | AZ52: 57.48888889 | BA52: 17.55555556 | BB52: 0 | BC52: 0 | BD52: 0 | BE52: 0 | BF52: 0 | BG52: 0 | BH52: 0 | BI52: 0 | BJ52: 0 | BK52: 0 | BL52: 0 | BM52: 0 | BO52: 7.866666667 | BP52: 10.37777778 | BQ52: 57.48888889 | BR52: 17.55555556 | BS52: 0 | BT52: 0 | BU52: 0 | BV52: 0 | BW52: 0 | BX52: 0 | BY52: 0 | BZ52: 0 | CA52: 0 | CB52: 0 | CC52: 0 | CD52: 0 | CF52: 18.24444444 | CG52: 57.48888889 | CH52: 17.55555556 | CI52: 0 | CJ52: 0 | CK52: 0 | CL52: 0 | CM52: 0 | CN52: 0 | CO52: 0 | CP52: 0 | CQ52: 0 | CR52: 0 | CS52: 0 | CT52: 0
B53: 47 | C53: 55.04255319 | D53: 16.80851064 | E53: 0 | F53: 0 | G53: 0 | H53: 0 | I53: 0 | J53: 0 | K53: 0 | L53: 0 | M53: 0 | N53: 0 | O53: 0 | P53: 0 | R53: 7.531914894 | S53: 9.936170213 | T53: 55.04255319 | U53: 16.80851064 | V53: 0 | W53: 0 | X53: 0 | Y53: 0 | Z53: 0 | AA53: 0 | AB53: 0 | AC53: 0 | AD53: 0 | AE53: 0 | AF53: 0 | AG53: 0 | AI53: 17.46808511 | AJ53: 55.04255319 | AK53: 16.80851064 | AL53: 0 | AM53: 0 | AN53: 0 | AO53: 0 | AP53: 0 | AQ53: 0 | AR53: 0 | AS53: 0 | AT53: 0 | AU53: 0 | AV53: 0 | AW53: 0 | AY53: 46 | AZ53: 56.23913043 | BA53: 17.17391304 | BB53: 0 | BC53: 0 | BD53: 0 | BE53: 0 | BF53: 0 | BG53: 0 | BH53: 0 | BI53: 0 | BJ53: 0 | BK53: 0 | BL53: 0 | BM53: 0 | BO53: 7.695652174 | BP53: 10.15217391 | BQ53: 56.23913043 | BR53: 17.17391304 | BS53: 0 | BT53: 0 | BU53: 0 | BV53: 0 | BW53: 0 | BX53: 0 | BY53: 0 | BZ53: 0 | CA53: 0 | CB53: 0 | CC53: 0 | CD53: 0 | CF53: 17.84782609 | CG53: 56.23913043 | CH53: 17.17391304 | CI53: 0 | CJ53: 0 | CK53: 0 | CL53: 0 | CM53: 0 | CN53: 0 | CO53: 0 | CP53: 0 | CQ53: 0 | CR53: 0 | CS53: 0 | CT53: 0
B54: 48 | C54: 53.89583333 | D54: 16.45833333 | E54: 0 | F54: 0 | G54: 0 | H54: 0 | I54: 0 | J54: 0 | K54: 0 | L54: 0 | M54: 0 | N54: 0 | O54: 0 | P54: 0 | R54: 7.375 | S54: 9.729166667 | T54: 53.89583333 | U54: 16.45833333 | V54: 0 | W54: 0 | X54: 0 | Y54: 0 | Z54: 0 | AA54: 0 | AB54: 0 | AC54: 0 | AD54: 0 | AE54: 0 | AF54: 0 | AG54: 0 | AI54: 17.10416667 | AJ54: 53.89583333 | AK54: 16.45833333 | AL54: 0 | AM54: 0 | AN54: 0 | AO54: 0 | AP54: 0 | AQ54: 0 | AR54: 0 | AS54: 0 | AT54: 0 | AU54: 0 | AV54: 0 | AW54: 0 | AY54: 47 | AZ54: 55.04255319 | BA54: 16.80851064 | BB54: 0 | BC54: 0 | BD54: 0 | BE54: 0 | BF54: 0 | BG54: 0 | BH54: 0 | BI54: 0 | BJ54: 0 | BK54: 0 | BL54: 0 | BM54: 0 | BO54: 7.531914894 | BP54: 9.936170213 | BQ54: 55.04255319 | BR54: 16.80851064 | BS54: 0 | BT54: 0 | BU54: 0 | BV54: 0 | BW54: 0 | BX54: 0 | BY54: 0 | BZ54: 0 | CA54: 0 | CB54: 0 | CC54: 0 | CD54: 0 | CF54: 17.46808511 | CG54: 55.04255319 | CH54: 16.80851064 | CI54: 0 | CJ54: 0 | CK54: 0 | CL54: 0 | CM54: 0 | CN54: 0 | CO54: 0 | CP54: 0 | CQ54: 0 | CR54: 0 | CS54: 0 | CT54: 0
B55: 49 | C55: 52.79591837 | D55: 16.12244898 | E55: 0 | F55: 0 | G55: 0 | H55: 0 | I55: 0 | J55: 0 | K55: 0 | L55: 0 | M55: 0 | N55: 0 | O55: 0 | P55: 0 | R55: 7.224489796 | S55: 9.530612245 | T55: 52.79591837 | U55: 16.12244898 | V55: 0 | W55: 0 | X55: 0 | Y55: 0 | Z55: 0 | AA55: 0 | AB55: 0 | AC55: 0 | AD55: 0 | AE55: 0 | AF55: 0 | AG55: 0 | AI55: 16.75510204 | AJ55: 52.79591837 | AK55: 16.12244898 | AL55: 0 | AM55: 0 | AN55: 0 | AO55: 0 | AP55: 0 | AQ55: 0 | AR55: 0 | AS55: 0 | AT55: 0 | AU55: 0 | AV55: 0 | AW55: 0 | AY55: 48 | AZ55: 53.89583333 | BA55: 16.45833333 | BB55: 0 | BC55: 0 | BD55: 0 | BE55: 0 | BF55: 0 | BG55: 0 | BH55: 0 | BI55: 0 | BJ55: 0 | BK55: 0 | BL55: 0 | BM55: 0 | BO55: 7.375 | BP55: 9.729166667 | BQ55: 53.89583333 | BR55: 16.45833333 | BS55: 0 | BT55: 0 | BU55: 0 | BV55: 0 | BW55: 0 | BX55: 0 | BY55: 0 | BZ55: 0 | CA55: 0 | CB55: 0 | CC55: 0 | CD55: 0 | CF55: 17.10416667 | CG55: 53.89583333 | CH55: 16.45833333 | CI55: 0 | CJ55: 0 | CK55: 0 | CL55: 0 | CM55: 0 | CN55: 0 | CO55: 0 | CP55: 0 | CQ55: 0 | CR55: 0 | CS55: 0 | CT55: 0
B56: 50 | C56: 51.74 | D56: 15.8 | E56: 0 | F56: 0 | G56: 0 | H56: 0 | I56: 0 | J56: 0 | K56: 0 | L56: 0 | M56: 0 | N56: 0 | O56: 0 | P56: 0 | R56: 7.08 | S56: 9.34 | T56: 51.74 | U56: 15.8 | V56: 0 | W56: 0 | X56: 0 | Y56: 0 | Z56: 0 | AA56: 0 | AB56: 0 | AC56: 0 | AD56: 0 | AE56: 0 | AF56: 0 | AG56: 0 | AI56: 16.42 | AJ56: 51.74 | AK56: 15.8 | AL56: 0 | AM56: 0 | AN56: 0 | AO56: 0 | AP56: 0 | AQ56: 0 | AR56: 0 | AS56: 0 | AT56: 0 | AU56: 0 | AV56: 0 | AW56: 0 | AY56: 49 | AZ56: 52.79591837 | BA56: 16.12244898 | BB56: 0 | BC56: 0 | BD56: 0 | BE56: 0 | BF56: 0 | BG56: 0 | BH56: 0 | BI56: 0 | BJ56: 0 | BK56: 0 | BL56: 0 | BM56: 0 | BO56: 7.224489796 | BP56: 9.530612245 | BQ56: 52.79591837 | BR56: 16.12244898 | BS56: 0 | BT56: 0 | BU56: 0 | BV56: 0 | BW56: 0 | BX56: 0 | BY56: 0 | BZ56: 0 | CA56: 0 | CB56: 0 | CC56: 0 | CD56: 0 | CF56: 16.75510204 | CG56: 52.79591837 | CH56: 16.12244898 | CI56: 0 | CJ56: 0 | CK56: 0 | CL56: 0 | CM56: 0 | CN56: 0 | CO56: 0 | CP56: 0 | CQ56: 0 | CR56: 0 | CS56: 0 | CT56: 0
B57: 51 | C57: 50.7254902 | D57: 15.49019608 | E57: 0 | F57: 0 | G57: 0 | H57: 0 | I57: 0 | J57: 0 | K57: 0 | L57: 0 | M57: 0 | N57: 0 | O57: 0 | P57: 0 | R57: 6.941176471 | S57: 9.156862745 | T57: 50.7254902 | U57: 15.49019608 | V57: 0 | W57: 0 | X57: 0 | Y57: 0 | Z57: 0 | AA57: 0 | AB57: 0 | AC57: 0 | AD57: 0 | AE57: 0 | AF57: 0 | AG57: 0 | AI57: 16.09803922 | AJ57: 50.7254902 | AK57: 15.49019608 | AL57: 0 | AM57: 0 | AN57: 0 | AO57: 0 | AP57: 0 | AQ57: 0 | AR57: 0 | AS57: 0 | AT57: 0 | AU57: 0 | AV57: 0 | AW57: 0 | AY57: 50 | AZ57: 51.74 | BA57: 15.8 | BB57: 0 | BC57: 0 | BD57: 0 | BE57: 0 | BF57: 0 | BG57: 0 | BH57: 0 | BI57: 0 | BJ57: 0 | BK57: 0 | BL57: 0 | BM57: 0 | BO57: 7.08 | BP57: 9.34 | BQ57: 51.74 | BR57: 15.8 | BS57: 0 | BT57: 0 | BU57: 0 | BV57: 0 | BW57: 0 | BX57: 0 | BY57: 0 | BZ57: 0 | CA57: 0 | CB57: 0 | CC57: 0 | CD57: 0 | CF57: 16.42 | CG57: 51.74 | CH57: 15.8 | CI57: 0 | CJ57: 0 | CK57: 0 | CL57: 0 | CM57: 0 | CN57: 0 | CO57: 0 | CP57: 0 | CQ57: 0 | CR57: 0 | CS57: 0 | CT57: 0
B58: 52 | C58: 49.75 | D58: 15.19230769 | E58: 0 | F58: 0 | G58: 0 | H58: 0 | I58: 0 | J58: 0 | K58: 0 | L58: 0 | M58: 0 | N58: 0 | O58: 0 | P58: 0 | R58: 6.807692308 | S58: 8.980769231 | T58: 49.75 | U58: 15.19230769 | V58: 0 | W58: 0 | X58: 0 | Y58: 0 | Z58: 0 | AA58: 0 | AB58: 0 | AC58: 0 | AD58: 0 | AE58: 0 | AF58: 0 | AG58: 0 | AI58: 15.78846154 | AJ58: 49.75 | AK58: 15.19230769 | AL58: 0 | AM58: 0 | AN58: 0 | AO58: 0 | AP58: 0 | AQ58: 0 | AR58: 0 | AS58: 0 | AT58: 0 | AU58: 0 | AV58: 0 | AW58: 0 | AY58: 51 | AZ58: 50.7254902 | BA58: 15.49019608 | BB58: 0 | BC58: 0 | BD58: 0 | BE58: 0 | BF58: 0 | BG58: 0 | BH58: 0 | BI58: 0 | BJ58: 0 | BK58: 0 | BL58: 0 | BM58: 0 | BO58: 6.941176471 | BP58: 9.156862745 | BQ58: 50.7254902 | BR58: 15.49019608 | BS58: 0 | BT58: 0 | BU58: 0 | BV58: 0 | BW58: 0 | BX58: 0 | BY58: 0 | BZ58: 0 | CA58: 0 | CB58: 0 | CC58: 0 | CD58: 0 | CF58: 16.09803922 | CG58: 50.7254902 | CH58: 15.49019608 | CI58: 0 | CJ58: 0 | CK58: 0 | CL58: 0 | CM58: 0 | CN58: 0 | CO58: 0 | CP58: 0 | CQ58: 0 | CR58: 0 | CS58: 0 | CT58: 0
B59: 53 | C59: =$C$6/B59 -> 48.81132075 | D59: =$D$6/B59 -> 14.90566038 | E59: =$E$6/B59 -> 0 | F59: =$F$6/B59 -> 0 | G59: =$G$6/B59 -> 0 | H59: =$H$6/B59 -> 0 | I59: =$I$6/B59 -> 0 | J59: 0 | K59: =$K$6/B59 -> 0 | L59: =$L$6/B59 -> 0 | M59: 0 | N59: 0 | O59: =$O$6/B59 -> 0 | P59: =$P$6/B59 -> 0 | R59: =$R$6/B59 -> 6.679245283 | S59: =$S$6/B59 -> 8.811320755 | T59: =C59 -> 48.81132075 | U59: 14.90566038 | V59: 0 | W59: 0 | X59: 0 | Y59: 0 | Z59: 0 | AA59: 0 | AB59: 0 | AC59: 0 | AD59: 0 | AE59: 0 | AF59: 0 | AG59: 0 | AI59: =$AI$6/B59 -> 15.49056604 | AJ59: =C59 -> 48.81132075 | AK59: 14.90566038 | AL59: 0 | AM59: 0 | AN59: 0 | AO59: 0 | AP59: 0 | AQ59: 0 | AR59: 0 | AS59: 0 | AT59: 0 | AU59: 0 | AV59: 0 | AW59: 0 | AY59: 52 | AZ59: 49.75 | BA59: 15.19230769 | BB59: 0 | BC59: 0 | BD59: 0 | BE59: 0 | BF59: 0 | BG59: 0 | BH59: 0 | BI59: 0 | BJ59: 0 | BK59: 0 | BL59: 0 | BM59: 0 | BO59: 6.807692308 | BP59: 8.980769231 | BQ59: 49.75 | BR59: 15.19230769 | BS59: 0 | BT59: 0 | BU59: 0 | BV59: 0 | BW59: 0 | BX59: 0 | BY59: 0 | BZ59: 0 | CA59: 0 | CB59: 0 | CC59: 0 | CD59: 0 | CF59: 15.78846154 | CG59: 49.75 | CH59: 15.19230769 | CI59: 0 | CJ59: 0 | CK59: 0 | CL59: 0 | CM59: 0 | CN59: 0 | CO59: 0 | CP59: 0 | CQ59: 0 | CR59: 0 | CS59: 0 | CT59: 0
B60: 54 | C60: =$C$6/B60 -> 47.90740741 | D60: =$D$6/B60 -> 14.62962963 | E60: =$E$6/B60 -> 0 | F60: =$F$6/B60 -> 0 | G60: =$G$6/B60 -> 0 | H60: =$H$6/B60 -> 0 | I60: =$I$6/B60 -> 0 | J60: 0 | K60: =$K$6/B60 -> 0 | L60: =$L$6/B60 -> 0 | M60: =$M$6/B60 -> 0 | N60: =$N$6/B60 -> 0 | O60: =$O$6/B60 -> 0 | P60: =$P$6/B60 -> 0 | R60: =$R$6/B60 -> 6.555555556 | S60: =$S$6/B60 -> 8.648148148 | T60: 47.90740741 | U60: 14.62962963 | V60: 0 | W60: 0 | X60: 0 | Y60: 0 | Z60: 0 | AA60: 0 | AB60: 0 | AC60: 0 | AD60: 0 | AE60: 0 | AF60: 0 | AG60: 0 | AI60: =$AI$6/B60 -> 15.2037037 | AJ60: 47.90740741 | AK60: 14.62962963 | AL60: 0 | AM60: 0 | AN60: 0 | AO60: 0 | AP60: 0 | AQ60: 0 | AR60: 0 | AS60: 0 | AT60: 0 | AU60: 0 | AV60: 0 | AW60: 0 | AY60: 53 | AZ60: 48.81132075 | BA60: 14.90566038 | BB60: 0 | BC60: 0 | BD60: 0 | BE60: 0 | BF60: 0 | BG60: 0 | BH60: 0 | BI60: 0 | BJ60: 0 | BK60: 0 | BL60: 0 | BM60: 0 | BO60: 6.679245283 | BP60: 8.811320755 | BQ60: 48.81132075 | BR60: 14.90566038 | BS60: 0 | BT60: 0 | BU60: 0 | BV60: 0 | BW60: 0 | BX60: 0 | BY60: 0 | BZ60: 0 | CA60: 0 | CB60: 0 | CC60: 0 | CD60: 0 | CF60: 15.49056604 | CG60: 48.81132075 | CH60: 14.90566038 | CI60: 0 | CJ60: 0 | CK60: 0 | CL60: 0 | CM60: 0 | CN60: 0 | CO60: 0 | CP60: 0 | CQ60: 0 | CR60: 0 | CS60: 0 | CT60: 0
B64: Nombre de sièges | C64: 17 | D64: 17 | E64: =C64-D64 -> 0
B65: Nombre d'inscrits | C65: 4198 | D65: 4198 | E65: =C65-D65 -> 0
B66: Bulletins déposés | C66: 3731 | D66: 3731 | E66: 0
B67: Blancs & Nuls | C67: 354 | D67: 354 | E67: 0
B68: Votes valables | C68: 3377 | D68: 3377 | E68: 0
B73: Liste unique Majorité absolue | C73: =SUM($C$74:$P$74) -> 1 | R73: =SUM($R$74:$AG$74) -> 1 | AI73: =SUM($AI$74:$AW$74) -> 1 | AY73: =SUM(AY74:BM74) -> 1 | BO73: =SUM(BO74:CD74) -> 1 | CF73: =SUM(CF74:CT74) -> 1 | CW73: =SUM(CW74:DL74) -> 1
C74: =IF(C7>($C$64/2),1,0) -> 1 | D74: 0 | E74: 0 | F74: 0 | G74: 0 | H74: 0 | I74: 0 | J74: 0 | K74: 0 | L74: 0 | M74: 0 | N74: 0 | O74: 0 | P74: 0 | R74: =IF(R7>($C$64/2),1,0) -> 0 | S74: 0 | T74: 1 | U74: 0 | V74: 0 | W74: 0 | X74: 0 | Y74: 0 | Z74: 0 | AA74: 0 | AB74: 0 | AC74: 0 | AD74: 0 | AE74: 0 | AF74: 0 | AG74: 0 | AI74: =IF(AI7>($C$64/2),1,0) -> 0 | AJ74: 1 | AK74: 0 | AL74: 0 | AM74: 0 | AN74: 0 | AO74: 0 | AP74: 0 | AQ74: 0 | AR74: 0 | AS74: 0 | AT74: 0 | AU74: 0 | AV74: 0 | AW74: 0 | AY74: =IF(AY7>($C$64/2),1,0) -> 0 | AZ74: 1 | BA74: 0 | BB74: 0 | BC74: 0 | BD74: 0 | BE74: 0 | BF74: 0 | BG74: 0 | BH74: 0 | BI74: 0 | BJ74: 0 | BK74: 0 | BL74: 0 | BM74: 0 | BO74: =IF(BO7>($C$64/2),1,0) -> 0 | BP74: 0 | BQ74: 1 | BR74: 0 | BS74: 0 | BT74: 0 | BU74: 0 | BV74: 0 | BW74: 0 | BX74: 0 | BY74: 0 | BZ74: 0 | CA74: 0 | CB74: 0 | CC74: 0 | CD74: 0 | CF74: =IF(CF7>($C$64/2),1,0) -> 0 | CG74: 1 | CH74: 0 | CI74: 0 | CJ74: 0 | CK74: 0 | CL74: 0 | CM74: 0 | CN74: 0 | CO74: 0 | CP74: 0 | CQ74: 0 | CR74: 0 | CS74: 0 | CT74: 0 | CW74: =IF(CW7>($C$64/2),1,0) -> 0 | CX74: 0 | CY74: 1 | CZ74: 0 | DA74: 0 | DB74: 0 | DC74: 0 | DD74: 0 | DE74: 0 | DF74: 0 | DG74: 0 | DH74: 0 | DI74: 0 | DJ74: 0 | DK74: 0 | DL74: 0
B76: Liste unique Majorité absolue Nombre de voix | C76: =SUM($C$77:$P$77) -> 2587 | R76: =SUM($R$77:$AG$77) -> 2587 | AI76: =SUM($AI$77:$AW$77) -> 2587 | AY76: =SUM(AY77:BM77) -> 2587 | BO76: =SUM(BO77:CD77) -> 2587 | CF76: =SUM(CF77:CT77) -> 2587 | CW76: =SUM(CW77:DL77) -> 2587
C77: =IF(C74>0,C6,0) -> 2587 | D77: =IF(D74>0,D6,0) -> 0 | E77: 0 | F77: 0 | G77: 0 | H77: 0 | I77: 0 | J77: 0 | K77: 0 | L77: 0 | M77: 0 | N77: 0 | O77: 0 | P77: 0 | R77: =IF(R74>0,R6,0) -> 0 | S77: =IF(S74>0,S6,0) -> 0 | T77: 2587 | U77: 0 | V77: 0 | W77: 0 | X77: 0 | Y77: 0 | Z77: 0 | AA77: 0 | AB77: 0 | AC77: 0 | AD77: 0 | AE77: 0 | AF77: 0 | AG77: 0 | AI77: =IF(AI74>0,AI6,0) -> 0 | AJ77: =IF(AJ74>0,AJ6,0) -> 2587 | AK77: 0 | AL77: 0 | AM77: 0 | AN77: 0 | AO77: 0 | AP77: 0 | AQ77: 0 | AR77: 0 | AS77: 0 | AT77: 0 | AU77: 0 | AV77: 0 | AW77: 0 | AY77: =IF(AY74>0,AY6,0) -> 0 | AZ77: =IF(AZ74>0,AZ6,0) -> 2587 | BA77: 0 | BB77: 0 | BC77: 0 | BD77: 0 | BE77: 0 | BF77: 0 | BG77: 0 | BH77: 0 | BI77: 0 | BJ77: 0 | BK77: 0 | BL77: 0 | BM77: 0 | BO77: =IF(BO74>0,BO6,0) -> 0 | BP77: =IF(BP74>0,BP6,0) -> 0 | BQ77: 2587 | BR77: 0 | BS77: 0 | BT77: 0 | BU77: 0 | BV77: 0 | BW77: 0 | BX77: 0 | BY77: 0 | BZ77: 0 | CA77: 0 | CB77: 0 | CC77: 0 | CD77: 0 | CF77: =IF(CF74>0,CF6,0) -> 0 | CG77: =IF(CG74>0,CG6,0) -> 2587 | CH77: 0 | CI77: 0 | CJ77: 0 | CK77: 0 | CL77: 0 | CM77: 0 | CN77: 0 | CO77: 0 | CP77: 0 | CQ77: 0 | CR77: 0 | CS77: 0 | CT77: 0 | CW77: =IF(CW74>0,CW6,0) -> 0 | CX77: =IF(CX74>0,CX6,0) -> 0 | CY77: 2587 | CZ77: 0 | DA77: 0 | DB77: 0 | DC77: 0 | DD77: 0 | DE77: 0 | DF77: 0 | DG77: 0 | DH77: 0 | DI77: 0 | DJ77: 0 | DK77: 0 | DL77: 0
B80: Nbr voix Coallition | C80: =SUMIF(C4:P4,"x",C6:P6) -> 0
B82: % Coalition | C82: =100/C65*C80 -> 0
B83: % Majorité | C83: =100/C65*C76 -> 61.62458313
B86: Coalition | C86: =COUNTA(C4:P4) -> 0 | D86: =IF(C86>0,1,0) -> 0
F93: =R5 -> Blancs & Nuls | G93: Non-déposés | H93: GI | I93: G.Z. | J93: 0 | K93: 0 | L93: 0 | M93: 0 | N93: 0 | O93: 0 | P93: 0 | Q93: 0 | R93: 0 | S93: 0 | T93: 0 | U93: 0
E94: Chiffres électoraux | F94: 354 | G94: 467 | H94: 2587 | I94: 790 | J94: 0 | K94: 0 | L94: 0 | M94: 0 | N94: 0 | O94: 0 | P94: 0 | Q94: 0 | R94: 0 | S94: 0 | T94: 0 | U94: 0
E95: Impériali | F95: 0 | G95: 0 | H95: =C7 -> 14 | I95: 3 | J95: 0 | K95: 0 | L95: 0 | M95: 0 | N95: 0 | O95: 0 | P95: 0 | Q95: 0 | R95: 0 | S95: 0 | T95: 0 | U95: 0
E96: Impériali + proportionnelle | F96: =R7 -> 0 | G96: 1 | H96: 13 | I96: 3 | J96: 0 | K96: 0 | L96: 0 | M96: 0 | N96: 0 | O96: 0 | P96: 0 | Q96: 0 | R96: 0 | S96: 0 | T96: 0 | U96: 0
E97: D'Hondt | F97: 0 | G97: 0 | H97: =AZ7 -> 13 | I97: 4 | J97: 0 | K97: 0 | L97: 0 | M97: 0 | N97: 0 | O97: 0 | P97: 0 | Q97: 0 | R97: 0 | S97: 0 | T97: 0 | U97: 0
E98: D'Hondt + proportionnelle | F98: =BO7 -> 1 | G98: 2 | H98: 11 | I98: 3 | J98: 0 | K98: 0 | L98: 0 | M98: 0 | N98: 0 | O98: 0 | P98: 0 | Q98: 0 | R98: 0 | S98: 0 | T98: 0 | U98: 0
E99: Proportionnelle pure | F99: =CW7 -> 1.433539781 | G99: 1.891138637 | H99: 10.47617913 | I99: 3.199142449 | J99: 0 | K99: 0 | L99: 0 | M99: 0 | N99: 0 | O99: 0 | P99: 0 | Q99: 0 | R99: 0 | S99: 0 | T99: 0 | U99: 0
E101: Nombre de sièges à distribuer : | H101: =C64 -> 17 | K101: Est-ce une liste unique en majorité absolue en termes de sièges ? | T101: =IF(C73>0,"Oui","Non") -> Oui
E103: Nombre d'inscrits : | H103: =C65 -> 4198 | K103: Est-ce une liste unique en majorité absolue en termes de voix ? | T103: =IF(C76>0,"Oui","Non") -> Oui
E105: Nombre de bulletins déposés : | H105: =C66 -> 3731 | K105: La majorité est-elle formée par une coalition ? | T105: =IF(C86>1,"Oui","Non") -> Non
E107: Nombre de votes valables : | H107: =C68 -> 3377 | K107: Quelle est la proportion de l'électorat représentée par la majorité ? | T107: =IF(C86>1,C82,C83) -> 61.62458313

Sheet ANDENNE
B2: Impériali | AY2: D'Hondt | CV2: Proportionnelle pure
B4: Coalition | C4: x | F4: x
B5: =COUNTA(C5:P5) -> 5 | C5: MR | D5: LE RENOUVEAU | E5: TS | F5: PSD@ | G5: AD&N | R5: Blancs & Nuls | S5: Non-déposés | T5: =C5 -> MR | U5: LE RENOUVEAU | V5: TS | W5: PSD@ | X5: AD&N | Y5: =H5 -> 0 | Z5: =I5 -> 0 | AA5: 0 | AB5: 0 | AC5: 0 | AD5: 0 | AE5: 0 | AF5: 0 | AG5: 0 | AI5: Non-valables | AJ5: =C5 -> MR | AK5: LE RENOUVEAU | AL5: TS | AM5: PSD@ | AN5: AD&N | AO5: =H5 -> 0 | AP5: =I5 -> 0 | AQ5: 0 | AR5: 0 | AS5: 0 | AT5: 0 | AU5: 0 | AV5: 0 | AW5: 0 | AY5: =COUNTA(AZ5:BM5) -> 14 | AZ5: =C5 -> MR | BA5: LE RENOUVEAU | BB5: TS | BC5: PSD@ | BD5: AD&N | BE5: 0 | BF5: 0 | BG5: 0 | BH5: 0 | BI5: 0 | BJ5: 0 | BK5: 0 | BL5: 0 | BM5: 0 | BO5: Blancs & Nuls | BP5: Non-déposés | BQ5: =C5 -> MR | BR5: LE RENOUVEAU | BS5: TS | BT5: PSD@ | BU5: AD&N | BV5: 0 | BW5: 0 | BX5: 0 | BY5: 0 | BZ5: 0 | CA5: 0 | CB5: 0 | CC5: 0 | CD5: 0 | CF5: Non-valables | CG5: =AZ5 -> MR | CH5: =BA5 -> LE RENOUVEAU | CI5: =BB5 -> TS | CJ5: =BC5 -> PSD@ | CK5: =BD5 -> AD&N | CL5: =BE5 -> 0 | CM5: =BF5 -> 0 | CN5: 0 | CO5: 0 | CP5: 0 | CQ5: 0 | CR5: 0 | CS5: 0 | CT5: 0 | CV5: New Key | CW5: Blancs & Nuls | CX5: Non-déposés | CY5: =C5 -> MR | CZ5: LE RENOUVEAU | DA5: TS | DB5: PSD@ | DC5: AD&N | DD5: 0 | DE5: 0 | DF5: 0 | DG5: 0 | DH5: 0 | DI5: 0 | DJ5: 0 | DK5: 0 | DL5: 0
B6: Chiffres électoraux | C6: 1977 | D6: 603 | E6: 170 | F6: 8634 | G6: 5056 | R6: =C67 -> 1712 | S6: =C65-C66 -> 2352 | T6: 1977 | U6: 603 | V6: 170 | W6: 8634 | X6: 5056 | Y6: =H6 -> 0 | Z6: 0 | AA6: 0 | AB6: 0 | AC6: 0 | AD6: 0 | AE6: 0 | AF6: 0 | AG6: 0 | AI6: =R6+S6 -> 4064 | AJ6: 1977 | AK6: 603 | AL6: 170 | AM6: 8634 | AN6: 5056 | AO6: =H6 -> 0 | AP6: 0 | AQ6: 0 | AR6: 0 | AS6: 0 | AT6: 0 | AU6: 0 | AV6: 0 | AW6: 0 | AY6: Chiffres électoraux | AZ6: 1977 | BA6: 603 | BB6: 170 | BC6: 8634 | BD6: 5056 | BE6: 0 | BF6: 0 | BG6: 0 | BH6: 0 | BI6: 0 | BJ6: 0 | BK6: 0 | BL6: 0 | BM6: 0 | BO6: =C67 -> 1712 | BP6: =C65-C66 -> 2352 | BQ6: 1977 | BR6: 603 | BS6: 170 | BT6: 8634 | BU6: 5056 | BV6: 0 | BW6: 0 | BX6: 0 | BY6: 0 | BZ6: 0 | CA6: 0 | CB6: 0 | CC6: 0 | CD6: 0 | CF6: =BO6+BP6 -> 4064 | CG6: 1977 | CH6: 603 | CI6: 170 | CJ6: 8634 | CK6: 5056 | CL6: =BE6 -> 0 | CM6: 0 | CN6: 0 | CO6: 0 | CP6: 0 | CQ6: 0 | CR6: 0 | CS6: 0 | CT6: 0 | CW6: =C67 -> 1712 | CX6: =C65-C66 -> 2352 | CY6: 1977 | CZ6: 603 | DA6: 170 | DB6: 8634 | DC6: 5056 | DD6: 0 | DE6: 0 | DF6: 0 | DG6: 0 | DH6: 0 | DI6: 0 | DJ6: 0 | DK6: 0 | DL6: 0
B7: Sièges | C7: 3 | D7: 0 | E7: 0 | F7: 17 | G7: 9 | H7: 0 | I7: 0 | J7: 0 | K7: 0 | L7: 0 | M7: 0 | N7: 0 | O7: 0 | P7: 0 | R7: 2 | S7: 3 | T7: 2 | U7: 0 | V7: 0 | W7: 14 | X7: 8 | Y7: 0 | Z7: 0 | AA7: 0 | AB7: 0 | AC7: 0 | AD7: 0 | AE7: 0 | AF7: 0 | AG7: 0 | AI7: 6 | AJ7: 2 | AK7: 0 | AL7: 0 | AM7: 14 | AN7: 7 | AO7: 0 | AP7: 0 | AQ7: 0 | AR7: 0 | AS7: 0 | AT7: 0 | AU7: 0 | AV7: 0 | AW7: 0 | AY7: 0 | AZ7: 3 | BA7: 1 | BB7: 0 | BC7: 16 | BD7: 9 | BE7: 0 | BF7: 0 | BG7: 0 | BH7: 0 | BI7: 0 | BJ7: 0 | BK7: 0 | BL7: 0 | BM7: 0 | BO7: 2 | BP7: 3 | BQ7: 3 | BR7: 0 | BS7: 0 | BT7: 13 | BU7: 8 | BV7: 0 | BW7: 0 | BX7: 0 | BY7: 0 | BZ7: 0 | CA7: 0 | CB7: 0 | CC7: 0 | CD7: 0 | CF7: 6 | CG7: 3 | CH7: 0 | CI7: 0 | CJ7: 13 | CK7: 7 | CL7: 0 | CM7: 0 | CN7: 0 | CO7: 0 | CP7: 0 | CQ7: 0 | CR7: 0 | CS7: 0 | CT7: 0 | CV7: =C65/C64 -> 707.0344828 | CW7: =CW6/$CV$7 -> 2.421381194 | CX7: 3.326570425 | CY7: 2.79618611 | CZ7: 0.8528579789 | DA7: 0.2404408896 | DB7: 12.21156847 | DC7: 7.150994928 | DD7: 0 | DE7: 0 | DF7: 0 | DG7: 0 | DH7: 0 | DI7: 0 | DJ7: 0 | DK7: 0 | DL7: 0
B8: 2 | C8: =$C$6/B8 -> 988.5 | D8: =$D$6/B8 -> 301.5 | E8: =$E$6/B8 -> 85 | F8: =$F$6/B8 -> 4317 | G8: =$G$6/B8 -> 2528 | H8: =$H$6/B8 -> 0 | I8: =$I$6/B8 -> 0 | J8: =$J$6/B8 -> 0 | K8: =$K$6/B8 -> 0 | L8: =$L$6/B8 -> 0 | M8: =$M$6/B8 -> 0 | N8: =$N$6/B8 -> 0 | O8: =$O$6/B8 -> 0 | P8: =$P$6/B8 -> 0 | R8: =$R$6/B8 -> 856 | S8: =$S$6/B8 -> 1176 | T8: =C8 -> 988.5 | U8: =D8 -> 301.5 | V8: =E8 -> 85 | W8: =F8 -> 4317 | X8: =G8 -> 2528 | Y8: =H8 -> 0 | Z8: =I8 -> 0 | AA8: =J8 -> 0 | AB8: =K8 -> 0 | AC8: =L8 -> 0 | AD8: =M8 -> 0 | AE8: 0 | AF8: 0 | AG8: =P8 -> 0 | AI8: =$AI$6/B8 -> 2032 | AJ8: =C8 -> 988.5 | AK8: =D8 -> 301.5 | AL8: =E8 -> 85 | AM8: =F8 -> 4317 | AN8: =G8 -> 2528 | AO8: =H8 -> 0 | AP8: =I8 -> 0 | AQ8: =J8 -> 0 | AR8: =K8 -> 0 | AS8: =L8 -> 0 | AT8: =M8 -> 0 | AU8: =N8 -> 0 | AV8: 0 | AW8: 0 | AY8: 1 | AZ8: =$AZ$6/AY8 -> 1977 | BA8: =$BA$6/AY8 -> 603 | BB8: =$BB$6/AY8 -> 170 | BC8: =$BC$6/AY8 -> 8634 | BD8: =$BD$6/AY8 -> 5056 | BE8: =$BE$6/AY8 -> 0 | BF8: =$BF$6/AY8 -> 0 | BG8: =$BG$6/AY8 -> 0 | BH8: =$BH$6/AY8 -> 0 | BI8: =$BI$6/AY8 -> 0 | BJ8: =$BJ$6/AY8 -> 0 | BK8: =$BK$6/AY8 -> 0 | BL8: =$BL$6/AY8 -> 0 | BM8: =$BM$6/AY8 -> 0 | BO8: =$BO$6/AY8 -> 1712 | BP8: =$BP$6/AY8 -> 2352 | BQ8: =AZ8 -> 1977 | BR8: =BA8 -> 603 | BS8: 170 | BT8: 8634 | BU8: 5056 | BV8: 0 | BW8: 0 | BX8: 0 | BY8: 0 | BZ8: 0 | CA8: 0 | CB8: 0 | CC8: 0 | CD8: 0 | CF8: =$CF$6/AY8 -> 4064 | CG8: =AZ8 -> 1977 | CH8: =BA8 -> 603 | CI8: =BB8 -> 170 | CJ8: =BC8 -> 8634 | CK8: =BD8 -> 5056 | CL8: =BE8 -> 0 | CM8: =BF8 -> 0 | CN8: =BG8 -> 0 | CO8: =BH8 -> 0 | CP8: =BI8 -> 0 | CQ8: =BJ8 -> 0 | CR8: =BK8 -> 0 | CS8: =BL8 -> 0 | CT8: =BM8 -> 0
B9: 3 | C9: =$C$6/B9 -> 659 | D9: 201 | E9: =$E$6/B9 -> 56.66666667 | F9: 2878 | G9: 1685.333333 | H9: =$H$6/B9 -> 0 | I9: =$I$6/B9 -> 0 | J9: =$J$6/B9 -> 0 | K9: =$K$6/B9 -> 0 | L9: =$L$6/B9 -> 0 | M9: =$M$6/B9 -> 0 | N9: 0 | O9: =$O$6/B9 -> 0 | P9: =$P$6/B9 -> 0 | R9: =$R$6/B9 -> 570.6666667 | S9: =$S$6/B9 -> 784 | T9: 659 | U9: 201 | V9: 56.66666667 | W9: 2878 | X9: 1685.333333 | Y9: 0 | Z9: 0 | AA9: 0 | AB9: 0 | AC9: 0 | AD9: 0 | AE9: 0 | AF9: 0 | AG9: 0 | AI9: =$AI$6/B9 -> 1354.666667 | AJ9: 659 | AK9: 201 | AL9: 56.66666667 | AM9: 2878 | AN9: 1685.333333 | AO9: 0 | AP9: 0 | AQ9: 0 | AR9: 0 | AS9: 0 | AT9: 0 | AU9: 0 | AV9: 0 | AW9: 0 | AY9: 2 | AZ9: =$AZ$6/AY9 -> 988.5 | BA9: =$BA$6/AY9 -> 301.5 | BB9: =$BB$6/AY9 -> 85 | BC9: =$BC$6/AY9 -> 4317 | BD9: =$BD$6/AY9 -> 2528 | BE9: =$BE$6/AY9 -> 0 | BF9: =$BF$6/AY9 -> 0 | BG9: =$BG$6/AY9 -> 0 | BH9: =$BH$6/AY9 -> 0 | BI9: =$BI$6/AY9 -> 0 | BJ9: =$BJ$6/AY9 -> 0 | BK9: =$BK$6/AY9 -> 0 | BL9: =$BL$6/AY9 -> 0 | BM9: =$BM$6/AY9 -> 0 | BO9: =$BO$6/AY9 -> 856 | BP9: =$BP$6/AY9 -> 1176 | BQ9: =AZ9 -> 988.5 | BR9: 301.5 | BS9: 85 | BT9: 4317 | BU9: 2528 | BV9: 0 | BW9: 0 | BX9: 0 | BY9: 0 | BZ9: 0 | CA9: 0 | CB9: 0 | CC9: 0 | CD9: 0 | CF9: =$CF$6/AY9 -> 2032 | CG9: 988.5 | CH9: 301.5 | CI9: 85 | CJ9: 4317 | CK9: 2528 | CL9: 0 | CM9: 0 | CN9: 0 | CO9: 0 | CP9: 0 | CQ9: 0 | CR9: 0 | CS9: 0 | CT9: 0
B10: 4 | C10: 494.25 | D10: 150.75 | E10: 42.5 | F10: 2158.5 | G10: 1264 | H10: 0 | I10: 0 | J10: 0 | K10: 0 | L10: 0 | M10: 0 | N10: 0 | O10: 0 | P10: 0 | R10: 428 | S10: 588 | T10: 494.25 | U10: 150.75 | V10: 42.5 | W10: 2158.5 | X10: 1264 | Y10: 0 | Z10: 0 | AA10: 0 | AB10: 0 | AC10: 0 | AD10: 0 | AE10: 0 | AF10: 0 | AG10: 0 | AI10: 1016 | AJ10: 494.25 | AK10: 150.75 | AL10: 42.5 | AM10: 2158.5 | AN10: 1264 | AO10: 0 | AP10: 0 | AQ10: 0 | AR10: 0 | AS10: 0 | AT10: 0 | AU10: 0 | AV10: 0 | AW10: 0 | AY10: 3 | AZ10: 659 | BA10: 201 | BB10: 56.66666667 | BC10: 2878 | BD10: 1685.333333 | BE10: 0 | BF10: 0 | BG10: 0 | BH10: 0 | BI10: 0 | BJ10: 0 | BK10: 0 | BL10: 0 | BM10: 0 | BO10: 570.6666667 | BP10: 784 | BQ10: 659 | BR10: 201 | BS10: 56.66666667 | BT10: 2878 | BU10: 1685.333333 | BV10: 0 | BW10: 0 | BX10: 0 | BY10: 0 | BZ10: 0 | CA10: 0 | CB10: 0 | CC10: 0 | CD10: 0 | CF10: 1354.666667 | CG10: 659 | CH10: 201 | CI10: 56.66666667 | CJ10: 2878 | CK10: 1685.333333 | CL10: 0 | CM10: 0 | CN10: 0 | CO10: 0 | CP10: 0 | CQ10: 0 | CR10: 0 | CS10: 0 | CT10: 0
B11: 5 | C11: 395.4 | D11: 120.6 | E11: 34 | F11: 1726.8 | G11: 1011.2 | H11: 0 | I11: 0 | J11: 0 | K11: 0 | L11: 0 | M11: 0 | N11: 0 | O11: 0 | P11: 0 | R11: 342.4 | S11: 470.4 | T11: 395.4 | U11: 120.6 | V11: 34 | W11: 1726.8 | X11: 1011.2 | Y11: 0 | Z11: 0 | AA11: 0 | AB11: 0 | AC11: 0 | AD11: 0 | AE11: 0 | AF11: 0 | AG11: 0 | AI11: 812.8 | AJ11: 395.4 | AK11: 120.6 | AL11: 34 | AM11: 1726.8 | AN11: 1011.2 | AO11: 0 | AP11: 0 | AQ11: 0 | AR11: 0 | AS11: 0 | AT11: 0 | AU11: 0 | AV11: 0 | AW11: 0 | AY11: 4 | AZ11: 494.25 | BA11: 150.75 | BB11: 42.5 | BC11: 2158.5 | BD11: 1264 | BE11: 0 | BF11: 0 | BG11: 0 | BH11: 0 | BI11: 0 | BJ11: 0 | BK11: 0 | BL11: 0 | BM11: 0 | BO11: 428 | BP11: 588 | BQ11: 494.25 | BR11: 150.75 | BS11: 42.5 | BT11: 2158.5 | BU11: 1264 | BV11: 0 | BW11: 0 | BX11: 0 | BY11: 0 | BZ11: 0 | CA11: 0 | CB11: 0 | CC11: 0 | CD11: 0 | CF11: 1016 | CG11: 494.25 | CH11: 150.75 | CI11: 42.5 | CJ11: 2158.5 | CK11: 1264 | CL11: 0 | CM11: 0 | CN11: 0 | CO11: 0 | CP11: 0 | CQ11: 0 | CR11: 0 | CS11: 0 | CT11: 0
B12: 6 | C12: 329.5 | D12: 100.5 | E12: 28.33333333 | F12: 1439 | G12: 842.6666667 | H12: 0 | I12: 0 | J12: 0 | K12: 0 | L12: 0 | M12: 0 | N12: 0 | O12: 0 | P12: 0 | R12: 285.3333333 | S12: 392 | T12: 329.5 | U12: 100.5 | V12: 28.33333333 | W12: 1439 | X12: 842.6666667 | Y12: 0 | Z12: 0 | AA12: 0 | AB12: 0 | AC12: 0 | AD12: 0 | AE12: 0 | AF12: 0 | AG12: 0 | AI12: 677.3333333 | AJ12: 329.5 | AK12: 100.5 | AL12: 28.33333333 | AM12: 1439 | AN12: 842.6666667 | AO12: 0 | AP12: 0 | AQ12: 0 | AR12: 0 | AS12: 0 | AT12: 0 | AU12: 0 | AV12: 0 | AW12: 0 | AY12: 5 | AZ12: 395.4 | BA12: 120.6 | BB12: 34 | BC12: 1726.8 | BD12: 1011.2 | BE12: 0 | BF12: 0 | BG12: 0 | BH12: 0 | BI12: 0 | BJ12: 0 | BK12: 0 | BL12: 0 | BM12: 0 | BO12: 342.4 | BP12: 470.4 | BQ12: 395.4 | BR12: 120.6 | BS12: 34 | BT12: 1726.8 | BU12: 1011.2 | BV12: 0 | BW12: 0 | BX12: 0 | BY12: 0 | BZ12: 0 | CA12: 0 | CB12: 0 | CC12: 0 | CD12: 0 | CF12: 812.8 | CG12: 395.4 | CH12: 120.6 | CI12: 34 | CJ12: 1726.8 | CK12: 1011.2 | CL12: 0 | CM12: 0 | CN12: 0 | CO12: 0 | CP12: 0 | CQ12: 0 | CR12: 0 | CS12: 0 | CT12: 0
B13: 7 | C13: 282.4285714 | D13: 86.14285714 | E13: 24.28571429 | F13: 1233.428571 | G13: 722.2857143 | H13: 0 | I13: 0 | J13: 0 | K13: 0 | L13: 0 | M13: 0 | N13: 0 | O13: 0 | P13: 0 | R13: 244.5714286 | S13: 336 | T13: 282.4285714 | U13: 86.14285714 | V13: 24.28571429 | W13: 1233.428571 | X13: 722.2857143 | Y13: 0 | Z13: 0 | AA13: 0 | AB13: 0 | AC13: 0 | AD13: 0 | AE13: 0 | AF13: 0 | AG13: 0 | AI13: 580.5714286 | AJ13: 282.4285714 | AK13: 86.14285714 | AL13: 24.28571429 | AM13: 1233.428571 | AN13: 722.2857143 | AO13: 0 | AP13: 0 | AQ13: 0 | AR13: 0 | AS13: 0 | AT13: 0 | AU13: 0 | AV13: 0 | AW13: 0 | AY13: 6 | AZ13: 329.5 | BA13: 100.5 | BB13: 28.33333333 | BC13: 1439 | BD13: 842.6666667 | BE13: 0 | BF13: 0 | BG13: 0 | BH13: 0 | BI13: 0 | BJ13: 0 | BK13: 0 | BL13: 0 | BM13: 0 | BO13: 285.3333333 | BP13: 392 | BQ13: 329.5 | BR13: 100.5 | BS13: 28.33333333 | BT13: 1439 | BU13: 842.6666667 | BV13: 0 | BW13: 0 | BX13: 0 | BY13: 0 | BZ13: 0 | CA13: 0 | CB13: 0 | CC13: 0 | CD13: 0 | CF13: 677.3333333 | CG13: 329.5 | CH13: 100.5 | CI13: 28.33333333 | CJ13: 1439 | CK13: 842.6666667 | CL13: 0 | CM13: 0 | CN13: 0 | CO13: 0 | CP13: 0 | CQ13: 0 | CR13: 0 | CS13: 0 | CT13: 0
B14: 8 | C14: 247.125 | D14: 75.375 | E14: 21.25 | F14: 1079.25 | G14: 632 | H14: 0 | I14: 0 | J14: 0 | K14: 0 | L14: 0 | M14: 0 | N14: 0 | O14: 0 | P14: 0 | R14: 214 | S14: 294 | T14: 247.125 | U14: 75.375 | V14: 21.25 | W14: 1079.25 | X14: 632 | Y14: 0 | Z14: 0 | AA14: 0 | AB14: 0 | AC14: 0 | AD14: 0 | AE14: 0 | AF14: 0 | AG14: 0 | AI14: 508 | AJ14: 247.125 | AK14: 75.375 | AL14: 21.25 | AM14: 1079.25 | AN14: 632 | AO14: 0 | AP14: 0 | AQ14: 0 | AR14: 0 | AS14: 0 | AT14: 0 | AU14: 0 | AV14: 0 | AW14: 0 | AY14: 7 | AZ14: 282.4285714 | BA14: 86.14285714 | BB14: 24.28571429 | BC14: 1233.428571 | BD14: 722.2857143 | BE14: 0 | BF14: 0 | BG14: 0 | BH14: 0 | BI14: 0 | BJ14: 0 | BK14: 0 | BL14: 0 | BM14: 0 | BO14: 244.5714286 | BP14: 336 | BQ14: 282.4285714 | BR14: 86.14285714 | BS14: 24.28571429 | BT14: 1233.428571 | BU14: 722.2857143 | BV14: 0 | BW14: 0 | BX14: 0 | BY14: 0 | BZ14: 0 | CA14: 0 | CB14: 0 | CC14: 0 | CD14: 0 | CF14: 580.5714286 | CG14: 282.4285714 | CH14: 86.14285714 | CI14: 24.28571429 | CJ14: 1233.428571 | CK14: 722.2857143 | CL14: 0 | CM14: 0 | CN14: 0 | CO14: 0 | CP14: 0 | CQ14: 0 | CR14: 0 | CS14: 0 | CT14: 0
B15: 9 | C15: 219.6666667 | D15: 67 | E15: 18.88888889 | F15: 959.3333333 | G15: 561.7777778 | H15: 0 | I15: 0 | J15: 0 | K15: 0 | L15: 0 | M15: 0 | N15: 0 | O15: 0 | P15: 0 | R15: 190.2222222 | S15: 261.3333333 | T15: 219.6666667 | U15: 67 | V15: 18.88888889 | W15: 959.3333333 | X15: 561.7777778 | Y15: 0 | Z15: 0 | AA15: 0 | AB15: 0 | AC15: 0 | AD15: 0 | AE15: 0 | AF15: 0 | AG15: 0 | AI15: 451.5555556 | AJ15: 219.6666667 | AK15: 67 | AL15: 18.88888889 | AM15: 959.3333333 | AN15: 561.7777778 | AO15: 0 | AP15: 0 | AQ15: 0 | AR15: 0 | AS15: 0 | AT15: 0 | AU15: 0 | AV15: 0 | AW15: 0 | AY15: 8 | AZ15: 247.125 | BA15: 75.375 | BB15: 21.25 | BC15: 1079.25 | BD15: 632 | BE15: 0 | BF15: 0 | BG15: 0 | BH15: 0 | BI15: 0 | BJ15: 0 | BK15: 0 | BL15: 0 | BM15: 0 | BO15: 214 | BP15: 294 | BQ15: 247.125 | BR15: 75.375 | BS15: 21.25 | BT15: 1079.25 | BU15: 632 | BV15: 0 | BW15: 0 | BX15: 0 | BY15: 0 | BZ15: 0 | CA15: 0 | CB15: 0 | CC15: 0 | CD15: 0 | CF15: 508 | CG15: 247.125 | CH15: 75.375 | CI15: 21.25 | CJ15: 1079.25 | CK15: 632 | CL15: 0 | CM15: 0 | CN15: 0 | CO15: 0 | CP15: 0 | CQ15: 0 | CR15: 0 | CS15: 0 | CT15: 0
B16: 10 | C16: 197.7 | D16: 60.3 | E16: 17 | F16: 863.4 | G16: 505.6 | H16: 0 | I16: 0 | J16: 0 | K16: 0 | L16: 0 | M16: 0 | N16: 0 | O16: 0 | P16: 0 | R16: 171.2 | S16: 235.2 | T16: 197.7 | U16: 60.3 | V16: 17 | W16: 863.4 | X16: 505.6 | Y16: 0 | Z16: 0 | AA16: 0 | AB16: 0 | AC16: 0 | AD16: 0 | AE16: 0 | AF16: 0 | AG16: 0 | AI16: 406.4 | AJ16: 197.7 | AK16: 60.3 | AL16: 17 | AM16: 863.4 | AN16: 505.6 | AO16: 0 | AP16: 0 | AQ16: 0 | AR16: 0 | AS16: 0 | AT16: 0 | AU16: 0 | AV16: 0 | AW16: 0 | AY16: 9 | AZ16: 219.6666667 | BA16: 67 | BB16: 18.88888889 | BC16: 959.3333333 | BD16: 561.7777778 | BE16: 0 | BF16: 0 | BG16: 0 | BH16: 0 | BI16: 0 | BJ16: 0 | BK16: 0 | BL16: 0 | BM16: 0 | BO16: 190.2222222 | BP16: 261.3333333 | BQ16: 219.6666667 | BR16: 67 | BS16: 18.88888889 | BT16: 959.3333333 | BU16: 561.7777778 | BV16: 0 | BW16: 0 | BX16: 0 | BY16: 0 | BZ16: 0 | CA16: 0 | CB16: 0 | CC16: 0 | CD16: 0 | CF16: 451.5555556 | CG16: 219.6666667 | CH16: 67 | CI16: 18.88888889 | CJ16: 959.3333333 | CK16: 561.7777778 | CL16: 0 | CM16: 0 | CN16: 0 | CO16: 0 | CP16: 0 | CQ16: 0 | CR16: 0 | CS16: 0 | CT16: 0
B17: 11 | C17: 179.7272727 | D17: 54.81818182 | E17: 15.45454545 | F17: 784.9090909 | G17: 459.6363636 | H17: 0 | I17: 0 | J17: 0 | K17: 0 | L17: 0 | M17: 0 | N17: 0 | O17: 0 | P17: 0 | R17: 155.6363636 | S17: 213.8181818 | T17: 179.7272727 | U17: 54.81818182 | V17: 15.45454545 | W17: 784.9090909 | X17: 459.6363636 | Y17: 0 | Z17: 0 | AA17: 0 | AB17: 0 | AC17: 0 | AD17: 0 | AE17: 0 | AF17: 0 | AG17: 0 | AI17: 369.4545455 | AJ17: 179.7272727 | AK17: 54.81818182 | AL17: 15.45454545 | AM17: 784.9090909 | AN17: 459.6363636 | AO17: 0 | AP17: 0 | AQ17: 0 | AR17: 0 | AS17: 0 | AT17: 0 | AU17: 0 | AV17: 0 | AW17: 0 | AY17: 10 | AZ17: 197.7 | BA17: 60.3 | BB17: 17 | BC17: 863.4 | BD17: 505.6 | BE17: 0 | BF17: 0 | BG17: 0 | BH17: 0 | BI17: 0 | BJ17: 0 | BK17: 0 | BL17: 0 | BM17: 0 | BO17: 171.2 | BP17: 235.2 | BQ17: 197.7 | BR17: 60.3 | BS17: 17 | BT17: 863.4 | BU17: 505.6 | BV17: 0 | BW17: 0 | BX17: 0 | BY17: 0 | BZ17: 0 | CA17: 0 | CB17: 0 | CC17: 0 | CD17: 0 | CF17: 406.4 | CG17: 197.7 | CH17: 60.3 | CI17: 17 | CJ17: 863.4 | CK17: 505.6 | CL17: 0 | CM17: 0 | CN17: 0 | CO17: 0 | CP17: 0 | CQ17: 0 | CR17: 0 | CS17: 0 | CT17: 0
B18: 12 | C18: 164.75 | D18: 50.25 | E18: 14.16666667 | F18: 719.5 | G18: 421.3333333 | H18: 0 | I18: 0 | J18: 0 | K18: 0 | L18: 0 | M18: 0 | N18: 0 | O18: 0 | P18: 0 | R18: 142.6666667 | S18: 196 | T18: 164.75 | U18: 50.25 | V18: 14.16666667 | W18: 719.5 | X18: 421.3333333 | Y18: 0 | Z18: 0 | AA18: 0 | AB18: 0 | AC18: 0 | AD18: 0 | AE18: 0 | AF18: 0 | AG18: 0 | AI18: 338.6666667 | AJ18: 164.75 | AK18: 50.25 | AL18: 14.16666667 | AM18: 719.5 | AN18: 421.3333333 | AO18: 0 | AP18: 0 | AQ18: 0 | AR18: 0 | AS18: 0 | AT18: 0 | AU18: 0 | AV18: 0 | AW18: 0 | AY18: 11 | AZ18: 179.7272727 | BA18: 54.81818182 | BB18: 15.45454545 | BC18: 784.9090909 | BD18: 459.6363636 | BE18: 0 | BF18: 0 | BG18: 0 | BH18: 0 | BI18: 0 | BJ18: 0 | BK18: 0 | BL18: 0 | BM18: 0 | BO18: 155.6363636 | BP18: 213.8181818 | BQ18: 179.7272727 | BR18: 54.81818182 | BS18: 15.45454545 | BT18: 784.9090909 | BU18: 459.6363636 | BV18: 0 | BW18: 0 | BX18: 0 | BY18: 0 | BZ18: 0 | CA18: 0 | CB18: 0 | CC18: 0 | CD18: 0 | CF18: 369.4545455 | CG18: 179.7272727 | CH18: 54.81818182 | CI18: 15.45454545 | CJ18: 784.9090909 | CK18: 459.6363636 | CL18: 0 | CM18: 0 | CN18: 0 | CO18: 0 | CP18: 0 | CQ18: 0 | CR18: 0 | CS18: 0 | CT18: 0
